Workbook

Sheet DNA
A1: 配列数 | B1: 96 | L1: ← | M1: 左の青マスの数字を自由に変えて下さい。配列数「1～96」、Min、Max「1～500]
A2: 塩基数 | B2: Min | C2: 40 | D2: Max | E2: 40 | M2: 「配列作成」をクリックすると、ランダムな配列を「配列数」個、「Min」から「Max」の長さで作製します。
A3: 割合 | B3: A | D3: T | F3: G | H3: C | M3: まずは、Min 30、Max50でお試し下さい。次にMin50、Max50でお試しください。
P4: GC含量
A5: 1 | B5: =IF(C5="","",LEN(D5)) -> 40 | C5: =IF($B$1>=A5,"Random-"&A5,"") -> Random-1 | D5: GTTTCTGAAGCTCCGAGGCGCGATCACGATGACAGCTGAT | P5: =IF(C5="","",O203) -> 0.55
A6: 2 | B6: =IF(C6="","",LEN(D6)) -> 40 | C6: =IF($B$1>=A6,"Random-"&A6,"") -> Random-2 | D6: CATGCATAGACTGAATATTAAACGTTAGATTGGAAACTAG | P6: =IF(C6="","",O204) -> 0.325
A7: 3 | B7: 40 | C7: Random-3 | D7: ATAACATACCAAAAAATTTGAATCGCTTGGGCTACAGAGA | P7: 0.35
A8: 4 | B8: 40 | C8: Random-4 | D8: TGGAGCCTACCGGTCGTCGCAACCACACCCTACGCTTGGA | P8: 0.625
A9: 5 | B9: 40 | C9: Random-5 | D9: TGTATAACCAGGCCAGTGACTTGGGGCAGTATATCAGGAC | P9: 0.5
A10: 6 | B10: 40 | C10: Random-6 | D10: GTAGTTAAACGGTATCTTACACTCGCTAGTTCGAAACAAA | P10: 0.375
A11: 7 | B11: 40 | C11: Random-7 | D11: AAAAACAAGACACAGTGCCCACTAGCAATCAGCTCACGAG | P11: 0.475
A12: 8 | B12: 40 | C12: Random-8 | D12: TAAGCTCCGCCCGTCACAAGTTAACATAGGGGCCTGTGGG | P12: 0.575
A13: 9 | B13: 40 | C13: Random-9 | D13: TGCAAGGTGGCGTACAAAGCAAACAAGTACCATCAAATCG | P13: 0.45
A14: 10 | B14: 40 | C14: Random-10 | D14: TATGAATCTATCGAGAGGGATACTGACATTGTCGCATATA | P14: 0.375
A15: 11 | B15: =IF(C15="","",LEN(D15)) -> 40 | C15: Random-11 | D15: GGTTCCTCAAGAGCATGAGGGTCTAGGGTCACCCGGCAGC | P15: 0.625
A16: 12 | B16: 40 | C16: Random-12 | D16: TAAAGTCGCCCATTTGCCTATAACCCGTCTGGCTGCAGTT | P16: 0.5
A17: 13 | B17: 40 | C17: Random-13 | D17: AGTGAGCTGACCATAACTGTACTGGTAACACACCACTGCG | P17: 0.5
A18: 14 | B18: 40 | C18: Random-14 | D18: GGTAAAGGTGTAGTAATCGCGAAGTATAGTTAACTTCACG | P18: 0.4
A19: 15 | B19: 40 | C19: Random-15 | D19: TGTACCCCATACCCGTGCGAGCATCTAATGCCTTTGCAAA | P19: 0.5
A20: 16 | B20: 40 | C20: Random-16 | D20: CGTGCAAAGACCGCTCCATATGCCAAATGAGCGTTGGTCT | P20: 0.525
A21: 17 | B21: 40 | C21: Random-17 | D21: TCCTAGAGGGCACCGGTGTCTGGAGTCAGGCCCCAGTCCG | P21: 0.675
A22: 18 | B22: 40 | C22: Random-18 | D22: CTGCGGTTCTGCCGTAAAGTTTCATATATCATCAGAGATT | P22: 0.4
A23: 19 | B23: 40 | C23: Random-19 | D23: TAGGCATAATCTATAGATCGCAGACTGTCCATGTTTGTCG | P23: 0.425
A24: 20 | B24: 40 | C24: Random-20 | D24: CTCGGGGAGCTGATTAGTAATGTTCGCTGGCACTCGGTCG | P24: 0.575
A25: 21 | B25: 40 | C25: Random-21 | D25: TCGGCAGTCGCATGTAGCATAACTGTCATTCAATTGTCTG | P25: 0.45
A26: 22 | B26: 40 | C26: Random-22 | D26: ACTAGGACAGACGCAGATATCTTCCTAAGATAGATGTCTC | P26: 0.425
A27: 23 | B27: 40 | C27: Random-23 | D27: ATTCTCACGGATGTGGCAGCTCACTCGAACGGATCTTACT | P27: 0.5
A28: 24 | B28: 40 | C28: Random-24 | D28: GTCACTAGGTATGGTACAGCTCTAAACGGGACTCCATGAG | P28: 0.5
A29: 25 | B29: 40 | C29: Random-25 | D29: TAGTGAGCTAATTTTTCTATCAATTTTCCTTCCCACTAGT | P29: 0.325
A30: 26 | B30: 40 | C30: Random-26 | D30: AGCCGTCTTCTCTTCCACTCAAACCCGGACGGTGGAATCT | P30: 0.55
A31: 27 | B31: 40 | C31: Random-27 | D31: TGTCCACGTCTATCTGAACCGAGTAGTCTGAAAACGAACG | P31: 0.475
A32: 28 | B32: 40 | C32: Random-28 | D32: CCCTACGAATGCGGTTAGTTGAGAGTTGGTCTCCTTAGTG | P32: 0.5
A33: 29 | B33: 40 | C33: Random-29 | D33: GACTTCTAGTTATACGATGTCCGCGTAGGGGAACTCACAG | P33: 0.5
A34: 30 | B34: 40 | C34: Random-30 | D34: ATTAGTACATGAGGAAATGGCACCGCGTCTGCCCGACTGA | P34: 0.525
A35: 31 | B35: 40 | C35: Random-31 | D35: GGCACTTAAGCCAGAACGCTTCAGTGACCGCCGTATCAAC | P35: 0.55
A36: 32 | B36: 40 | C36: Random-32 | D36: AATCTTCATGGCGATACTTAACACGGCCATCATGTCAGAT | P36: 0.425
A37: 33 | B37: 40 | C37: Random-33 | D37: CATTTCACAGTCGCCAGAATACATCACCGGCAATCTCAGC | P37: 0.5
A38: 34 | B38: 40 | C38: Random-34 | D38: TCCCAGGGACAGACCCTCATTACTGCCTTGTAGCTTAATA | P38: 0.475
A39: 35 | B39: 40 | C39: Random-35 | D39: TTTTCTAAGTACAGACTATATTTTGACCTCAGTGGGAACC | P39: 0.375
A40: 36 | B40: 40 | C40: Random-36 | D40: TGGGGGAGAAGGCCCTTCAAGGACAGGCGCTCGATGACGA | P40: 0.625
A41: 37 | B41: 40 | C41: Random-37 | D41: ACATAGTAAAAAATTCTCTGAAGAAAAAGCCAGCATCAAT | P41: 0.3
A42: 38 | B42: 40 | C42: Random-38 | D42: CTGGGACAATTTTGCTTAGGACCCCAACTATAGGCTGATT | P42: 0.45
A43: 39 | B43: 40 | C43: Random-39 | D43: GGGTCTCATGGGACTATGCCGGAAATAGCCTGGATGCAGA | P43: 0.55
A44: 40 | B44: 40 | C44: Random-40 | D44: ACTATGAGCGGTGTACCGCAATTACGCCGCTATGCGTGTT | P44: 0.525
A45: 41 | B45: 40 | C45: Random-41 | D45: ATTTTCCTCGCCCTAATACGATACTACTGTGCCCTGGCGT | P45: 0.5 | R45: =IF(C45="","",C45&":5'- "&D45&"-3'") -> Random-41:5'- ATTTTCCTCGCCCTAATACGATACTACTGTGCCCTGGCGT-3'
A46: 42 | B46: 40 | C46: Random-42 | D46: AGTCTAACCCCACACCGTCGCTTACCAAGACAAGATGCAG | P46: 0.525 | R46: Random-42:5'- AGTCTAACCCCACACCGTCGCTTACCAAGACAAGATGCAG-3'
A47: 43 | B47: 40 | C47: Random-43 | D47: GTTGTTGTGTGGGCTATTCTAGGACACTGAATTGTGGACC | P47: 0.475 | R47: Random-43:5'- GTTGTTGTGTGGGCTATTCTAGGACACTGAATTGTGGACC-3'
A48: 44 | B48: 40 | C48: Random-44 | D48: CCTCCCTCCCTAATAGAATGGGTAGAAGCGCCCTTTCCCG | P48: 0.575 | R48: Random-44:5'- CCTCCCTCCCTAATAGAATGGGTAGAAGCGCCCTTTCCCG-3'
A49: 45 | B49: 40 | C49: Random-45 | D49: GCCCCCATCAATGTTCGGCAGCCGTAATGAGGATCTCCCA | P49: 0.575 | R49: Random-45:5'- GCCCCCATCAATGTTCGGCAGCCGTAATGAGGATCTCCCA-3'
A50: 46 | B50: 40 | C50: Random-46 | D50: TTGTTATTACGTGGACAAATAGTTCCGGCACCTAGTTGAG | P50: 0.425 | R50: Random-46:5'- TTGTTATTACGTGGACAAATAGTTCCGGCACCTAGTTGAG-3'
A51: 47 | B51: 40 | C51: Random-47 | D51: GCGGGTCAGGAGCGTACTACTGTATGCAGTGAGAGTGCAT | P51: 0.55 | R51: Random-47:5'- GCGGGTCAGGAGCGTACTACTGTATGCAGTGAGAGTGCAT-3'
A52: 48 | B52: 40 | C52: Random-48 | D52: TACGTCAGATACAGCATACGTCATATAACAGAGCATTTCA | P52: 0.375 | R52: Random-48:5'- TACGTCAGATACAGCATACGTCATATAACAGAGCATTTCA-3'
A53: 49 | B53: 40 | C53: Random-49 | D53: CAGGAACAGCGGGTGGCGTCGAGTCTACCATACTCACAGC | P53: 0.6 | R53: Random-49:5'- CAGGAACAGCGGGTGGCGTCGAGTCTACCATACTCACAGC-3'
A54: 50 | B54: 40 | C54: Random-50 | D54: GGCTCCATCGCGTTCACTGAGTACTTTGAGGAGCGGCCAC | P54: 0.6 | R54: Random-50:5'- GGCTCCATCGCGTTCACTGAGTACTTTGAGGAGCGGCCAC-3'
A55: 51 | B55: 40 | C55: Random-51 | D55: ATCTGAGTGCCAAGCGGTAAGGAAACTAGTAGACGGTGCG | P55: 0.525 | R55: Random-51:5'- ATCTGAGTGCCAAGCGGTAAGGAAACTAGTAGACGGTGCG-3'
A56: 52 | B56: 40 | C56: Random-52 | D56: AGCTCACTGGCGGAGAGCTTAGACATAGTCGTGTACGGTT | P56: 0.525 | R56: Random-52:5'- AGCTCACTGGCGGAGAGCTTAGACATAGTCGTGTACGGTT-3'
A57: 53 | B57: 40 | C57: Random-53 | D57: GCATGACTATTCATGAAATTCGCGCACTAGGAGACCTTTT | P57: 0.425 | R57: Random-53:5'- GCATGACTATTCATGAAATTCGCGCACTAGGAGACCTTTT-3'
A58: 54 | B58: 40 | C58: Random-54 | D58: GAACGCAAGTGGTCAGTATCCTGCTAGTAAAGTGGCAGAC | P58: 0.5 | R58: Random-54:5'- GAACGCAAGTGGTCAGTATCCTGCTAGTAAAGTGGCAGAC-3'
A59: 55 | B59: 40 | C59: Random-55 | D59: GAACAAATTGTCCATCTGCTTCGATGGCTTTATACCTAAA | P59: 0.375 | R59: Random-55:5'- GAACAAATTGTCCATCTGCTTCGATGGCTTTATACCTAAA-3'
A60: 56 | B60: 40 | C60: Random-56 | D60: TGGCCTTCGGAACCAAAATGGGGCCAACCATGTGAGAATC | P60: 0.525 | R60: Random-56:5'- TGGCCTTCGGAACCAAAATGGGGCCAACCATGTGAGAATC-3'
A61: 57 | B61: 40 | C61: Random-57 | D61: TCGGAAAGTTCACCTGAGTTGTGGTGGTAGCGCCCATAGA | P61: 0.525 | R61: Random-57:5'- TCGGAAAGTTCACCTGAGTTGTGGTGGTAGCGCCCATAGA-3'
A62: 58 | B62: 40 | C62: Random-58 | D62: GTTGAAACACCTCTTATACAGGCCACGTTAGGTGTATTGG | P62: 0.45 | R62: Random-58:5'- GTTGAAACACCTCTTATACAGGCCACGTTAGGTGTATTGG-3'
A63: 59 | B63: 40 | C63: Random-59 | D63: GCTAGGAATATGACCTCCTTACTGTACCGTTTCTCTTCAT | P63: 0.425 | R63: Random-59:5'- GCTAGGAATATGACCTCCTTACTGTACCGTTTCTCTTCAT-3'
A64: 60 | B64: 40 | C64: Random-60 | D64: CTGCGTCTTCTCGGATCGATATTTATTCATACCCGAGTCG | P64: 0.475 | R64: Random-60:5'- CTGCGTCTTCTCGGATCGATATTTATTCATACCCGAGTCG-3'
A65: 61 | B65: 40 | C65: Random-61 | D65: ACAGGACGTAACTAAAGAGACGAAGTGATGTACTACAGTT | P65: 0.4 | R65: Random-61:5'- ACAGGACGTAACTAAAGAGACGAAGTGATGTACTACAGTT-3'
A66: 62 | B66: 40 | C66: Random-62 | D66: GAACACCTTCTCGGTTAACTTCCGAGATAAACCCGGTAAG | P66: 0.475 | R66: Random-62:5'- GAACACCTTCTCGGTTAACTTCCGAGATAAACCCGGTAAG-3'
A67: 63 | B67: 40 | C67: Random-63 | D67: GAGGATCCGAATCAAAGAAATCTCCACTAAGTCTGTCCGT | P67: 0.45 | R67: Random-63:5'- GAGGATCCGAATCAAAGAAATCTCCACTAAGTCTGTCCGT-3'
A68: 64 | B68: 40 | C68: Random-64 | D68: ATACCCCGAGGCCCGGATGGCAATCTAGTGTTTATAAATT | P68: 0.45 | R68: Random-64:5'- ATACCCCGAGGCCCGGATGGCAATCTAGTGTTTATAAATT-3'
A69: 65 | B69: 40 | C69: Random-65 | D69: GAATGGACAAGAAGAACCCCCCATCCATTATTCGCTTGGC | P69: 0.5 | R69: Random-65:5'- GAATGGACAAGAAGAACCCCCCATCCATTATTCGCTTGGC-3'
A70: 66 | B70: 40 | C70: =IF($B$1>=A70,"Random-"&A70,"") -> Random-66 | D70: CCCTGACGTCGGTATGTGAGGAGCGCACGCGCTGCCGCTT | P70: =IF(C70="","",O268) -> 0.675 | R70: =IF(C70="","",C70&":5'- "&D70&"-3'") -> Random-66:5'- CCCTGACGTCGGTATGTGAGGAGCGCACGCGCTGCCGCTT-3'
A71: 67 | B71: 40 | C71: Random-67 | D71: CCTCATGTATAGGACTACAGATTCAATCTCAGTCGTCGAT | P71: 0.425 | R71: Random-67:5'- CCTCATGTATAGGACTACAGATTCAATCTCAGTCGTCGAT-3'
A72: 68 | B72: 40 | C72: Random-68 | D72: GCTATTATTCCCCGCTGCATACAGATATGTCTGACATGTT | P72: 0.425 | R72: Random-68:5'- GCTATTATTCCCCGCTGCATACAGATATGTCTGACATGTT-3'
A73: 69 | B73: 40 | C73: Random-69 | D73: TATCTCACTACCATGTCGTAACATGCTCTGGGTTATGCGC | P73: 0.475 | R73: Random-69:5'- TATCTCACTACCATGTCGTAACATGCTCTGGGTTATGCGC-3'
A74: 70 | B74: 40 | C74: Random-70 | D74: AATTATTGCGCGACAGCGAAAGAGCTCCAGCGGTCATTCT | P74: 0.5 | R74: Random-70:5'- AATTATTGCGCGACAGCGAAAGAGCTCCAGCGGTCATTCT-3'
A75: 71 | B75: 40 | C75: Random-71 | D75: GGCGGCACAGATTAAGGACGTGGTCCGAGTTCAAAAGAGA | P75: 0.525 | R75: Random-71:5'- GGCGGCACAGATTAAGGACGTGGTCCGAGTTCAAAAGAGA-3'
A76: 72 | B76: 40 | C76: Random-72 | D76: TGAGCGACTCTGTGCGCAACAAATAGTACCGAATTTTGTC | P76: 0.45 | R76: Random-72:5'- TGAGCGACTCTGTGCGCAACAAATAGTACCGAATTTTGTC-3'
A77: 73 | B77: 40 | C77: Random-73 | D77: TAATTGTCCTCGATAAATGATGCGATATGTACCATAAGCA | P77: 0.35 | R77: Random-73:5'- TAATTGTCCTCGATAAATGATGCGATATGTACCATAAGCA-3'
A78: 74 | B78: 40 | C78: Random-74 | D78: TGCCCCCCAACAGGTAACCGAAACACCCCTCTAGCCCCGA | P78: 0.625 | R78: Random-74:5'- TGCCCCCCAACAGGTAACCGAAACACCCCTCTAGCCCCGA-3'
A79: 75 | B79: =IF(C79="","",LEN(D79)) -> 40 | C79: Random-75 | D79: TGTTGACGATTAGAGACTGGACCTTAAGTATACTTGCTCC | P79: 0.425 | R79: Random-75:5'- TGTTGACGATTAGAGACTGGACCTTAAGTATACTTGCTCC-3'
A80: 76 | B80: 40 | C80: Random-76 | D80: TGAAGGGCACAATAGGCTTTGCTGTACACGCTTCGGACCA | P80: 0.525 | R80: Random-76:5'- TGAAGGGCACAATAGGCTTTGCTGTACACGCTTCGGACCA-3'
A81: 77 | B81: 40 | C81: Random-77 | D81: ACCATCCTTGACAACTCGGGCGTTTGCGTTATACGTTATA | P81: 0.45 | R81: Random-77:5'- ACCATCCTTGACAACTCGGGCGTTTGCGTTATACGTTATA-3'
A82: 78 | B82: 40 | C82: Random-78 | D82: CAAATTAGCTTAGTAAGATGGGTCGACACCTACTTAAGGC | P82: 0.425 | R82: Random-78:5'- CAAATTAGCTTAGTAAGATGGGTCGACACCTACTTAAGGC-3'
A83: 79 | B83: 40 | C83: Random-79 | D83: ACAACACTGCCTCTCTAAGAAACCGTTAACCAATCCCCCC | P83: 0.5 | R83: Random-79:5'- ACAACACTGCCTCTCTAAGAAACCGTTAACCAATCCCCCC-3'
A84: 80 | B84: 40 | C84: Random-80 | D84: TAGATAGTCCTCGAAGGCTACCCGCACGGGGGGGGGGAGA | P84: 0.65 | R84: Random-80:5'- TAGATAGTCCTCGAAGGCTACCCGCACGGGGGGGGGGAGA-3'
A85: 81 | B85: 40 | C85: Random-81 | D85: CCGAACGTCAACCCGTGGGTTCAGGTCGGTTCAAGGGCGA | P85: 0.625 | R85: Random-81:5'- CCGAACGTCAACCCGTGGGTTCAGGTCGGTTCAAGGGCGA-3'
A86: 82 | B86: 40 | C86: Random-82 | D86: TTAGATGTCCGTGTAATGTATTATAGGCTGGAGGACCTGG | P86: 0.45 | R86: Random-82:5'- TTAGATGTCCGTGTAATGTATTATAGGCTGGAGGACCTGG-3'
A87: 83 | B87: 40 | C87: Random-83 | D87: TGAACCGAGGAAACTCATCTAACTTACAACGAGCACGCTT | P87: 0.45 | R87: Random-83:5'- TGAACCGAGGAAACTCATCTAACTTACAACGAGCACGCTT-3'
A88: 84 | B88: 40 | C88: Random-84 | D88: CATTTATCGTGAAAAGACAACATCGAGTACGGGGACATTT | P88: 0.4 | R88: Random-84:5'- CATTTATCGTGAAAAGACAACATCGAGTACGGGGACATTT-3'
A89: 85 | B89: 40 | C89: Random-85 | D89: TCCAACAACGTAGACGCCGTGTGAGCACACACTACGCAAT | P89: 0.525 | R89: Random-85:5'- TCCAACAACGTAGACGCCGTGTGAGCACACACTACGCAAT-3'
A90: 86 | B90: 40 | C90: Random-86 | D90: AACACCAGGTCTCATGCACTATACTGGATAAAGGGGACAT | P90: 0.45 | R90: Random-86:5'- AACACCAGGTCTCATGCACTATACTGGATAAAGGGGACAT-3'
A91: 87 | B91: 40 | C91: Random-87 | D91: ACGTCGGGGCTTAAAATTAAGTAAGAAGCGTCGTTTATGG | P91: 0.425 | R91: Random-87:5'- ACGTCGGGGCTTAAAATTAAGTAAGAAGCGTCGTTTATGG-3'
A92: 88 | B92: 40 | C92: Random-88 | D92: GCGCGTATGACGAACCTCCTCTCCCCTAATACGTGGATTT | P92: 0.525 | R92: Random-88:5'- GCGCGTATGACGAACCTCCTCTCCCCTAATACGTGGATTT-3'
A93: 89 | B93: 40 | C93: Random-89 | D93: GAGCCGATTAAGCTCGACGACACCTATGTCGCTGCGCTCG | P93: 0.6 | R93: Random-89:5'- GAGCCGATTAAGCTCGACGACACCTATGTCGCTGCGCTCG-3'
A94: 90 | B94: 40 | C94: Random-90 | D94: GTGACCTCGCGGCCCTCGACCAACATCGTCTGACCCCAAG | P94: 0.65 | R94: Random-90:5'- GTGACCTCGCGGCCCTCGACCAACATCGTCTGACCCCAAG-3'
A95: 91 | B95: 40 | C95: Random-91 | D95: GGTCTCATAAGGGCCTGCCTCGTCCGGGCCATGTCTCTAA | P95: 0.6 | R95: Random-91:5'- GGTCTCATAAGGGCCTGCCTCGTCCGGGCCATGTCTCTAA-3'
A96: 92 | B96: 40 | C96: Random-92 | D96: CCTCCCTATTTGGTAGATCGGTCGATATCTCTAGGCGCGT | P96: 0.525 | R96: Random-92:5'- CCTCCCTATTTGGTAGATCGGTCGATATCTCTAGGCGCGT-3'
A97: 93 | B97: 39 | C97: Random-93 | D97: TGCGGACTAATGAGCAAGTTGTACGGTTGCCCAGGGTAT | P97: 0.5128205128 | R97: Random-93:5'- TGCGGACTAATGAGCAAGTTGTACGGTTGCCCAGGGTAT-3'
A98: 94 | B98: 39 | C98: Random-94 | D98: GCCGACTTATGGGCCTGTTAACGCCCATCGGCAGACCCT | P98: 0.6153846154 | R98: Random-94:5'- GCCGACTTATGGGCCTGTTAACGCCCATCGGCAGACCCT-3'
A99: 95 | B99: 39 | C99: Random-95 | D99: ATTTAATTATCTCAAACTATCCGGAGTTGAGTACTGGAG | P99: 0.358974359 | R99: Random-95:5'- ATTTAATTATCTCAAACTATCCGGAGTTGAGTACTGGAG-3'
A100: 96 | B100: 39 | C100: Random-96 | D100: GGATTCAGGCCGCAATCCTTCAGCCAATAAGTCAAAATC | P100: 0.4615384615 | R100: Random-96:5'- GGATTCAGGCCGCAATCCTTCAGCCAATAAGTCAAAATC-3'
C104: 塩基数
A105: 配列数 | C105: 1 | D105: 2 | E105: 3 | F105: 4 | G105: 5 | H105: 6 | I105: 7 | J105: 8 | K105: 9 | L105: 10 | M105: 11 | N105: 12 | O105: 13 | P105: 14 | Q105: 15 | R105: 16 | S105: 17 | T105: 18 | U105: 19 | V105: 20 | W105: 21 | X105: 22 | Y105: 23 | Z105: 24 | AA105: 25 | AB105: 26 | AC105: 27 | AD105: 28 | AE105: 29 | AF105: 30 | AG105: 31 | AH105: 32 | AI105: 33 | AJ105: 34 | AK105: 35 | AL105: 36 | AM105: 37 | AN105: 38 | AO105: 39 | AP105: 40 | AQ105: 41 | AR105: 42 | AS105: 43 | AT105: 44 | AU105: 45 | AV105: 46 | AW105: 47 | AX105: 48 | AY105: 49 | AZ105: 50 | BA105: 51 | BB105: 52 | BC105: 53 | BD105: 54 | BE105: 55 | BF105: 56 | BG105: 57 | BH105: 58 | BI105: 59 | BJ105: 60 | BK105: 61 | BL105: 62 | BM105: 63 | BN105: 64 | BO105: 65 | BP105: 66 | BQ105: 67 | BR105: 68 | BS105: 69 | BT105: 70 | BU105: 71 | BV105: 72 | BW105: 73 | BX105: 74 | BY105: 75 | BZ105: 76 | CA105: 77 | CB105: 78 | CC105: 79 | CD105: 80 | CE105: 81 | CF105: 82 | CG105: 83 | CH105: 84 | CI105: 85 | CJ105: 86 | CK105: 87 | CL105: 88 | CM105: 89 | CN105: 90 | CO105: 91 | CP105: 92 | CQ105: 93 | CR105: 94 | CS105: 95 | CT105: 96 | CU105: 97 | CV105: 98 | CW105: 99 | CX105: 100 | CY105: 101 | CZ105: 102 | DA105: 103 | DB105: 104 | DC105: 105 | DD105: 106 | DE105: 107 | DF105: 108 | DG105: 109 | DH105: 110 | DI105: 111 | DJ105: 112 | DK105: 113 | DL105: 114 | DM105: 115 | DN105: 116 | DO105: 117 | DP105: 118 | DQ105: 119 | DR105: 120 | DS105: 121 | DT105: 122 | DU105: 123 | DV105: 124 | DW105: 125 | DX105: 126 | DY105: 127 | DZ105: 128 | EA105: 129 | EB105: 130 | EC105: 131 | ED105: 132 | EE105: 133 | EF105: 134 | EG105: 135 | EH105: 136 | EI105: 137 | EJ105: 138 | EK105: 139 | EL105: 140 | EM105: 141 | EN105: 142 | EO105: 143 | EP105: 144 | EQ105: 145 | ER105: 146 | ES105: 147 | ET105: 148 | EU105: 149 | EV105: 150 | EW105: 151 | EX105: 152 | EY105: 153 | EZ105: 154 | FA105: 155 | FB105: 156 | FC105: 157 | FD105: 158 | FE105: 159 | FF105: 160 | FG105: 161 | FH105: 162 | FI105: 163 | FJ105: 164 | FK105: 165 | FL105: 166 | FM105: 167 | FN105: 168 | FO105: 169 | FP105: 170 | FQ105: 171 | FR105: 172 | FS105: 173 | FT105: 174 | FU105: 175 | FV105: 176 | FW105: 177 | FX105: 178 | FY105: 179 | FZ105: 180 | GA105: 181 | GB105: 182 | GC105: 183 | GD105: 184 | GE105: 185 | GF105: 186 | GG105: 187 | GH105: 188 | GI105: 189 | GJ105: 190 | GK105: 191 | GL105: 192 | GM105: 193 | GN105: 194 | GO105: 195 | GP105: 196 | GQ105: 197 | GR105: 198 | GS105: 199 | GT105: 200 | GU105: 201 | GV105: 202 | GW105: 203 | GX105: 204 | GY105: 205 | GZ105: 206 | HA105: 207 | HB105: 208 | HC105: 209 | HD105: 210 | HE105: 211 | HF105: 212 | HG105: 213 | HH105: 214 | HI105: 215 | HJ105: 216 | HK105: 217 | HL105: 218 | HM105: 219 | HN105: 220 | HO105: 221 | HP105: 222 | HQ105: 223 | HR105: 224 | HS105: 225 | HT105: 226 | HU105: 227 | HV105: 228 | HW105: 229 | HX105: 230 | HY105: 231 | HZ105: 232 | IA105: 233 | IB105: 234 | IC105: 235 | ID105: 236 | IE105: 237 | IF105: 238 | IG105: 239 | IH105: 240 | II105: 241 | IJ105: 242 | IK105: 243 | IL105: 244 | IM105: 245 | IN105: 246 | IO105: 247 | IP105: 248 | IQ105: 249 | IR105: 250 | IS105: 251 | IT105: 252 | IU105: 253 | IV105: 254 | IW105: 255 | IX105: 256 | IY105: 257 | IZ105: 258 | JA105: 259 | JB105: 260 | JC105: 261 | JD105: 262 | JE105: 263 | JF105: 264 | JG105: 265 | JH105: 266 | JI105: 267 | JJ105: 268 | JK105: 269 | JL105: 270 | JM105: 271 | JN105: 272 | JO105: 273 | JP105: 274 | JQ105: 275 | JR105: 276 | JS105: 277 | JT105: 278 | JU105: 279 | JV105: 280 | JW105: 281 | JX105: 282 | JY105: 283 | JZ105: 284 | KA105: 285 | KB105: 286 | KC105: 287 | KD105: 288 | KE105: 289 | KF105: 290 | KG105: 291 | KH105: 292 | KI105: 293 | KJ105: 294 | KK105: 295 | KL105: 296 | KM105: 297 | KN105: 298 | KO105: 299 | KP105: 300 | KQ105: 301 | KR105: 302 | KS105: 303 | KT105: 304 | KU105: 305 | KV105: 306 | KW105: 307 | KX105: 308 | KY105: 309 | KZ105: 310 | LA105: 311 | LB105: 312 | LC105: 313 | LD105: 314 | LE105: 315 | LF105: 316 | LG105: 317 | LH105: 318 | LI105: 319 | LJ105: 320 | LK105: 321 | LL105: 322 | LM105: 323 | LN105: 324 | LO105: 325 | LP105: 326 | LQ105: 327 | LR105: 328 | LS105: 329 | LT105: 330 | LU105: 331 | LV105: 332 | LW105: 333 | LX105: 334 | LY105: 335 | LZ105: 336 | MA105: 337 | MB105: 338 | MC105: 339 | MD105: 340 | ME105: 341 | MF105: 342 | MG105: 343 | MH105: 344 | MI105: 345 | MJ105: 346 | MK105: 347 | ML105: 348 | MM105: 349 | MN105: 350 | MO105: 351 | MP105: 352 | MQ105: 353 | MR105: 354 | MS105: 355 | MT105: 356 | MU105: 357 | MV105: 358 | MW105: 359 | MX105: 360 | MY105: 361 | MZ105: 362 | NA105: 363 | NB105: 364 | NC105: 365 | ND105: 366 | NE105: 367 | NF105: 368 | NG105: 369 | NH105: 370 | NI105: 371 | NJ105: 372 | NK105: 373 | NL105: 374 | NM105: 375 | NN105: 376 | NO105: 377 | NP105: 378 | NQ105: 379 | NR105: 380 | NS105: 381 | NT105: 382 | NU105: 383 | NV105: 384 | NW105: 385 | NX105: 386 | NY105: 387 | NZ105: 388 | OA105: 389 | OB105: 390 | OC105: 391 | OD105: 392 | OE105: 393 | OF105: 394 | OG105: 395 | OH105: 396 | OI105: 397 | OJ105: 398 | OK105: 399 | OL105: 400 | OM105: 401 | ON105: 402 | OO105: 403 | OP105: 404 | OQ105: 405 | OR105: 406 | OS105: 407 | OT105: 408 | OU105: 409 | OV105: 410 | OW105: 411 | OX105: 412 | OY105: 413 | OZ105: 414 | PA105: 415 | PB105: 416 | PC105: 417 | PD105: 418 | PE105: 419 | PF105: 420 | PG105: 421 | PH105: 422 | PI105: 423 | PJ105: 424 | PK105: 425 | PL105: 426 | PM105: 427 | PN105: 428 | PO105: 429 | PP105: 430 | PQ105: 431 | PR105: 432 | PS105: 433 | PT105: 434 | PU105: 435 | PV105: 436 | PW105: 437 | PX105: 438 | PY105: 439 | PZ105: 440 | QA105: 441 | QB105: 442 | QC105: 443 | QD105: 444 | QE105: 445 | QF105: 446 | QG105: 447 | QH105: 448 | QI105: 449 | QJ105: 450 | QK105: 451 | QL105: 452 | QM105: 453 | QN105: 454 | QO105: 455 | QP105: 456 | QQ105: 457 | QR105: 458 | QS105: 459 | QT105: 460 | QU105: 461 | QV105: 462 | QW105: 463 | QX105: 464 | QY105: 465 | QZ105: 466 | RA105: 467 | RB105: 468 | RC105: 469 | RD105: 470 | RE105: 471 | RF105: 472 | RG105: 473 | RH105: 474 | RI105: 475 | RJ105: 476 | RK105: 477 | RL105: 478 | RM105: 479 | RN105: 480 | RO105: 481 | RP105: 482 | RQ105: 483 | RR105: 484 | RS105: 485 | RT105: 486 | RU105: 487 | RV105: 488 | RW105: 489 | RX105: 490 | RY105: 491 | RZ105: 492 | SA105: 493 | SB105: 494 | SC105: 495 | SD105: 496 | SE105: 497 | SF105: 498 | SG105: 499 | SH105: 500
A106: =IF(B106="","",ROUND($C$2+($E$2-$C$2)*RAND(),0)) -> 40 | B106: =IF($B$1>=A5,A5,"") -> 1 | C106: =IF($B106="","",IF($A106>=C$105,SUBSTITUTE(SUBSTITUTE(SUBSTITUTE(SUBSTITUTE(RANDBETWEEN(1,4),1,"A"),2,"T"),3,"G"),4,"C"),"")) -> C | D106: =IF($B106="","",IF($A106>=D$105,SUBSTITUTE(SUBSTITUTE(SUBSTITUTE(SUBSTITUTE(RANDBETWEEN(1,4),1,"A"),2,"T"),3,"G"),4,"C"),"")) -> A | E106: G | F106: C | G106: C | H106: A | I106: A | J106: G | K106: C | L106: G | M106: A | N106: T | O106: T | P106: T | Q106: A | R106: G | S106: G | T106: A | U106: C | V106: A | W106: C | X106: C | Y106: =IF($B106="","",IF($A106>=Y$105,SUBSTITUTE(SUBSTITUTE(SUBSTITUTE(SUBSTITUTE(RANDBETWEEN(1,4),1,"A"),2,"T"),3,"G"),4,"C"),"")) -> C | Z106: C | AA106: T | AB106: G | AC106: C | AD106: G | AE106: G | AF106: G | AG106: A | AH106: C | AI106: G | AJ106: A | AK106: T | AL106: T | AM106: T | AN106: =IF($B106="","",IF($A106>=AN$105,SUBSTITUTE(SUBSTITUTE(SUBSTITUTE(SUBSTITUTE(RANDBETWEEN(1,4),1,"A"),2,"T"),3,"G"),4,"C"),"")) -> G | AO106: C | AP106: G | CZ106: =IF($B106="","",IF($A106>=CZ$105,SUBSTITUTE(SUBSTITUTE(SUBSTITUTE(SUBSTITUTE(RANDBETWEEN(1,4),1,"A"),2,"T"),3,"G"),4,"C"),"")) ->  | FL106: =IF($B106="","",IF($A106>=FL$105,SUBSTITUTE(SUBSTITUTE(SUBSTITUTE(SUBSTITUTE(RANDBETWEEN(1,4),1,"A"),2,"T"),3,"G"),4,"C"),"")) ->  | HX106: =IF($B106="","",IF($A106>=HX$105,SUBSTITUTE(SUBSTITUTE(SUBSTITUTE(SUBSTITUTE(RANDBETWEEN(1,4),1,"A"),2,"T"),3,"G"),4,"C"),"")) ->  | IC106: =IF($B106="","",IF($A106>=IC$105,SUBSTITUTE(SUBSTITUTE(SUBSTITUTE(SUBSTITUTE(RANDBETWEEN(1,4),1,"A"),2,"T"),3,"G"),4,"C"),"")) ->  | KJ106: =IF($B106="","",IF($A106>=KJ$105,SUBSTITUTE(SUBSTITUTE(SUBSTITUTE(SUBSTITUTE(RANDBETWEEN(1,4),1,"A"),2,"T"),3,"G"),4,"C"),"")) ->  | MV106: =IF($B106="","",IF($A106>=MV$105,SUBSTITUTE(SUBSTITUTE(SUBSTITUTE(SUBSTITUTE(RANDBETWEEN(1,4),1,"A"),2,"T"),3,"G"),4,"C"),"")) ->  | PH106: =IF($B106="","",IF($A106>=PH$105,SUBSTITUTE(SUBSTITUTE(SUBSTITUTE(SUBSTITUTE(RANDBETWEEN(1,4),1,"A"),2,"T"),3,"G"),4,"C"),"")) ->  | RT106: =IF($B106="","",IF($A106>=RT$105,SUBSTITUTE(SUBSTITUTE(SUBSTITUTE(SUBSTITUTE(RANDBETWEEN(1,4),1,"A"),2,"T"),3,"G"),4,"C"),"")) -> 
A107: =IF(B107="","",ROUND($C$2+($E$2-$C$2)*RAND(),0)) -> 40 | B107: =IF($B$1>=A6,A6,"") -> 2 | C107: =IF($B107="","",IF($A107>=C$105,SUBSTITUTE(SUBSTITUTE(SUBSTITUTE(SUBSTITUTE(RANDBETWEEN(1,4),1,"A"),2,"T"),3,"G"),4,"C"),"")) -> T | D107: C | E107: C | F107: C | G107: G | H107: G | I107: G | J107: C | K107: G | L107: C | M107: C | N107: A | O107: C | P107: G | Q107: C | R107: C | S107: A | T107: C | U107: C | V107: A | W107: C | X107: A | Y107: G | Z107: T | AA107: C | AB107: T | AC107: T | AD107: A | AE107: G | AF107: A | AG107: G | AH107: G | AI107: A | AJ107: G | AK107: G | AL107: T | AM107: T | AN107: =IF($B107="","",IF($A107>=AN$105,SUBSTITUTE(SUBSTITUTE(SUBSTITUTE(SUBSTITUTE(RANDBETWEEN(1,4),1,"A"),2,"T"),3,"G"),4,"C"),"")) -> G | AO107: G | AP107: C | BP107: =IF($B107="","",IF($A107>=BP$105,SUBSTITUTE(SUBSTITUTE(SUBSTITUTE(SUBSTITUTE(RANDBETWEEN(1,4),1,"A"),2,"T"),3,"G"),4,"C"),"")) ->  | EB107: =IF($B107="","",IF($A107>=EB$105,SUBSTITUTE(SUBSTITUTE(SUBSTITUTE(SUBSTITUTE(RANDBETWEEN(1,4),1,"A"),2,"T"),3,"G"),4,"C"),"")) ->  | GN107: =IF($B107="","",IF($A107>=GN$105,SUBSTITUTE(SUBSTITUTE(SUBSTITUTE(SUBSTITUTE(RANDBETWEEN(1,4),1,"A"),2,"T"),3,"G"),4,"C"),"")) -> 
A108: 40 | B108: 3 | C108: T | D108: C | E108: A | F108: C | G108: G | H108: G | I108: A | J108: C | K108: C | L108: C | M108: G | N108: G | O108: G | P108: T | Q108: T | R108: A | S108: A | T108: A | U108: C | V108: G | W108: A | X108: T | Y108: A | Z108: G | AA108: A | AB108: T | AC108: A | AD108: T | AE108: T | AF108: G | AG108: C | AH108: G | AI108: T | AJ108: T | AK108: A | AL108: A | AM108: T | AN108: C | AO108: A | AP108: C
A109: 40 | B109: 4 | C109: A | D109: A | E109: T | F109: T | G109: G | H109: G | I109: G | J109: T | K109: A | L109: C | M109: G | N109: G | O109: G | P109: T | Q109: T | R109: C | S109: T | T109: C | U109: G | V109: G | W109: A | X109: A | Y109: A | Z109: T | AA109: T | AB109: A | AC109: T | AD109: C | AE109: C | AF109: A | AG109: G | AH109: G | AI109: T | AJ109: C | AK109: C | AL109: C | AM109: T | AN109: C | AO109: A | AP109: C | BO109: =IF($B109="","",IF($A109>=BO$105,SUBSTITUTE(SUBSTITUTE(SUBSTITUTE(SUBSTITUTE(RANDBETWEEN(1,4),1,"A"),2,"T"),3,"G"),4,"C"),"")) ->  | EA109: =IF($B109="","",IF($A109>=EA$105,SUBSTITUTE(SUBSTITUTE(SUBSTITUTE(SUBSTITUTE(RANDBETWEEN(1,4),1,"A"),2,"T"),3,"G"),4,"C"),"")) ->  | GM109: =IF($B109="","",IF($A109>=GM$105,SUBSTITUTE(SUBSTITUTE(SUBSTITUTE(SUBSTITUTE(RANDBETWEEN(1,4),1,"A"),2,"T"),3,"G"),4,"C"),"")) ->  | MU109: =IF($B109="","",IF($A109>=MU$105,SUBSTITUTE(SUBSTITUTE(SUBSTITUTE(SUBSTITUTE(RANDBETWEEN(1,4),1,"A"),2,"T"),3,"G"),4,"C"),"")) ->  | PG109: =IF($B109="","",IF($A109>=PG$105,SUBSTITUTE(SUBSTITUTE(SUBSTITUTE(SUBSTITUTE(RANDBETWEEN(1,4),1,"A"),2,"T"),3,"G"),4,"C"),"")) ->  | RS109: =IF($B109="","",IF($A109>=RS$105,SUBSTITUTE(SUBSTITUTE(SUBSTITUTE(SUBSTITUTE(RANDBETWEEN(1,4),1,"A"),2,"T"),3,"G"),4,"C"),"")) -> 
A110: 40 | B110: 5 | C110: T | D110: T | E110: T | F110: G | G110: G | H110: T | I110: A | J110: C | K110: C | L110: C | M110: A | N110: T | O110: C | P110: T | Q110: A | R110: T | S110: G | T110: C | U110: A | V110: A | W110: C | X110: A | Y110: C | Z110: A | AA110: A | AB110: T | AC110: G | AD110: A | AE110: T | AF110: C | AG110: A | AH110: G | AI110: C | AJ110: A | AK110: G | AL110: C | AM110: T | AN110: C | AO110: T | AP110: C | IQ110: =IF($B110="","",IF($A110>=IQ$105,SUBSTITUTE(SUBSTITUTE(SUBSTITUTE(SUBSTITUTE(RANDBETWEEN(1,4),1,"A"),2,"T"),3,"G"),4,"C"),"")) ->  | JG110: =IF($B110="","",IF($A110>=JG$105,SUBSTITUTE(SUBSTITUTE(SUBSTITUTE(SUBSTITUTE(RANDBETWEEN(1,4),1,"A"),2,"T"),3,"G"),4,"C"),"")) ->  | JW110: =IF($B110="","",IF($A110>=JW$105,SUBSTITUTE(SUBSTITUTE(SUBSTITUTE(SUBSTITUTE(RANDBETWEEN(1,4),1,"A"),2,"T"),3,"G"),4,"C"),"")) -> 
A111: 40 | B111: 6 | C111: T | D111: G | E111: A | F111: T | G111: T | H111: A | I111: C | J111: A | K111: G | L111: C | M111: G | N111: C | O111: C | P111: A | Q111: T | R111: A | S111: T | T111: T | U111: C | V111: A | W111: C | X111: T | Y111: A | Z111: T | AA111: A | AB111: C | AC111: T | AD111: C | AE111: C | AF111: C | AG111: C | AH111: T | AI111: C | AJ111: G | AK111: G | AL111: T | AM111: A | AN111: G | AO111: C | AP111: T | IN111: =IF($B111="","",IF($A111>=IN$105,SUBSTITUTE(SUBSTITUTE(SUBSTITUTE(SUBSTITUTE(RANDBETWEEN(1,4),1,"A"),2,"T"),3,"G"),4,"C"),"")) -> 
A112: 40 | B112: 7 | C112: C | D112: T | E112: A | F112: T | G112: A | H112: G | I112: C | J112: A | K112: G | L112: G | M112: A | N112: G | O112: C | P112: A | Q112: A | R112: T | S112: A | T112: C | U112: T | V112: G | W112: C | X112: G | Y112: C | Z112: T | AA112: T | AB112: C | AC112: C | AD112: G | AE112: T | AF112: G | AG112: G | AH112: A | AI112: A | AJ112: C | AK112: A | AL112: C | AM112: A | AN112: G | AO112: G | AP112: A | GX112: =IF($B112="","",IF($A112>=GX$105,SUBSTITUTE(SUBSTITUTE(SUBSTITUTE(SUBSTITUTE(RANDBETWEEN(1,4),1,"A"),2,"T"),3,"G"),4,"C"),"")) ->  | HN112: =IF($B112="","",IF($A112>=HN$105,SUBSTITUTE(SUBSTITUTE(SUBSTITUTE(SUBSTITUTE(RANDBETWEEN(1,4),1,"A"),2,"T"),3,"G"),4,"C"),"")) -> 
A113: 40 | B113: 8 | C113: T | D113: T | E113: C | F113: C | G113: A | H113: C | I113: =IF($B113="","",IF($A113>=I$105,SUBSTITUTE(SUBSTITUTE(SUBSTITUTE(SUBSTITUTE(RANDBETWEEN(1,4),1,"A"),2,"T"),3,"G"),4,"C"),"")) -> G | J113: C | K113: A | L113: C | M113: G | N113: A | O113: G | P113: G | Q113: A | R113: C | S113: G | T113: G | U113: G | V113: G | W113: =IF($B113="","",IF($A113>=W$105,SUBSTITUTE(SUBSTITUTE(SUBSTITUTE(SUBSTITUTE(RANDBETWEEN(1,4),1,"A"),2,"T"),3,"G"),4,"C"),"")) -> G | X113: G | Y113: C | Z113: C | AA113: C | AB113: G | AC113: G | AD113: T | AE113: G | AF113: C | AG113: G | AH113: G | AI113: C | AJ113: C | AK113: A | AL113: G | AM113: =IF($B113="","",IF($A113>=AM$105,SUBSTITUTE(SUBSTITUTE(SUBSTITUTE(SUBSTITUTE(RANDBETWEEN(1,4),1,"A"),2,"T"),3,"G"),4,"C"),"")) -> T | AN113: C | AO113: G | AP113: A | BN113: =IF($B113="","",IF($A113>=BN$105,SUBSTITUTE(SUBSTITUTE(SUBSTITUTE(SUBSTITUTE(RANDBETWEEN(1,4),1,"A"),2,"T"),3,"G"),4,"C"),"")) ->  | DZ113: =IF($B113="","",IF($A113>=DZ$105,SUBSTITUTE(SUBSTITUTE(SUBSTITUTE(SUBSTITUTE(RANDBETWEEN(1,4),1,"A"),2,"T"),3,"G"),4,"C"),"")) ->  | GL113: =IF($B113="","",IF($A113>=GL$105,SUBSTITUTE(SUBSTITUTE(SUBSTITUTE(SUBSTITUTE(RANDBETWEEN(1,4),1,"A"),2,"T"),3,"G"),4,"C"),"")) ->  | MT113: =IF($B113="","",IF($A113>=MT$105,SUBSTITUTE(SUBSTITUTE(SUBSTITUTE(SUBSTITUTE(RANDBETWEEN(1,4),1,"A"),2,"T"),3,"G"),4,"C"),"")) ->  | PF113: =IF($B113="","",IF($A113>=PF$105,SUBSTITUTE(SUBSTITUTE(SUBSTITUTE(SUBSTITUTE(RANDBETWEEN(1,4),1,"A"),2,"T"),3,"G"),4,"C"),"")) ->  | RR113: =IF($B113="","",IF($A113>=RR$105,SUBSTITUTE(SUBSTITUTE(SUBSTITUTE(SUBSTITUTE(RANDBETWEEN(1,4),1,"A"),2,"T"),3,"G"),4,"C"),"")) -> 
A114: 40 | B114: 9 | C114: T | D114: C | E114: A | F114: T | G114: A | H114: C | I114: A | J114: A | K114: A | L114: T | M114: T | N114: T | O114: T | P114: G | Q114: T | R114: T | S114: G | T114: C | U114: G | V114: T | W114: G | X114: T | Y114: A | Z114: T | AA114: A | AB114: T | AC114: A | AD114: G | AE114: A | AF114: G | AG114: A | AH114: T | AI114: C | AJ114: C | AK114: G | AL114: A | AM114: G | AN114: =IF($B114="","",IF($A114>=AN$105,SUBSTITUTE(SUBSTITUTE(SUBSTITUTE(SUBSTITUTE(RANDBETWEEN(1,4),1,"A"),2,"T"),3,"G"),4,"C"),"")) -> C | AO114: C | AP114: A | AY114: =IF($B114="","",IF($A114>=AY$105,SUBSTITUTE(SUBSTITUTE(SUBSTITUTE(SUBSTITUTE(RANDBETWEEN(1,4),1,"A"),2,"T"),3,"G"),4,"C"),"")) ->  | CD114: =IF($B114="","",IF($A114>=CD$105,SUBSTITUTE(SUBSTITUTE(SUBSTITUTE(SUBSTITUTE(RANDBETWEEN(1,4),1,"A"),2,"T"),3,"G"),4,"C"),"")) ->  | CT114: =IF($B114="","",IF($A114>=CT$105,SUBSTITUTE(SUBSTITUTE(SUBSTITUTE(SUBSTITUTE(RANDBETWEEN(1,4),1,"A"),2,"T"),3,"G"),4,"C"),"")) ->  | DJ114: =IF($B114="","",IF($A114>=DJ$105,SUBSTITUTE(SUBSTITUTE(SUBSTITUTE(SUBSTITUTE(RANDBETWEEN(1,4),1,"A"),2,"T"),3,"G"),4,"C"),"")) ->  | EP114: =IF($B114="","",IF($A114>=EP$105,SUBSTITUTE(SUBSTITUTE(SUBSTITUTE(SUBSTITUTE(RANDBETWEEN(1,4),1,"A"),2,"T"),3,"G"),4,"C"),"")) ->  | FF114: =IF($B114="","",IF($A114>=FF$105,SUBSTITUTE(SUBSTITUTE(SUBSTITUTE(SUBSTITUTE(RANDBETWEEN(1,4),1,"A"),2,"T"),3,"G"),4,"C"),"")) ->  | FV114: =IF($B114="","",IF($A114>=FV$105,SUBSTITUTE(SUBSTITUTE(SUBSTITUTE(SUBSTITUTE(RANDBETWEEN(1,4),1,"A"),2,"T"),3,"G"),4,"C"),"")) ->  | KM114: =IF($B114="","",IF($A114>=KM$105,SUBSTITUTE(SUBSTITUTE(SUBSTITUTE(SUBSTITUTE(RANDBETWEEN(1,4),1,"A"),2,"T"),3,"G"),4,"C"),"")) ->  | LC114: =IF($B114="","",IF($A114>=LC$105,SUBSTITUTE(SUBSTITUTE(SUBSTITUTE(SUBSTITUTE(RANDBETWEEN(1,4),1,"A"),2,"T"),3,"G"),4,"C"),"")) ->  | LS114: =IF($B114="","",IF($A114>=LS$105,SUBSTITUTE(SUBSTITUTE(SUBSTITUTE(SUBSTITUTE(RANDBETWEEN(1,4),1,"A"),2,"T"),3,"G"),4,"C"),"")) ->  | MI114: =IF($B114="","",IF($A114>=MI$105,SUBSTITUTE(SUBSTITUTE(SUBSTITUTE(SUBSTITUTE(RANDBETWEEN(1,4),1,"A"),2,"T"),3,"G"),4,"C"),"")) ->  | MY114: =IF($B114="","",IF($A114>=MY$105,SUBSTITUTE(SUBSTITUTE(SUBSTITUTE(SUBSTITUTE(RANDBETWEEN(1,4),1,"A"),2,"T"),3,"G"),4,"C"),"")) ->  | NO114: =IF($B114="","",IF($A114>=NO$105,SUBSTITUTE(SUBSTITUTE(SUBSTITUTE(SUBSTITUTE(RANDBETWEEN(1,4),1,"A"),2,"T"),3,"G"),4,"C"),"")) ->  | OE114: =IF($B114="","",IF($A114>=OE$105,SUBSTITUTE(SUBSTITUTE(SUBSTITUTE(SUBSTITUTE(RANDBETWEEN(1,4),1,"A"),2,"T"),3,"G"),4,"C"),"")) ->  | OU114: =IF($B114="","",IF($A114>=OU$105,SUBSTITUTE(SUBSTITUTE(SUBSTITUTE(SUBSTITUTE(RANDBETWEEN(1,4),1,"A"),2,"T"),3,"G"),4,"C"),"")) ->  | PK114: =IF($B114="","",IF($A114>=PK$105,SUBSTITUTE(SUBSTITUTE(SUBSTITUTE(SUBSTITUTE(RANDBETWEEN(1,4),1,"A"),2,"T"),3,"G"),4,"C"),"")) ->  | QA114: =IF($B114="","",IF($A114>=QA$105,SUBSTITUTE(SUBSTITUTE(SUBSTITUTE(SUBSTITUTE(RANDBETWEEN(1,4),1,"A"),2,"T"),3,"G"),4,"C"),"")) ->  | QQ114: =IF($B114="","",IF($A114>=QQ$105,SUBSTITUTE(SUBSTITUTE(SUBSTITUTE(SUBSTITUTE(RANDBETWEEN(1,4),1,"A"),2,"T"),3,"G"),4,"C"),"")) ->  | RG114: =IF($B114="","",IF($A114>=RG$105,SUBSTITUTE(SUBSTITUTE(SUBSTITUTE(SUBSTITUTE(RANDBETWEEN(1,4),1,"A"),2,"T"),3,"G"),4,"C"),"")) -> 
A115: 40 | B115: 10 | C115: A | D115: T | E115: G | F115: C | G115: T | H115: T | I115: A | J115: A | K115: T | L115: C | M115: T | N115: G | O115: C | P115: A | Q115: G | R115: C | S115: A | T115: G | U115: G | V115: A | W115: C | X115: C | Y115: C | Z115: A | AA115: A | AB115: A | AC115: G | AD115: C | AE115: G | AF115: G | AG115: A | AH115: T | AI115: G | AJ115: T | AK115: T | AL115: C | AM115: G | AN115: A | AO115: C | AP115: C
A116: 40 | B116: 11 | C116: T | D116: C | E116: G | F116: A | G116: A | H116: A | I116: T | J116: T | K116: G | L116: A | M116: G | N116: T | O116: G | P116: G | Q116: A | R116: C | S116: C | T116: G | U116: T | V116: A | W116: C | X116: T | Y116: T | Z116: G | AA116: T | AB116: A | AC116: G | AD116: G | AE116: G | AF116: A | AG116: C | AH116: A | AI116: T | AJ116: T | AK116: A | AL116: G | AM116: T | AN116: A | AO116: G | AP116: A
A117: 40 | B117: 12 | C117: T | D117: A | E117: G | F117: C | G117: A | H117: G | I117: T | J117: A | K117: A | L117: C | M117: G | N117: C | O117: T | P117: A | Q117: G | R117: T | S117: T | T117: C | U117: C | V117: T | W117: C | X117: T | Y117: G | Z117: C | AA117: C | AB117: C | AC117: T | AD117: G | AE117: C | AF117: T | AG117: T | AH117: C | AI117: G | AJ117: C | AK117: G | AL117: C | AM117: G | AN117: G | AO117: A | AP117: T
A118: 40 | B118: 13 | C118: T | D118: C | E118: G | F118: T | G118: T | H118: G | I118: T | J118: A | K118: T | L118: G | M118: T | N118: A | O118: T | P118: G | Q118: G | R118: C | S118: C | T118: G | U118: T | V118: C | W118: G | X118: A | Y118: A | Z118: C | AA118: C | AB118: C | AC118: A | AD118: A | AE118: C | AF118: C | AG118: G | AH118: T | AI118: C | AJ118: A | AK118: G | AL118: A | AM118: C | AN118: A | AO118: A | AP118: C
A119: 40 | B119: 14 | C119: C | D119: T | E119: T | F119: G | G119: A | H119: A | I119: G | J119: G | K119: G | L119: T | M119: T | N119: T | O119: A | P119: C | Q119: C | R119: A | S119: A | T119: G | U119: G | V119: T | W119: T | X119: T | Y119: T | Z119: A | AA119: T | AB119: T | AC119: G | AD119: T | AE119: C | AF119: T | AG119: C | AH119: G | AI119: C | AJ119: C | AK119: G | AL119: A | AM119: T | AN119: G | AO119: A | AP119: A
A120: 40 | B120: 15 | C120: C | D120: A | E120: A | F120: A | G120: C | H120: A | I120: G | J120: T | K120: G | L120: G | M120: C | N120: C | O120: G | P120: C | Q120: A | R120: T | S120: T | T120: T | U120: T | V120: C | W120: T | X120: C | Y120: A | Z120: G | AA120: T | AB120: C | AC120: C | AD120: G | AE120: A | AF120: T | AG120: T | AH120: A | AI120: T | AJ120: C | AK120: A | AL120: T | AM120: C | AN120: T | AO120: C | AP120: G
A121: 40 | B121: 16 | C121: G | D121: T | E121: C | F121: T | G121: A | H121: T | I121: =IF($B121="","",IF($A121>=I$105,SUBSTITUTE(SUBSTITUTE(SUBSTITUTE(SUBSTITUTE(RANDBETWEEN(1,4),1,"A"),2,"T"),3,"G"),4,"C"),"")) -> G | J121: A | K121: T | L121: T | M121: G | N121: G | O121: C | P121: C | Q121: A | R121: C | S121: A | T121: A | U121: T | V121: =IF($B121="","",IF($A121>=V$105,SUBSTITUTE(SUBSTITUTE(SUBSTITUTE(SUBSTITUTE(RANDBETWEEN(1,4),1,"A"),2,"T"),3,"G"),4,"C"),"")) -> T | W121: G | X121: C | Y121: G | Z121: T | AA121: T | AB121: G | AC121: A | AD121: G | AE121: T | AF121: A | AG121: T | AH121: A | AI121: T | AJ121: T | AK121: A | AL121: =IF($B121="","",IF($A121>=AL$105,SUBSTITUTE(SUBSTITUTE(SUBSTITUTE(SUBSTITUTE(RANDBETWEEN(1,4),1,"A"),2,"T"),3,"G"),4,"C"),"")) -> T | AM121: C | AN121: A | AO121: G | AP121: A
A122: 40 | B122: 17 | C122: T | D122: G | E122: A | F122: G | G122: C | H122: A | I122: =IF($B122="","",IF($A122>=I$105,SUBSTITUTE(SUBSTITUTE(SUBSTITUTE(SUBSTITUTE(RANDBETWEEN(1,4),1,"A"),2,"T"),3,"G"),4,"C"),"")) -> C | J122: C | K122: A | L122: A | M122: T | N122: C | O122: G | P122: G | Q122: G | R122: A | S122: G | T122: G | U122: G | V122: T | W122: T | X122: T | Y122: T | Z122: G | AA122: A | AB122: G | AC122: G | AD122: T | AE122: A | AF122: A | AG122: A | AH122: A | AI122: G | AJ122: G | AK122: C | AL122: A | AM122: A | AN122: A | AO122: G | AP122: C | GU122: =IF($B122="","",IF($A122>=GU$105,SUBSTITUTE(SUBSTITUTE(SUBSTITUTE(SUBSTITUTE(RANDBETWEEN(1,4),1,"A"),2,"T"),3,"G"),4,"C"),"")) ->  | ID122: =IF($B122="","",IF($A122>=ID$105,SUBSTITUTE(SUBSTITUTE(SUBSTITUTE(SUBSTITUTE(RANDBETWEEN(1,4),1,"A"),2,"T"),3,"G"),4,"C"),"")) ->  | RW122: =IF($B122="","",IF($A122>=RW$105,SUBSTITUTE(SUBSTITUTE(SUBSTITUTE(SUBSTITUTE(RANDBETWEEN(1,4),1,"A"),2,"T"),3,"G"),4,"C"),"")) -> 
A123: 40 | B123: 18 | C123: G | D123: T | E123: C | F123: G | G123: A | H123: T | I123: C | J123: C | K123: A | L123: G | M123: C | N123: G | O123: T | P123: C | Q123: A | R123: T | S123: A | T123: G | U123: T | V123: G | W123: G | X123: G | Y123: T | Z123: G | AA123: C | AB123: G | AC123: A | AD123: G | AE123: A | AF123: C | AG123: G | AH123: G | AI123: C | AJ123: A | AK123: G | AL123: C | AM123: A | AN123: G | AO123: G | AP123: T
A124: 40 | B124: 19 | C124: T | D124: T | E124: C | F124: C | G124: T | H124: A | I124: G | J124: A | K124: A | L124: A | M124: C | N124: G | O124: A | P124: T | Q124: C | R124: T | S124: A | T124: A | U124: G | V124: G | W124: A | X124: C | Y124: G | Z124: T | AA124: T | AB124: A | AC124: T | AD124: G | AE124: G | AF124: A | AG124: T | AH124: C | AI124: T | AJ124: T | AK124: C | AL124: A | AM124: A | AN124: T | AO124: T | AP124: A
A125: 40 | B125: 20 | C125: A | D125: T | E125: A | F125: C | G125: G | H125: A | I125: T | J125: A | K125: G | L125: T | M125: C | N125: T | O125: C | P125: G | Q125: A | R125: C | S125: T | T125: A | U125: T | V125: C | W125: G | X125: C | Y125: A | Z125: A | AA125: A | AB125: T | AC125: T | AD125: C | AE125: A | AF125: T | AG125: A | AH125: T | AI125: G | AJ125: G | AK125: T | AL125: C | AM125: T | AN125: A | AO125: A | AP125: T | JV125: =IF($B125="","",IF($A125>=JV$105,SUBSTITUTE(SUBSTITUTE(SUBSTITUTE(SUBSTITUTE(RANDBETWEEN(1,4),1,"A"),2,"T"),3,"G"),4,"C"),"")) -> 
A126: 40 | B126: 21 | C126: T | D126: A | E126: T | F126: T | G126: G | H126: G | I126: T | J126: G | K126: T | L126: T | M126: A | N126: C | O126: A | P126: C | Q126: G | R126: A | S126: T | T126: G | U126: A | V126: G | W126: A | X126: T | Y126: T | Z126: G | AA126: C | AB126: G | AC126: T | AD126: T | AE126: C | AF126: A | AG126: G | AH126: G | AI126: A | AJ126: C | AK126: A | AL126: T | AM126: A | AN126: C | AO126: C | AP126: T | JG126: =IF($B126="","",IF($A126>=JG$105,SUBSTITUTE(SUBSTITUTE(SUBSTITUTE(SUBSTITUTE(RANDBETWEEN(1,4),1,"A"),2,"T"),3,"G"),4,"C"),"")) -> 
A127: 40 | B127: 22 | C127: T | D127: A | E127: A | F127: G | G127: C | H127: C | I127: G | J127: G | K127: C | L127: T | M127: T | N127: G | O127: C | P127: T | Q127: T | R127: G | S127: A | T127: C | U127: C | V127: T | W127: G | X127: C | Y127: G | Z127: C | AA127: C | AB127: C | AC127: T | AD127: C | AE127: C | AF127: C | AG127: G | AH127: T | AI127: G | AJ127: C | AK127: G | AL127: T | AM127: G | AN127: A | AO127: G | AP127: G
A128: 40 | B128: 23 | C128: A | D128: T | E128: T | F128: C | G128: T | H128: G | I128: G | J128: A | K128: G | L128: T | M128: C | N128: C | O128: T | P128: G | Q128: T | R128: G | S128: C | T128: A | U128: C | V128: C | W128: C | X128: G | Y128: C | Z128: G | AA128: G | AB128: C | AC128: C | AD128: T | AE128: A | AF128: A | AG128: A | AH128: G | AI128: G | AJ128: T | AK128: A | AL128: G | AM128: T | AN128: C | AO128: G | AP128: T
A129: 40 | B129: 24 | C129: A | D129: G | E129: T | F129: T | G129: T | H129: G | I129: A | J129: T | K129: C | L129: A | M129: T | N129: C | O129: T | P129: C | Q129: C | R129: C | S129: C | T129: G | U129: A | V129: G | W129: C | X129: G | Y129: T | Z129: G | AA129: C | AB129: C | AC129: A | AD129: G | AE129: T | AF129: C | AG129: G | AH129: C | AI129: G | AJ129: A | AK129: A | AL129: A | AM129: C | AN129: G | AO129: A | AP129: C | AX129: =IF($B129="","",IF($A129>=AX$105,SUBSTITUTE(SUBSTITUTE(SUBSTITUTE(SUBSTITUTE(RANDBETWEEN(1,4),1,"A"),2,"T"),3,"G"),4,"C"),"")) ->  | CS129: =IF($B129="","",IF($A129>=CS$105,SUBSTITUTE(SUBSTITUTE(SUBSTITUTE(SUBSTITUTE(RANDBETWEEN(1,4),1,"A"),2,"T"),3,"G"),4,"C"),"")) ->  | DY129: =IF($B129="","",IF($A129>=DY$105,SUBSTITUTE(SUBSTITUTE(SUBSTITUTE(SUBSTITUTE(RANDBETWEEN(1,4),1,"A"),2,"T"),3,"G"),4,"C"),"")) ->  | EO129: =IF($B129="","",IF($A129>=EO$105,SUBSTITUTE(SUBSTITUTE(SUBSTITUTE(SUBSTITUTE(RANDBETWEEN(1,4),1,"A"),2,"T"),3,"G"),4,"C"),"")) ->  | FU129: =IF($B129="","",IF($A129>=FU$105,SUBSTITUTE(SUBSTITUTE(SUBSTITUTE(SUBSTITUTE(RANDBETWEEN(1,4),1,"A"),2,"T"),3,"G"),4,"C"),"")) ->  | JC129: =IF($B129="","",IF($A129>=JC$105,SUBSTITUTE(SUBSTITUTE(SUBSTITUTE(SUBSTITUTE(RANDBETWEEN(1,4),1,"A"),2,"T"),3,"G"),4,"C"),"")) ->  | LB129: =IF($B129="","",IF($A129>=LB$105,SUBSTITUTE(SUBSTITUTE(SUBSTITUTE(SUBSTITUTE(RANDBETWEEN(1,4),1,"A"),2,"T"),3,"G"),4,"C"),"")) ->  | MH129: =IF($B129="","",IF($A129>=MH$105,SUBSTITUTE(SUBSTITUTE(SUBSTITUTE(SUBSTITUTE(RANDBETWEEN(1,4),1,"A"),2,"T"),3,"G"),4,"C"),"")) ->  | NN129: =IF($B129="","",IF($A129>=NN$105,SUBSTITUTE(SUBSTITUTE(SUBSTITUTE(SUBSTITUTE(RANDBETWEEN(1,4),1,"A"),2,"T"),3,"G"),4,"C"),"")) ->  | OT129: =IF($B129="","",IF($A129>=OT$105,SUBSTITUTE(SUBSTITUTE(SUBSTITUTE(SUBSTITUTE(RANDBETWEEN(1,4),1,"A"),2,"T"),3,"G"),4,"C"),"")) ->  | PZ129: =IF($B129="","",IF($A129>=PZ$105,SUBSTITUTE(SUBSTITUTE(SUBSTITUTE(SUBSTITUTE(RANDBETWEEN(1,4),1,"A"),2,"T"),3,"G"),4,"C"),"")) ->  | RF129: =IF($B129="","",IF($A129>=RF$105,SUBSTITUTE(SUBSTITUTE(SUBSTITUTE(SUBSTITUTE(RANDBETWEEN(1,4),1,"A"),2,"T"),3,"G"),4,"C"),"")) -> 
A130: 40 | B130: 25 | C130: T | D130: G | E130: G | F130: C | G130: G | H130: G | I130: C | J130: T | K130: C | L130: A | M130: C | N130: G | O130: A | P130: A | Q130: T | R130: C | S130: C | T130: A | U130: G | V130: T | W130: T | X130: T | Y130: G | Z130: G | AA130: A | AB130: A | AC130: G | AD130: G | AE130: A | AF130: A | AG130: A | AH130: G | AI130: C | AJ130: T | AK130: A | AL130: T | AM130: G | AN130: =IF($B130="","",IF($A130>=AN$105,SUBSTITUTE(SUBSTITUTE(SUBSTITUTE(SUBSTITUTE(RANDBETWEEN(1,4),1,"A"),2,"T"),3,"G"),4,"C"),"")) -> T | AO130: A | AP130: G | CB130: =IF($B130="","",IF($A130>=CB$105,SUBSTITUTE(SUBSTITUTE(SUBSTITUTE(SUBSTITUTE(RANDBETWEEN(1,4),1,"A"),2,"T"),3,"G"),4,"C"),"")) ->  | CR130: =IF($B130="","",IF($A130>=CR$105,SUBSTITUTE(SUBSTITUTE(SUBSTITUTE(SUBSTITUTE(RANDBETWEEN(1,4),1,"A"),2,"T"),3,"G"),4,"C"),"")) ->  | DJ130: =IF($B130="","",IF($A130>=DJ$105,SUBSTITUTE(SUBSTITUTE(SUBSTITUTE(SUBSTITUTE(RANDBETWEEN(1,4),1,"A"),2,"T"),3,"G"),4,"C"),"")) ->  | FF130: =IF($B130="","",IF($A130>=FF$105,SUBSTITUTE(SUBSTITUTE(SUBSTITUTE(SUBSTITUTE(RANDBETWEEN(1,4),1,"A"),2,"T"),3,"G"),4,"C"),"")) ->  | IT130: =IF($B130="","",IF($A130>=IT$105,SUBSTITUTE(SUBSTITUTE(SUBSTITUTE(SUBSTITUTE(RANDBETWEEN(1,4),1,"A"),2,"T"),3,"G"),4,"C"),"")) ->  | KM130: =IF($B130="","",IF($A130>=KM$105,SUBSTITUTE(SUBSTITUTE(SUBSTITUTE(SUBSTITUTE(RANDBETWEEN(1,4),1,"A"),2,"T"),3,"G"),4,"C"),"")) ->  | LS130: =IF($B130="","",IF($A130>=LS$105,SUBSTITUTE(SUBSTITUTE(SUBSTITUTE(SUBSTITUTE(RANDBETWEEN(1,4),1,"A"),2,"T"),3,"G"),4,"C"),"")) ->  | MY130: =IF($B130="","",IF($A130>=MY$105,SUBSTITUTE(SUBSTITUTE(SUBSTITUTE(SUBSTITUTE(RANDBETWEEN(1,4),1,"A"),2,"T"),3,"G"),4,"C"),"")) ->  | OE130: =IF($B130="","",IF($A130>=OE$105,SUBSTITUTE(SUBSTITUTE(SUBSTITUTE(SUBSTITUTE(RANDBETWEEN(1,4),1,"A"),2,"T"),3,"G"),4,"C"),"")) ->  | PK130: =IF($B130="","",IF($A130>=PK$105,SUBSTITUTE(SUBSTITUTE(SUBSTITUTE(SUBSTITUTE(RANDBETWEEN(1,4),1,"A"),2,"T"),3,"G"),4,"C"),"")) ->  | QQ130: =IF($B130="","",IF($A130>=QQ$105,SUBSTITUTE(SUBSTITUTE(SUBSTITUTE(SUBSTITUTE(RANDBETWEEN(1,4),1,"A"),2,"T"),3,"G"),4,"C"),"")) -> 
A131: 40 | B131: 26 | C131: G | D131: G | E131: A | F131: T | G131: A | H131: C | I131: A | J131: G | K131: T | L131: T | M131: G | N131: T | O131: G | P131: A | Q131: T | R131: A | S131: T | T131: G | U131: G | V131: G | W131: A | X131: G | Y131: C | Z131: A | AA131: C | AB131: G | AC131: G | AD131: T | AE131: T | AF131: T | AG131: A | AH131: A | AI131: A | AJ131: A | AK131: T | AL131: A | AM131: C | AN131: =IF($B131="","",IF($A131>=AN$105,SUBSTITUTE(SUBSTITUTE(SUBSTITUTE(SUBSTITUTE(RANDBETWEEN(1,4),1,"A"),2,"T"),3,"G"),4,"C"),"")) -> C | AO131: T | AP131: A | BO131: =IF($B131="","",IF($A131>=BO$105,SUBSTITUTE(SUBSTITUTE(SUBSTITUTE(SUBSTITUTE(RANDBETWEEN(1,4),1,"A"),2,"T"),3,"G"),4,"C"),"")) ->  | HY131: =IF($B131="","",IF($A131>=HY$105,SUBSTITUTE(SUBSTITUTE(SUBSTITUTE(SUBSTITUTE(RANDBETWEEN(1,4),1,"A"),2,"T"),3,"G"),4,"C"),"")) -> 
A132: 40 | B132: 27 | C132: C | D132: G | E132: T | F132: A | G132: C | H132: C | I132: G | J132: C | K132: G | L132: C | M132: G | N132: G | O132: T | P132: G | Q132: C | R132: C | S132: C | T132: C | U132: G | V132: C | W132: A | X132: C | Y132: G | Z132: T | AA132: T | AB132: G | AC132: T | AD132: T | AE132: T | AF132: C | AG132: C | AH132: T | AI132: T | AJ132: T | AK132: G | AL132: A | AM132: T | AN132: C | AO132: G | AP132: T | HN132: =IF($B132="","",IF($A132>=HN$105,SUBSTITUTE(SUBSTITUTE(SUBSTITUTE(SUBSTITUTE(RANDBETWEEN(1,4),1,"A"),2,"T"),3,"G"),4,"C"),"")) -> 
A133: 40 | B133: 28 | C133: T | D133: A | E133: T | F133: A | G133: C | H133: T | I133: G | J133: T | K133: T | L133: C | M133: C | N133: C | O133: T | P133: C | Q133: A | R133: A | S133: G | T133: G | U133: G | V133: T | W133: T | X133: A | Y133: G | Z133: C | AA133: T | AB133: G | AC133: T | AD133: G | AE133: T | AF133: G | AG133: T | AH133: T | AI133: G | AJ133: A | AK133: A | AL133: A | AM133: G | AN133: T | AO133: T | AP133: C
A134: 40 | B134: 29 | C134: C | D134: A | E134: C | F134: T | G134: T | H134: T | I134: T | J134: T | K134: T | L134: C | M134: C | N134: C | O134: A | P134: A | Q134: G | R134: A | S134: G | T134: G | U134: T | V134: T | W134: T | X134: T | Y134: G | Z134: G | AA134: C | AB134: C | AC134: G | AD134: G | AE134: C | AF134: T | AG134: T | AH134: T | AI134: A | AJ134: A | AK134: T | AL134: T | AM134: G | AN134: A | AO134: G | AP134: T | KL134: =IF($B134="","",IF($A134>=KL$105,SUBSTITUTE(SUBSTITUTE(SUBSTITUTE(SUBSTITUTE(RANDBETWEEN(1,4),1,"A"),2,"T"),3,"G"),4,"C"),"")) ->  | MX134: =IF($B134="","",IF($A134>=MX$105,SUBSTITUTE(SUBSTITUTE(SUBSTITUTE(SUBSTITUTE(RANDBETWEEN(1,4),1,"A"),2,"T"),3,"G"),4,"C"),"")) ->  | PJ134: =IF($B134="","",IF($A134>=PJ$105,SUBSTITUTE(SUBSTITUTE(SUBSTITUTE(SUBSTITUTE(RANDBETWEEN(1,4),1,"A"),2,"T"),3,"G"),4,"C"),"")) -> 
A135: 40 | B135: 30 | C135: T | D135: C | E135: T | F135: T | G135: C | H135: A | I135: G | J135: C | K135: A | L135: T | M135: C | N135: C | O135: T | P135: C | Q135: C | R135: G | S135: G | T135: G | U135: A | V135: C | W135: A | X135: A | Y135: A | Z135: T | AA135: A | AB135: A | AC135: T | AD135: T | AE135: G | AF135: A | AG135: G | AH135: A | AI135: A | AJ135: C | AK135: A | AL135: T | AM135: G | AN135: G | AO135: G | AP135: G
A136: 40 | B136: 31 | C136: G | D136: G | E136: G | F136: G | G136: T | H136: C | I136: T | J136: C | K136: A | L136: A | M136: T | N136: T | O136: G | P136: G | Q136: T | R136: C | S136: T | T136: T | U136: A | V136: C | W136: G | X136: C | Y136: G | Z136: A | AA136: A | AB136: T | AC136: A | AD136: G | AE136: C | AF136: G | AG136: A | AH136: A | AI136: C | AJ136: G | AK136: =IF($B136="","",IF($A136>=AK$105,SUBSTITUTE(SUBSTITUTE(SUBSTITUTE(SUBSTITUTE(RANDBETWEEN(1,4),1,"A"),2,"T"),3,"G"),4,"C"),"")) -> G | AL136: A | AM136: T | AN136: G | AO136: T | AP136: G
A137: 40 | B137: 32 | C137: G | D137: C | E137: G | F137: A | G137: G | H137: A | I137: =IF($B137="","",IF($A137>=I$105,SUBSTITUTE(SUBSTITUTE(SUBSTITUTE(SUBSTITUTE(RANDBETWEEN(1,4),1,"A"),2,"T"),3,"G"),4,"C"),"")) -> A | J137: G | K137: C | L137: T | M137: G | N137: T | O137: C | P137: A | Q137: G | R137: C | S137: T | T137: T | U137: G | V137: =IF($B137="","",IF($A137>=V$105,SUBSTITUTE(SUBSTITUTE(SUBSTITUTE(SUBSTITUTE(RANDBETWEEN(1,4),1,"A"),2,"T"),3,"G"),4,"C"),"")) -> A | W137: T | X137: A | Y137: T | Z137: G | AA137: G | AB137: A | AC137: T | AD137: T | AE137: G | AF137: G | AG137: C | AH137: G | AI137: G | AJ137: A | AK137: T | AL137: G | AM137: G | AN137: A | AO137: T | AP137: A | HJ137: =IF($B137="","",IF($A137>=HJ$105,SUBSTITUTE(SUBSTITUTE(SUBSTITUTE(SUBSTITUTE(RANDBETWEEN(1,4),1,"A"),2,"T"),3,"G"),4,"C"),"")) -> 
A138: 40 | B138: 33 | C138: G | D138: G | E138: C | F138: T | G138: C | H138: A | I138: A | J138: T | K138: A | L138: G | M138: T | N138: G | O138: G | P138: A | Q138: T | R138: T | S138: G | T138: G | U138: T | V138: G | W138: A | X138: C | Y138: T | Z138: G | AA138: C | AB138: A | AC138: A | AD138: G | AE138: T | AF138: A | AG138: T | AH138: G | AI138: T | AJ138: C | AK138: C | AL138: G | AM138: C | AN138: A | AO138: T | AP138: T | GU138: =IF($B138="","",IF($A138>=GU$105,SUBSTITUTE(SUBSTITUTE(SUBSTITUTE(SUBSTITUTE(RANDBETWEEN(1,4),1,"A"),2,"T"),3,"G"),4,"C"),"")) -> 
A139: 40 | B139: 34 | C139: =IF($B139="","",IF($A139>=C$105,SUBSTITUTE(SUBSTITUTE(SUBSTITUTE(SUBSTITUTE(RANDBETWEEN(1,4),1,"A"),2,"T"),3,"G"),4,"C"),"")) -> C | D139: T | E139: C | F139: G | G139: G | H139: G | I139: C | J139: C | K139: A | L139: G | M139: C | N139: C | O139: A | P139: G | Q139: A | R139: A | S139: T | T139: T | U139: G | V139: C | W139: C | X139: C | Y139: A | Z139: C | AA139: C | AB139: T | AC139: A | AD139: T | AE139: A | AF139: A | AG139: C | AH139: G | AI139: G | AJ139: G | AK139: A | AL139: T | AM139: T | AN139: G | AO139: G | AP139: A | RW139: =IF($B139="","",IF($A139>=RW$105,SUBSTITUTE(SUBSTITUTE(SUBSTITUTE(SUBSTITUTE(RANDBETWEEN(1,4),1,"A"),2,"T"),3,"G"),4,"C"),"")) -> 
A140: 40 | B140: 35 | C140: C | D140: A | E140: C | F140: G | G140: G | H140: T | I140: C | J140: G | K140: G | L140: C | M140: A | N140: T | O140: C | P140: T | Q140: G | R140: T | S140: T | T140: C | U140: T | V140: C | W140: A | X140: G | Y140: C | Z140: C | AA140: C | AB140: C | AC140: A | AD140: T | AE140: G | AF140: C | AG140: G | AH140: T | AI140: T | AJ140: G | AK140: G | AL140: G | AM140: C | AN140: C | AO140: G | AP140: G
A141: 40 | B141: 36 | C141: T | D141: G | E141: T | F141: T | G141: G | H141: C | I141: A | J141: C | K141: T | L141: C | M141: A | N141: G | O141: A | P141: A | Q141: T | R141: G | S141: T | T141: C | U141: T | V141: C | W141: C | X141: A | Y141: A | Z141: A | AA141: G | AB141: T | AC141: G | AD141: T | AE141: A | AF141: T | AG141: A | AH141: T | AI141: G | AJ141: A | AK141: T | AL141: G | AM141: T | AN141: G | AO141: T | AP141: C
A142: 40 | B142: 37 | C142: A | D142: T | E142: C | F142: G | G142: C | H142: C | I142: G | J142: T | K142: T | L142: C | M142: A | N142: C | O142: T | P142: G | Q142: G | R142: A | S142: C | T142: C | U142: C | V142: C | W142: T | X142: A | Y142: A | Z142: T | AA142: G | AB142: T | AC142: C | AD142: A | AE142: G | AF142: T | AG142: A | AH142: T | AI142: C | AJ142: A | AK142: C | AL142: T | AM142: T | AN142: T | AO142: C | AP142: C
A143: 40 | B143: 38 | C143: A | D143: G | E143: G | F143: C | G143: A | H143: C | I143: A | J143: T | K143: G | L143: C | M143: G | N143: C | O143: G | P143: A | Q143: C | R143: G | S143: A | T143: G | U143: G | V143: G | W143: T | X143: G | Y143: C | Z143: A | AA143: T | AB143: T | AC143: G | AD143: G | AE143: T | AF143: G | AG143: T | AH143: G | AI143: T | AJ143: T | AK143: T | AL143: G | AM143: C | AN143: C | AO143: A | AP143: C | JY143: =IF($B143="","",IF($A143>=JY$105,SUBSTITUTE(SUBSTITUTE(SUBSTITUTE(SUBSTITUTE(RANDBETWEEN(1,4),1,"A"),2,"T"),3,"G"),4,"C"),"")) -> 
A144: 40 | B144: 39 | C144: C | D144: C | E144: C | F144: T | G144: A | H144: C | I144: G | J144: T | K144: C | L144: A | M144: G | N144: C | O144: G | P144: C | Q144: T | R144: G | S144: G | T144: G | U144: T | V144: C | W144: G | X144: C | Y144: A | Z144: A | AA144: G | AB144: T | AC144: T | AD144: C | AE144: T | AF144: T | AG144: G | AH144: A | AI144: T | AJ144: T | AK144: C | AL144: C | AM144: C | AN144: C | AO144: T | AP144: C | BM144: =IF($B144="","",IF($A144>=BM$105,SUBSTITUTE(SUBSTITUTE(SUBSTITUTE(SUBSTITUTE(RANDBETWEEN(1,4),1,"A"),2,"T"),3,"G"),4,"C"),"")) ->  | DI144: =IF($B144="","",IF($A144>=DI$105,SUBSTITUTE(SUBSTITUTE(SUBSTITUTE(SUBSTITUTE(RANDBETWEEN(1,4),1,"A"),2,"T"),3,"G"),4,"C"),"")) ->  | FD144: =IF($B144="","",IF($A144>=FD$105,SUBSTITUTE(SUBSTITUTE(SUBSTITUTE(SUBSTITUTE(RANDBETWEEN(1,4),1,"A"),2,"T"),3,"G"),4,"C"),"")) ->  | GK144: =IF($B144="","",IF($A144>=GK$105,SUBSTITUTE(SUBSTITUTE(SUBSTITUTE(SUBSTITUTE(RANDBETWEEN(1,4),1,"A"),2,"T"),3,"G"),4,"C"),"")) ->  | JW144: =IF($B144="","",IF($A144>=JW$105,SUBSTITUTE(SUBSTITUTE(SUBSTITUTE(SUBSTITUTE(RANDBETWEEN(1,4),1,"A"),2,"T"),3,"G"),4,"C"),"")) ->  | LR144: =IF($B144="","",IF($A144>=LR$105,SUBSTITUTE(SUBSTITUTE(SUBSTITUTE(SUBSTITUTE(RANDBETWEEN(1,4),1,"A"),2,"T"),3,"G"),4,"C"),"")) ->  | OD144: =IF($B144="","",IF($A144>=OD$105,SUBSTITUTE(SUBSTITUTE(SUBSTITUTE(SUBSTITUTE(RANDBETWEEN(1,4),1,"A"),2,"T"),3,"G"),4,"C"),"")) ->  | QP144: =IF($B144="","",IF($A144>=QP$105,SUBSTITUTE(SUBSTITUTE(SUBSTITUTE(SUBSTITUTE(RANDBETWEEN(1,4),1,"A"),2,"T"),3,"G"),4,"C"),"")) -> 
A145: 40 | B145: 40 | C145: C | D145: C | E145: T | F145: C | G145: A | H145: C | I145: A | J145: A | K145: G | L145: G | M145: T | N145: C | O145: G | P145: G | Q145: G | R145: A | S145: A | T145: C | U145: C | V145: G | W145: T | X145: G | Y145: G | Z145: G | AA145: C | AB145: T | AC145: A | AD145: G | AE145: A | AF145: G | AG145: A | AH145: G | AI145: C | AJ145: T | AK145: A | AL145: G | AM145: A | AN145: C | AO145: T | AP145: T | AX145: =IF($B145="","",IF($A145>=AX$105,SUBSTITUTE(SUBSTITUTE(SUBSTITUTE(SUBSTITUTE(RANDBETWEEN(1,4),1,"A"),2,"T"),3,"G"),4,"C"),"")) ->  | DG145: =IF($B145="","",IF($A145>=DG$105,SUBSTITUTE(SUBSTITUTE(SUBSTITUTE(SUBSTITUTE(RANDBETWEEN(1,4),1,"A"),2,"T"),3,"G"),4,"C"),"")) ->  | EO145: =IF($B145="","",IF($A145>=EO$105,SUBSTITUTE(SUBSTITUTE(SUBSTITUTE(SUBSTITUTE(RANDBETWEEN(1,4),1,"A"),2,"T"),3,"G"),4,"C"),"")) ->  | GJ145: =IF($B145="","",IF($A145>=GJ$105,SUBSTITUTE(SUBSTITUTE(SUBSTITUTE(SUBSTITUTE(RANDBETWEEN(1,4),1,"A"),2,"T"),3,"G"),4,"C"),"")) ->  | JI145: =IF($B145="","",IF($A145>=JI$105,SUBSTITUTE(SUBSTITUTE(SUBSTITUTE(SUBSTITUTE(RANDBETWEEN(1,4),1,"A"),2,"T"),3,"G"),4,"C"),"")) ->  | LQ145: =IF($B145="","",IF($A145>=LQ$105,SUBSTITUTE(SUBSTITUTE(SUBSTITUTE(SUBSTITUTE(RANDBETWEEN(1,4),1,"A"),2,"T"),3,"G"),4,"C"),"")) ->  | OC145: =IF($B145="","",IF($A145>=OC$105,SUBSTITUTE(SUBSTITUTE(SUBSTITUTE(SUBSTITUTE(RANDBETWEEN(1,4),1,"A"),2,"T"),3,"G"),4,"C"),"")) ->  | QO145: =IF($B145="","",IF($A145>=QO$105,SUBSTITUTE(SUBSTITUTE(SUBSTITUTE(SUBSTITUTE(RANDBETWEEN(1,4),1,"A"),2,"T"),3,"G"),4,"C"),"")) -> 
A146: 40 | B146: 41 | C146: C | D146: G | E146: C | F146: G | G146: T | H146: T | I146: C | J146: G | K146: T | L146: G | M146: G | N146: T | O146: G | P146: A | Q146: A | R146: C | S146: C | T146: G | U146: G | V146: T | W146: T | X146: A | Y146: T | Z146: A | AA146: C | AB146: T | AC146: T | AD146: C | AE146: T | AF146: T | AG146: T | AH146: G | AI146: A | AJ146: T | AK146: C | AL146: C | AM146: T | AN146: G | AO146: T | AP146: T | CR146: =IF($B146="","",IF($A146>=CR$105,SUBSTITUTE(SUBSTITUTE(SUBSTITUTE(SUBSTITUTE(RANDBETWEEN(1,4),1,"A"),2,"T"),3,"G"),4,"C"),"")) ->  | EL146: =IF($B146="","",IF($A146>=EL$105,SUBSTITUTE(SUBSTITUTE(SUBSTITUTE(SUBSTITUTE(RANDBETWEEN(1,4),1,"A"),2,"T"),3,"G"),4,"C"),"")) ->  | FV146: =IF($B146="","",IF($A146>=FV$105,SUBSTITUTE(SUBSTITUTE(SUBSTITUTE(SUBSTITUTE(RANDBETWEEN(1,4),1,"A"),2,"T"),3,"G"),4,"C"),"")) ->  | IT146: =IF($B146="","",IF($A146>=IT$105,SUBSTITUTE(SUBSTITUTE(SUBSTITUTE(SUBSTITUTE(RANDBETWEEN(1,4),1,"A"),2,"T"),3,"G"),4,"C"),"")) ->  | LC146: =IF($B146="","",IF($A146>=LC$105,SUBSTITUTE(SUBSTITUTE(SUBSTITUTE(SUBSTITUTE(RANDBETWEEN(1,4),1,"A"),2,"T"),3,"G"),4,"C"),"")) ->  | MR146: =IF($B146="","",IF($A146>=MR$105,SUBSTITUTE(SUBSTITUTE(SUBSTITUTE(SUBSTITUTE(RANDBETWEEN(1,4),1,"A"),2,"T"),3,"G"),4,"C"),"")) ->  | NO146: =IF($B146="","",IF($A146>=NO$105,SUBSTITUTE(SUBSTITUTE(SUBSTITUTE(SUBSTITUTE(RANDBETWEEN(1,4),1,"A"),2,"T"),3,"G"),4,"C"),"")) ->  | PD146: =IF($B146="","",IF($A146>=PD$105,SUBSTITUTE(SUBSTITUTE(SUBSTITUTE(SUBSTITUTE(RANDBETWEEN(1,4),1,"A"),2,"T"),3,"G"),4,"C"),"")) ->  | QA146: =IF($B146="","",IF($A146>=QA$105,SUBSTITUTE(SUBSTITUTE(SUBSTITUTE(SUBSTITUTE(RANDBETWEEN(1,4),1,"A"),2,"T"),3,"G"),4,"C"),"")) -> 
A147: 40 | B147: 42 | C147: G | D147: C | E147: A | F147: C | G147: C | H147: A | I147: T | J147: T | K147: A | L147: G | M147: C | N147: T | O147: T | P147: C | Q147: C | R147: G | S147: G | T147: G | U147: T | V147: T | W147: G | X147: T | Y147: C | Z147: A | AA147: G | AB147: G | AC147: T | AD147: T | AE147: G | AF147: G | AG147: A | AH147: T | AI147: G | AJ147: G | AK147: G | AL147: G | AM147: C | AN147: A | AO147: A | AP147: T | BR147: =IF($B147="","",IF($A147>=BR$105,SUBSTITUTE(SUBSTITUTE(SUBSTITUTE(SUBSTITUTE(RANDBETWEEN(1,4),1,"A"),2,"T"),3,"G"),4,"C"),"")) ->  | DZ147: =IF($B147="","",IF($A147>=DZ$105,SUBSTITUTE(SUBSTITUTE(SUBSTITUTE(SUBSTITUTE(RANDBETWEEN(1,4),1,"A"),2,"T"),3,"G"),4,"C"),"")) ->  | MI147: =IF($B147="","",IF($A147>=MI$105,SUBSTITUTE(SUBSTITUTE(SUBSTITUTE(SUBSTITUTE(RANDBETWEEN(1,4),1,"A"),2,"T"),3,"G"),4,"C"),"")) ->  | OU147: =IF($B147="","",IF($A147>=OU$105,SUBSTITUTE(SUBSTITUTE(SUBSTITUTE(SUBSTITUTE(RANDBETWEEN(1,4),1,"A"),2,"T"),3,"G"),4,"C"),"")) -> 
A148: 40 | B148: 43 | C148: G | D148: A | E148: C | F148: G | G148: C | H148: G | I148: T | J148: T | K148: T | L148: C | M148: A | N148: C | O148: G | P148: C | Q148: A | R148: A | S148: G | T148: T | U148: C | V148: A | W148: T | X148: G | Y148: T | Z148: G | AA148: T | AB148: C | AC148: G | AD148: G | AE148: G | AF148: T | AG148: C | AH148: A | AI148: G | AJ148: A | AK148: A | AL148: A | AM148: T | AN148: =IF($B148="","",IF($A148>=AN$105,SUBSTITUTE(SUBSTITUTE(SUBSTITUTE(SUBSTITUTE(RANDBETWEEN(1,4),1,"A"),2,"T"),3,"G"),4,"C"),"")) -> A | AO148: C | AP148: T | RN148: =IF($B148="","",IF($A148>=RN$105,SUBSTITUTE(SUBSTITUTE(SUBSTITUTE(SUBSTITUTE(RANDBETWEEN(1,4),1,"A"),2,"T"),3,"G"),4,"C"),"")) -> 
A149: 40 | B149: 44 | C149: T | D149: G | E149: C | F149: C | G149: A | H149: A | I149: G | J149: G | K149: T | L149: C | M149: G | N149: C | O149: T | P149: G | Q149: A | R149: T | S149: G | T149: T | U149: C | V149: C | W149: T | X149: A | Y149: T | Z149: C | AA149: T | AB149: A | AC149: G | AD149: G | AE149: T | AF149: A | AG149: C | AH149: T | AI149: T | AJ149: C | AK149: C | AL149: C | AM149: G | AN149: =IF($B149="","",IF($A149>=AN$105,SUBSTITUTE(SUBSTITUTE(SUBSTITUTE(SUBSTITUTE(RANDBETWEEN(1,4),1,"A"),2,"T"),3,"G"),4,"C"),"")) -> G | AO149: C | AP149: C | GR149: =IF($B149="","",IF($A149>=GR$105,SUBSTITUTE(SUBSTITUTE(SUBSTITUTE(SUBSTITUTE(RANDBETWEEN(1,4),1,"A"),2,"T"),3,"G"),4,"C"),"")) ->  | RG149: =IF($B149="","",IF($A149>=RG$105,SUBSTITUTE(SUBSTITUTE(SUBSTITUTE(SUBSTITUTE(RANDBETWEEN(1,4),1,"A"),2,"T"),3,"G"),4,"C"),"")) -> 
A150: 40 | B150: 45 | C150: C | D150: T | E150: A | F150: A | G150: A | H150: G | I150: G | J150: C | K150: T | L150: T | M150: C | N150: A | O150: C | P150: A | Q150: T | R150: T | S150: G | T150: T | U150: A | V150: G | W150: C | X150: T | Y150: C | Z150: G | AA150: G | AB150: G | AC150: G | AD150: A | AE150: A | AF150: A | AG150: C | AH150: C | AI150: C | AJ150: C | AK150: A | AL150: A | AM150: G | AN150: C | AO150: G | AP150: G | CI150: =IF($B150="","",IF($A150>=CI$105,SUBSTITUTE(SUBSTITUTE(SUBSTITUTE(SUBSTITUTE(RANDBETWEEN(1,4),1,"A"),2,"T"),3,"G"),4,"C"),"")) -> 
A151: 40 | B151: 46 | C151: A | D151: A | E151: T | F151: A | G151: C | H151: T | I151: T | J151: T | K151: C | L151: C | M151: T | N151: G | O151: C | P151: G | Q151: G | R151: G | S151: A | T151: G | U151: G | V151: C | W151: G | X151: G | Y151: C | Z151: G | AA151: C | AB151: A | AC151: C | AD151: G | AE151: T | AF151: T | AG151: C | AH151: C | AI151: G | AJ151: C | AK151: C | AL151: T | AM151: C | AN151: T | AO151: A | AP151: A | CH151: =IF($B151="","",IF($A151>=CH$105,SUBSTITUTE(SUBSTITUTE(SUBSTITUTE(SUBSTITUTE(RANDBETWEEN(1,4),1,"A"),2,"T"),3,"G"),4,"C"),"")) ->  | IN151: =IF($B151="","",IF($A151>=IN$105,SUBSTITUTE(SUBSTITUTE(SUBSTITUTE(SUBSTITUTE(RANDBETWEEN(1,4),1,"A"),2,"T"),3,"G"),4,"C"),"")) ->  | KV151: =IF($B151="","",IF($A151>=KV$105,SUBSTITUTE(SUBSTITUTE(SUBSTITUTE(SUBSTITUTE(RANDBETWEEN(1,4),1,"A"),2,"T"),3,"G"),4,"C"),"")) -> 
A152: 40 | B152: 47 | C152: G | D152: A | E152: C | F152: C | G152: T | H152: C | I152: C | J152: T | K152: A | L152: A | M152: C | N152: A | O152: A | P152: T | Q152: G | R152: =IF($B152="","",IF($A152>=R$105,SUBSTITUTE(SUBSTITUTE(SUBSTITUTE(SUBSTITUTE(RANDBETWEEN(1,4),1,"A"),2,"T"),3,"G"),4,"C"),"")) -> A | S152: C | T152: A | U152: T | V152: A | W152: G | X152: A | Y152: G | Z152: A | AA152: G | AB152: A | AC152: G | AD152: C | AE152: A | AF152: G | AG152: G | AH152: A | AI152: C | AJ152: T | AK152: C | AL152: A | AM152: G | AN152: G | AO152: G | AP152: G | ID152: =IF($B152="","",IF($A152>=ID$105,SUBSTITUTE(SUBSTITUTE(SUBSTITUTE(SUBSTITUTE(RANDBETWEEN(1,4),1,"A"),2,"T"),3,"G"),4,"C"),"")) ->  | KO152: =IF($B152="","",IF($A152>=KO$105,SUBSTITUTE(SUBSTITUTE(SUBSTITUTE(SUBSTITUTE(RANDBETWEEN(1,4),1,"A"),2,"T"),3,"G"),4,"C"),"")) -> 
A153: 40 | B153: 48 | C153: C | D153: G | E153: T | F153: T | G153: G | H153: C | I153: =IF($B153="","",IF($A153>=I$105,SUBSTITUTE(SUBSTITUTE(SUBSTITUTE(SUBSTITUTE(RANDBETWEEN(1,4),1,"A"),2,"T"),3,"G"),4,"C"),"")) -> C | J153: T | K153: A | L153: C | M153: T | N153: T | O153: A | P153: G | Q153: C | R153: C | S153: C | T153: C | U153: A | V153: C | W153: T | X153: A | Y153: A | Z153: T | AA153: G | AB153: A | AC153: A | AD153: T | AE153: G | AF153: C | AG153: C | AH153: G | AI153: A | AJ153: G | AK153: A | AL153: T | AM153: A | AN153: C | AO153: T | AP153: A | HJ153: =IF($B153="","",IF($A153>=HJ$105,SUBSTITUTE(SUBSTITUTE(SUBSTITUTE(SUBSTITUTE(RANDBETWEEN(1,4),1,"A"),2,"T"),3,"G"),4,"C"),"")) -> 
A154: 40 | B154: 49 | C154: C | D154: T | E154: A | F154: C | G154: C | H154: T | I154: A | J154: G | K154: T | L154: A | M154: G | N154: A | O154: A | P154: G | Q154: A | R154: C | S154: A | T154: A | U154: G | V154: G | W154: G | X154: A | Y154: A | Z154: T | AA154: C | AB154: T | AC154: G | AD154: G | AE154: A | AF154: G | AG154: C | AH154: C | AI154: A | AJ154: T | AK154: C | AL154: T | AM154: A | AN154: T | AO154: T | AP154: T | GU154: =IF($B154="","",IF($A154>=GU$105,SUBSTITUTE(SUBSTITUTE(SUBSTITUTE(SUBSTITUTE(RANDBETWEEN(1,4),1,"A"),2,"T"),3,"G"),4,"C"),"")) -> 
A155: 40 | B155: 50 | C155: A | D155: T | E155: T | F155: A | G155: G | H155: C | I155: T | J155: C | K155: C | L155: C | M155: A | N155: C | O155: A | P155: T | Q155: C | R155: G | S155: G | T155: C | U155: A | V155: T | W155: G | X155: C | Y155: G | Z155: G | AA155: A | AB155: C | AC155: T | AD155: G | AE155: A | AF155: A | AG155: G | AH155: T | AI155: C | AJ155: G | AK155: =IF($B155="","",IF($A155>=AK$105,SUBSTITUTE(SUBSTITUTE(SUBSTITUTE(SUBSTITUTE(RANDBETWEEN(1,4),1,"A"),2,"T"),3,"G"),4,"C"),"")) -> T | AL155: G | AM155: A | AN155: A | AO155: G | AP155: G
A156: 40 | B156: 51 | C156: A | D156: C | E156: T | F156: T | G156: T | H156: C | I156: C | J156: C | K156: A | L156: A | M156: A | N156: A | O156: A | P156: C | Q156: T | R156: C | S156: A | T156: A | U156: T | V156: T | W156: G | X156: C | Y156: C | Z156: A | AA156: T | AB156: C | AC156: A | AD156: C | AE156: C | AF156: A | AG156: C | AH156: =IF($B156="","",IF($A156>=AH$105,SUBSTITUTE(SUBSTITUTE(SUBSTITUTE(SUBSTITUTE(RANDBETWEEN(1,4),1,"A"),2,"T"),3,"G"),4,"C"),"")) -> A | AI156: G | AJ156: A | AK156: T | AL156: A | AM156: A | AN156: T | AO156: T | AP156: G | NK156: =IF($B156="","",IF($A156>=NK$105,SUBSTITUTE(SUBSTITUTE(SUBSTITUTE(SUBSTITUTE(RANDBETWEEN(1,4),1,"A"),2,"T"),3,"G"),4,"C"),"")) ->  | PW156: =IF($B156="","",IF($A156>=PW$105,SUBSTITUTE(SUBSTITUTE(SUBSTITUTE(SUBSTITUTE(RANDBETWEEN(1,4),1,"A"),2,"T"),3,"G"),4,"C"),"")) ->  | RW156: =IF($B156="","",IF($A156>=RW$105,SUBSTITUTE(SUBSTITUTE(SUBSTITUTE(SUBSTITUTE(RANDBETWEEN(1,4),1,"A"),2,"T"),3,"G"),4,"C"),"")) -> 
A157: 40 | B157: 52 | C157: A | D157: A | E157: G | F157: C | G157: T | H157: G | I157: T | J157: G | K157: G | L157: T | M157: A | N157: C | O157: C | P157: T | Q157: A | R157: C | S157: T | T157: C | U157: A | V157: G | W157: C | X157: C | Y157: T | Z157: T | AA157: G | AB157: T | AC157: T | AD157: A | AE157: G | AF157: A | AG157: A | AH157: T | AI157: T | AJ157: T | AK157: T | AL157: A | AM157: C | AN157: C | AO157: T | AP157: G | NH157: =IF($B157="","",IF($A157>=NH$105,SUBSTITUTE(SUBSTITUTE(SUBSTITUTE(SUBSTITUTE(RANDBETWEEN(1,4),1,"A"),2,"T"),3,"G"),4,"C"),"")) ->  | PT157: =IF($B157="","",IF($A157>=PT$105,SUBSTITUTE(SUBSTITUTE(SUBSTITUTE(SUBSTITUTE(RANDBETWEEN(1,4),1,"A"),2,"T"),3,"G"),4,"C"),"")) -> 
A158: 40 | B158: 53 | C158: T | D158: C | E158: T | F158: C | G158: C | H158: G | I158: C | J158: G | K158: G | L158: A | M158: C | N158: G | O158: A | P158: G | Q158: T | R158: G | S158: G | T158: A | U158: C | V158: C | W158: T | X158: G | Y158: T | Z158: C | AA158: T | AB158: C | AC158: A | AD158: T | AE158: G | AF158: C | AG158: T | AH158: T | AI158: T | AJ158: T | AK158: C | AL158: G | AM158: T | AN158: T | AO158: G | AP158: C
A159: 40 | B159: 54 | C159: A | D159: C | E159: C | F159: G | G159: A | H159: T | I159: A | J159: G | K159: C | L159: A | M159: T | N159: C | O159: G | P159: C | Q159: C | R159: G | S159: A | T159: T | U159: A | V159: T | W159: A | X159: T | Y159: C | Z159: G | AA159: C | AB159: T | AC159: G | AD159: A | AE159: T | AF159: G | AG159: G | AH159: A | AI159: G | AJ159: A | AK159: T | AL159: T | AM159: G | AN159: A | AO159: T | AP159: G | FU159: =IF($B159="","",IF($A159>=FU$105,SUBSTITUTE(SUBSTITUTE(SUBSTITUTE(SUBSTITUTE(RANDBETWEEN(1,4),1,"A"),2,"T"),3,"G"),4,"C"),"")) -> 
A160: 40 | B160: 55 | C160: T | D160: G | E160: C | F160: C | G160: A | H160: A | I160: G | J160: A | K160: A | L160: T | M160: C | N160: T | O160: A | P160: T | Q160: A | R160: T | S160: T | T160: C | U160: G | V160: G | W160: T | X160: A | Y160: C | Z160: C | AA160: G | AB160: G | AC160: G | AD160: C | AE160: T | AF160: T | AG160: G | AH160: T | AI160: G | AJ160: G | AK160: A | AL160: A | AM160: C | AN160: G | AO160: C | AP160: T | FS160: =IF($B160="","",IF($A160>=FS$105,SUBSTITUTE(SUBSTITUTE(SUBSTITUTE(SUBSTITUTE(RANDBETWEEN(1,4),1,"A"),2,"T"),3,"G"),4,"C"),"")) -> 
A161: 40 | B161: 56 | C161: C | D161: C | E161: C | F161: C | G161: T | H161: T | I161: C | J161: C | K161: T | L161: G | M161: T | N161: C | O161: C | P161: T | Q161: A | R161: T | S161: C | T161: A | U161: C | V161: T | W161: G | X161: G | Y161: A | Z161: T | AA161: G | AB161: G | AC161: G | AD161: T | AE161: G | AF161: A | AG161: C | AH161: T | AI161: A | AJ161: C | AK161: A | AL161: A | AM161: A | AN161: G | AO161: C | AP161: G | DV161: =IF($B161="","",IF($A161>=DV$105,SUBSTITUTE(SUBSTITUTE(SUBSTITUTE(SUBSTITUTE(RANDBETWEEN(1,4),1,"A"),2,"T"),3,"G"),4,"C"),"")) ->  | FE161: =IF($B161="","",IF($A161>=FE$105,SUBSTITUTE(SUBSTITUTE(SUBSTITUTE(SUBSTITUTE(RANDBETWEEN(1,4),1,"A"),2,"T"),3,"G"),4,"C"),"")) ->  | JX161: =IF($B161="","",IF($A161>=JX$105,SUBSTITUTE(SUBSTITUTE(SUBSTITUTE(SUBSTITUTE(RANDBETWEEN(1,4),1,"A"),2,"T"),3,"G"),4,"C"),"")) -> 
A162: 40 | B162: 57 | C162: G | D162: T | E162: C | F162: G | G162: C | H162: T | I162: T | J162: A | K162: T | L162: G | M162: T | N162: T | O162: G | P162: G | Q162: C | R162: T | S162: G | T162: T | U162: G | V162: G | W162: C | X162: G | Y162: T | Z162: T | AA162: G | AB162: C | AC162: T | AD162: T | AE162: C | AF162: A | AG162: C | AH162: C | AI162: T | AJ162: C | AK162: A | AL162: T | AM162: T | AN162: G | AO162: A | AP162: A | DH162: =IF($B162="","",IF($A162>=DH$105,SUBSTITUTE(SUBSTITUTE(SUBSTITUTE(SUBSTITUTE(RANDBETWEEN(1,4),1,"A"),2,"T"),3,"G"),4,"C"),"")) ->  | JJ162: =IF($B162="","",IF($A162>=JJ$105,SUBSTITUTE(SUBSTITUTE(SUBSTITUTE(SUBSTITUTE(RANDBETWEEN(1,4),1,"A"),2,"T"),3,"G"),4,"C"),"")) -> 
A163: 40 | B163: 58 | C163: A | D163: T | E163: C | F163: G | G163: G | H163: C | I163: A | J163: T | K163: A | L163: A | M163: A | N163: T | O163: T | P163: A | Q163: G | R163: T | S163: G | T163: A | U163: C | V163: C | W163: G | X163: T | Y163: C | Z163: C | AA163: C | AB163: C | AC163: G | AD163: C | AE163: C | AF163: A | AG163: G | AH163: G | AI163: T | AJ163: C | AK163: G | AL163: A | AM163: C | AN163: A | AO163: G | AP163: A | EE163: =IF($B163="","",IF($A163>=EE$105,SUBSTITUTE(SUBSTITUTE(SUBSTITUTE(SUBSTITUTE(RANDBETWEEN(1,4),1,"A"),2,"T"),3,"G"),4,"C"),"")) ->  | LT163: =IF($B163="","",IF($A163>=LT$105,SUBSTITUTE(SUBSTITUTE(SUBSTITUTE(SUBSTITUTE(RANDBETWEEN(1,4),1,"A"),2,"T"),3,"G"),4,"C"),"")) ->  | OF163: =IF($B163="","",IF($A163>=OF$105,SUBSTITUTE(SUBSTITUTE(SUBSTITUTE(SUBSTITUTE(RANDBETWEEN(1,4),1,"A"),2,"T"),3,"G"),4,"C"),"")) ->  | QR163: =IF($B163="","",IF($A163>=QR$105,SUBSTITUTE(SUBSTITUTE(SUBSTITUTE(SUBSTITUTE(RANDBETWEEN(1,4),1,"A"),2,"T"),3,"G"),4,"C"),"")) -> 
A164: 40 | B164: 59 | C164: C | D164: C | E164: G | F164: T | G164: A | H164: T | I164: G | J164: T | K164: C | L164: T | M164: C | N164: A | O164: G | P164: T | Q164: C | R164: A | S164: G | T164: G | U164: C | V164: A | W164: T | X164: T | Y164: G | Z164: A | AA164: T | AB164: T | AC164: G | AD164: T | AE164: A | AF164: A | AG164: C | AH164: A | AI164: C | AJ164: T | AK164: A | AL164: C | AM164: A | AN164: G | AO164: T | AP164: C | AW164: =IF($B164="","",IF($A164>=AW$105,SUBSTITUTE(SUBSTITUTE(SUBSTITUTE(SUBSTITUTE(RANDBETWEEN(1,4),1,"A"),2,"T"),3,"G"),4,"C"),"")) ->  | BT164: =IF($B164="","",IF($A164>=BT$105,SUBSTITUTE(SUBSTITUTE(SUBSTITUTE(SUBSTITUTE(RANDBETWEEN(1,4),1,"A"),2,"T"),3,"G"),4,"C"),"")) ->  | LS164: =IF($B164="","",IF($A164>=LS$105,SUBSTITUTE(SUBSTITUTE(SUBSTITUTE(SUBSTITUTE(RANDBETWEEN(1,4),1,"A"),2,"T"),3,"G"),4,"C"),"")) ->  | OE164: =IF($B164="","",IF($A164>=OE$105,SUBSTITUTE(SUBSTITUTE(SUBSTITUTE(SUBSTITUTE(RANDBETWEEN(1,4),1,"A"),2,"T"),3,"G"),4,"C"),"")) ->  | QQ164: =IF($B164="","",IF($A164>=QQ$105,SUBSTITUTE(SUBSTITUTE(SUBSTITUTE(SUBSTITUTE(RANDBETWEEN(1,4),1,"A"),2,"T"),3,"G"),4,"C"),"")) -> 
A165: 40 | B165: 60 | C165: G | D165: A | E165: T | F165: T | G165: C | H165: G | I165: C | J165: C | K165: T | L165: C | M165: A | N165: G | O165: T | P165: G | Q165: T | R165: A | S165: C | T165: A | U165: A | V165: T | W165: A | X165: G | Y165: G | Z165: A | AA165: T | AB165: T | AC165: T | AD165: A | AE165: C | AF165: G | AG165: C | AH165: T | AI165: A | AJ165: C | AK165: C | AL165: G | AM165: G | AN165: =IF($B165="","",IF($A165>=AN$105,SUBSTITUTE(SUBSTITUTE(SUBSTITUTE(SUBSTITUTE(RANDBETWEEN(1,4),1,"A"),2,"T"),3,"G"),4,"C"),"")) -> G | AO165: G | AP165: T | BN165: =IF($B165="","",IF($A165>=BN$105,SUBSTITUTE(SUBSTITUTE(SUBSTITUTE(SUBSTITUTE(RANDBETWEEN(1,4),1,"A"),2,"T"),3,"G"),4,"C"),"")) -> 
A166: 40 | B166: 61 | C166: A | D166: T | E166: T | F166: C | G166: G | H166: A | I166: A | J166: A | K166: C | L166: T | M166: G | N166: A | O166: T | P166: C | Q166: G | R166: T | S166: T | T166: C | U166: G | V166: T | W166: T | X166: C | Y166: C | Z166: C | AA166: C | AB166: G | AC166: T | AD166: A | AE166: A | AF166: T | AG166: G | AH166: G | AI166: G | AJ166: A | AK166: G | AL166: A | AM166: G | AN166: A | AO166: T | AP166: T | MU166: =IF($B166="","",IF($A166>=MU$105,SUBSTITUTE(SUBSTITUTE(SUBSTITUTE(SUBSTITUTE(RANDBETWEEN(1,4),1,"A"),2,"T"),3,"G"),4,"C"),"")) ->  | NG166: =IF($B166="","",IF($A166>=NG$105,SUBSTITUTE(SUBSTITUTE(SUBSTITUTE(SUBSTITUTE(RANDBETWEEN(1,4),1,"A"),2,"T"),3,"G"),4,"C"),"")) ->  | PG166: =IF($B166="","",IF($A166>=PG$105,SUBSTITUTE(SUBSTITUTE(SUBSTITUTE(SUBSTITUTE(RANDBETWEEN(1,4),1,"A"),2,"T"),3,"G"),4,"C"),"")) ->  | PS166: =IF($B166="","",IF($A166>=PS$105,SUBSTITUTE(SUBSTITUTE(SUBSTITUTE(SUBSTITUTE(RANDBETWEEN(1,4),1,"A"),2,"T"),3,"G"),4,"C"),"")) -> 
A167: 40 | B167: 62 | C167: C | D167: A | E167: G | F167: T | G167: A | H167: C | I167: T | J167: T | K167: C | L167: G | M167: T | N167: C | O167: A | P167: C | Q167: C | R167: G | S167: G | T167: C | U167: T | V167: C | W167: T | X167: G | Y167: G | Z167: G | AA167: T | AB167: T | AC167: A | AD167: T | AE167: C | AF167: G | AG167: G | AH167: G | AI167: C | AJ167: T | AK167: G | AL167: A | AM167: G | AN167: T | AO167: A | AP167: A | CO167: =IF($B167="","",IF($A167>=CO$105,SUBSTITUTE(SUBSTITUTE(SUBSTITUTE(SUBSTITUTE(RANDBETWEEN(1,4),1,"A"),2,"T"),3,"G"),4,"C"),"")) ->  | IS167: =IF($B167="","",IF($A167>=IS$105,SUBSTITUTE(SUBSTITUTE(SUBSTITUTE(SUBSTITUTE(RANDBETWEEN(1,4),1,"A"),2,"T"),3,"G"),4,"C"),"")) ->  | PH167: =IF($B167="","",IF($A167>=PH$105,SUBSTITUTE(SUBSTITUTE(SUBSTITUTE(SUBSTITUTE(RANDBETWEEN(1,4),1,"A"),2,"T"),3,"G"),4,"C"),"")) -> 
A168: 40 | B168: 63 | C168: G | D168: C | E168: C | F168: A | G168: G | H168: T | I168: A | J168: A | K168: T | L168: T | M168: A | N168: T | O168: T | P168: A | Q168: A | R168: =IF($B168="","",IF($A168>=R$105,SUBSTITUTE(SUBSTITUTE(SUBSTITUTE(SUBSTITUTE(RANDBETWEEN(1,4),1,"A"),2,"T"),3,"G"),4,"C"),"")) -> C | S168: C | T168: C | U168: C | V168: G | W168: C | X168: A | Y168: T | Z168: C | AA168: A | AB168: A | AC168: A | AD168: C | AE168: T | AF168: G | AG168: C | AH168: C | AI168: T | AJ168: A | AK168: G | AL168: C | AM168: T | AN168: A | AO168: C | AP168: A | CJ168: =IF($B168="","",IF($A168>=CJ$105,SUBSTITUTE(SUBSTITUTE(SUBSTITUTE(SUBSTITUTE(RANDBETWEEN(1,4),1,"A"),2,"T"),3,"G"),4,"C"),"")) ->  | ID168: =IF($B168="","",IF($A168>=ID$105,SUBSTITUTE(SUBSTITUTE(SUBSTITUTE(SUBSTITUTE(RANDBETWEEN(1,4),1,"A"),2,"T"),3,"G"),4,"C"),"")) -> 
A169: 40 | B169: 64 | C169: C | D169: G | E169: T | F169: G | G169: C | H169: C | I169: =IF($B169="","",IF($A169>=I$105,SUBSTITUTE(SUBSTITUTE(SUBSTITUTE(SUBSTITUTE(RANDBETWEEN(1,4),1,"A"),2,"T"),3,"G"),4,"C"),"")) -> G | J169: T | K169: T | L169: A | M169: T | N169: A | O169: A | P169: A | Q169: G | R169: A | S169: G | T169: A | U169: T | V169: G | W169: A | X169: T | Y169: G | Z169: C | AA169: A | AB169: G | AC169: T | AD169: T | AE169: A | AF169: T | AG169: T | AH169: G | AI169: T | AJ169: G | AK169: T | AL169: A | AM169: A | AN169: C | AO169: A | AP169: A | EZ169: =IF($B169="","",IF($A169>=EZ$105,SUBSTITUTE(SUBSTITUTE(SUBSTITUTE(SUBSTITUTE(RANDBETWEEN(1,4),1,"A"),2,"T"),3,"G"),4,"C"),"")) ->  | HJ169: =IF($B169="","",IF($A169>=HJ$105,SUBSTITUTE(SUBSTITUTE(SUBSTITUTE(SUBSTITUTE(RANDBETWEEN(1,4),1,"A"),2,"T"),3,"G"),4,"C"),"")) ->  | IA169: =IF($B169="","",IF($A169>=IA$105,SUBSTITUTE(SUBSTITUTE(SUBSTITUTE(SUBSTITUTE(RANDBETWEEN(1,4),1,"A"),2,"T"),3,"G"),4,"C"),"")) ->  | RI169: =IF($B169="","",IF($A169>=RI$105,SUBSTITUTE(SUBSTITUTE(SUBSTITUTE(SUBSTITUTE(RANDBETWEEN(1,4),1,"A"),2,"T"),3,"G"),4,"C"),"")) -> 
A170: 40 | B170: 65 | C170: T | D170: C | E170: G | F170: T | G170: T | H170: G | I170: G | J170: A | K170: A | L170: G | M170: C | N170: G | O170: G | P170: G | Q170: A | R170: C | S170: T | T170: A | U170: T | V170: C | W170: G | X170: A | Y170: A | Z170: A | AA170: C | AB170: T | AC170: A | AD170: C | AE170: G | AF170: T | AG170: A | AH170: T | AI170: C | AJ170: C | AK170: T | AL170: T | AM170: T | AN170: C | AO170: T | AP170: G | EU170: =IF($B170="","",IF($A170>=EU$105,SUBSTITUTE(SUBSTITUTE(SUBSTITUTE(SUBSTITUTE(RANDBETWEEN(1,4),1,"A"),2,"T"),3,"G"),4,"C"),"")) ->  | GU170: =IF($B170="","",IF($A170>=GU$105,SUBSTITUTE(SUBSTITUTE(SUBSTITUTE(SUBSTITUTE(RANDBETWEEN(1,4),1,"A"),2,"T"),3,"G"),4,"C"),"")) ->  | HZ170: =IF($B170="","",IF($A170>=HZ$105,SUBSTITUTE(SUBSTITUTE(SUBSTITUTE(SUBSTITUTE(RANDBETWEEN(1,4),1,"A"),2,"T"),3,"G"),4,"C"),"")) ->  | MT170: =IF($B170="","",IF($A170>=MT$105,SUBSTITUTE(SUBSTITUTE(SUBSTITUTE(SUBSTITUTE(RANDBETWEEN(1,4),1,"A"),2,"T"),3,"G"),4,"C"),"")) ->  | PF170: =IF($B170="","",IF($A170>=PF$105,SUBSTITUTE(SUBSTITUTE(SUBSTITUTE(SUBSTITUTE(RANDBETWEEN(1,4),1,"A"),2,"T"),3,"G"),4,"C"),"")) ->  | RH170: =IF($B170="","",IF($A170>=RH$105,SUBSTITUTE(SUBSTITUTE(SUBSTITUTE(SUBSTITUTE(RANDBETWEEN(1,4),1,"A"),2,"T"),3,"G"),4,"C"),"")) -> 
A171: =IF(B171="","",ROUND($C$2+($E$2-$C$2)*RAND(),0)) -> 40 | B171: =IF($B$1>=A70,A70,"") -> 66 | C171: =IF($B171="","",IF($A171>=C$105,SUBSTITUTE(SUBSTITUTE(SUBSTITUTE(SUBSTITUTE(RANDBETWEEN(1,4),1,"A"),2,"T"),3,"G"),4,"C"),"")) -> G | D171: G | E171: T | F171: C | G171: A | H171: A | I171: G | J171: A | K171: C | L171: T | M171: G | N171: T | O171: A | P171: C | Q171: T | R171: G | S171: G | T171: C | U171: A | V171: A | W171: C | X171: G | Y171: T | Z171: A | AA171: T | AB171: C | AC171: G | AD171: C | AE171: C | AF171: T | AG171: T | AH171: C | AI171: T | AJ171: A | AK171: T | AL171: A | AM171: T | AN171: C | AO171: A | AP171: G | KN171: =IF($B171="","",IF($A171>=KN$105,SUBSTITUTE(SUBSTITUTE(SUBSTITUTE(SUBSTITUTE(RANDBETWEEN(1,4),1,"A"),2,"T"),3,"G"),4,"C"),"")) ->  | LD171: =IF($B171="","",IF($A171>=LD$105,SUBSTITUTE(SUBSTITUTE(SUBSTITUTE(SUBSTITUTE(RANDBETWEEN(1,4),1,"A"),2,"T"),3,"G"),4,"C"),"")) ->  | LT171: =IF($B171="","",IF($A171>=LT$105,SUBSTITUTE(SUBSTITUTE(SUBSTITUTE(SUBSTITUTE(RANDBETWEEN(1,4),1,"A"),2,"T"),3,"G"),4,"C"),"")) ->  | MJ171: =IF($B171="","",IF($A171>=MJ$105,SUBSTITUTE(SUBSTITUTE(SUBSTITUTE(SUBSTITUTE(RANDBETWEEN(1,4),1,"A"),2,"T"),3,"G"),4,"C"),"")) ->  | MZ171: =IF($B171="","",IF($A171>=MZ$105,SUBSTITUTE(SUBSTITUTE(SUBSTITUTE(SUBSTITUTE(RANDBETWEEN(1,4),1,"A"),2,"T"),3,"G"),4,"C"),"")) ->  | NP171: =IF($B171="","",IF($A171>=NP$105,SUBSTITUTE(SUBSTITUTE(SUBSTITUTE(SUBSTITUTE(RANDBETWEEN(1,4),1,"A"),2,"T"),3,"G"),4,"C"),"")) ->  | OF171: =IF($B171="","",IF($A171>=OF$105,SUBSTITUTE(SUBSTITUTE(SUBSTITUTE(SUBSTITUTE(RANDBETWEEN(1,4),1,"A"),2,"T"),3,"G"),4,"C"),"")) ->  | OV171: =IF($B171="","",IF($A171>=OV$105,SUBSTITUTE(SUBSTITUTE(SUBSTITUTE(SUBSTITUTE(RANDBETWEEN(1,4),1,"A"),2,"T"),3,"G"),4,"C"),"")) -> 
A172: 40 | B172: 67 | C172: T | D172: C | E172: G | F172: C | G172: C | H172: G | I172: G | J172: C | K172: T | L172: G | M172: T | N172: A | O172: C | P172: A | Q172: T | R172: A | S172: C | T172: G | U172: T | V172: A | W172: C | X172: T | Y172: C | Z172: C | AA172: C | AB172: A | AC172: G | AD172: C | AE172: G | AF172: C | AG172: G | AH172: T | AI172: G | AJ172: G | AK172: A | AL172: C | AM172: C | AN172: T | AO172: A | AP172: T
A173: 40 | B173: 68 | C173: C | D173: A | E173: G | F173: A | G173: G | H173: A | I173: C | J173: G | K173: G | L173: A | M173: C | N173: G | O173: A | P173: A | Q173: T | R173: A | S173: G | T173: G | U173: G | V173: C | W173: C | X173: C | Y173: T | Z173: C | AA173: C | AB173: C | AC173: A | AD173: G | AE173: A | AF173: T | AG173: G | AH173: G | AI173: T | AJ173: G | AK173: A | AL173: A | AM173: C | AN173: A | AO173: G | AP173: C | RW173: =IF($B173="","",IF($A173>=RW$105,SUBSTITUTE(SUBSTITUTE(SUBSTITUTE(SUBSTITUTE(RANDBETWEEN(1,4),1,"A"),2,"T"),3,"G"),4,"C"),"")) -> 
A174: 40 | B174: 69 | C174: G | D174: G | E174: T | F174: C | G174: G | H174: G | I174: A | J174: G | K174: T | L174: T | M174: G | N174: A | O174: G | P174: T | Q174: A | R174: C | S174: G | T174: G | U174: A | V174: C | W174: T | X174: C | Y174: C | Z174: T | AA174: C | AB174: A | AC174: G | AD174: C | AE174: T | AF174: C | AG174: G | AH174: T | AI174: G | AJ174: C | AK174: A | AL174: C | AM174: T | AN174: T | AO174: A | AP174: G
A175: 40 | B175: 70 | C175: G | D175: A | E175: T | F175: T | G175: T | H175: A | I175: G | J175: G | K175: T | L175: C | M175: A | N175: T | O175: G | P175: C | Q175: A | R175: A | S175: A | T175: C | U175: C | V175: T | W175: C | X175: C | Y175: A | Z175: C | AA175: G | AB175: C | AC175: T | AD175: C | AE175: A | AF175: T | AG175: G | AH175: A | AI175: T | AJ175: T | AK175: C | AL175: C | AM175: C | AN175: A | AO175: A | AP175: A
A176: 40 | B176: 71 | C176: A | D176: T | E176: A | F176: A | G176: A | H176: C | I176: C | J176: C | K176: T | L176: A | M176: T | N176: T | O176: G | P176: C | Q176: G | R176: A | S176: T | T176: C | U176: G | V176: G | W176: C | X176: C | Y176: C | Z176: G | AA176: G | AB176: C | AC176: T | AD176: A | AE176: G | AF176: G | AG176: T | AH176: T | AI176: C | AJ176: C | AK176: T | AL176: A | AM176: T | AN176: G | AO176: G | AP176: C
A177: 40 | B177: 72 | C177: G | D177: C | E177: C | F177: A | G177: C | H177: A | I177: A | J177: T | K177: G | L177: T | M177: G | N177: G | O177: C | P177: C | Q177: C | R177: C | S177: C | T177: G | U177: T | V177: C | W177: A | X177: G | Y177: G | Z177: G | AA177: C | AB177: G | AC177: G | AD177: T | AE177: G | AF177: G | AG177: G | AH177: T | AI177: A | AJ177: T | AK177: G | AL177: G | AM177: C | AN177: G | AO177: A | AP177: A | DW177: =IF($B177="","",IF($A177>=DW$105,SUBSTITUTE(SUBSTITUTE(SUBSTITUTE(SUBSTITUTE(RANDBETWEEN(1,4),1,"A"),2,"T"),3,"G"),4,"C"),"")) ->  | JY177: =IF($B177="","",IF($A177>=JY$105,SUBSTITUTE(SUBSTITUTE(SUBSTITUTE(SUBSTITUTE(RANDBETWEEN(1,4),1,"A"),2,"T"),3,"G"),4,"C"),"")) -> 
A178: 40 | B178: 73 | C178: G | D178: C | E178: A | F178: G | G178: T | H178: T | I178: G | J178: G | K178: C | L178: G | M178: A | N178: G | O178: A | P178: G | Q178: T | R178: C | S178: G | T178: T | U178: A | V178: C | W178: T | X178: C | Y178: G | Z178: A | AA178: T | AB178: C | AC178: T | AD178: G | AE178: G | AF178: C | AG178: A | AH178: C | AI178: A | AJ178: C | AK178: G | AL178: G | AM178: A | AN178: G | AO178: A | AP178: C | DH178: =IF($B178="","",IF($A178>=DH$105,SUBSTITUTE(SUBSTITUTE(SUBSTITUTE(SUBSTITUTE(RANDBETWEEN(1,4),1,"A"),2,"T"),3,"G"),4,"C"),"")) ->  | FV178: =IF($B178="","",IF($A178>=FV$105,SUBSTITUTE(SUBSTITUTE(SUBSTITUTE(SUBSTITUTE(RANDBETWEEN(1,4),1,"A"),2,"T"),3,"G"),4,"C"),"")) ->  | JJ178: =IF($B178="","",IF($A178>=JJ$105,SUBSTITUTE(SUBSTITUTE(SUBSTITUTE(SUBSTITUTE(RANDBETWEEN(1,4),1,"A"),2,"T"),3,"G"),4,"C"),"")) -> 
A179: 40 | B179: 74 | C179: G | D179: G | E179: G | F179: T | G179: A | H179: C | I179: A | J179: A | K179: G | L179: T | M179: A | N179: C | O179: G | P179: A | Q179: G | R179: G | S179: G | T179: C | U179: A | V179: A | W179: G | X179: T | Y179: A | Z179: A | AA179: T | AB179: A | AC179: T | AD179: A | AE179: A | AF179: T | AG179: A | AH179: G | AI179: T | AJ179: T | AK179: T | AL179: C | AM179: C | AN179: A | AO179: T | AP179: A | BM179: =IF($B179="","",IF($A179>=BM$105,SUBSTITUTE(SUBSTITUTE(SUBSTITUTE(SUBSTITUTE(RANDBETWEEN(1,4),1,"A"),2,"T"),3,"G"),4,"C"),"")) ->  | DG179: =IF($B179="","",IF($A179>=DG$105,SUBSTITUTE(SUBSTITUTE(SUBSTITUTE(SUBSTITUTE(RANDBETWEEN(1,4),1,"A"),2,"T"),3,"G"),4,"C"),"")) ->  | FU179: =IF($B179="","",IF($A179>=FU$105,SUBSTITUTE(SUBSTITUTE(SUBSTITUTE(SUBSTITUTE(RANDBETWEEN(1,4),1,"A"),2,"T"),3,"G"),4,"C"),"")) ->  | QP179: =IF($B179="","",IF($A179>=QP$105,SUBSTITUTE(SUBSTITUTE(SUBSTITUTE(SUBSTITUTE(RANDBETWEEN(1,4),1,"A"),2,"T"),3,"G"),4,"C"),"")) -> 
A180: 40 | B180: 75 | C180: C | D180: G | E180: T | F180: G | G180: C | H180: T | I180: A | J180: T | K180: C | L180: A | M180: G | N180: C | O180: G | P180: G | Q180: C | R180: A | S180: T | T180: T | U180: A | V180: T | W180: C | X180: G | Y180: C | Z180: C | AA180: A | AB180: T | AC180: T | AD180: T | AE180: T | AF180: A | AG180: T | AH180: A | AI180: A | AJ180: G | AK180: G | AL180: A | AM180: T | AN180: T | AO180: G | AP180: G | AW180: =IF($B180="","",IF($A180>=AW$105,SUBSTITUTE(SUBSTITUTE(SUBSTITUTE(SUBSTITUTE(RANDBETWEEN(1,4),1,"A"),2,"T"),3,"G"),4,"C"),"")) ->  | DE180: =IF($B180="","",IF($A180>=DE$105,SUBSTITUTE(SUBSTITUTE(SUBSTITUTE(SUBSTITUTE(RANDBETWEEN(1,4),1,"A"),2,"T"),3,"G"),4,"C"),"")) ->  | QM180: =IF($B180="","",IF($A180>=QM$105,SUBSTITUTE(SUBSTITUTE(SUBSTITUTE(SUBSTITUTE(RANDBETWEEN(1,4),1,"A"),2,"T"),3,"G"),4,"C"),"")) -> 
A181: 40 | B181: 76 | C181: A | D181: T | E181: C | F181: G | G181: C | H181: A | I181: T | J181: T | K181: G | L181: C | M181: C | N181: C | O181: T | P181: G | Q181: T | R181: G | S181: G | T181: A | U181: G | V181: C | W181: G | X181: C | Y181: A | Z181: A | AA181: C | AB181: T | AC181: T | AD181: C | AE181: G | AF181: T | AG181: A | AH181: C | AI181: T | AJ181: C | AK181: T | AL181: T | AM181: C | AN181: =IF($B181="","",IF($A181>=AN$105,SUBSTITUTE(SUBSTITUTE(SUBSTITUTE(SUBSTITUTE(RANDBETWEEN(1,4),1,"A"),2,"T"),3,"G"),4,"C"),"")) -> T | AO181: T | AP181: A | BS181: =IF($B181="","",IF($A181>=BS$105,SUBSTITUTE(SUBSTITUTE(SUBSTITUTE(SUBSTITUTE(RANDBETWEEN(1,4),1,"A"),2,"T"),3,"G"),4,"C"),"")) -> 
A182: 40 | B182: 77 | C182: C | D182: T | E182: C | F182: C | G182: A | H182: A | I182: A | J182: A | K182: A | L182: A | M182: G | N182: A | O182: G | P182: T | Q182: A | R182: C | S182: C | T182: C | U182: T | V182: G | W182: T | X182: G | Y182: A | Z182: A | AA182: G | AB182: T | AC182: A | AD182: T | AE182: C | AF182: A | AG182: A | AH182: T | AI182: G | AJ182: T | AK182: C | AL182: T | AM182: T | AN182: T | AO182: C | AP182: A | EK182: =IF($B182="","",IF($A182>=EK$105,SUBSTITUTE(SUBSTITUTE(SUBSTITUTE(SUBSTITUTE(RANDBETWEEN(1,4),1,"A"),2,"T"),3,"G"),4,"C"),"")) ->  | PW182: =IF($B182="","",IF($A182>=PW$105,SUBSTITUTE(SUBSTITUTE(SUBSTITUTE(SUBSTITUTE(RANDBETWEEN(1,4),1,"A"),2,"T"),3,"G"),4,"C"),"")) -> 
A183: 40 | B183: 78 | C183: C | D183: G | E183: T | F183: A | G183: T | H183: A | I183: G | J183: G | K183: G | L183: G | M183: C | N183: G | O183: G | P183: C | Q183: G | R183: G | S183: G | T183: G | U183: A | V183: C | W183: T | X183: T | Y183: G | Z183: A | AA183: T | AB183: G | AC183: C | AD183: T | AE183: T | AF183: T | AG183: G | AH183: T | AI183: C | AJ183: T | AK183: C | AL183: T | AM183: T | AN183: G | AO183: C | AP183: G | CY183: =IF($B183="","",IF($A183>=CY$105,SUBSTITUTE(SUBSTITUTE(SUBSTITUTE(SUBSTITUTE(RANDBETWEEN(1,4),1,"A"),2,"T"),3,"G"),4,"C"),"")) ->  | JH183: =IF($B183="","",IF($A183>=JH$105,SUBSTITUTE(SUBSTITUTE(SUBSTITUTE(SUBSTITUTE(RANDBETWEEN(1,4),1,"A"),2,"T"),3,"G"),4,"C"),"")) ->  | PL183: =IF($B183="","",IF($A183>=PL$105,SUBSTITUTE(SUBSTITUTE(SUBSTITUTE(SUBSTITUTE(RANDBETWEEN(1,4),1,"A"),2,"T"),3,"G"),4,"C"),"")) -> 
A184: 40 | B184: 79 | C184: C | D184: G | E184: A | F184: T | G184: C | H184: A | I184: T | J184: T | K184: A | L184: C | M184: T | N184: C | O184: T | P184: T | Q184: A | R184: =IF($B184="","",IF($A184>=R$105,SUBSTITUTE(SUBSTITUTE(SUBSTITUTE(SUBSTITUTE(RANDBETWEEN(1,4),1,"A"),2,"T"),3,"G"),4,"C"),"")) -> A | S184: G | T184: C | U184: T | V184: A | W184: G | X184: G | Y184: G | Z184: C | AA184: G | AB184: C | AC184: A | AD184: A | AE184: C | AF184: A | AG184: T | AH184: C | AI184: C | AJ184: A | AK184: T | AL184: A | AM184: C | AN184: T | AO184: A | AP184: C | CJ184: =IF($B184="","",IF($A184>=CJ$105,SUBSTITUTE(SUBSTITUTE(SUBSTITUTE(SUBSTITUTE(RANDBETWEEN(1,4),1,"A"),2,"T"),3,"G"),4,"C"),"")) ->  | IT184: =IF($B184="","",IF($A184>=IT$105,SUBSTITUTE(SUBSTITUTE(SUBSTITUTE(SUBSTITUTE(RANDBETWEEN(1,4),1,"A"),2,"T"),3,"G"),4,"C"),"")) -> 
A185: 40 | B185: 80 | C185: T | D185: T | E185: A | F185: T | G185: A | H185: C | I185: =IF($B185="","",IF($A185>=I$105,SUBSTITUTE(SUBSTITUTE(SUBSTITUTE(SUBSTITUTE(RANDBETWEEN(1,4),1,"A"),2,"T"),3,"G"),4,"C"),"")) -> G | J185: T | K185: C | L185: A | M185: A | N185: G | O185: T | P185: C | Q185: C | R185: C | S185: C | T185: G | U185: G | V185: C | W185: G | X185: A | Y185: G | Z185: C | AA185: A | AB185: G | AC185: C | AD185: C | AE185: C | AF185: T | AG185: G | AH185: T | AI185: G | AJ185: T | AK185: A | AL185: T | AM185: G | AN185: G | AO185: C | AP185: T | HJ185: =IF($B185="","",IF($A185>=HJ$105,SUBSTITUTE(SUBSTITUTE(SUBSTITUTE(SUBSTITUTE(RANDBETWEEN(1,4),1,"A"),2,"T"),3,"G"),4,"C"),"")) -> 
A186: 40 | B186: 81 | C186: A | D186: G | E186: C | F186: A | G186: G | H186: T | I186: A | J186: T | K186: C | L186: G | M186: C | N186: G | O186: G | P186: T | Q186: A | R186: T | S186: G | T186: G | U186: G | V186: T | W186: A | X186: C | Y186: G | Z186: C | AA186: T | AB186: G | AC186: A | AD186: C | AE186: G | AF186: T | AG186: A | AH186: A | AI186: T | AJ186: A | AK186: A | AL186: T | AM186: T | AN186: G | AO186: C | AP186: C | GZ186: =IF($B186="","",IF($A186>=GZ$105,SUBSTITUTE(SUBSTITUTE(SUBSTITUTE(SUBSTITUTE(RANDBETWEEN(1,4),1,"A"),2,"T"),3,"G"),4,"C"),"")) ->  | LC186: =IF($B186="","",IF($A186>=LC$105,SUBSTITUTE(SUBSTITUTE(SUBSTITUTE(SUBSTITUTE(RANDBETWEEN(1,4),1,"A"),2,"T"),3,"G"),4,"C"),"")) ->  | MI186: =IF($B186="","",IF($A186>=MI$105,SUBSTITUTE(SUBSTITUTE(SUBSTITUTE(SUBSTITUTE(RANDBETWEEN(1,4),1,"A"),2,"T"),3,"G"),4,"C"),"")) ->  | NO186: =IF($B186="","",IF($A186>=NO$105,SUBSTITUTE(SUBSTITUTE(SUBSTITUTE(SUBSTITUTE(RANDBETWEEN(1,4),1,"A"),2,"T"),3,"G"),4,"C"),"")) ->  | OU186: =IF($B186="","",IF($A186>=OU$105,SUBSTITUTE(SUBSTITUTE(SUBSTITUTE(SUBSTITUTE(RANDBETWEEN(1,4),1,"A"),2,"T"),3,"G"),4,"C"),"")) -> 
A187: 40 | B187: 82 | C187: T | D187: C | E187: C | F187: C | G187: G | H187: T | I187: A | J187: A | K187: A | L187: T | M187: A | N187: G | O187: C | P187: C | Q187: C | R187: A | S187: G | T187: T | U187: A | V187: T | W187: A | X187: C | Y187: T | Z187: A | AA187: T | AB187: G | AC187: T | AD187: A | AE187: G | AF187: A | AG187: C | AH187: A | AI187: C | AJ187: G | AK187: T | AL187: G | AM187: A | AN187: A | AO187: A | AP187: A | ID187: =IF($B187="","",IF($A187>=ID$105,SUBSTITUTE(SUBSTITUTE(SUBSTITUTE(SUBSTITUTE(RANDBETWEEN(1,4),1,"A"),2,"T"),3,"G"),4,"C"),"")) ->  | KN187: =IF($B187="","",IF($A187>=KN$105,SUBSTITUTE(SUBSTITUTE(SUBSTITUTE(SUBSTITUTE(RANDBETWEEN(1,4),1,"A"),2,"T"),3,"G"),4,"C"),"")) ->  | LT187: =IF($B187="","",IF($A187>=LT$105,SUBSTITUTE(SUBSTITUTE(SUBSTITUTE(SUBSTITUTE(RANDBETWEEN(1,4),1,"A"),2,"T"),3,"G"),4,"C"),"")) ->  | MZ187: =IF($B187="","",IF($A187>=MZ$105,SUBSTITUTE(SUBSTITUTE(SUBSTITUTE(SUBSTITUTE(RANDBETWEEN(1,4),1,"A"),2,"T"),3,"G"),4,"C"),"")) ->  | OF187: =IF($B187="","",IF($A187>=OF$105,SUBSTITUTE(SUBSTITUTE(SUBSTITUTE(SUBSTITUTE(RANDBETWEEN(1,4),1,"A"),2,"T"),3,"G"),4,"C"),"")) -> 
A188: 40 | B188: 83 | C188: G | D188: C | E188: T | F188: G | G188: A | H188: C | I188: G | J188: T | K188: C | L188: C | M188: C | N188: G | O188: T | P188: C | Q188: G | R188: G | S188: A | T188: T | U188: C | V188: C | W188: T | X188: G | Y188: G | Z188: G | AA188: A | AB188: G | AC188: G | AD188: C | AE188: T | AF188: G | AG188: G | AH188: C | AI188: C | AJ188: T | AK188: A | AL188: A | AM188: A | AN188: A | AO188: A | AP188: A | FD188: =IF($B188="","",IF($A188>=FD$105,SUBSTITUTE(SUBSTITUTE(SUBSTITUTE(SUBSTITUTE(RANDBETWEEN(1,4),1,"A"),2,"T"),3,"G"),4,"C"),"")) -> 
A189: 40 | B189: 84 | C189: T | D189: T | E189: G | F189: T | G189: A | H189: T | I189: G | J189: T | K189: T | L189: C | M189: T | N189: C | O189: A | P189: A | Q189: T | R189: G | S189: A | T189: C | U189: G | V189: G | W189: C | X189: C | Y189: A | Z189: C | AA189: A | AB189: T | AC189: A | AD189: T | AE189: A | AF189: C | AG189: A | AH189: G | AI189: G | AJ189: T | AK189: G | AL189: A | AM189: C | AN189: T | AO189: T | AP189: A | FA189: =IF($B189="","",IF($A189>=FA$105,SUBSTITUTE(SUBSTITUTE(SUBSTITUTE(SUBSTITUTE(RANDBETWEEN(1,4),1,"A"),2,"T"),3,"G"),4,"C"),"")) ->  | MY189: =IF($B189="","",IF($A189>=MY$105,SUBSTITUTE(SUBSTITUTE(SUBSTITUTE(SUBSTITUTE(RANDBETWEEN(1,4),1,"A"),2,"T"),3,"G"),4,"C"),"")) -> 
A190: 40 | B190: 85 | C190: G | D190: A | E190: C | F190: G | G190: G | H190: G | I190: G | J190: T | K190: C | L190: T | M190: G | N190: C | O190: T | P190: G | Q190: T | R190: C | S190: A | T190: T | U190: T | V190: C | W190: T | X190: C | Y190: T | Z190: G | AA190: G | AB190: A | AC190: T | AD190: A | AE190: C | AF190: A | AG190: G | AH190: A | AI190: A | AJ190: A | AK190: G | AL190: A | AM190: A | AN190: G | AO190: C | AP190: C | RW190: =IF($B190="","",IF($A190>=RW$105,SUBSTITUTE(SUBSTITUTE(SUBSTITUTE(SUBSTITUTE(RANDBETWEEN(1,4),1,"A"),2,"T"),3,"G"),4,"C"),"")) -> 
A191: 40 | B191: 86 | C191: A | D191: G | E191: A | F191: A | G191: T | H191: G | I191: T | J191: T | K191: C | L191: C | M191: A | N191: T | O191: A | P191: G | Q191: A | R191: G | S191: A | T191: A | U191: C | V191: T | W191: A | X191: A | Y191: G | Z191: A | AA191: G | AB191: G | AC191: G | AD191: T | AE191: G | AF191: G | AG191: G | AH191: A | AI191: G | AJ191: A | AK191: C | AL191: T | AM191: G | AN191: C | AO191: C | AP191: C | GW191: =IF($B191="","",IF($A191>=GW$105,SUBSTITUTE(SUBSTITUTE(SUBSTITUTE(SUBSTITUTE(RANDBETWEEN(1,4),1,"A"),2,"T"),3,"G"),4,"C"),"")) ->  | RK191: =IF($B191="","",IF($A191>=RK$105,SUBSTITUTE(SUBSTITUTE(SUBSTITUTE(SUBSTITUTE(RANDBETWEEN(1,4),1,"A"),2,"T"),3,"G"),4,"C"),"")) -> 
A192: 40 | B192: 87 | C192: C | D192: T | E192: T | F192: G | G192: C | H192: C | I192: C | J192: G | K192: T | L192: A | M192: G | N192: T | O192: C | P192: G | Q192: C | R192: A | S192: A | T192: T | U192: G | V192: G | W192: T | X192: A | Y192: C | Z192: T | AA192: T | AB192: T | AC192: C | AD192: G | AE192: C | AF192: G | AG192: A | AH192: T | AI192: T | AJ192: T | AK192: A | AL192: G | AM192: G | AN192: G | AO192: T | AP192: A | GU192: =IF($B192="","",IF($A192>=GU$105,SUBSTITUTE(SUBSTITUTE(SUBSTITUTE(SUBSTITUTE(RANDBETWEEN(1,4),1,"A"),2,"T"),3,"G"),4,"C"),"")) ->  | RH192: =IF($B192="","",IF($A192>=RH$105,SUBSTITUTE(SUBSTITUTE(SUBSTITUTE(SUBSTITUTE(RANDBETWEEN(1,4),1,"A"),2,"T"),3,"G"),4,"C"),"")) -> 
A193: 40 | B193: 88 | C193: T | D193: G | E193: A | F193: T | G193: T | H193: T | I193: G | J193: C | K193: T | L193: C | M193: A | N193: T | O193: C | P193: C | Q193: T | R193: G | S193: T | T193: G | U193: T | V193: A | W193: C | X193: C | Y193: G | Z193: T | AA193: G | AB193: C | AC193: T | AD193: T | AE193: T | AF193: A | AG193: C | AH193: T | AI193: C | AJ193: T | AK193: T | AL193: C | AM193: T | AN193: C | AO193: C | AP193: A
A194: 40 | B194: 89 | C194: C | D194: A | E194: C | F194: T | G194: C | H194: C | I194: C | J194: G | K194: T | L194: A | M194: C | N194: T | O194: C | P194: C | Q194: T | R194: C | S194: A | T194: G | U194: C | V194: A | W194: A | X194: G | Y194: T | Z194: T | AA194: T | AB194: A | AC194: T | AD194: C | AE194: T | AF194: T | AG194: T | AH194: C | AI194: T | AJ194: T | AK194: A | AL194: G | AM194: C | AN194: A | AO194: A | AP194: A | GJ194: =IF($B194="","",IF($A194>=GJ$105,SUBSTITUTE(SUBSTITUTE(SUBSTITUTE(SUBSTITUTE(RANDBETWEEN(1,4),1,"A"),2,"T"),3,"G"),4,"C"),"")) ->  | KK194: =IF($B194="","",IF($A194>=KK$105,SUBSTITUTE(SUBSTITUTE(SUBSTITUTE(SUBSTITUTE(RANDBETWEEN(1,4),1,"A"),2,"T"),3,"G"),4,"C"),"")) ->  | RF194: =IF($B194="","",IF($A194>=RF$105,SUBSTITUTE(SUBSTITUTE(SUBSTITUTE(SUBSTITUTE(RANDBETWEEN(1,4),1,"A"),2,"T"),3,"G"),4,"C"),"")) -> 
A195: 40 | B195: 90 | C195: T | D195: C | E195: A | F195: G | G195: G | H195: C | I195: A | J195: G | K195: A | L195: G | M195: C | N195: G | O195: A | P195: A | Q195: T | R195: C | S195: G | T195: G | U195: T | V195: T | W195: C | X195: C | Y195: G | Z195: A | AA195: C | AB195: C | AC195: T | AD195: A | AE195: G | AF195: C | AG195: A | AH195: G | AI195: T | AJ195: T | AK195: T | AL195: A | AM195: A | AN195: A | AO195: G | AP195: G | FU195: =IF($B195="","",IF($A195>=FU$105,SUBSTITUTE(SUBSTITUTE(SUBSTITUTE(SUBSTITUTE(RANDBETWEEN(1,4),1,"A"),2,"T"),3,"G"),4,"C"),"")) ->  | RB195: =IF($B195="","",IF($A195>=RB$105,SUBSTITUTE(SUBSTITUTE(SUBSTITUTE(SUBSTITUTE(RANDBETWEEN(1,4),1,"A"),2,"T"),3,"G"),4,"C"),"")) -> 
A196: 40 | B196: 91 | C196: A | D196: C | E196: A | F196: T | G196: C | H196: G | I196: C | J196: T | K196: C | L196: C | M196: G | N196: T | O196: C | P196: G | Q196: G | R196: A | S196: C | T196: G | U196: G | V196: A | W196: C | X196: A | Y196: T | Z196: T | AA196: G | AB196: A | AC196: T | AD196: C | AE196: C | AF196: A | AG196: A | AH196: C | AI196: G | AJ196: G | AK196: C | AL196: G | AM196: G | AN196: A | AO196: A | AP196: A | AW196: =IF($B196="","",IF($A196>=AW$105,SUBSTITUTE(SUBSTITUTE(SUBSTITUTE(SUBSTITUTE(RANDBETWEEN(1,4),1,"A"),2,"T"),3,"G"),4,"C"),"")) ->  | QM196: =IF($B196="","",IF($A196>=QM$105,SUBSTITUTE(SUBSTITUTE(SUBSTITUTE(SUBSTITUTE(RANDBETWEEN(1,4),1,"A"),2,"T"),3,"G"),4,"C"),"")) -> 
A197: 40 | B197: 92 | C197: T | D197: G | E197: A | F197: C | G197: A | H197: A | I197: A | J197: A | K197: A | L197: A | M197: G | N197: T | O197: T | P197: G | Q197: G | R197: A | S197: C | T197: G | U197: T | V197: C | W197: T | X197: C | Y197: G | Z197: A | AA197: A | AB197: C | AC197: C | AD197: G | AE197: A | AF197: A | AG197: T | AH197: G | AI197: T | AJ197: T | AK197: G | AL197: T | AM197: T | AN197: =IF($B197="","",IF($A197>=AN$105,SUBSTITUTE(SUBSTITUTE(SUBSTITUTE(SUBSTITUTE(RANDBETWEEN(1,4),1,"A"),2,"T"),3,"G"),4,"C"),"")) -> G | AO197: C | AP197: C | BS197: =IF($B197="","",IF($A197>=BS$105,SUBSTITUTE(SUBSTITUTE(SUBSTITUTE(SUBSTITUTE(RANDBETWEEN(1,4),1,"A"),2,"T"),3,"G"),4,"C"),"")) -> 
A198: 40 | B198: 93 | C198: A | E198: C | F198: G | G198: T | H198: C | I198: G | J198: C | K198: T | L198: G | M198: T | N198: T | O198: A | P198: T | Q198: C | R198: C | S198: A | T198: A | U198: G | V198: A | W198: C | X198: T | Y198: T | Z198: G | AA198: T | AB198: T | AC198: A | AD198: A | AE198: G | AF198: A | AG198: G | AH198: T | AI198: C | AJ198: G | AK198: =IF($B198="","",IF($A198>=AK$105,SUBSTITUTE(SUBSTITUTE(SUBSTITUTE(SUBSTITUTE(RANDBETWEEN(1,4),1,"A"),2,"T"),3,"G"),4,"C"),"")) -> G | AL198: C | AM198: A | AN198: T | AO198: T | AP198: G | BM198: =IF($B198="","",IF($A198>=BM$105,SUBSTITUTE(SUBSTITUTE(SUBSTITUTE(SUBSTITUTE(RANDBETWEEN(1,4),1,"A"),2,"T"),3,"G"),4,"C"),"")) ->  | EC198: =IF($B198="","",IF($A198>=EC$105,SUBSTITUTE(SUBSTITUTE(SUBSTITUTE(SUBSTITUTE(RANDBETWEEN(1,4),1,"A"),2,"T"),3,"G"),4,"C"),"")) ->  | IE198: =IF($B198="","",IF($A198>=IE$105,SUBSTITUTE(SUBSTITUTE(SUBSTITUTE(SUBSTITUTE(RANDBETWEEN(1,4),1,"A"),2,"T"),3,"G"),4,"C"),"")) ->  | QA198: =IF($B198="","",IF($A198>=QA$105,SUBSTITUTE(SUBSTITUTE(SUBSTITUTE(SUBSTITUTE(RANDBETWEEN(1,4),1,"A"),2,"T"),3,"G"),4,"C"),"")) -> 
A199: 40 | B199: 94 | C199: A | E199: G | F199: A | G199: C | H199: C | I199: A | J199: C | K199: A | L199: G | M199: T | N199: A | O199: A | P199: T | Q199: T | R199: G | S199: T | T199: T | U199: C | V199: C | W199: G | X199: G | Y199: C | Z199: G | AA199: C | AB199: A | AC199: G | AD199: G | AE199: G | AF199: A | AG199: C | AH199: =IF($B199="","",IF($A199>=AH$105,SUBSTITUTE(SUBSTITUTE(SUBSTITUTE(SUBSTITUTE(RANDBETWEEN(1,4),1,"A"),2,"T"),3,"G"),4,"C"),"")) -> A | AI199: G | AJ199: T | AK199: G | AL199: T | AM199: G | AN199: C | AO199: G | AP199: A | CY199: =IF($B199="","",IF($A199>=CY$105,SUBSTITUTE(SUBSTITUTE(SUBSTITUTE(SUBSTITUTE(RANDBETWEEN(1,4),1,"A"),2,"T"),3,"G"),4,"C"),"")) ->  | DX199: =IF($B199="","",IF($A199>=DX$105,SUBSTITUTE(SUBSTITUTE(SUBSTITUTE(SUBSTITUTE(RANDBETWEEN(1,4),1,"A"),2,"T"),3,"G"),4,"C"),"")) ->  | HZ199: =IF($B199="","",IF($A199>=HZ$105,SUBSTITUTE(SUBSTITUTE(SUBSTITUTE(SUBSTITUTE(RANDBETWEEN(1,4),1,"A"),2,"T"),3,"G"),4,"C"),"")) ->  | KN199: =IF($B199="","",IF($A199>=KN$105,SUBSTITUTE(SUBSTITUTE(SUBSTITUTE(SUBSTITUTE(RANDBETWEEN(1,4),1,"A"),2,"T"),3,"G"),4,"C"),"")) ->  | PL199: =IF($B199="","",IF($A199>=PL$105,SUBSTITUTE(SUBSTITUTE(SUBSTITUTE(SUBSTITUTE(RANDBETWEEN(1,4),1,"A"),2,"T"),3,"G"),4,"C"),"")) -> 
A200: 40 | B200: 95 | C200: C | E200: T | F200: A | G200: T | H200: G | I200: A | J200: T | K200: C | L200: T | M200: A | N200: G | O200: C | P200: T | Q200: A | R200: =IF($B200="","",IF($A200>=R$105,SUBSTITUTE(SUBSTITUTE(SUBSTITUTE(SUBSTITUTE(RANDBETWEEN(1,4),1,"A"),2,"T"),3,"G"),4,"C"),"")) -> A | S200: T | T200: G | U200: G | V200: C | W200: C | X200: T | Y200: C | Z200: T | AA200: T | AB200: G | AC200: A | AD200: T | AE200: C | AF200: G | AG200: C | AH200: C | AI200: A | AJ200: A | AK200: G | AL200: A | AM200: G | AN200: T | AO200: A | AP200: C | CJ200: =IF($B200="","",IF($A200>=CJ$105,SUBSTITUTE(SUBSTITUTE(SUBSTITUTE(SUBSTITUTE(RANDBETWEEN(1,4),1,"A"),2,"T"),3,"G"),4,"C"),"")) ->  | IV200: =IF($B200="","",IF($A200>=IV$105,SUBSTITUTE(SUBSTITUTE(SUBSTITUTE(SUBSTITUTE(RANDBETWEEN(1,4),1,"A"),2,"T"),3,"G"),4,"C"),"")) ->  | JZ200: =IF($B200="","",IF($A200>=JZ$105,SUBSTITUTE(SUBSTITUTE(SUBSTITUTE(SUBSTITUTE(RANDBETWEEN(1,4),1,"A"),2,"T"),3,"G"),4,"C"),"")) -> 
A201: 40 | B201: 96 | C201: =IF($B201="","",IF($A201>=C$105,SUBSTITUTE(SUBSTITUTE(SUBSTITUTE(SUBSTITUTE(RANDBETWEEN(1,4),1,"A"),2,"T"),3,"G"),4,"C"),"")) -> T | E201: G | F201: G | G201: G | H201: G | I201: G | J201: G | K201: G | L201: T | M201: G | N201: C | O201: C | P201: G | Q201: A | R201: G | S201: C | T201: G | U201: T | V201: G | W201: C | X201: T | Y201: C | Z201: C | AA201: A | AB201: C | AC201: G | AD201: A | AE201: T | AF201: G | AG201: T | AH201: A | AI201: T | AJ201: A | AK201: A | AL201: C | AM201: G | AN201: T | AO201: T | AP201: G | EX201: =IF($B201="","",IF($A201>=EX$105,SUBSTITUTE(SUBSTITUTE(SUBSTITUTE(SUBSTITUTE(RANDBETWEEN(1,4),1,"A"),2,"T"),3,"G"),4,"C"),"")) ->  | IU201: =IF($B201="","",IF($A201>=IU$105,SUBSTITUTE(SUBSTITUTE(SUBSTITUTE(SUBSTITUTE(RANDBETWEEN(1,4),1,"A"),2,"T"),3,"G"),4,"C"),"")) ->  | LS201: =IF($B201="","",IF($A201>=LS$105,SUBSTITUTE(SUBSTITUTE(SUBSTITUTE(SUBSTITUTE(RANDBETWEEN(1,4),1,"A"),2,"T"),3,"G"),4,"C"),"")) ->  | OE201: =IF($B201="","",IF($A201>=OE$105,SUBSTITUTE(SUBSTITUTE(SUBSTITUTE(SUBSTITUTE(RANDBETWEEN(1,4),1,"A"),2,"T"),3,"G"),4,"C"),"")) ->  | PK201: =IF($B201="","",IF($A201>=PK$105,SUBSTITUTE(SUBSTITUTE(SUBSTITUTE(SUBSTITUTE(RANDBETWEEN(1,4),1,"A"),2,"T"),3,"G"),4,"C"),"")) -> 
B203: 1 | C203: A | E203: T | F203: =1-LEN(SUBSTITUTE(D5,"T",""))/LEN(D5) -> 0.225 | G203: G | H203: =1-LEN(SUBSTITUTE(D5,"G",""))/LEN(D5) -> 0.3 | I203: C | J203: =1-LEN(SUBSTITUTE(D5,"C",""))/LEN(D5) -> 0.25 | L203: AT | M203: =D203+F203 -> 0.225 | N203: GC | O203: =H203+J203 -> 0.55
B204: 2 | C204: A | E204: T | F204: =1-LEN(SUBSTITUTE(D6,"T",""))/LEN(D6) -> 0.275 | G204: G | H204: =1-LEN(SUBSTITUTE(D6,"G",""))/LEN(D6) -> 0.2 | I204: C | J204: =1-LEN(SUBSTITUTE(D6,"C",""))/LEN(D6) -> 0.125 | L204: AT | M204: =D204+F204 -> 0.275 | N204: GC | O204: =H204+J204 -> 0.325
... 94 more rows

Sheet Sheet1
B1: Random-1 | C1: GCTAATAGGAAGGAGTTGATGCGGTTGTAGGAGGTGACACCGTATAAGA | D1: 100nm | E1: HPLC
B2: Random-2 | C2: TCCGGCGTTGGCAAAAAGGTTGACGTCCTTGACGGAGAGAAAACGCGTTTCAGAGG | D2: 100nm | E2: HPLC
B3: Random-3 | C3: GACAGCGATCACCATTACCTTTGGCAAATATCCATAATTCCTGCATGCGGACTA | D3: 100nm | E3: HPLC
B4: Random-4 | C4: CAAGTTCCTGCGGCAACAGCCGCGGATTCAGCCAGCTCCCGTTAGGAATGTTTACATCAA | D4: 100nm | E4: HPLC
B5: Random-5 | C5: GCTCTAGTTGGGTAGTCATGCACGCTATCATCTGTATTTCCGTACATAAATGGG | D5: 100nm | E5: HPLC
B6: Random-6 | C6: CCCCCCCGCTATGGCTATGAATTTCAAACAGGTTTTGCCATAGGG | D6: 100nm | E6: HPLC
B7: Random-7 | C7: ATCTGGAGCATGGCAGTCGACGATTTATGCTTGCCTGCTGCGGGCGGGGTCCAA | D7: 100nm | E7: HPLC
B8: Random-8 | C8: GTAAGACACGACGTACTAGCCGCCCGCTGGTGCTGATGCTGTGTGAGCACAACCTCTGCA | D8: 100nm | E8: HPLC
B9: Random-9 | C9: GCCCGACTTTTTCACTCCGGCTCCTACTAGCCAAAGACTTGATGACC | D9: 100nm | E9: HPLC
B10: Random-10 | C10: GTATCCGCCTCTTTCCGAGATAACCTCGAACCAGGTGCGGCTAGCACAGAGTAAGT | D10: 25nm | E10: STD
B11: Random-11 | C11: AAAGTGGGCTTTTGTATACGTACTTTGATTGGCTTGTGGTGGCCTGTACGAGTG | D11: 25nm | E11: STD
B12: Random-12 | C12: TGGTCCGGCAAGAATGCGGGAACGTACTACGCACGCGCAGGTGGAGC | D12: 25nm | E12: STD
B13: Random-13 | C13: ATTCAAGCGTCCTACAACCCCTCTTAGACAGATGATAGTCGCACTCGTCTCTGTA | D13: 25nm | E13: STD
B14: Random-14 | C14: GGTGTCAGTTTGAGGGCCTAGCCCGCGTTTGATTACCAGACAGGGATAACATCCAC | D14: 25nm | E14: STD
B15: Random-15 | C15: CGATGTTTAATCGGTTCTTAAATTTGATACGGGCGGGAGTGCTATCTACCCTGTAGAT | D15: 25nm | E15: STD
B16: Random-16 | C16: CGGAGCGTTTCACGCATTGGACGATGGGAACCGTATCCCTTTCTTGTTTACTTTTA | D16: 25nm | E16: STD
B17: Random-17 | C17: TCAGATTCAATTCCTCCGATGGATTGGAGCATCTTTATATGCGAAATCAAA | D17: 25nm | E17: STD
B18: Random-18 | C18: ACGCACCAGAAAGCTCGATTCGCTCCCGACGAGTAAGTTCCATCCGTCAGTAA | D18: 25nm | E18: STD
B19: Random-19 | C19: GTCTCAACATCATCGCCACGTCTGCGGCCATTTGCACTGCCGCGGTCAGGCATTC | D19: 25nm | E19: STD
B20: Random-20 | C20: GCCAGAGCACTAAGGATGCTGCACTTGTTTCCCACGGACTAAAGAGCG | D20: 25nm | E20: STD
B23: Random-21 | C23: GCTCTGGTGGCCTGTGTAGTCCCATCAATCCTGAGACTGAGGACTCGACAATTGCACCTT
B24: Random-22 | C24: CCTTATAGGCTGAAAAGCCCACGAATTTCAGCAACGACCTGCAGCC
B25: Random-23 | C25: GAGCCCGCTTAGTCTCTTAGTTTTTAAAGTGAAAACATCTGTTTTTCCCCCCTGCC
B26: Random-24 | C26: GGGTGGTCACTTGCAACGAAGGTAAAATGCGTAATATCGGGGGCACAGCCTGAACC
B27: Random-25 | C27: CTTACTAACAGCAAGCTCTAGCTGGGAACAAGCCAACCGCTCAACGTCGTCATTCC
B28: Random-26 | C28: CAACCGGTGTCTCCCGGCATGTAGTGGATATACTCGAGCAACTGCACC
B29: Random-27 | C29: GTACTGAGGCCCATAAAATCCTTTCGTCATCGAATTGTGACCTTTTTGATTCCTAAATGA
B30: Random-28 | C30: TGGCTTGCCGAAAGACATGCCAGCTATGAGGTCTTGTCGTTAAGTGGAGGGGA
B31: Random-29 | C31: ACTACTACCTGTGTCATGTGGTGCTCTCTTCTTCGCAGGCACCTACCCAAGGCGAG
B32: Random-30 | C32: CGAGTCCAAAGCAGATCTGGAAAAGTCAGCAAAAAGATCGGGACCTTG
B33: Random-31 | C33: GATGCTGGCTCCAATGTCGCATTTGACCGAGCTATTGATAAACGGAGTGCGC
B34: Random-32 | C34: CGTTACTGAACTTGTCTTATGTTCATAGACCGCCAAGGTACGCCGTGCTTAAGG
B35: Random-33 | C35: TAATTCAGCGGAGACTCTCAATAGCAAGCTTCCTTGCAAGGAATGATACCAGATAGCG
B36: Random-34 | C36: TTCTTGCTGATTTACCTTGGGGGACCGACCAACATCTTATTTGGCTGC
B37: Random-35 | C37: AGGTAGGTTAAAACAACGACTAATTCCAAGACCCTGTCTAGTCGCTAAAAGT
B38: Random-36 | C38: CGCCACCGTGACCGCTGGTAGATGTATCGGAGTCGGCAAAGAGCTGGTGCGAT
B39: Random-37 | C39: CCCATCCTAGCAATAGCTCAGCAACCGATGTAGTCATGATCTGTTTTTGTAT
B40: Random-38 | C40: GATTCACGGCCATTTGACACCTCCCGATTTCGCACTTGCTTTCCGGAGATATCCAATC
B41: Random-39 | C41: GTCCCCCCGTTTTTAGCCATGGAATAGGTGGACTCATGGTGACTAC
B42: Random-40 | C42: TGTGGTGGTGCCGCTCATATCATCGCCCTACATCCCGTCGCACATGCAT
B43: Random-41 | C43: TCCGCAAGACGCGCGCACATTTCGATGAACTCCGAGCCGCCAGTTCGAAGTTGAGATTTC
B44: Random-42 | C44: GTAGTGGGCAACTGAGCTAGACTTGCGTTTTCATGGAGTCTACCCGATGGA
B45: Random-43 | C45: TGAGAAGATGGTCTAGCATCACGGGGTCGCTCTCCAGGATACATCGTGGATGCTCTT
B46: Random-44 | C46: GTATTCTCAATTAATTCTCTGTATTTCAGCCGATCTAGCGGTAACTCTCTTACGGTCGTT
B47: Random-45 | C47: TTTAGGATTATAGACACGGACGTAGACATATCCCTTATGGAAAGAGAAG
B48: Random-46 | C48: CGCGCCCGTGCAAGTGAGTATCTAAGGTTACTGGCAGGCCAAGTTGAAG
B49: Random-47 | C49: TCTGTAACCGGACGGTTACCAAGAATGCTATAGTTATTGACCCTGGTT
B50: Random-48 | C50: TGGGTATCAAACAAAACGTCTGAGAGCGCGTTGTGGGTCCAAAACATTTGGTTTCCATTG
B51: Random-49 | C51: CGCATGAGACTAGTTCTGCCCTACCGTACTAGCGCTTCCTGTCAAACACTAC
B52: Random-50 | C52: GGGGGTATAATACGAGCTAAACCCATTTACTTTAACAATGGTTCTGCTGGATATAGC
B53: Random-51 | C53: GCATCGTTTGGACAGTTATCTGAATCCACAGCGGTTTACGTCAACAGATAG
B54: Random-52 | C54: TTAGCTTTCTGGTCTGGCTAAATAGCGATCTCGATTCGCAATACCGAT
B55: Random-53 | C55: TCCGAATCAGCATCAAATTGACGGCAATATTGGCATAGTTCGAACGGC
B56: Random-54 | C56: ACTCGTCGTCGTGCGCGTGGAGATGTTTATCACTCATCGAACCGGGGAGGAACCAACA
B57: Random-55 | C57: TGGCTGCAAATAAAACATCATGCCCGCTTGGCTTTAGAAAGCACGTATA
B58: Random-56 | C58: CCTGCCTCTAACGCTTTACGACCTGCACGAAGAGGTTCGAGTTGGACTAGTGTGA
B59: Random-57 | C59: TATAGGATAAACTGGCAACTTGAACGCATGCACCAACGTCATAGTAAG
B60: Random-58 | C60: TGCAGTCTTATCAGCTGGCCTCTTAGGGGATGCCTTCATAATTAATTGGCGGCATGTA
B61: Random-59 | C61: ATACACACTCGAGTTGCTACGATTTGTCGGACCTGAACGAGCACGC
B62: Random-60 | C62: GCCCAATGAGGTATCGTTATTCCATATGCGCCGCCTTCCTGCGTCTGGTGTC
B63: Random-61 | C63: CGATGGCCCCGAGAGCCAGACGTGTACAAGCTAGGCTGCGCCGACCTCC
B64: Random-62 | C64: CTGCCGCACACGATAAGAGGAGCGCCCGATTCACTCTGGCAATGACCCGAAGCCGTTA
B65: Random-63 | C65: ATTGATACATGCTTTTGTTGCGATTGGCTATTGCCGGCTTCCCGAGGACG
B66: Random-64 | C66: AGCACGGTAGCCACGGAGGGAAGGGCCGATTAATTTCATATGACAT
B67: Random-65 | C67: TATCATCTAAGCCGTCAGCCCGCTCGAATCAAATCACCCGACGGAGCTGGACCAC
B68: Random-66 | C68: GAAGAAGTGGTGAAATTAGAGTCATCATCGTGTCCTGAACGATTGTCACTA
B69: Random-67 | C69: TTGCCCGGGACACTAGGGAGGACTTCCCACGTTCCTCGGCCATTTGTC
B70: Random-68 | C70: AACGCAGTAGGGTAAGCGCCACCGCCTGGCCAGGCGAAACTGTTATATAGAGCCATT
B71: Random-69 | C71: CGATATGTCAAGCTTCCTGGAACAGAACGTAAAGTTGTTCTAGTTTCT
B72: Random-70 | C72: CACTTGGCAGCATGAACTAACTTGGGCCGTTCGATAACTCTACCAACACCCCCGAATAA
B73: Random-71 | C73: CTGTCTATCATACGGATTACTTGTTTGTCTATGCGCGAAAATGTATCCT
B74: Random-72 | C74: TGCTAAAATGAACTGTCCTAGTCACGTTAACTGGCGTAGGGTTAGTC
B75: Random-73 | C75: TCAGGATACAGAGTCTGCGCCTCTATAACTGAAGGACGTCACCTACTGACATA
B76: Random-74 | C76: ACTACCATGGTCGGATTGTTTAGCGAGGACCGGGTTTAAGTCCTCAAAAAAGCCCGCGC
B77: Random-75 | C77: AGCCTGTAGTCAACCACGTCACACAAGGTCCCCCATGAAGGAACCTTACTCCGA
B78: Random-76 | C78: ACTGACGCAGGATAAACGACCGGCAACTTGCAAGTCGATACCCAGTATATGTCTGTA
B79: Random-77 | C79: GCCGGGAAGAGGAGTCACCGGTCGCGGGACGCATCTATGAGCGCCCGTGTAT
B80: Random-78 | C80: GCAAAGGATCTTCTGACCGGCAGGTTAGGAATCCGTGATTATAGGCCTTG
B81: Random-79 | C81: CGAAGACGCGCCGTCACATCCCCTGTAACCGTCCTCTATTAACCAA
B82: Random-80 | C82: AAAAGGACTGCGCTTACTTTCGCTGCCCTTGGCGCGCCCACTCGTGGAGACCCG
B83: Random-81 | C83: CCTCATGGACAATGCTTTTGCACATCTGTGGTCCGTCTGAGAGAACTACCGGCGTTAGTG
B84: Random-82 | C84: ATTCGAAATTGGCCATACCGGCTGGAGTGTGGTCCAGAAACAAGCAGA
B85: Random-83 | C85: AGGTGATACGTGCAGCCTACGAATTGCGGTTTGTAGATGCTGGCCTGATTGTA
B86: Random-84 | C86: GAGGACGCGAGCCTCTCGTACGAGCGTGACCTTGATAGCTTGGATTCTCGAGATTAGT
B87: Random-85 | C87: TGAGCGGCTGGAGCGACGAGTATTCAGACCAGAGTAGTGGTCTCGCCGTATCCTGTAGA
B88: Random-86 | C88: CCCGTGGGTGCTCATCGTTTAACTGTTTTATTGCCAGTAGAGTGGACTCTCGTAGTACC
B89: Random-87 | C89: TAATTTCCTTCTCGTTACATTTCCGAACTTGCGAGCGGTTTAGCCGTGAAGTCGTGTCG
B90: Random-88 | C90: GACAGCTTCGATGGAGCATTTTCCAGTCTGTCAACAAGATAATGTCCAGGGTTAAAA
B91: Random-89 | C91: GCAGGAATTTTGTAAGAGTGGACGGGGTACCAGGATTCACTACTTGACTAC
B92: Random-90 | C92: TAAGACGCATTTAACGAAAGAACACCCGATCAATGTCGCGACGTCCGATGCT
B93: Random-91 | C93: ATCCAGATTCTGCATCCCCCGCCACCTACAGATGTGGGTCGGTTGGGTACACGA
B94: Random-92 | C94: ATTAGAACCGGAATAAATTAGTAGCTTTACGCAGATCCGACAAGG
B95: Random-93 | C95: TCGGCAAAGCCAATTTCCCGAACCGCCTCCGTCAGGAAGTGGATGACAGAG
B96: Random-94 | C96: TCAGGAAAGTCTATGTATTGCATAGGGCCTTGTTGTGATCGGACCGTCGACCCCTAAC
B97: Random-95 | C97: ATGCGGGTTGTCCAAATAAGGTTCTAGATCGCTGCAGGGAAGCAACAACCCAGTTTAG
B98: Random-96 | C98: GTCTAGGAGGCAGGCCACTGCGAACGTTAAATGCAGGGTCCGTTCGG
B99: Random-101 | C99: GTGTCGATCTCGCCCTTGAGATTAAAAGCTACGCAGATATGCAGTTCCA
B100: Random-102 | C100: GATGTGCCCGTGATGAATCTCACCCACCCCACGGCGGCTCACTAG
B101: Random-103 | C101: TTTGAAGATGAGAAACCCCATCGAGATTCGATATCGTGCACGGGTGGATCATGTGGT
B102: Random-104 | C102: CGGGCCAGGCTGCGGATCGTTAACGGTGTAGTACTGTTCGCTGCA
B103: Random-105 | C103: TATCGAGCTGTCTTTTCGCGTTCTTGTGGGAGAAGGAACTTGTAGCT
B104: Random-106 | C104: GGGTTGGGAGTGTTAATCTAAGCCTGAGTTTAAAATTCCCCCCACTACTTAGTT
B105: Random-107 | C105: ATTGTCTCGCTGAAGCCGGTAAGTTTGGACTTTATAAGAAATGGCCA
B106: Random-108 | C106: AGCTCTACCATAATGAAGTTCTCTTTGGCATCAAAAGTAGGCGTAT
B107: Random-109 | C107: ATACTTGCTGAAAGGCTGAAGTACGGCGCGTATTTGGCTCGCTAACGC
B108: Random-110 | C108: CAGAAGTACTGGACCAATACGAGCCGAGAGTCGTAGGGGGGACTCCCGCTAACAATACA
B109: Random-111 | C109: CCGTTAATTCATCCTTAGTGCCACGCTGAACGCAACTTTGACAAGCACGG
B110: Random-112 | C110: TCAAACGTATACGTGAACTACCATTTATGTGTTACGGGTGATTTTCGCAAGAATTA
B111: Random-113 | C111: TCACTGGGTTGTTCCCTGTAAGGATGGGCACAGTGGGTTGTCCTCTGACCAAGATT
B112: Random-114 | C112: AAATTCACCATGAGGCTTGTTGAACTGGAGGCTCCTTCTAGTCTGT
B113: Random-115 | C113: AGGTAGAGTTGTCCTTTATCCAGCCATCCGCGGTCAGCGTGCCTCCGGGAGTGA
B114: Random-116 | C114: GCTCTCGTCACAATTTAGTCGGAGGGATACTCAGCGCACCTTGGAC
B115: Random-117 | C115: AGGTTTTAGCCCGCTGTAGAACAGTGTCCTTCACCCCTGGCTTGCGATTTGTG
B116: Random-118 | C116: TGAAAAGAAATGACTTTATGGAGCTAAGTCACGGCATGTATGGCGTCTGCAGACGCTAA
B117: Random-119 | C117: ACAAGGAAGAACCTTAAGAGCGCGGCTGGTTCAGTTCTTATGGGATCCGCAAAA
B118: Random-120 | C118: AATCCCCTTATAATGCTTAATCAGTTGCACGCTCTACACGGTGGTCATAG
B119: Random-121 | C119: ATAAGGCCTTGCCTATGGTTCTCGTTATAGGGAGCAAATGGTAGGAATTGT
B120: Random-122 | C120: TTGGGGGTTAAGAGTATAACTGTGACTCAGTAGGGAGGCTTAGGAAGAGTCACAGC
B121: Random-123 | C121: ACAACGGGGGACACGCATTCTCACCAACCCCTACAACCTGCCAACAGCTGGCTCCATGA
B122: Random-124 | C122: GACGGCGAACTGTTAACCTGCGCACGTAAGAGATTAGCCGACTTAACAT
B123: Random-125 | C123: CCCCCCGACCGCAGTACGCCGGAAGGGTTGCTTACCGTTTCAAGCCGTAC
B124: Random-126 | C124: GAGGTACTTCTGAGGCTTACGAGGAATTAGTTCTTTGCCAGTTGACGGGT
B125: Random-127 | C125: GAGCGGCAGAACTATGTGGTAACGTTACTTCCTATTAGAGCCATACGGTGCCG
B126: Random-128 | C126: AGTCAGAATGGTGGACCCGGGGGAGCTCCATTCGAGGGTAATTTGGCTTG
B127: Random-129 | C127: TATAAACTTACTCCTAAAGATTATGCGGCCTATTACGCACGTAGACGTGTGACT
B128: Random-130 | C128: TCGATGGTCGAACGGTCAACGGGAACTAGTCTAATCCTAGCGGCAGGGCTCGCAACT
B129: Random-131 | C129: TAAGCCCGTGGAAGAGTTCCTGTTGAGTATCGGTTATTTTCATCGGA
B130: Random-132 | C130: GTCATTAGGAGAGGGGGCGAAACGGTTTCAGATACAAGTCCAGTTTCCT
B131: Random-133 | C131: GGGCACAGACTAGCGTAAAGAGTACCGTAGGTTCACATAAAGGACTAAGTTACGTCCCGT
B132: Random-134 | C132: GGGGAGACATCAGAGTTCCTCCGTCATCCCTTCAGGGCATCATGGAG
B133: Random-135 | C133: TTGGCAACAGAACCACAGTTAACCGGTCTGCCATCGGGGGTGTCGGTACG
B134: Random-136 | C134: CCTCCGCTCAAGAATTTTGGCTTAGCTCCGCAAGGCGACCCACTCTGTGTATGCTGATC
B135: Random-137 | C135: CCTAGCTTGCTCTCCTGACGACAACCGAAAAGCTACCGCTCAGAATACATC
B136: Random-138 | C136: TCTAATACAGCCCTCATGCAGTTATGGAACAACAATACGACTTCGTG
B137: Random-139 | C137: TCTCAGGCGAGAACAAAGGTACCGGCAAATCTAGCTGTAGCGTAATAGTCGGG
B138: Random-140 | C138: CGGCAATGGAAACCCTGGATCCTTACACGGGTGCAGTGGATAGCAGCGAGACAAGATGA
B139: Random-141 | C139: TGCGGGTGTCCGAACTCAGTGTGGCTAATAATTGGTTGCCCATTAGCTTCTGCC
B140: Random-142 | C140: TATCGTGGTCCCATTCCGGACCCCCACTCCGCACCCCATCCCTGTGG
B141: Random-143 | C141: CCTTCATTGCTTCAAACGCCGTTTTGGGACGTTATTTTACGAGAGGGACGTGA
B142: Random-144 | C142: GTATTCCAGAAAAGCCATCGCAGTGCTTTCACCACTGCATTTCGTAT
B143: Random-145 | C143: AGATGTAGCCGTAGCCGTAACCTGCTTCACTGTCCGTGTGCGACGGATGGTGTGGTCTCA
B144: Random-146 | C144: TGATGGGAACAGGCGAAGCGGCTAGTAGCACGCCACATTGCTCAAA
B145: Random-147 | C145: CGGCTCACGAGGTCGTATGGACCCACTACCAGCCCATATTATCTTATTCAA
B146: Random-148 | C146: CGATGGAATCGGGTATGATGATAGTAAGGCTTGGCCCCCAACGCCCGGGGTAGA
B147: Random-149 | C147: ACCACCCAAACTAGGCGAGGACAAGAGAACAAGTTGAGCCGATTAAGCTGA
B148: Random-150 | C148: CTTTTCTCGTGGTAGTTAAAGGTGGTTATGACTGCCGTATTTCAGTGATCTATCAAAC
B149: Random-151 | C149: CGGTCCTCTCAGCAGACCTCCCAGGCAAGCTAGGACAAGCTACTAGGCT
B150: Random-152 | C150: AAACAACTTCATGCGACGAGTACACGCCCTTCGTGGATTTAATTGTACA
B151: Random-153 | C151: CTGGGCGTACGTCAAGAGACGGAGTTCCTGTCCCAGCATGAGCGGGCATAATCTC
B152: Random-154 | C152: CCGTTAGTGAAGCGTGTCAAAAATTGTTTGGTCCTTGTAATCAGCAACTGGCGTG
B153: Random-155 | C153: AATAAAAATGCAACTAGAGCTGGCTACCATGGCTATTGGTTGAAAAGTGAGA
B154: Random-156 | C154: ACTCCGCTCATGTAGCACAATCTTGACAATGAGCGCAGATTATTTTAATTCCT
B155: Random-157 | C155: CGTCTGGCCCAAAATTCGAAGAGGGTGCCGCTACTGGGTTTACGGTGCT
B156: Random-158 | C156: GACCTTTTTTGATGTATCGCTCAACGCGTCGGTGTAGGCGTCGAACGCTA
B157: Random-159 | C157: TATCATAATGTAGGCCTGGTGGACTGTGGCATCCCTCACTGCTTCCCACCGCGTAGGAA
B158: Random-160 | C158: CGTTATATTTATAATGAGATCCGACTAGGACCCATTGAGGCGGTCACATCGAGTAC
B159: Random-161 | C159: GTCGTCGGCCCAGTTGGTAATTCGAGTTCTCACACACAAATAACATGTGTCTT
B160: Random-162 | C160: AAGGCCGGTCTAGCTTTCCTGATCTTGATGGTCGACGCCAGTCCCAGTGATCCC
B161: Random-163 | C161: TAGAGCCAGGGTTTCGCCGTGCTTTATCAGTCTACTGAGTGAATTAGTTAGATT
B162: Random-164 | C162: ACTTCGTCGTGTGGCAACTGTGAAATTTATCGAGCCTTATTAGGACACTCGACGA
B163: Random-165 | C163: AGCTGGACGCTGGATCCCGTCCTCTGTATCAATTGCCGCGACGTCAAGG
B164: Random-166 | C164: GGCTTACTTGCCCAGCTGAAGCACCTTGTCTAAGTACTTCCGACAGGTTTTCCTC
B165: Random-167 | C165: CTGCCCCTGTTCTCGTTCAGTTGTAATCAAATGGTAATAAGGAACTTTTTT
B166: Random-168 | C166: GTAGCAGATGCAATACTTAGTGTAATACGAGATCGATAGCTACAGCAGCCTCC
B167: Random-169 | C167: GTTTTAAGATTCTGTACTATGTTAGCGCAAAGAACTGTGAAACGG
B168: Random-170 | C168: GGAGCAAACGTACCGTAGCATGGTGGGGACCTAGCTGTTCTCTTTGTAGTT
B169: Random-171 | C169: CCTCCGCCGGTAAACGCTGGTAGCAGTAAACCGATCTGAATCCGATTTGTTAGAGA
B170: Random-172 | C170: CGCAATTGGTACCTCTAGTTGGCGAGGCTTTCTGCTTGAAGTTACTATCATGGCCAGTT
B171: Random-173 | C171: TCGTACGTGAGTCCTCCAGGTGTCTGTATAGGAGACACTACTAAATACTGCGTTGTG
B172: Random-174 | C172: TAGAACCGAGGGTTGCCAGTACTGTAAAAAGCGTGTTTGCCTGCTCC
B173: Random-175 | C173: CCAGCCGAGTCTCAGAACTCGCCCCCCCATTTACATAAGAAGATGCAA
B174: Random-176 | C174: GGAACTTTTCTTACATGTACCAGATTACTAGAGGGATCGTTGGTGACAC
B175: Random-177 | C175: ATCCTGTAGAATCCTAATATCTAACTGATTTCGCTCCTCCACGAATCGGTC
B176: Random-178 | C176: CGGCAGTCTGGATTGGGCAGCGGGGCCTCTAGCCGCTATAATTTACTTATACCCCAA
B177: Random-179 | C177: CCGTGGTAAAGAAAGCAATGGGGAACATAGCAGCTGAATAAGGGCAGACTAG
B178: Random-180 | C178: CGTGAGATCGGCCCGAGTTGTATGGAGGGCGGAGTCTCTGGACACGGGA
B179: Random-181 | C179: ATTTTATTAGATGATTGGTTTTCTGACTATGGCGGGAGATGTAGCG
B180: Random-182 | C180: AGGGTGAAAATCATCTTGCAGGGACGATGCTATATCCTTTTATACGA
B181: Random-183 | C181: CTACATGGTCAGTACTTCCCGGCCATTAGCACCGAATGCACTGTGTTGAC
B182: Random-184 | C182: AATGAGCTAGGTGTTAGCCTATGAGGGGGGCGCAACAACGGTTTTGGTGGC
B183: Random-185 | C183: CGTGTGCAGCACTTAATGAGGTGTCCCCTGACTAAGAACAACGCAACATATCACAAGCC
B184: Random-186 | C184: CGCGTACTTTCCCGGTTGGATAACCAGCGAGGTTGCACGTGGTCACTTGTCGC
B185: Random-187 | C185: GTCCTCCAAGGTTTATTCCAGCGCAACCATATAGCTAGTGACTGGCTGTACGATGGAGAG
B186: Random-188 | C186: AATCCTATTTAACCAACGGGCCATTCTGACGGGCCCCAATGGCTTCGT
B187: Random-189 | C187: ATGACGGAAGGTTGCCATTGTACAGTCCGGCTATCGCTACATCGGCACGTCT
B188: Random-190 | C188: CGCCCGGACTAGTGTGTCCTTACGCCCTTGAGGTAAGTTCCCTCCAATCCTTGC
B189: Random-191 | C189: TTCTGACCACATTTTTCGATACTGCTTAGAACACCCTGCATCCCCTACCGGTGAATTAA
B190: Random-192 | C190: TAGAAGCATCTCTTGTAGGATCGAAACGCAAGGGCGCAATTCATGTAGCGGTCTTGA
B191: Random-193 | C191: ATGACGTGCCGGACAACAGTCTGTCCCCACTTCGGTCAAGTGATGAGC
B192: Random-194 | C192: GGGACCAAACACTGGCGCTTCCCCCCGTTCGGTTGCCGCCGTTACCCA
B193: Random-195 | C193: ACGTTGCCCGATGTTTGATTTCTTCGCCAGTCCAATATTATCGTGGCCA
B194: Random-196 | C194: CTCTTTTAGGGTTTGGATAGATTGATTTTGGGCCCTTGGCGACAGTGT
B195: Random-201 | C195: CTACCCGGCTCGCGCCATGAAAAAACCCACGTGGTCTTAGGGATTATGGAAAGGC
B196: Random-202 | C196: GCAGCATAACTAGCATGACTACGCTTTTCAGTGTTGGGCGGCTGAAGGGA
B197: Random-203 | C197: AAAGTCTGCGGACCTGTGCTTACGGCCTTAACTAAATTGAGAACTTCGGCCTAT
B198: Random-204 | C198: GCATTGGCAGTGTCGAGGCGAAGTCTCAAATGACTGATTGCGCCT
B199: Random-205 | C199: GGATGCTTGACCATAGTTCTTCATTCACCCCTCCTTCGCGTCCAAGACGTCATTATC
B200: Random-206 | C200: CCGTGAACTGGTAATTTCACCTCGGTAGTCGAGGGCTACTGAAACGTAGGGACTT
B201: Random-207 | C201: GGCGCCCTTGTCCTATCGACGCGGGCGTACTCAGGACTAGCTACCGTAGTAGGTCGT
B202: Random-208 | C202: TGGCACTCGTGACCTACAGCCGTTAGAGAGATCATCTCATGCAGGCTGGTGCACC
... 770 more rows

Sheet RNA
A1: 配列数 | B1: 10
A2: 塩基数 | B2: Min | C2: 20 | D2: Max | E2: 30
A3: 割合 | B3: A | D3: T | F3: G | H3: C
A5: 1 | B5: =IF(C5="","",LEN(D5)/2) -> 26 | C5: =IF($B$1>=A5,"RondomRNA-"&A5,"") -> RondomRNA-1 | D5: rUrArUrCrGrGrCrGrArUrGrGrUrUrUrCrUrUrCrArGrCrCrUrArU
A6: 2 | B6: =IF(C6="","",LEN(D6)/2) -> 25 | C6: =IF($B$1>=A6,"RondomRNA-"&A6,"") -> RondomRNA-2 | D6: rArArArArUrCrCrUrCrUrCrArGrGrArArUrUrArArArArUrUrU
A7: 3 | B7: 23 | C7: RondomRNA-3 | D7: rCrGrGrCrGrArUrUrArCrUrUrUrCrUrGrUrUrArArArUrU
A8: 4 | B8: 24 | C8: RondomRNA-4 | D8: rCrArGrGrUrArGrGrArUrUrUrGrCrUrArArArUrGrCrArUrC
A9: 5 | B9: 27 | C9: RondomRNA-5 | D9: rGrArUrCrCrUrCrGrCrUrArArGrGrCrGrGrCrGrArGrArUrArGrCrC
A10: 6 | B10: 27 | C10: RondomRNA-6 | D10: rGrArGrCrUrGrCrUrCrArGrGrGrCrCrArCrUrCrArGrGrGrArUrUrG
A11: 7 | B11: 29 | C11: RondomRNA-7 | D11: rGrUrCrUrCrCrGrCrCrCrUrGrGrCrArArUrUrCrCrCrCrArArCrUrArCrU
A12: 8 | B12: 29 | C12: RondomRNA-8 | D12: rCrGrCrArGrArCrArArArArCrUrUrUrCrGrCrUrCrUrUrArCrArCrArGrU
A13: 9 | B13: 23 | C13: RondomRNA-9 | D13: rCrGrArGrGrCrUrGrArArGrArGrCrGrUrGrGrGrUrGrArA
A14: 10 | B14: 23 | C14: RondomRNA-10 | D14: rGrArGrUrGrArArGrCrCrArUrGrArArCrCrArGrGrUrGrA
A15: 11
A16: 12
A17: 13
A18: 14
A19: 15
A20: 16
A21: 17
A22: 18
A23: 19
A24: 20
A25: 21
A26: 22
A27: 23
A28: 24
A29: 25
A30: 26
A31: 27
A32: 28
A33: 29
A34: 30
A35: 31
A36: 32
A37: 33
A38: 34
A39: 35
A40: 36
A41: 37
A42: 38
A43: 39
A44: 40
A45: 41
A46: 42
A47: 43
A48: 44
A49: 45
A50: 46
A51: 47
A52: 48
A53: 49
A54: 50
A55: 51
A56: 52
A57: 53
A58: 54
A59: 55
A60: 56
A61: 57
A62: 58
A63: 59
A64: 60
A65: 61
A66: 62
A67: 63
A68: 64
A69: 65
A70: 66 | B70: =IF(C70="","",LEN(D70)/2) ->  | C70: =IF($B$1>=A70,"RondomRNA-"&A70,"") -> 
A71: 67
A72: 68
A73: 69
A74: 70
A75: 71
A76: 72
A77: 73
A78: 74
A79: 75
A80: 76
A81: 77
A82: 78
A83: 79
A84: 80
A85: 81
A86: 82
A87: 83
A88: 84
A89: 85
A90: 86
A91: 87
A92: 88
A93: 89
A94: 90
A95: 91
A96: 92
A97: 93
A98: 94
A99: 95
A100: 96
C104: 塩基数
A105: 配列数 | C105: 1 | D105: 2 | E105: 3 | F105: 4 | G105: 5 | H105: 6 | I105: 7 | J105: 8 | K105: 9 | L105: 10 | M105: 11 | N105: 12 | O105: 13 | P105: 14 | Q105: 15 | R105: 16 | S105: 17 | T105: 18 | U105: 19 | V105: 20 | W105: 21 | X105: 22 | Y105: 23 | Z105: 24 | AA105: 25 | AB105: 26 | AC105: 27 | AD105: 28 | AE105: 29 | AF105: 30 | AG105: 31 | AH105: 32 | AI105: 33 | AJ105: 34 | AK105: 35 | AL105: 36 | AM105: 37 | AN105: 38 | AO105: 39 | AP105: 40 | AQ105: 41 | AR105: 42 | AS105: 43 | AT105: 44 | AU105: 45 | AV105: 46 | AW105: 47 | AX105: 48 | AY105: 49 | AZ105: 50 | BA105: 51 | BB105: 52 | BC105: 53 | BD105: 54 | BE105: 55 | BF105: 56 | BG105: 57 | BH105: 58 | BI105: 59 | BJ105: 60 | BK105: 61 | BL105: 62 | BM105: 63 | BN105: 64 | BO105: 65 | BP105: 66 | BQ105: 67 | BR105: 68 | BS105: 69 | BT105: 70 | BU105: 71 | BV105: 72 | BW105: 73 | BX105: 74 | BY105: 75 | BZ105: 76 | CA105: 77 | CB105: 78 | CC105: 79 | CD105: 80 | CE105: 81 | CF105: 82 | CG105: 83 | CH105: 84 | CI105: 85 | CJ105: 86 | CK105: 87 | CL105: 88 | CM105: 89 | CN105: 90 | CO105: 91 | CP105: 92 | CQ105: 93 | CR105: 94 | CS105: 95 | CT105: 96 | CU105: 97 | CV105: 98 | CW105: 99 | CX105: 100 | CY105: 101 | CZ105: 102 | DA105: 103 | DB105: 104 | DC105: 105 | DD105: 106 | DE105: 107 | DF105: 108 | DG105: 109 | DH105: 110 | DI105: 111 | DJ105: 112 | DK105: 113 | DL105: 114 | DM105: 115 | DN105: 116 | DO105: 117 | DP105: 118 | DQ105: 119 | DR105: 120 | DS105: 121 | DT105: 122 | DU105: 123 | DV105: 124 | DW105: 125 | DX105: 126 | DY105: 127 | DZ105: 128 | EA105: 129 | EB105: 130 | EC105: 131 | ED105: 132 | EE105: 133 | EF105: 134 | EG105: 135 | EH105: 136 | EI105: 137 | EJ105: 138 | EK105: 139 | EL105: 140 | EM105: 141 | EN105: 142 | EO105: 143 | EP105: 144 | EQ105: 145 | ER105: 146 | ES105: 147 | ET105: 148 | EU105: 149 | EV105: 150 | EW105: 151 | EX105: 152 | EY105: 153 | EZ105: 154 | FA105: 155 | FB105: 156 | FC105: 157 | FD105: 158 | FE105: 159 | FF105: 160 | FG105: 161 | FH105: 162 | FI105: 163 | FJ105: 164 | FK105: 165 | FL105: 166 | FM105: 167 | FN105: 168 | FO105: 169 | FP105: 170 | FQ105: 171 | FR105: 172 | FS105: 173 | FT105: 174 | FU105: 175 | FV105: 176 | FW105: 177 | FX105: 178 | FY105: 179 | FZ105: 180 | GA105: 181 | GB105: 182 | GC105: 183 | GD105: 184 | GE105: 185 | GF105: 186 | GG105: 187 | GH105: 188 | GI105: 189 | GJ105: 190 | GK105: 191 | GL105: 192 | GM105: 193 | GN105: 194 | GO105: 195 | GP105: 196 | GQ105: 197 | GR105: 198 | GS105: 199 | GT105: 200
A106: =IF(B106="","",ROUND($C$2+($E$2-$C$2)*RAND(),0)) -> 24 | B106: =IF($B$1>=A5,A5,"") -> 1 | C106: =IF($B106="","",IF($A106>=C$105,SUBSTITUTE(SUBSTITUTE(SUBSTITUTE(SUBSTITUTE(RANDBETWEEN(1,4),1,"rA"),2,"rU"),3,"rG"),4,"rC"),"")) -> rG | D106: =IF($B106="","",IF($A106>=D$105,SUBSTITUTE(SUBSTITUTE(SUBSTITUTE(SUBSTITUTE(RANDBETWEEN(1,4),1,"rA"),2,"rU"),3,"rG"),4,"rC"),"")) -> rA | E106: rU | F106: rG | G106: rU | H106: rC | I106: rG | J106: rG | K106: rU | L106: rU | M106: rU | N106: rA | O106: rU | P106: rA | Q106: rU | R106: rC | S106: rC | T106: rA | U106: rG | V106: rG | W106: rC | X106: rC | Y106: rC | Z106: rG | BP106: =IF($B106="","",IF($A106>=BP$105,SUBSTITUTE(SUBSTITUTE(SUBSTITUTE(SUBSTITUTE(RANDBETWEEN(1,4),1,"rA"),2,"rU"),3,"rG"),4,"rC"),"")) ->  | EB106: =IF($B106="","",IF($A106>=EB$105,SUBSTITUTE(SUBSTITUTE(SUBSTITUTE(SUBSTITUTE(RANDBETWEEN(1,4),1,"rA"),2,"rU"),3,"rG"),4,"rC"),"")) ->  | GN106: =IF($B106="","",IF($A106>=GN$105,SUBSTITUTE(SUBSTITUTE(SUBSTITUTE(SUBSTITUTE(RANDBETWEEN(1,4),1,"rA"),2,"rU"),3,"rG"),4,"rC"),"")) -> 
A107: =IF(B107="","",ROUND($C$2+($E$2-$C$2)*RAND(),0)) -> 22 | B107: =IF($B$1>=A6,A6,"") -> 2 | C107: =IF($B107="","",IF($A107>=C$105,SUBSTITUTE(SUBSTITUTE(SUBSTITUTE(SUBSTITUTE(RANDBETWEEN(1,4),1,"rA"),2,"rU"),3,"rG"),4,"rC"),"")) -> rU | D107: rC | E107: rG | F107: rA | G107: rG | H107: rG | I107: rC | J107: rG | K107: rU | L107: rG | M107: rG | N107: rG | O107: rA | P107: rU | Q107: rG | R107: rG | S107: rC | T107: rG | U107: rG | V107: rC | W107: rG | X107: rU
A108: 27 | B108: 3 | C108: rC | D108: rC | E108: rG | F108: rC | G108: rC | H108: rG | I108: rU | J108: rC | K108: rU | L108: rC | M108: rA | N108: rC | O108: rG | P108: rG | Q108: rU | R108: rU | S108: rC | T108: rG | U108: rG | V108: rU | W108: rA | X108: rC | Y108: rG | Z108: rU | AA108: rG | AB108: rG | AC108: rU
A109: 30 | B109: 4 | C109: rU | D109: rG | E109: rU | F109: rA | G109: rC | H109: rA | I109: rU | J109: rG | K109: rU | L109: rG | M109: rA | N109: rG | O109: rC | P109: rG | Q109: rA | R109: rC | S109: rA | T109: rG | U109: rU | V109: rU | W109: rC | X109: rG | Y109: rC | Z109: rG | AA109: rA | AB109: rA | AC109: rA | AD109: rC | AE109: rC | AF109: rU | BO109: =IF($B109="","",IF($A109>=BO$105,SUBSTITUTE(SUBSTITUTE(SUBSTITUTE(SUBSTITUTE(RANDBETWEEN(1,4),1,"rA"),2,"rU"),3,"rG"),4,"rC"),"")) ->  | EA109: =IF($B109="","",IF($A109>=EA$105,SUBSTITUTE(SUBSTITUTE(SUBSTITUTE(SUBSTITUTE(RANDBETWEEN(1,4),1,"rA"),2,"rU"),3,"rG"),4,"rC"),"")) ->  | GM109: =IF($B109="","",IF($A109>=GM$105,SUBSTITUTE(SUBSTITUTE(SUBSTITUTE(SUBSTITUTE(RANDBETWEEN(1,4),1,"rA"),2,"rU"),3,"rG"),4,"rC"),"")) -> 
A110: 24 | B110: 5 | C110: rU | D110: rA | E110: rC | F110: rA | G110: rG | H110: rU | I110: rU | J110: rG | K110: rA | L110: rA | M110: rA | N110: rG | O110: rG | P110: rU | Q110: rA | R110: rA | S110: rC | T110: rC | U110: rG | V110: rU | W110: rU | X110: rU | Y110: rA | Z110: rG
A111: 29 | B111: 6 | C111: rC | D111: rA | E111: rU | F111: rU | G111: rG | H111: rU | I111: rC | J111: rG | K111: rA | L111: rA | M111: rG | N111: rG | O111: rC | P111: rU | Q111: rC | R111: rA | S111: rG | T111: rU | U111: rG | V111: rU | W111: rA | X111: rU | Y111: rU | Z111: rA | AA111: rA | AB111: rC | AC111: rU | AD111: rA | AE111: rU
A112: 23 | B112: 7 | C112: rA | D112: rA | E112: rG | F112: rU | G112: rG | H112: rG | I112: rC | J112: rG | K112: rG | L112: rA | M112: rA | N112: rU | O112: rA | P112: rG | Q112: rU | R112: rC | S112: rA | T112: rA | U112: rG | V112: rC | W112: rA | X112: rU | Y112: rA
A113: 26 | B113: 8 | C113: rU | D113: rG | E113: rU | F113: rC | G113: rA | H113: rG | I113: rA | J113: rC | K113: rG | L113: rG | M113: rA | N113: rA | O113: rC | P113: rA | Q113: rA | R113: rA | S113: rC | T113: rC | U113: rU | V113: rG | W113: rC | X113: rU | Y113: rA | Z113: rA | AA113: rU | AB113: rG | BN113: =IF($B113="","",IF($A113>=BN$105,SUBSTITUTE(SUBSTITUTE(SUBSTITUTE(SUBSTITUTE(RANDBETWEEN(1,4),1,"rA"),2,"rU"),3,"rG"),4,"rC"),"")) ->  | DZ113: =IF($B113="","",IF($A113>=DZ$105,SUBSTITUTE(SUBSTITUTE(SUBSTITUTE(SUBSTITUTE(RANDBETWEEN(1,4),1,"rA"),2,"rU"),3,"rG"),4,"rC"),"")) ->  | GL113: =IF($B113="","",IF($A113>=GL$105,SUBSTITUTE(SUBSTITUTE(SUBSTITUTE(SUBSTITUTE(RANDBETWEEN(1,4),1,"rA"),2,"rU"),3,"rG"),4,"rC"),"")) -> 
A114: 29 | B114: 9 | C114: rC | D114: rU | E114: rA | F114: rA | G114: rC | H114: rU | I114: rU | J114: rG | K114: rG | L114: rC | M114: rU | N114: rG | O114: rU | P114: rU | Q114: rC | R114: rC | S114: =IF($B114="","",IF($A114>=S$105,SUBSTITUTE(SUBSTITUTE(SUBSTITUTE(SUBSTITUTE(RANDBETWEEN(1,4),1,"rA"),2,"rU"),3,"rG"),4,"rC"),"")) -> rA | T114: rA | U114: rU | V114: rG | W114: rC | X114: rA | Y114: rC | Z114: rG | AA114: rC | AB114: rA | AC114: rA | AD114: rG | AE114: rA | AI114: =IF($B114="","",IF($A114>=AI$105,SUBSTITUTE(SUBSTITUTE(SUBSTITUTE(SUBSTITUTE(RANDBETWEEN(1,4),1,"rA"),2,"rU"),3,"rG"),4,"rC"),"")) ->  | AY114: =IF($B114="","",IF($A114>=AY$105,SUBSTITUTE(SUBSTITUTE(SUBSTITUTE(SUBSTITUTE(RANDBETWEEN(1,4),1,"rA"),2,"rU"),3,"rG"),4,"rC"),"")) ->  | CD114: =IF($B114="","",IF($A114>=CD$105,SUBSTITUTE(SUBSTITUTE(SUBSTITUTE(SUBSTITUTE(RANDBETWEEN(1,4),1,"rA"),2,"rU"),3,"rG"),4,"rC"),"")) ->  | CT114: =IF($B114="","",IF($A114>=CT$105,SUBSTITUTE(SUBSTITUTE(SUBSTITUTE(SUBSTITUTE(RANDBETWEEN(1,4),1,"rA"),2,"rU"),3,"rG"),4,"rC"),"")) ->  | DJ114: =IF($B114="","",IF($A114>=DJ$105,SUBSTITUTE(SUBSTITUTE(SUBSTITUTE(SUBSTITUTE(RANDBETWEEN(1,4),1,"rA"),2,"rU"),3,"rG"),4,"rC"),"")) ->  | EP114: =IF($B114="","",IF($A114>=EP$105,SUBSTITUTE(SUBSTITUTE(SUBSTITUTE(SUBSTITUTE(RANDBETWEEN(1,4),1,"rA"),2,"rU"),3,"rG"),4,"rC"),"")) ->  | FF114: =IF($B114="","",IF($A114>=FF$105,SUBSTITUTE(SUBSTITUTE(SUBSTITUTE(SUBSTITUTE(RANDBETWEEN(1,4),1,"rA"),2,"rU"),3,"rG"),4,"rC"),"")) ->  | FV114: =IF($B114="","",IF($A114>=FV$105,SUBSTITUTE(SUBSTITUTE(SUBSTITUTE(SUBSTITUTE(RANDBETWEEN(1,4),1,"rA"),2,"rU"),3,"rG"),4,"rC"),"")) -> 
A115: 29 | B115: 10 | C115: rA | D115: rU | E115: rA | F115: rA | G115: rU | H115: rC | I115: rC | J115: rU | K115: rG | L115: rA | M115: rU | N115: rU | O115: rA | P115: rU | Q115: rC | R115: rG | S115: rU | T115: rU | U115: rG | V115: rA | W115: rG | X115: rU | Y115: rU | Z115: rU | AA115: rC | AB115: rC | AC115: rC | AD115: rG | AE115: rA
K129: =IF($B129="","",IF($A129>=K$105,SUBSTITUTE(SUBSTITUTE(SUBSTITUTE(SUBSTITUTE(RANDBETWEEN(1,4),1,"rA"),2,"rU"),3,"rG"),4,"rC"),"")) ->  | AX129: =IF($B129="","",IF($A129>=AX$105,SUBSTITUTE(SUBSTITUTE(SUBSTITUTE(SUBSTITUTE(RANDBETWEEN(1,4),1,"rA"),2,"rU"),3,"rG"),4,"rC"),"")) ->  | CS129: =IF($B129="","",IF($A129>=CS$105,SUBSTITUTE(SUBSTITUTE(SUBSTITUTE(SUBSTITUTE(RANDBETWEEN(1,4),1,"rA"),2,"rU"),3,"rG"),4,"rC"),"")) ->  | DY129: =IF($B129="","",IF($A129>=DY$105,SUBSTITUTE(SUBSTITUTE(SUBSTITUTE(SUBSTITUTE(RANDBETWEEN(1,4),1,"rA"),2,"rU"),3,"rG"),4,"rC"),"")) ->  | EO129: =IF($B129="","",IF($A129>=EO$105,SUBSTITUTE(SUBSTITUTE(SUBSTITUTE(SUBSTITUTE(RANDBETWEEN(1,4),1,"rA"),2,"rU"),3,"rG"),4,"rC"),"")) ->  | FU129: =IF($B129="","",IF($A129>=FU$105,SUBSTITUTE(SUBSTITUTE(SUBSTITUTE(SUBSTITUTE(RANDBETWEEN(1,4),1,"rA"),2,"rU"),3,"rG"),4,"rC"),"")) -> 
C130: =IF($B130="","",IF($A130>=C$105,SUBSTITUTE(SUBSTITUTE(SUBSTITUTE(SUBSTITUTE(RANDBETWEEN(1,4),1,"rA"),2,"rU"),3,"rG"),4,"rC"),"")) ->  | AH130: =IF($B130="","",IF($A130>=AH$105,SUBSTITUTE(SUBSTITUTE(SUBSTITUTE(SUBSTITUTE(RANDBETWEEN(1,4),1,"rA"),2,"rU"),3,"rG"),4,"rC"),"")) ->  | CB130: =IF($B130="","",IF($A130>=CB$105,SUBSTITUTE(SUBSTITUTE(SUBSTITUTE(SUBSTITUTE(RANDBETWEEN(1,4),1,"rA"),2,"rU"),3,"rG"),4,"rC"),"")) ->  | CR130: =IF($B130="","",IF($A130>=CR$105,SUBSTITUTE(SUBSTITUTE(SUBSTITUTE(SUBSTITUTE(RANDBETWEEN(1,4),1,"rA"),2,"rU"),3,"rG"),4,"rC"),"")) ->  | DJ130: =IF($B130="","",IF($A130>=DJ$105,SUBSTITUTE(SUBSTITUTE(SUBSTITUTE(SUBSTITUTE(RANDBETWEEN(1,4),1,"rA"),2,"rU"),3,"rG"),4,"rC"),"")) ->  | FF130: =IF($B130="","",IF($A130>=FF$105,SUBSTITUTE(SUBSTITUTE(SUBSTITUTE(SUBSTITUTE(RANDBETWEEN(1,4),1,"rA"),2,"rU"),3,"rG"),4,"rC"),"")) -> 
AA131: =IF($B131="","",IF($A131>=AA$105,SUBSTITUTE(SUBSTITUTE(SUBSTITUTE(SUBSTITUTE(RANDBETWEEN(1,4),1,"rA"),2,"rU"),3,"rG"),4,"rC"),"")) ->  | BO131: =IF($B131="","",IF($A131>=BO$105,SUBSTITUTE(SUBSTITUTE(SUBSTITUTE(SUBSTITUTE(RANDBETWEEN(1,4),1,"rA"),2,"rU"),3,"rG"),4,"rC"),"")) -> 
BM144: =IF($B144="","",IF($A144>=BM$105,SUBSTITUTE(SUBSTITUTE(SUBSTITUTE(SUBSTITUTE(RANDBETWEEN(1,4),1,"rA"),2,"rU"),3,"rG"),4,"rC"),"")) ->  | DI144: =IF($B144="","",IF($A144>=DI$105,SUBSTITUTE(SUBSTITUTE(SUBSTITUTE(SUBSTITUTE(RANDBETWEEN(1,4),1,"rA"),2,"rU"),3,"rG"),4,"rC"),"")) ->  | FD144: =IF($B144="","",IF($A144>=FD$105,SUBSTITUTE(SUBSTITUTE(SUBSTITUTE(SUBSTITUTE(RANDBETWEEN(1,4),1,"rA"),2,"rU"),3,"rG"),4,"rC"),"")) ->  | GK144: =IF($B144="","",IF($A144>=GK$105,SUBSTITUTE(SUBSTITUTE(SUBSTITUTE(SUBSTITUTE(RANDBETWEEN(1,4),1,"rA"),2,"rU"),3,"rG"),4,"rC"),"")) -> 
R145: =IF($B145="","",IF($A145>=R$105,SUBSTITUTE(SUBSTITUTE(SUBSTITUTE(SUBSTITUTE(RANDBETWEEN(1,4),1,"rA"),2,"rU"),3,"rG"),4,"rC"),"")) ->  | AX145: =IF($B145="","",IF($A145>=AX$105,SUBSTITUTE(SUBSTITUTE(SUBSTITUTE(SUBSTITUTE(RANDBETWEEN(1,4),1,"rA"),2,"rU"),3,"rG"),4,"rC"),"")) ->  | DG145: =IF($B145="","",IF($A145>=DG$105,SUBSTITUTE(SUBSTITUTE(SUBSTITUTE(SUBSTITUTE(RANDBETWEEN(1,4),1,"rA"),2,"rU"),3,"rG"),4,"rC"),"")) ->  | EO145: =IF($B145="","",IF($A145>=EO$105,SUBSTITUTE(SUBSTITUTE(SUBSTITUTE(SUBSTITUTE(RANDBETWEEN(1,4),1,"rA"),2,"rU"),3,"rG"),4,"rC"),"")) ->  | GJ145: =IF($B145="","",IF($A145>=GJ$105,SUBSTITUTE(SUBSTITUTE(SUBSTITUTE(SUBSTITUTE(RANDBETWEEN(1,4),1,"rA"),2,"rU"),3,"rG"),4,"rC"),"")) -> 
C146: =IF($B146="","",IF($A146>=C$105,SUBSTITUTE(SUBSTITUTE(SUBSTITUTE(SUBSTITUTE(RANDBETWEEN(1,4),1,"rA"),2,"rU"),3,"rG"),4,"rC"),"")) ->  | CR146: =IF($B146="","",IF($A146>=CR$105,SUBSTITUTE(SUBSTITUTE(SUBSTITUTE(SUBSTITUTE(RANDBETWEEN(1,4),1,"rA"),2,"rU"),3,"rG"),4,"rC"),"")) ->  | EL146: =IF($B146="","",IF($A146>=EL$105,SUBSTITUTE(SUBSTITUTE(SUBSTITUTE(SUBSTITUTE(RANDBETWEEN(1,4),1,"rA"),2,"rU"),3,"rG"),4,"rC"),"")) ->  | FV146: =IF($B146="","",IF($A146>=FV$105,SUBSTITUTE(SUBSTITUTE(SUBSTITUTE(SUBSTITUTE(RANDBETWEEN(1,4),1,"rA"),2,"rU"),3,"rG"),4,"rC"),"")) -> 
BR147: =IF($B147="","",IF($A147>=BR$105,SUBSTITUTE(SUBSTITUTE(SUBSTITUTE(SUBSTITUTE(RANDBETWEEN(1,4),1,"rA"),2,"rU"),3,"rG"),4,"rC"),"")) ->  | DZ147: =IF($B147="","",IF($A147>=DZ$105,SUBSTITUTE(SUBSTITUTE(SUBSTITUTE(SUBSTITUTE(RANDBETWEEN(1,4),1,"rA"),2,"rU"),3,"rG"),4,"rC"),"")) -> 
AL148: =IF($B148="","",IF($A148>=AL$105,SUBSTITUTE(SUBSTITUTE(SUBSTITUTE(SUBSTITUTE(RANDBETWEEN(1,4),1,"rA"),2,"rU"),3,"rG"),4,"rC"),"")) -> 
AH149: =IF($B149="","",IF($A149>=AH$105,SUBSTITUTE(SUBSTITUTE(SUBSTITUTE(SUBSTITUTE(RANDBETWEEN(1,4),1,"rA"),2,"rU"),3,"rG"),4,"rC"),"")) ->  | GR149: =IF($B149="","",IF($A149>=GR$105,SUBSTITUTE(SUBSTITUTE(SUBSTITUTE(SUBSTITUTE(RANDBETWEEN(1,4),1,"rA"),2,"rU"),3,"rG"),4,"rC"),"")) -> 
CI150: =IF($B150="","",IF($A150>=CI$105,SUBSTITUTE(SUBSTITUTE(SUBSTITUTE(SUBSTITUTE(RANDBETWEEN(1,4),1,"rA"),2,"rU"),3,"rG"),4,"rC"),"")) -> 
CH151: =IF($B151="","",IF($A151>=CH$105,SUBSTITUTE(SUBSTITUTE(SUBSTITUTE(SUBSTITUTE(RANDBETWEEN(1,4),1,"rA"),2,"rU"),3,"rG"),4,"rC"),"")) -> 
FU159: =IF($B159="","",IF($A159>=FU$105,SUBSTITUTE(SUBSTITUTE(SUBSTITUTE(SUBSTITUTE(RANDBETWEEN(1,4),1,"rA"),2,"rU"),3,"rG"),4,"rC"),"")) -> 
FS160: =IF($B160="","",IF($A160>=FS$105,SUBSTITUTE(SUBSTITUTE(SUBSTITUTE(SUBSTITUTE(RANDBETWEEN(1,4),1,"rA"),2,"rU"),3,"rG"),4,"rC"),"")) -> 
R161: =IF($B161="","",IF($A161>=R$105,SUBSTITUTE(SUBSTITUTE(SUBSTITUTE(SUBSTITUTE(RANDBETWEEN(1,4),1,"rA"),2,"rU"),3,"rG"),4,"rC"),"")) ->  | DV161: =IF($B161="","",IF($A161>=DV$105,SUBSTITUTE(SUBSTITUTE(SUBSTITUTE(SUBSTITUTE(RANDBETWEEN(1,4),1,"rA"),2,"rU"),3,"rG"),4,"rC"),"")) ->  | FE161: =IF($B161="","",IF($A161>=FE$105,SUBSTITUTE(SUBSTITUTE(SUBSTITUTE(SUBSTITUTE(RANDBETWEEN(1,4),1,"rA"),2,"rU"),3,"rG"),4,"rC"),"")) -> 
C162: =IF($B162="","",IF($A162>=C$105,SUBSTITUTE(SUBSTITUTE(SUBSTITUTE(SUBSTITUTE(RANDBETWEEN(1,4),1,"rA"),2,"rU"),3,"rG"),4,"rC"),"")) ->  | DH162: =IF($B162="","",IF($A162>=DH$105,SUBSTITUTE(SUBSTITUTE(SUBSTITUTE(SUBSTITUTE(RANDBETWEEN(1,4),1,"rA"),2,"rU"),3,"rG"),4,"rC"),"")) -> 
EE163: =IF($B163="","",IF($A163>=EE$105,SUBSTITUTE(SUBSTITUTE(SUBSTITUTE(SUBSTITUTE(RANDBETWEEN(1,4),1,"rA"),2,"rU"),3,"rG"),4,"rC"),"")) -> 
AW164: =IF($B164="","",IF($A164>=AW$105,SUBSTITUTE(SUBSTITUTE(SUBSTITUTE(SUBSTITUTE(RANDBETWEEN(1,4),1,"rA"),2,"rU"),3,"rG"),4,"rC"),"")) ->  | BT164: =IF($B164="","",IF($A164>=BT$105,SUBSTITUTE(SUBSTITUTE(SUBSTITUTE(SUBSTITUTE(RANDBETWEEN(1,4),1,"rA"),2,"rU"),3,"rG"),4,"rC"),"")) -> 
AH165: =IF($B165="","",IF($A165>=AH$105,SUBSTITUTE(SUBSTITUTE(SUBSTITUTE(SUBSTITUTE(RANDBETWEEN(1,4),1,"rA"),2,"rU"),3,"rG"),4,"rC"),"")) ->  | BN165: =IF($B165="","",IF($A165>=BN$105,SUBSTITUTE(SUBSTITUTE(SUBSTITUTE(SUBSTITUTE(RANDBETWEEN(1,4),1,"rA"),2,"rU"),3,"rG"),4,"rC"),"")) -> 
CO167: =IF($B167="","",IF($A167>=CO$105,SUBSTITUTE(SUBSTITUTE(SUBSTITUTE(SUBSTITUTE(RANDBETWEEN(1,4),1,"rA"),2,"rU"),3,"rG"),4,"rC"),"")) -> 
CJ168: =IF($B168="","",IF($A168>=CJ$105,SUBSTITUTE(SUBSTITUTE(SUBSTITUTE(SUBSTITUTE(RANDBETWEEN(1,4),1,"rA"),2,"rU"),3,"rG"),4,"rC"),"")) -> 
EZ169: =IF($B169="","",IF($A169>=EZ$105,SUBSTITUTE(SUBSTITUTE(SUBSTITUTE(SUBSTITUTE(RANDBETWEEN(1,4),1,"rA"),2,"rU"),3,"rG"),4,"rC"),"")) -> 
EU170: =IF($B170="","",IF($A170>=EU$105,SUBSTITUTE(SUBSTITUTE(SUBSTITUTE(SUBSTITUTE(RANDBETWEEN(1,4),1,"rA"),2,"rU"),3,"rG"),4,"rC"),"")) -> 
A171: =IF(B171="","",ROUND($C$2+($E$2-$C$2)*RAND(),0)) ->  | B171: =IF($B$1>=A70,A70,"") -> 
R177: =IF($B177="","",IF($A177>=R$105,SUBSTITUTE(SUBSTITUTE(SUBSTITUTE(SUBSTITUTE(RANDBETWEEN(1,4),1,"rA"),2,"rU"),3,"rG"),4,"rC"),"")) ->  | DW177: =IF($B177="","",IF($A177>=DW$105,SUBSTITUTE(SUBSTITUTE(SUBSTITUTE(SUBSTITUTE(RANDBETWEEN(1,4),1,"rA"),2,"rU"),3,"rG"),4,"rC"),"")) -> 
C178: =IF($B178="","",IF($A178>=C$105,SUBSTITUTE(SUBSTITUTE(SUBSTITUTE(SUBSTITUTE(RANDBETWEEN(1,4),1,"rA"),2,"rU"),3,"rG"),4,"rC"),"")) ->  | DH178: =IF($B178="","",IF($A178>=DH$105,SUBSTITUTE(SUBSTITUTE(SUBSTITUTE(SUBSTITUTE(RANDBETWEEN(1,4),1,"rA"),2,"rU"),3,"rG"),4,"rC"),"")) ->  | FV178: =IF($B178="","",IF($A178>=FV$105,SUBSTITUTE(SUBSTITUTE(SUBSTITUTE(SUBSTITUTE(RANDBETWEEN(1,4),1,"rA"),2,"rU"),3,"rG"),4,"rC"),"")) -> 
BM179: =IF($B179="","",IF($A179>=BM$105,SUBSTITUTE(SUBSTITUTE(SUBSTITUTE(SUBSTITUTE(RANDBETWEEN(1,4),1,"rA"),2,"rU"),3,"rG"),4,"rC"),"")) ->  | DG179: =IF($B179="","",IF($A179>=DG$105,SUBSTITUTE(SUBSTITUTE(SUBSTITUTE(SUBSTITUTE(RANDBETWEEN(1,4),1,"rA"),2,"rU"),3,"rG"),4,"rC"),"")) ->  | FU179: =IF($B179="","",IF($A179>=FU$105,SUBSTITUTE(SUBSTITUTE(SUBSTITUTE(SUBSTITUTE(RANDBETWEEN(1,4),1,"rA"),2,"rU"),3,"rG"),4,"rC"),"")) -> 
AW180: =IF($B180="","",IF($A180>=AW$105,SUBSTITUTE(SUBSTITUTE(SUBSTITUTE(SUBSTITUTE(RANDBETWEEN(1,4),1,"rA"),2,"rU"),3,"rG"),4,"rC"),"")) ->  | DE180: =IF($B180="","",IF($A180>=DE$105,SUBSTITUTE(SUBSTITUTE(SUBSTITUTE(SUBSTITUTE(RANDBETWEEN(1,4),1,"rA"),2,"rU"),3,"rG"),4,"rC"),"")) -> 
AH181: =IF($B181="","",IF($A181>=AH$105,SUBSTITUTE(SUBSTITUTE(SUBSTITUTE(SUBSTITUTE(RANDBETWEEN(1,4),1,"rA"),2,"rU"),3,"rG"),4,"rC"),"")) ->  | BS181: =IF($B181="","",IF($A181>=BS$105,SUBSTITUTE(SUBSTITUTE(SUBSTITUTE(SUBSTITUTE(RANDBETWEEN(1,4),1,"rA"),2,"rU"),3,"rG"),4,"rC"),"")) -> 
EK182: =IF($B182="","",IF($A182>=EK$105,SUBSTITUTE(SUBSTITUTE(SUBSTITUTE(SUBSTITUTE(RANDBETWEEN(1,4),1,"rA"),2,"rU"),3,"rG"),4,"rC"),"")) -> 
CY183: =IF($B183="","",IF($A183>=CY$105,SUBSTITUTE(SUBSTITUTE(SUBSTITUTE(SUBSTITUTE(RANDBETWEEN(1,4),1,"rA"),2,"rU"),3,"rG"),4,"rC"),"")) -> 
CJ184: =IF($B184="","",IF($A184>=CJ$105,SUBSTITUTE(SUBSTITUTE(SUBSTITUTE(SUBSTITUTE(RANDBETWEEN(1,4),1,"rA"),2,"rU"),3,"rG"),4,"rC"),"")) -> 
FD188: =IF($B188="","",IF($A188>=FD$105,SUBSTITUTE(SUBSTITUTE(SUBSTITUTE(SUBSTITUTE(RANDBETWEEN(1,4),1,"rA"),2,"rU"),3,"rG"),4,"rC"),"")) -> 
FA189: =IF($B189="","",IF($A189>=FA$105,SUBSTITUTE(SUBSTITUTE(SUBSTITUTE(SUBSTITUTE(RANDBETWEEN(1,4),1,"rA"),2,"rU"),3,"rG"),4,"rC"),"")) -> 
R193: =IF($B193="","",IF($A193>=R$105,SUBSTITUTE(SUBSTITUTE(SUBSTITUTE(SUBSTITUTE(RANDBETWEEN(1,4),1,"rA"),2,"rU"),3,"rG"),4,"rC"),"")) -> 
C194: =IF($B194="","",IF($A194>=C$105,SUBSTITUTE(SUBSTITUTE(SUBSTITUTE(SUBSTITUTE(RANDBETWEEN(1,4),1,"rA"),2,"rU"),3,"rG"),4,"rC"),"")) ->  | GJ194: =IF($B194="","",IF($A194>=GJ$105,SUBSTITUTE(SUBSTITUTE(SUBSTITUTE(SUBSTITUTE(RANDBETWEEN(1,4),1,"rA"),2,"rU"),3,"rG"),4,"rC"),"")) -> 
FU195: =IF($B195="","",IF($A195>=FU$105,SUBSTITUTE(SUBSTITUTE(SUBSTITUTE(SUBSTITUTE(RANDBETWEEN(1,4),1,"rA"),2,"rU"),3,"rG"),4,"rC"),"")) -> 
AW196: =IF($B196="","",IF($A196>=AW$105,SUBSTITUTE(SUBSTITUTE(SUBSTITUTE(SUBSTITUTE(RANDBETWEEN(1,4),1,"rA"),2,"rU"),3,"rG"),4,"rC"),"")) -> 
AH197: =IF($B197="","",IF($A197>=AH$105,SUBSTITUTE(SUBSTITUTE(SUBSTITUTE(SUBSTITUTE(RANDBETWEEN(1,4),1,"rA"),2,"rU"),3,"rG"),4,"rC"),"")) ->  | BS197: =IF($B197="","",IF($A197>=BS$105,SUBSTITUTE(SUBSTITUTE(SUBSTITUTE(SUBSTITUTE(RANDBETWEEN(1,4),1,"rA"),2,"rU"),3,"rG"),4,"rC"),"")) -> 
BM198: =IF($B198="","",IF($A198>=BM$105,SUBSTITUTE(SUBSTITUTE(SUBSTITUTE(SUBSTITUTE(RANDBETWEEN(1,4),1,"rA"),2,"rU"),3,"rG"),4,"rC"),"")) ->  | EC198: =IF($B198="","",IF($A198>=EC$105,SUBSTITUTE(SUBSTITUTE(SUBSTITUTE(SUBSTITUTE(RANDBETWEEN(1,4),1,"rA"),2,"rU"),3,"rG"),4,"rC"),"")) -> 
CY199: =IF($B199="","",IF($A199>=CY$105,SUBSTITUTE(SUBSTITUTE(SUBSTITUTE(SUBSTITUTE(RANDBETWEEN(1,4),1,"rA"),2,"rU"),3,"rG"),4,"rC"),"")) ->  | DX199: =IF($B199="","",IF($A199>=DX$105,SUBSTITUTE(SUBSTITUTE(SUBSTITUTE(SUBSTITUTE(RANDBETWEEN(1,4),1,"rA"),2,"rU"),3,"rG"),4,"rC"),"")) -> 
CJ200: =IF($B200="","",IF($A200>=CJ$105,SUBSTITUTE(SUBSTITUTE(SUBSTITUTE(SUBSTITUTE(RANDBETWEEN(1,4),1,"rA"),2,"rU"),3,"rG"),4,"rC"),"")) -> 
EX201: =IF($B201="","",IF($A201>=EX$105,SUBSTITUTE(SUBSTITUTE(SUBSTITUTE(SUBSTITUTE(RANDBETWEEN(1,4),1,"rA"),2,"rU"),3,"rG"),4,"rC"),"")) -> 

Sheet Sheet2
A1: RondomRNA-1 | B1: rCrArGrGrUrGrCrArGrArArArUrGrArCrUrUrGrArG | C1: 100nmR | D1: STD
A2: RondomRNA-2 | B2: rCrArCrUrCrGrUrUrUrCrCrArGrArCrUrCrUrCrCrGrGrA | C2: 100nmR | D2: STD
A3: RondomRNA-3 | B3: rUrUrArArGrGrCrUrUrArCrGrArUrGrGrArCrGrUrArArCrUrC | C3: 100nmR | D3: STD
A4: RondomRNA-4 | B4: rArCrUrUrUrGrCrUrArGrUrArArCrCrArArCrUrUrArGrA | C4: 100nmR | D4: RNASE
A5: RondomRNA-5 | B5: rCrCrArGrCrCrCrGrArUrArArUrArCrCrArArGrA | C5: 100nmR | D5: RNASE
A6: RondomRNA-6 | B6: rCrGrGrCrArUrGrArArCrUrGrGrCrCrArCrUrCrGrCrUrArU | C6: 250nmR | D6: STD
A7: RondomRNA-7 | B7: rGrGrArUrGrArGrGrGrUrCrGrUrUrArArGrCrGrArUrArGrCrGrGrUrCrU | C7: 250nmR | D7: STD
A8: RondomRNA-8 | B8: rGrCrGrArGrCrCrUrCrGrCrCrUrCrCrUrUrUrUrGrUrArGrArCrArU | C8: 250nmR | D8: STD
A9: RondomRNA-9 | B9: rGrCrUrArCrArGrArUrUrCrCrUrCrUrUrGrUrUrArU | C9: 250nmR | D9: STD
A10: RondomRNA-10 | B10: rGrArGrGrCrArUrCrUrCrArArGrGrGrCrCrCrGrUrUrUrC | C10: 250nmR | D10: STD

Sheet oPool cal
A1: 配列数 | B1: 400 | C1: 配列名 | D1: oPoolOne | L1: 使い方
A2: 塩基数 | B2: MIN | C2: 300 | D2: Max | E2: 320 | L2: 左の青マスの数字を自由に変えて下さい。配列数「1 ～」、塩基数 「1～200]
A3: 割合 | B3: A | D3: T | F3: G | H3: C | L3: 「配列作成」をクリックすると、ランダムな配列を「配列数」個、「Min」から「Max」の長さで作製します。
L4: まずは、配列数「100」、Min「30」、Max「50」でお試し下さい。それで大体イメージは掴めると思います。
A5: Option | B5: 配列名 | C5: 範囲 Start | D5: End
A6: 配列名-2 | E6: FALSE | G6: ※StartとEnd両側の数字を入れて下さい
A7: 配列名-3 | E7: FALSE
A8: 配列名-4 | E8: FALSE | G8: oPools Price Table
A9: 配列名-5 | E9: FALSE | G9: Bases | H9: 1～3300 | J9: 10970 | K9: 1
H10: 3301 ～ 50000 | J10: 3 | K10: =IF(E11>50000,50000-3300,IF(E11>3300,E11-3300,0)) -> 46700
A11: 進捗 | B11: =B19/(B1*2) -> 1 | D11: 塩基数計 | E11: =IF(C2=E2,C2*B1,C19) -> 123801 | H11: 50000 ～ 100000 | J11: 2 | K11: =IF(E11>100000,100000-50000,IF(E11>50000,E11-50000,0)) -> 50000
D12: 価格 | E12: =K9*J9+K10*J10+K11*J11+K12*J12 -> 274871 | H12: 100001 ～ | J12: 1 | K12: =IF(E11>100000,E11-100000,0) -> 23801
C14: 1 | D14: 2 | E14: 3 | F14: 4 | G14: 5 | H14: 6 | I14: 7 | J14: 8 | K14: 9 | L14: 10 | M14: 11 | N14: 12 | O14: 13 | P14: 14 | Q14: 15 | R14: 16 | S14: 17 | T14: 18 | U14: 19 | V14: 20 | W14: 21 | X14: 22 | Y14: 23 | Z14: 24 | AA14: 25 | AB14: 26 | AC14: 27 | AD14: 28 | AE14: 29 | AF14: 30 | AG14: 31 | AH14: 32 | AI14: 33 | AJ14: 34 | AK14: 35 | AL14: 36 | AM14: 37 | AN14: 38 | AO14: 39 | AP14: 40 | AQ14: 41 | AR14: 42 | AS14: 43 | AT14: 44 | AU14: 45 | AV14: 46 | AW14: 47 | AX14: 48 | AY14: 49 | AZ14: 50 | BA14: 51 | BB14: 52 | BC14: 53 | BD14: 54 | BE14: 55 | BF14: 56 | BG14: 57 | BH14: 58 | BI14: 59 | BJ14: 60 | BK14: 61 | BL14: 62 | BM14: 63 | BN14: 64 | BO14: 65 | BP14: 66 | BQ14: 67 | BR14: 68 | BS14: 69 | BT14: 70 | BU14: 71 | BV14: 72 | BW14: 73 | BX14: 74 | BY14: 75 | BZ14: 76 | CA14: 77 | CB14: 78 | CC14: 79 | CD14: 80 | CE14: 81 | CF14: 82 | CG14: 83 | CH14: 84 | CI14: 85 | CJ14: 86 | CK14: 87 | CL14: 88 | CM14: 89 | CN14: 90 | CO14: 91 | CP14: 92 | CQ14: 93 | CR14: 94 | CS14: 95 | CT14: 96 | CU14: 97 | CV14: 98 | CW14: 99 | CX14: 100 | CY14: 101 | CZ14: 102 | DA14: 103 | DB14: 104 | DC14: 105 | DD14: 106 | DE14: 107 | DF14: 108 | DG14: 109 | DH14: 110 | DI14: 111 | DJ14: 112 | DK14: 113 | DL14: 114 | DM14: 115 | DN14: 116 | DO14: 117 | DP14: 118 | DQ14: 119 | DR14: 120 | DS14: 121 | DT14: 122 | DU14: 123 | DV14: 124 | DW14: 125 | DX14: 126 | DY14: 127 | DZ14: 128 | EA14: 129 | EB14: 130 | EC14: 131 | ED14: 132 | EE14: 133 | EF14: 134 | EG14: 135 | EH14: 136 | EI14: 137 | EJ14: 138 | EK14: 139 | EL14: 140 | EM14: 141 | EN14: 142 | EO14: 143 | EP14: 144 | EQ14: 145 | ER14: 146 | ES14: 147 | ET14: 148 | EU14: 149 | EV14: 150 | EW14: 151 | EX14: 152 | EY14: 153 | EZ14: 154 | FA14: 155 | FB14: 156 | FC14: 157 | FD14: 158 | FE14: 159 | FF14: 160 | FG14: 161 | FH14: 162 | FI14: 163 | FJ14: 164 | FK14: 165 | FL14: 166 | FM14: 167 | FN14: 168 | FO14: 169 | FP14: 170 | FQ14: 171 | FR14: 172 | FS14: 173 | FT14: 174 | FU14: 175 | FV14: 176 | FW14: 177 | FX14: 178 | FY14: 179 | FZ14: 180 | GA14: 181 | GB14: 182 | GC14: 183 | GD14: 184 | GE14: 185 | GF14: 186 | GG14: 187 | GH14: 188 | GI14: 189 | GJ14: 190 | GK14: 191 | GL14: 192 | GM14: 193 | GN14: 194 | GO14: 195 | GP14: 196 | GQ14: 197 | GR14: 198 | GS14: 199 | GT14: 200 | GU14: 201 | GV14: 202 | GW14: 203 | GX14: 204 | GY14: 205 | GZ14: 206 | HA14: 207 | HB14: 208 | HC14: 209 | HD14: 210 | HE14: 211 | HF14: 212 | HG14: 213 | HH14: 214 | HI14: 215 | HJ14: 216 | HK14: 217 | HL14: 218 | HM14: 219 | HN14: 220 | HO14: 221 | HP14: 222 | HQ14: 223 | HR14: 224 | HS14: 225 | HT14: 226 | HU14: 227 | HV14: 228 | HW14: 229 | HX14: 230 | HY14: 231 | HZ14: 232 | IA14: 233 | IB14: 234 | IC14: 235 | ID14: 236 | IE14: 237 | IF14: 238 | IG14: 239 | IH14: 240 | II14: 241 | IJ14: 242 | IK14: 243 | IL14: 244 | IM14: 245 | IN14: 246 | IO14: 247 | IP14: 248 | IQ14: 249 | IR14: 250 | IS14: 251 | IT14: 252 | IU14: 253 | IV14: 254 | IW14: 255 | IX14: 256 | IY14: 257 | IZ14: 258 | JA14: 259 | JB14: 260 | JC14: 261 | JD14: 262 | JE14: 263 | JF14: 264 | JG14: 265 | JH14: 266 | JI14: 267 | JJ14: 268 | JK14: 269 | JL14: 270 | JM14: 271 | JN14: 272 | JO14: 273 | JP14: 274 | JQ14: 275 | JR14: 276 | JS14: 277 | JT14: 278 | JU14: 279 | JV14: 280 | JW14: 281 | JX14: 282 | JY14: 283 | JZ14: 284 | KA14: 285 | KB14: 286 | KC14: 287 | KD14: 288 | KE14: 289 | KF14: 290 | KG14: 291 | KH14: 292 | KI14: 293 | KJ14: 294 | KK14: 295 | KL14: 296 | KM14: 297 | KN14: 298 | KO14: 299 | KP14: 300 | KQ14: 301 | KR14: 302 | KS14: 303 | KT14: 304 | KU14: 305 | KV14: 306 | KW14: 307 | KX14: 308 | KY14: 309 | KZ14: 310 | LA14: 311 | LB14: 312 | LC14: 313 | LD14: 314 | LE14: 315 | LF14: 316 | LG14: 317 | LH14: 318 | LI14: 319 | LJ14: 320 | LK14: 321 | LL14: 322 | LM14: 323 | LN14: 324 | LO14: 325 | LP14: 326 | LQ14: 327 | LR14: 328 | LS14: 329 | LT14: 330 | LU14: 331 | LV14: 332 | LW14: 333 | LX14: 334 | LY14: 335 | LZ14: 336 | MA14: 337 | MB14: 338 | MC14: 339 | MD14: 340 | ME14: 341 | MF14: 342 | MG14: 343 | MH14: 344 | MI14: 345 | MJ14: 346 | MK14: 347 | ML14: 348 | MM14: 349 | MN14: 350
A15: =ROUND($C$2+($E$2-$C$2)*RAND(),0) -> 311 | B15: 1 | C15: =IF($B15="","",IF($A15>=C$14,SUBSTITUTE(SUBSTITUTE(SUBSTITUTE(SUBSTITUTE(RANDBETWEEN(1,4),1,"A"),2,"T"),3,"G"),4,"C"),"")) -> T | D15: =IF($B15="","",IF($A15>=D$14,SUBSTITUTE(SUBSTITUTE(SUBSTITUTE(SUBSTITUTE(RANDBETWEEN(1,4),1,"A"),2,"T"),3,"G"),4,"C"),"")) -> C | E15: A | F15: T | G15: C | H15: C | I15: G | J15: A | K15: C | L15: A | M15: C | N15: A | O15: C | P15: A | Q15: T | R15: A | S15: G | T15: T | U15: G | V15: G | W15: T | X15: A | Y15: G | Z15: T | AA15: C | AB15: G | AC15: A | AD15: T | AE15: G | AF15: G | AG15: T | AH15: C | AI15: G | AJ15: A | AK15: C | AL15: T | AM15: C | AN15: C | AO15: C | AP15: T | AQ15: T | AR15: T | AS15: G | AT15: T | AU15: G | AV15: A | AW15: G | AX15: C | AY15: C | AZ15: T | BA15: C | BB15: G | BC15: T | BD15: T | BE15: G | BF15: G | BG15: A | BH15: A | BI15: G | BJ15: G | BK15: G | BL15: G | BM15: T | BN15: G | BO15: A | BP15: =IF($B15="","",IF($A15>=BP$14,SUBSTITUTE(SUBSTITUTE(SUBSTITUTE(SUBSTITUTE(RANDBETWEEN(1,4),1,"A"),2,"T"),3,"G"),4,"C"),"")) -> T | BQ15: A | BR15: G | BS15: A | BT15: A | BU15: A | BV15: G | BW15: A | BX15: A | BY15: G | BZ15: G | CA15: A | CB15: T | CC15: G | CD15: G | CE15: C | CF15: G | CG15: C | CH15: C | CI15: C | CJ15: C | CK15: G | CL15: G | CM15: G | CN15: T | CO15: G | CP15: C | CQ15: T | CR15: T | CS15: A | CT15: G | CU15: T | CV15: A | CW15: C | CX15: G | CY15: A | CZ15: A | DA15: T | DB15: A | DC15: C | DD15: T | DE15: G | DF15: C | DG15: T | DH15: C | DI15: G | DJ15: T | DK15: C | DL15: A | DM15: C | DN15: A | DO15: C | DP15: G | DQ15: A | DR15: G | DS15: T | DT15: A | DU15: C | DV15: A | DW15: A | DX15: A | DY15: A | DZ15: C | EA15: T | EB15: =IF($B15="","",IF($A15>=EB$14,SUBSTITUTE(SUBSTITUTE(SUBSTITUTE(SUBSTITUTE(RANDBETWEEN(1,4),1,"A"),2,"T"),3,"G"),4,"C"),"")) -> C | EC15: A | ED15: A | EE15: A | EF15: A | EG15: A | EH15: T | EI15: T | EJ15: T | EK15: A | EL15: T | EM15: C | EN15: T | EO15: A | EP15: T | EQ15: A | ER15: T | ES15: C | ET15: A | EU15: G | EV15: C | EW15: A | EX15: T | EY15: A | EZ15: G | FA15: G | FB15: G | FC15: G | FD15: T | FE15: T | FF15: T | FG15: G | FH15: G | FI15: G | FJ15: G | FK15: A | FL15: T | FM15: C | FN15: A | FO15: A | FP15: A | FQ15: C | FR15: G | FS15: T | FT15: G | FU15: A | FV15: T | FW15: G | FX15: A | FY15: A | FZ15: G | GA15: T | GB15: T | GC15: C | GD15: G | GE15: A | GF15: G | GG15: A | GH15: C | GI15: C | GJ15: C | GK15: C | GL15: A | GM15: T | GN15: =IF($B15="","",IF($A15>=GN$14,SUBSTITUTE(SUBSTITUTE(SUBSTITUTE(SUBSTITUTE(RANDBETWEEN(1,4),1,"A"),2,"T"),3,"G"),4,"C"),"")) -> A | GO15: G | GP15: G | GQ15: G | GR15: T | GS15: G | GT15: T | GU15: C | GV15: C | GW15: A | GX15: G | GY15: G | GZ15: G | HA15: C | HB15: C | HC15: T | HD15: A | HE15: T | HF15: A | HG15: T | HH15: G | HI15: G | HJ15: G | HK15: T | HL15: T | HM15: T | HN15: A | HO15: T | HP15: T | HQ15: T | HR15: A | HS15: C | HT15: A | HU15: G | HV15: G | HW15: G | HX15: G | HY15: G | HZ15: C | IA15: C | IB15: G | IC15: C | ID15: G | IE15: G | IF15: C | IG15: A | IH15: C | II15: C | IJ15: T | IK15: G | IL15: T | IM15: C | IN15: A | IO15: G | IP15: C | IQ15: C | IR15: T | IS15: G | IT15: A | IU15: C | IV15: A | IW15: T | IX15: A | IY15: T | IZ15: =IF($B15="","",IF($A15>=IZ$14,SUBSTITUTE(SUBSTITUTE(SUBSTITUTE(SUBSTITUTE(RANDBETWEEN(1,4),1,"A"),2,"T"),3,"G"),4,"C"),"")) -> T | JA15: G | JB15: C | JC15: C | JD15: T | JE15: C | JF15: A | JG15: C | JH15: G | JI15: C | JJ15: C | JK15: T | JL15: T | JM15: T | JN15: C | JO15: A | JP15: C | JQ15: A | JR15: C | JS15: A | JT15: T | JU15: C | JV15: T | JW15: T | JX15: T | JY15: T | JZ15: T | KA15: A | KB15: C | KC15: C | KD15: G | KE15: T | KF15: G | KG15: G | KH15: A | KI15: A | KJ15: C | KK15: T | KL15: T | KM15: C | KN15: G | KO15: C | KP15: G | KQ15: T | KR15: C | KS15: A | KT15: A | KU15: T | KV15: T | KW15: C | KX15: T | KY15: A | KZ15: C | LA15: A | LL15: =IF($B15="","",IF($A15>=LL$14,SUBSTITUTE(SUBSTITUTE(SUBSTITUTE(SUBSTITUTE(RANDBETWEEN(1,4),1,"A"),2,"T"),3,"G"),4,"C"),"")) -> 
A17: 配列
A19: 進捗計算 | B19: 800 | C19: =SUM(B:B)-B1-B11-B15-B19 -> 123801
A23: 番号 | B23: 塩基数 | C23: 配列名 | D23: 配列
A24: 1 | B24: =LEN(D24) -> 304 | C24: oPoolOne | D24: TACCAGAGTCTTAATTGGAGTATCCTTGGCATACCTTGTTTAGCTCTACGGTTCAGGCCATGGTATTTTAGTGATACTGCTGATAGAATAGTACTCGTGTCAAGTACGATAAACGAGAGCTTTGGCACATACGATCGTGCACTCGTTACTTGGTAATGCTGTGATGTTAGCCAAATGCTTCATCGGTATATGATCCAGGCAAACCACCGGGGGGAGAACAGCAATCGGTTGTAACGCGCCGTTGGGAGGCTAGTGTTTCCATAAAGAGCTGAACCAGTTACCCCTCTGATTGTCGGCGAGAGGA
A25: 2 | B25: 302 | C25: oPoolOne | D25: CTAACACCTATTGACTAATCTCCAGAAGGTCATAGCACACTTGAGCCCTTGGCTGCTCCGGCGTGATGTGATTAAGCTCCGGCGAAATTACGAAGAAGGCGTACTGCCCATCCCAGCGGAGACCTCAAACTTGTAACTGGGCCGTCCCGGACGGACATGCAAGCAGGCGCGCCTCAAAGGACCGAAGCACAGATATTACGGACCAAAACGTAAGACACCTCATCGGCCGGAGTGGAGATACAGACGATGAAGCCACTACGAAATTAGTGTCGAACGTTCATCTTCACTTTACCTTCTACCTA
A26: 3 | B26: 317 | C26: oPoolOne | D26: TCACTCGGTCTACCTAAACCACTGCCAGTTATATCTCCGTAGTGGGTGCGCCACTGCGAGTGAAGACCGGATGTTCCCCCTCCCCCGCATCCCTAGAGAGGCTGATCTTAAAACCCTGCGAGCCTCACAGCATGTGAGATTTGAGTGTCCCTGGCGTCGCTGTCAAACCTGTCGCAGTGATGCCCGTAATGGATGAATCTGTTCTTAAGAGCTGGGGGTAGTCTTATCTCGCAGGGTCATGAGGCCATCTAGCTATGCTCAATAACATACTGCATCTCCAAGTTTGTTCGACCACCAAGTGCCTACCCATGGATCTA
A27: 4 | B27: 317 | C27: oPoolOne | D27: ACCTGTCTCGCGTCATGTATACCCAGGGTCGATGCGTCCTCTACGGCACATGGACTGTTTTGGCCAACTATCCTACGATTAAAGAGCCCTAACATAGAGGCATTGGACAGTGAATTAAGTATGCCACTTCAAAAGACTCGTAATACAGACGGTGAGATCAGTACAGGCTGGAAAAGGGCGCGTGGGCCAGGAGGTAACAGTGGTCCTGCCCGAGACACATCGATTTTACGCAGTTCGGCTGCAGAAGTAACGATCCCATAACATTCACTCTCCTAGGAGAAGATGTCGCTGCCTCTAGCGGTCACACCCGTTTATAA
A28: 5 | B28: 319 | C28: oPoolOne | D28: TTGGGAATCCCCCGGCCTTGTAAACGAAGGACGTACATTACAGACTTTCCTGTCTGGATATTGGGTTAGAGACACCTAAGCATGATAGGGTGAAGAGACGAGAACCTACTTCTATCGACATTGGTATACTGGCCCCGGTGGCTTCGCGACAGGCGCCAAAACGAAATTGTCGCTGTGTCTTGTCAGTGGGGCGTAGTTGTCTTTGGACCAACCGCTGTCCGGTTGGACATTGGGTGACTACGGTGAGCACGACGAGCAGTACCAGTCTACCTGCTCGGTTGAGAGAGATTTAACGGATTAAACGGCCTAATTTTTTTCA
A29: 6 | B29: 306 | C29: oPoolOne | D29: GAAGCAGACTGCCCCCTTAGGGGTACAGTCTTCCACCGGGAACCCAGTTGTACCCCCAAATCCTTCAAAAGTTGTGCAGGAGGGGAGGCGCAGCTACGTTATCCCCTCAGCAGGCCGCATTATTCAGTACTCAGATAGCCTCGCCCCTCCATTACTTGACGTCCCTATATATTCTCAAACCTGCTAGTATACCGTTCGTAGAGTCGGTCACGTCATCTCACCCTATCAACTCAGGTAAATCAATGATACCCGCACCCTCTAATTGCTTATCTTATTTTGGATCAATTTCACGTTTTCTATCCGTTG
A30: 7 | B30: 318 | C30: oPoolOne | D30: ATAGACAGCGGGTCAACGCTCTATGGCTCCCGCGTATATCTCACGGCTCAAGTTACGTATGCCAAAGCGAGTTTGAAGAAACGACGCACCTGCTATCGGGGACGCGAATTCTTTGGATCTTCATCCCGAGCAAGCATGATTATAAGTACGATTATTCATACCCTAGGTGCCTACAAAGGCAGATGACAACGAGAGTGCTTGCCGATGCAGACCCCTACAGCCGACCAAAGGTCGCTACGTACTCCGATCCCCGTTCATAAGATGGCAATTGGTCTCTTATAACACAATATAATAAAAACCCAAGTGAGATGCTCGAGT
A31: 8 | B31: 317 | C31: oPoolOne | D31: ATTGAGGGTCTAACCAAGGTCATACGCGGCGTCATAATATGCCAGACTATGGTTCTTTAGATTATGTAATATTTAACGGCCGGGTTCACCCCCGCTGATCGGTGCAGGTGAGAGCCGCCCTAGGCCCAACGACGAAGGAATATCCAGGTATATATGGGAATGTTTCGGCAGCGCAGCGACACCAAGGGGTCGTGCGTTGCGAGATCGCGCCAGTCCAGAAGTTCTCGTAGAGGGTTCACCACTCGACCGGGATAGCCACTGCCCAGCTCGGTACGATGGGTAGATACGCAAGACTTGTATCAACACAATCACATATT
A32: 9 | B32: 305 | C32: oPoolOne | D32: ACCTAAGTTCCGGCGTGTGGCTCACAACTTACAATAAAGAACAGGGCGGACCCCTCGGCAAGCGAGGTGAGCGTCCCATTTAGAGCGACGGCGGGATTAATAACAGGCTGTTAACCTACTTCTGCATGCACTTTTCCCTCAAATTTAGAACGGTCCAGAGAAGGGTGCTAGACTGCTACTAGCTCGATAATGTAGATGGTACAGGATTAGGACGATCAAGCTTGTACTTATTGAGTAGTTCTCAGGCGGCGGTGACCCTGCGATAGACTAGGGCAAAACCACTAATCCAGTTAATGTGCAGTGAC
A33: 10 | B33: 311 | C33: oPoolOne | D33: GGTGCACAGGTGTAACATACTCCCGGTTCTATGGCATTAATGATCCTCCACCTCAACCGTGGTGATCGACGGAAACGCGTTCCAAACATTCGGTACATCTCTAGTTTCGCCATCATTGCACAACTGAATTTAGTGCTGTATGATTGCTATCAATATCATTGATCCGCGCGTTGAAGCGGTCCGGCATTTTTTGAGATGGATCGGGCATCCAGAGTCTACTACTAGACGACAAACTATATGGTTAAGTCATAGGACGTTAGTTAGGCCACCACATAAGGTCTGCGCCTGATGCGGTTAATTGAGAGCGGAAT
A34: 11 | B34: 308 | C34: oPoolOne | D34: TTTACTTGGCCCGGAAACACAAGCCTTCGCTATAAAAACTGGGCTAGCCCCGTAGACAATCTAAGAAATCCCAAAACGCCCAGTGAAATATCTCACTTAGCCGCTAAACCCTGTCCTTTCCCCGGAGTAAACTGGCCTGTAGATAACATCTGGACGAAACAGTTGGGGGGAGCAAAAGCTGCCGCCTGGCCGCGCGGAACCAGTCGGAATACCCGAAGATGTAGACTATCGAGGGTTGAGCTTCATGTGTCCATGGTGATTAAGTAGTGAGCGCATTTCCCTCAGCCCCTAGGACACAGGTCGTTTCG
A35: 12 | B35: 309 | C35: oPoolOne | D35: GATGACCTAGTAGAACATTAGCAATGAAGCTGTCGCAACATGATGATCACGCCAGCGCACTTCAGTAAGATAGGATACCCCATATATGGCCTTGCATAAATACACGCTTTTCTAATAGAAGAGTGACGTGACCGAGAGTACGACGCCTAGTTTACAGAACAAAGCGTTGTAAGACGCCGATACGTACGAGGAACGTTCGGTCCGACACCACCAATCAGAGCGGTACAGTTTCAGAGTCCCAATTCGGGAGAAGAAGCGTGGCATCACCCGCTCCGTTTGCGAAACCACCCCGCGCATAAGCGCGAGAAA
A36: 13 | B36: 316 | C36: oPoolOne | D36: TCTAGTGCTGGAATTGTGACGCAAATGCATCGCTCATAGAGCTGGACAGGTTATTCTTTTTCCTAAGGAGTGACTAGTTTAGTTCTGTGCGTCGTGTAAGGGTTACCGATCTGGTACTGTCTATGCTTGTTAAAGAAGAATCACCCGTGTTTGGTATATGATCTCAGTAACGGGGGTGAGCAATTCCCCTCGATCATGGCCGGGGAAAATGCAGGGATCGAGTTTCATCACATGGCTAGCTCATAACTTGACATGTGCCATAGTGCTACATCTTGTCGCACCTAAATTCGAGGTTCTAGCATGACCTCTCCCATGG
A37: 14 | B37: 312 | C37: oPoolOne | D37: AATCTTACCAGTTACGGTCAGGGGGTTGCTCGTTCTCCTCTTGTACACACACAGTTTCCCGCACGTAACTACACGCCCCAGGGGCCTGCCTATCGTGAACCTGAGGTGTTACGCGCCTTCGGCAACGCCAGAATAACGTATGACCTGGGGCCATTCTGGGCTCCCGGGAGGTGTTCCCAAGAAACGTCCGGACTGGGAGAGCCGCGAGAACAGGGTCCGGGACCCACGGGCCAGGGGACGCCGCGAAAAGATGCCCCGTGACCGCGAAGATGGTCGCAAGCTACGAGGGAGGGGCTAACCAGCATCCTCTGT
A38: 15 | B38: 304 | C38: oPoolOne | D38: CATCCTGCGCAAGGACAGCTAAATGTTTGTAGCTGCAACCCGGTGCAACACTTAGCAAACAACCGAGACGTTCGACTCTTACAAACCTATTTACGACCTATATGCCATGCAGACTACCAACCTATGTCATGGGGGGCTCGAATGGTGGAAGTAACCCAACGAGGTGGGGGAGGCATTTTTGACCGCTACACGATGGGAACAGTAGAAGCCGGTGCCTAACGGAAGCGAATTTCCTGGGAATCAGGGCAGCTGGCTCCCGTGACCCCAATATTAAAACCTCGCTAAGTCTAACTAGGTCGAAAAT
A39: 16 | B39: 312 | C39: oPoolOne | D39: GGGTACTTCAGCTGAACGTACTTACTAATGATGTTGACGCCCCAAAAAGTCCCAGGTAATTAACCGAGCTCTAGTACACGTGGAGGCCGCGAACCTTGACACCTGGCCATTTCAGGCAACTACGAAATTCGGAGTCGTAGAGAGCCGTCCCACGACATAGAGCACTTCTCAAAAGCCATCGGACAGCAGGAAAAAGCGCAGCTACTGCGTAGAAATGATACGGGGCAAGTATCCCTGCGATAGCGACAGCGGGAAAATCGGCATGATGTTACTATTGGTTTCTCTGTATTCGCGTCAGTTGTCCTTCGTTTA
A40: 17 | B40: 318 | C40: oPoolOne | D40: CTAAACACTGTTCGACCCATTAATCGACCCCGTCGCACCCCTATTAGGAGGCGAGATCACCGGTTAGAATTTTGTAAATCAGTTGGAACGTGAGACAGTAAATCTTGGTGCACGGAAATGTTTTATACTGTAGTCCGCTGTACTGACCCGCTATGTATGGTAAGAGTCTAAGCGAAAACTTGATCGCGCCGTGATATTCGCGTGTGTCGGCTTGCAAGGCAGGTATGTAGTGTAGACGATATGGACGTGCACCCCACAATGCGCTCGTGGAGCTCAATAAGCGAACGTGATCGCATTCTCGCAGCTGGACTATAGTAT
A41: 18 | B41: 304 | C41: oPoolOne | D41: CTTCCGGTGGCCGATACTCGTTATTCCGTGTATCCGGACTCGAATAACTTAACGTCTACGCGGTACTCGTTCGGCTGAAGCCCTTGGACCACGATTGTCCGCTAACTCGCGCCAAAGAAGCAGATGCGATATCGTCTACTCATGGTACTGAGGGCAAGCCAGTCCCCTGGTTGACCAGAGAAGACCCAGTTCACCAACCAATGCCACCGCCTTTTTTCTCTGGCAGAGTGACACTCAGTGTAGTCTTCCCATCTTCTCTGTCGTTAGTCCCGCCCGAGTGAACGATTCTCAAGCAAAATTCATT
A42: 19 | B42: 303 | C42: oPoolOne | D42: GCGTGAAGCTATTTTGTACAGCGGAGACACGAGAGTAAACGACATACGGACGTATCATAAACCTTTCTGAAGGCGCCTTGATAGGATTTCGGAGAGGAGAAGGGCATCAGGTGGATGTTGGTTTTATCGGTTGTAGAAGCGTAAAGATACACGGAAAGCTTTACTATCCACCAACTCTACTTACCGCGCGCTAAAATCGGATTAGTTAGAGGTGCCAGGTGGGGCTTGACTATCTTGTTAAAAGAACGTCACGGGCGAAGTATCTGGGTTTATTCGTAGGTCGGGGAGAGATGGACAACGTAA
A43: 20 | B43: 310 | C43: oPoolOne | D43: CAACGTACCATCGATGACTTGTCTTCCTAAGAGACACAAGAGATTTCTCGCGCTCTCTGCTAAGGACACATGGATTGTCCTTGACACGACCTAAATGCGACTATCATCCGAATGCCTATCGAACGAGCAAGAACTACGGTTCTAGGAACGAGCCCGACCCTATCAACTGGCCAGAGCCGTAACATCACGAGTCTATGAGAGGTCTGTTTGTACCTAGGCATGTACTGTCTCAAGACCCCCCGATGGCGGGAATCAAGTCCGAGATATCTCGCTAGGACCCAGACTTCGGCACGCTCCTAAGGGAGGGTTA
A44: 21 | B44: 302 | C44: oPoolOne | D44: AAGAGGATAGACAATAGCCAAGGAATTCCATAGTACATGCGAAGTACATCAACCTGGTACATTTAGGAAACCCCAGGTACTTTACTTCCTTTGCTGTTAGATAGCTCAAAACACCTATAAAAGACGACCGATTTCCGATGAGAAGGCGTCTGTGCATTAACCTCGTGAGGACTTTTTACGAATTACCGATTCGGCGGTGGCGCAACACCGACTAAGCATTTATATCGGTGGCAAGTTCTGGAGGCAAACCACCGGTCGAACCCGAGATCTACGACGCAAACCCATGGAGAAGGCAGGTGCAG
A45: 22 | B45: 309 | C45: oPoolOne | D45: ATCTGGTATCTATGAGTCACTAGCGAGGCTATAAAATCATGTTCTTTCCAACCACCTGAAAGATGTTCTATATGCGCTCCGAGCCCGATAACTACTGCTATCAGGCTATCATGTGATACTATTAGATAATACAGCCACACGGTCGCTAGGCTAGAACTCCTAGTGGTAAACTCTCTGGCTTGGCATATTATCCGACTACTGCTGCGGGGTAAGGGGCGTGGAGCGCGTGATCTGCCAGGCACGAGATTTTGGCATAGGGGGGCTGTTTTCCGGTGCCATGAAGGCCGGATGGCCAATGTTCTATCACCC
A46: 23 | B46: 305 | C46: oPoolOne | D46: TTGTTGTACAATTGGCGCTCGATAATGTTCCGGACAAAAAGCGCAGCATATGGCGCGGAGAAGGTCAAAAAGGCGATACAGTGCAGAATCCCCTGTTCGTCTCCTCACATACGCCGAGAATAAAGGCACTATGTGCGGACGTCCCGATTTTTGCATGCGTTGGACGCCTATAACGGCAGCTCGGGCAGTCTGCCAGGTTTAGGGAGGCCTTTCGCTTAGGGTGCGATGTAACCAATTAATCGCAAAGTCGGTATAAAACGTTTTAGGATATTAGGGAGACCACATCGGTTCTATTTAAAGTATTG
A47: 24 | B47: 317 | C47: oPoolOne | D47: TCACCTTACATTAACCAGTGGGGGCGTGCAGTCTCGTCCGAGCCACGGAGAGCCGACCAAGGTCCCTTTCATGAACAGGGGGCTGCGACACCATGCCTTTGGAAGCTTAGTCTTGTACACCAATAATTAAACGGATCCTTTCTATGGGCAATCTTGACTGAGTGCAGGCCCTTGCTGACGCAATCGAGCATAAGGAGTTCTCACGCAGTGTCGACCATCCCCACTCCAACGTGAATAGGTCAAACCTACTCCCACCCGCTGGTTAGTAAGAAAATCAGGCCGCGTTGCACCTGTATACCCCGATTCGTTGACGCGTT
A48: 25 | B48: 319 | C48: oPoolOne | D48: ATAACCTAAATACCGGCGCGAGCCTATGAGACCACAAGCATGTCAATTCATTCTCTGCATGGCGAGCCGGGTCCTGAGCCTCAAACCAAGAGTACTATACCGAGTCCCGGCTACGTTACTACCCGTCTATACGCCCGTCTTAGGAACTATATGAGCGATAATGGGTTCGTGAAGACAGAGCTGTCTCACCAAAGCAAAACCCTCAGAATTAAAGGTATGCGTAACAAGGTGCCGTCAATTAGCTGTTTGCCGATGTTGTACAGGCATTGGAACGATCTCAGAGTGAGGACCCTCCCTTGTCATGGCGATCACCTGGCCA
A49: 26 | B49: 309 | C49: oPoolOne | D49: TGAATGAACGGTACTATGTCTTACCTCGAGTAGACTACCGTCAGTCGAATAAATTGTCGAAAGAACAGACGTGAGATCCCTCCCGTATCCACAATTAGACTGCAAACGCAAAGGGGGCATCATGTCGTATCCTCATTCAGGAGCTCTAGCTATAATTTTAAATTCCGTGTGGTATCTCAATAGAGTAGGACAACAGCTACGGATTGACCATCTTTTAAAACCGAAGTTGATCATCCGATAATTGATGGAGAACTGTTGCAGCGGCTTAGTTCAAATGCACTACCGTGATCTGCAAGTAGAAGAAGAAAA
A50: 27 | B50: 306 | C50: oPoolOne | D50: GTCCTAGCGCCACAAAGAGTTCATGTATGTTGCCAACGCAGTAGTCTCCTGACTCAATTTTTCCTCTCAGCGGGACAGAGATTGGGGCTGACTGTGTGACAATTGCGTAATCACCGCTTTGTAGTCGTTATGTTTGGCATATAAGGTTCTCCAAGATTAATGGTCTCCAGGTCGTTACCGGAAGCTAACCGATCGCAAAGGTACTGGCTGGGAAAACAGTGATCACGCACGCAGCAACAGGTTCAATAGTAAACCTGTTCCCCTAGGTAGAGGCGTAGTGCTAAGTATTGGCGAACAGGTCGCGTC
A51: 28 | B51: 309 | C51: oPoolOne | D51: GTTAGTATGAATATTTGACTCCTATAGCCTGACCTAATTCGATGCGCTCCATTCTTGGCTAGCCCATACTCGGATGGCAAAATCGTGGAAGTCAGGCAGACATAACGCTAATGCCTAGATTTGTATTGCACCACACACTCCAGTTGACTGAGGTTTCGCTTGACATTAGGCTATATGCCTAACGACAGCGCGCCGTAGATGTTTTCAGGACGACACGGGGATAAAAAGATCTTCTGTGGGAACATGGTACACATATTTGCTTTTACCGAGGGCTTTGTATGAGTATGAAGAATTGTGGCCTCCAAGCAA
A52: 29 | B52: 307 | C52: oPoolOne | D52: GGTCCTTGAGTTTCTTGGGGCACTGCGGACTATGGCATTCTGGTCTTACTAAAGTGGAGATGAAGAATGTTCACTATTCGTAGGCCTTCGATCTCTATTAGGGTGTAGCATTAGTGGATTGCACAGTACTGCTACCTCGTCACGAGGTCGCCCGCTCTGCAACGCTCCCTCGAAGGCACTCGCGGAGGAACGCTCCAAGCAAAATTTGGACCCACGCCGGGATAGCCCGAGTGTAATCGGGCGACCTATTCATTCGTTCTAAGTCGTCTTCTTAATCACCCAAACACATTTTCCTATTGGCAAAAAC
A53: 30 | B53: 307 | C53: oPoolOne | D53: CCCCCATGACAGCAGCACTGAGGCTGATAGCTCGGCATAATAGAGAGTGGTAGCGCCCCTGAGGGAGACAAAAGGATGGAGTGTCTAAGGTCGTCCCTAGAGCGTAGACTTCACGTACCAGCTGTCCCGGAGTCGCGTACGCCCGGACCCCAATACTTGTACTTTCTGTGAGTGTCTCCCACCTTATCAGAGCAGTGCCCCCTGAGTACATGGGTTCAACACGACTGCTCCTCAAATCCGATAAACCATGATGCCAGAGCGCATAAATCAGCTGGGAACGACGGCGCTGTCCTCCGGAACGTGGACG
A54: 31 | B54: 311 | C54: oPoolOne | D54: AATATGGCGTAAAGAAATGTATGGCCGGTAGAGAATTAGCTGTTATCCCTCTAGCCCAATCCAGATATTAGACGCAGAGGGCGGTCGGGTTAAGCACAAACGAACCAAGTGACAGGAACATTAAACCATGAGGTGCTATTGCTGCGAGCGTCTACTGTAAGGCAAAGTGACACCGTTTTAGGTTGTTACGTAAAGGCCGATTCAAATTCTCTAGAGTAGTGAAGCCGAACACAGGAATCATATTGCTAAACTAGTCGCCACTGTAACGTTTAGGCGCGACGCACATAATTACCGTTCCCAACCGCCGCCGG
A55: 32 | B55: 303 | C55: oPoolOne | D55: CTTGTGTATCTCTTGATATCGGAGGACGAAGATACGGTCTATTCGCTTGTAACCTGGAGTCAACGTTATCCGCAAAACTCTACGCGAAAACACTTAGATTGAAACCAGGCGTCGCTACCGCTTTCAGGGCTACTGGCTACACCTGGGAGCGGCGATAGAGGCAGTAAGACCAACACATTGGCGGGCCGTGGAAGTTCGTCGTTAATAAAACGTCCTCCGGAAGCGCACCGTCAATTTACGCACGACAATGAAGCCGAATAGCCACTTTCCCTCGTTTGAGGGCACCCGGAACTGGCAGATAAG
A56: 33 | B56: 302 | C56: oPoolOne | D56: CAACTTACTGTCGCTGCAGCCATAATTATGGGCCAGCTGGATATCGTTCACGGTCGTGTGCTACCAATACAATCAATGCCTGGCATAGAACGGTGGCAGCCGAGCCTGCGAAGTCGCAAGCTTTGGCTGCTAAATACTGATTCCCAGACAAGCGCAGTTGACGCATAGGAAGCTAGGATGGAGGCGCCGTAAGTAGACGCTTACCACTGTTATCTTACTTGCTGCTCATCGGAGCTCAGTCTCATCTTCGCACCTACTACTATTAGCCCGAGTGCGTGGATTTCATGGTTCGCCGCTTTTAT
A57: 34 | B57: 312 | C57: oPoolOne | D57: CTTACTGTGCCATATGACGGCCTATGGTGTCCGGACCGTTTTGCTGTATCTTGACGCATGTTATTACGGCACGTACCCGCGGAAGGATGCTCGTCACGACGCGCAGTGCGTCTGTCCACCAAGACGAATCTTATGTGGCACGTATGAATCAGCATTCTTTTTATAAACGGAGCAGGGGACATCTCAACGGTCAAATTTTGCCGAGCCTTCCGTCAAGGTAGTCGGCCGTGGCGGCTGTTCCGCTTACAGATAGCACCCGGTAGTTATATGAGGTGCCGGCCGCGATTATTGTCTGGCGCAGGGTAGTAAATG
A58: 35 | B58: 307 | C58: oPoolOne | D58: AAAAGAGACACGGTTACACCCACTAAGCTCGAAGTTTTCGGCTTGGCATTCGGAAGTACGCCCACCGCGCGATTTCCCGCACTTAGATGCAAGTGGGCATTTAGGAATGCCCCCATTAAGATTTCGGAGTTGGTCGTGGACGGAGTCGCAGTTCCTGGACTAATGAGCCGATAGCTGACGGATTGTTTCATAACATGATAGTCCGCGACCTATCGAAAAAGCCTGGCGGGCGGCGCCGTTTTCCAAGAACGACGCATCGCATCGTGGAGAACTCGGGCGAGGTACGCTCCCGCCGCTCCGACCGTCA
A59: 36 | B59: 303 | C59: oPoolOne | D59: CGGTGTTCTCCCATAGCAACCAAGGGTACGTGTCGACCCAGTTATATAGCATCCTGACTCGCGCGATCGTATCGGCGGAATCGCTTATGTTGCCGATACGGGGAAACGGCGCGAAATTTGTGTCTCGGACCTTGACCTTCGGCACAGGTCTAATAGTTTATGGACTAAGGTTAGCAAAAACCATATAGCGCAAGCAAACAGCACCCCTGTAACAAACATTCCAAGAATATAAAAAGTACATGGGGGTTATGCCTAGAACGCTGGCACTGTTACCCAAAATCGGAATCCCTCTTGCATTTAGAC
A60: 37 | B60: 313 | C60: oPoolOne | D60: ACAAGCACCAAAGCAAAACCATTGCACCAGGGTACCCCTCAGTGTTAGCTGTCCTAGCGCTAAACTTATTAACAATGACGCTGGGGGTTTGGGTCTTGCGAGAGCCGTACATGTGATGGCCCCACTGATACACTATCGGTCGCTAATATGATGTTAGATCCCTACCCCAGTGTATTTAAGGGCGATTCACTCGTTTGCTTTCGTCTCGGGCAACCCTCACAGGTGCCTAGGGTACAGTCTTAATATATTGGTCACCAATCGACCATACGTCTGCAGGGCTGGACCCGTACCATTCGCGCATTGGCCTCGCCAA
A61: 38 | B61: 306 | C61: oPoolOne | D61: AACGTCGGCTAAGACCGAAGCCTTATCCTCGTAGGCGAAAGCAGACACTATCCGGCCAGATATACTGTCAATTCTCGAAATATTGACGCAGGCTCTACGTGTCAGTCTTAACCTATCCGCGATATCCACGTTCGCCAGCCTAAAGCCCCGGTCCTTCCCGATGGCGGGCTAGCCAGGGAGTACGTACTATAGAAGAAGGGCCCGTTATCTCCAGACTCCCCTACGCTTGATAATTCGTGATTGTCTCCCTTGAAGATTAATGCAGTATGCCGGAGCACTGTAGTGCGGCATTAATTAGATAGCGAT
A62: 39 | B62: 305 | C62: oPoolOne | D62: GAGTTAGTAACCTAACTTGTATGAAAATAATTGGGGAGACCTGGTACGCCTGAAGTTGCCTATGTGCAACGCTCGGAATCGCTTTTTACTATGTGCTTGAATATAGTATAGCCGTTGTATGCGTGGACTGAGACGAAGTCGAGAGCACGGCTACCCGAGACCGTGTTCATCCCCTTTATGATGGCCGCAGGTGGTCCCCCATCAGGTGTGTACCACGCTGCCAGCTGGGGTCCTGCGTACTGCATCATCTGATAGCCCAAGGGCACGTCTTCCGCGATCGAGCCTCATTTTCTTCGGAACATGCG
A63: 40 | B63: 310 | C63: oPoolOne | D63: CAAAACACTGATCCTTACTGAGTCTTCTTCGATCGGTGTCAGTCCGTGGTCCGTCACCTAGAAAGAATTGCAAAGACAACGCGGCAGCCTTCGTCGTCTACGTCCTCGCCCGCGAGCGCATGTCCAGAATATACGAAAGCCGTCCACATCAGCATAGATAGTCTCGACATCGGCGTTATCATGTGTTCTCTAACTTGATTCGACTAAGAAATCTAAGCCAAGACCTAGCGTTACGAGCGAATTAGCTAGTCTTACGGGTGTGCACCTTCAGTGCTTCGAGTTTATGACTCCCGCGCTGAGTTCCTTAGCA
A64: 41 | B64: 310 | C64: oPoolOne | D64: CACTACACCAGGTTTTGCGCTAACTCCCAACTCCTTTACAGAGCCATTTGGTCCCACCACGCTGGAGAACAGTCTCTACAATGGGTGTTCATAAGAGAAAGTACAAGTAACCACCCCCACCCTTCAGTGACAGTCACATATACCTTACGAACTGAGTTAGGCTTATTATCACATATGCGCCTAAATACCGACTGGGAGTCCGATGGCTCTGTTATTGCAAAAGGCATGAGTGCCGCTGTGCGCAGTTGTCAACCAAGAGAAAGTTGCAACTGTTTTTCATGCTCACTGTGCGGTGTAGGCTGGTAAGATA
A65: 42 | B65: 306 | C65: oPoolOne | D65: AGGCTCCAAGCCAAGCACGGCACTAACCAGCTATCTGAGATGTCCTAACACCCGCTGAGTCTTTACATTACTGGGTTTGATATTGGAAGCAGAGAGTCCTCTCCGTATCGCTGGACTGGGTACACAGCGTATGCACGGTTAGAACTAGCTGCCTTGTGTAGGATACCTTGCTGTGATGGAAACATTATACCGTCACGAACACGGTTCAAATCGATGTACATCGAGGTGATTCTTTGCCAGGTGCACATTCCAACTGATATGGTCCAATAGATACTGTAGTGCTTAGCCGCTGTCATCTCGGGAAGA
A66: 43 | B66: 306 | C66: oPoolOne | D66: CCAAAGCCAAACCTAAGGAAACCGGGGTAGCACGATATGAAAGTGTGGCTGCAATCGTACAAGTTCCAAGGAGCTGCTACATCGCCGTCCCGCGCCCTTCCCAACAGACTTCGGCTTAACGGCCAGTGGCTGGATAATACGGGAATACGCAGTGAACCCAGGGTATCGCAACCTAGAAATTCCAGTGTCATCGGTGCCACTCTAGCCGCTCATTGGTGTGTAGCCCCGATCTCATCGTAAAGTGCCCCAGTTATTTGGTGCATTCATTGCACTGAATCCACAGCGAACCCTAGGATTACGAGGAGT
A67: 44 | B67: 303 | C67: oPoolOne | D67: GTATCGAATATTGCTTGATGGACAGTTCCGATATTCCAACTCCGTAACCCGGTGGTACTGGTAACTTGCGCGAGCCGTGCTTTTATGCAGCGTGCCGGACAACGAGCAGATCGTATTGAAAAAGTTACCTGCCTCTCAGAAGCCGCTCTATCGATACCGGAGGAATAGCTTTGCGGTGCCGCGAAACCGCGTTTGTCCCCCCTATGTGAAGAATAGTTAGTTCTCGGCTGACCTCTAGAGTACCCACTTATAGTTTTAAAACCTTAAAAATCAGAAAGGACCGGGCCTAGTCACAGAGAGGGA
A68: 45 | B68: 304 | C68: oPoolOne | D68: GTCAATTCAGTAGGTGTTCTGTTGTAGAATGCACTTTCAAGATTACGGGGTGTACATATATCGCCCCGGGGACTGCAGGCGGGGTAGGATCGCACATTTCTCTTTAAAACGACTAAGGGTCGAGATAAACGCTTCATACCCTGGAACGCAAGCAGAGACGTTAATGCGCTTATAAGCAACCCTTGACGCCGCGATGCTGTGATTTACCATGCATCTGTAACTATCCACGCCATTCAAACGTTCACTGTCTTGTACGCAAGTCTAAGCCCTCTGCGGTCTGAAAGATTTCGAGCGCGAAGCACCG
A69: 46 | B69: 310 | C69: oPoolOne | D69: ATTTTCACACAATATACACTGTGAAAGACAGTCGCACGACCGGTAAGACATTCGTTTATAGGAGGCCCATATCTGGTGATAGTTCACAGACGCTTACTTATAGGTATGAGATGTGTGCTCGGGATACCAGTTATAGGGACTGAAAAAGGTAGAACCGTGGGTTGCAAGGGACATTGAGCCGGTCGTTTTAATGCCGCGAGGACTATAAACGCTAGGATCAAGTCCATAGTGGCTGTCCAAGGTGCCAGGGGACCTACAGTGCTGTTCCACGCTTGGAGAGACTTTGGGTCTCTACAAGCCTCGGGGCTCC
A70: 47 | B70: 300 | C70: oPoolOne | D70: CTAATTGGAAGGGCTTTCAAAGGCTAGATAGCCCCGCTAGCAGGCTGCGGTTGACAATTGGTGAGGTAATCCGAACAGCGATGGGACATCCATCGACACGAAGGTACCGGTACCATGTCAACTTAAGGATTTCCTTAGGTTAAGGCGCGCATTTAAGATTCTAAGATCATAAGTTGGATCACTACACCTAGGGACGTGCATGTTGTCCCTTATTTAAGCCCCCCATCGAGCAATTACGAAAACTAAGTTTTCTGATAGAATCAATTCCGCGCCTTCTATAGAGTCATTCGAACACGCAAA
A71: 48 | B71: 308 | C71: oPoolOne | D71: CCGTATTATTCGGCAGCCGATATACCACGAGAGCTCGACCGATGGGCTTCTTGTATAATGACCTGACCCACTAAGGCGACTCATTAAATTCCGCTTAATCAAGAGCGGTATGAAGGCGCGGGCCAGTCGACGTAAGCGCACTAGGGCTTCTTCACCTAGTTTACTCGCAGTGCTACCGCCAGAAGACTTCAATACAAAAGGACGAACCATTTCATTTCCTCTGCGAGGTACATGTCCATGAATCATGATTCCGATGGCATTTGTCTAGCCGGCTCACTGCTCCCGAAACTGCCTGACGTTGGACCAGT
A72: 49 | B72: 307 | C72: oPoolOne | D72: TGACCCGTATGAAGCCGAGCAGAAAGTAAAAGGTCTCCAGATTATGTACGTAAGTAGTGCTGCTTCTTATCTTTCAGTAGTATCATCCACACAAGGATCAGTTAGCCGCACCCGAATGCCTTTGACCAACAATAGTCATCGGCGAAAAAATTCTTAGAATTTCCCAAATTCCCGTGTTCTCGGGGACGGGCTGACCCGTCCATCTATCATGTAAATCCACAACTAGCGGAAAGGGCTTTCCCCGGATAACAGTTCATTGCCATCCCGTCCTTGGGTGTGAAATAACTCCAACAAATATCGCGGTCCG
A73: 50 | B73: 300 | C73: oPoolOne | D73: GCTTAACCATATACATTGTCAGACTGCTTTACCTTCTAGAGTCTACCCGAAAGCCCTGCCCCAAGGTGGGGACCATGAGATTTCCGAGCAGTATCCCTTGAAGCGCATGGGGGGTGGCGACCAAGAGTTCAATCGAGCTCAATACTAGAGAACTTAGTAAGACATCCGCTGTTGTGGATTCTTCTCGACAGAACGCATGTACCCGCGTAGCCTAGAGCTGTTTCGAAGTTCCCACAAAGGTGGCCACAGTAGACGATAGTCCTTATCCTCTCAGCCGGTAAGCATCATATGTTTCCTCCC
A74: 51 | B74: 307 | C74: oPoolOne | D74: CGGTCAATTCGAGTATAAATATTATTTAACTTAGATCCACGACATCTACTACTGAAAACTACAGAGTTAGCCGCAACCCATAAATCTTACAGTTATTCCGCACTGATGCAGGCAGCCACGAATGCCTAAGTACCACTTATTGAAGCCTTCGTCCTCTCTGGGTATACCAAAGCGTAGGGGCACTGCATATGAGGCAGTGTTTTGTGCGAGTCGTTGGATAGTATTGCCTTGATCCGGTGGTGTCGCCCCAGCCGGCTGTCGTTGGGAAGACGTCGTTGCGAAAGTCGTTCTGTCGCAGGTACTAACG
A75: 52 | B75: 308 | C75: oPoolOne | D75: AACATAGAGAGGGGACTACCATGCAATCAGAGACGTTCCACCGGTCATGCCTACCGTATAAGCCGCCGAGTGAAGTGCTTCCAGTCCCGGGGCCGAGGTACATGCCGCGCAATATGGCTATGTTCTGGTTGTACACTTATTTTGGTACGTCGAGGATGCTTCGACGCTTTCAATATAGGGTAGTTAGCATATTTGTAAGAGTATTCTCTGGTTTCCCACTATTCCTGCCACCCCGAGGAGTGTCTGTCCGGCCATTTGTATGACTTGGAGGATCGCGAAAATGATTCCGTTTTGTTCCTATCCAGCAT
A76: 53 | B76: 310 | C76: oPoolOne | D76: CATTCGCAGTAAATTGAACTTAGTAATCAGCTAATACAGCAGCCAGGTCGCTCGGGCCTCGGACGCCTGCAGTGTGCAACAGGCTCGGCAGCGGCACTGCTCCAGATAGCAGAACTGCACACTAATGACCAAGAATGGTACGACCGGGTGCATAAGACACGAAGGATACTAAGGCATCGTGCGACAGCGTGGTCTCATGATCTGTCACTTTCAGGTCACTGGTGGGGTCTAGCTACTTGCCCTGATGCAGAGCGTTGGGTTAAGGCCGGATTTTAGTTCAATCCGTCAATTAATTGGCGGGTGTGGGTGG
A77: 54 | B77: 316 | C77: oPoolOne | D77: ATCATTTGTGTGACTCTTTCTATGAGCGCGAGTAACTATGACCTGGTGATTGTTGGCCACACAAGAGCAGAACGGCAGTATCCGCCCATATCGTCTTAGCTTTTCTTCCGATGATAGAACCGAAGAACGCAATGTGGTTTTATGACATGCCCATCACGTCTGCCGATCTGACGGACCCTGTTCGGAAGTATCGTCCAAGCAGCCGTGTTTCATTGCCCAACAACGGCTTGATGGATAATCAAAGCATCGGTACGGTAGAGTCATTGCTGAACAAACAGCCTTTAACGCTGTTATTAGACCGGCCCCAGGATAACTT
A78: 55 | B78: 307 | C78: oPoolOne | D78: ACGATGTTCTGCACGTTGTGGCGAGCTCTTTTGTATGGGGTTCTACAGCTTTCCCATTACGCGCTAACACCGCACCTGTACCAGGAATGGAACCTGGACTTTAGGATACCGGGCCTCGATGTGTCGACGAATTCTCTCGCTTCGCTATAAGGGGGGCATTATCAGGACCGTGGTTATGCAATCCCAAATGAATGACCCCCCTACAAGTCAAAGGAGTCTCAAAGCGACGAGACGAAAGCGACACATAGCCCTGGCCCAGGTTCGTGTTGGTATTTAGGCGCCAGTCCAGAGGGGCTACTTCATCACG
A79: 56 | B79: 312 | C79: oPoolOne | D79: GCGAAGAAGGTCATACGGTTACAACCCCTAATCAAACAGGAAGACAGGCAGAGCCTCCTAGCTGGAAAATGCTCGTAGCTAGAGATACATAATACCCTTCGCTTCGGGTGCCAGCCCGACAGGGCATTTGTGCACTGGCTCTGTCTAATTTGCCACAGTTACATGAAACTATCATGGATTCATTAGTCGTGGTTCTGCGGCGCACAACGACACTCTAAGAGGCCCGATTACTAACTGGAGAGCTACGTTGTGTATGCACGGTAACATTTTTCTGGGCCCCAAGGAGGCTTAGGTAAGGTGAGTGACTTTATT
A80: 57 | B80: 304 | C80: oPoolOne | D80: TAGACAGATAGCTTGACGGTCATGTTCGTTACGTAGACATATAGATCTGTAACGGAGGTTGTGCACTTGTACCGTCCTTTCTGTGGAGTAGTCAACGTTATCCTGGTAATAATGTATGTATTCCGTTAGATTGCCTCGTATACTACGCAACGTACCTTGAATTGATGTAACCGGATACTCGAGTTCACGGCATCTATGGCCCCGACATCATTAACCGAAGCGCGTTCTTTCACCACGGCCCGATCGCAACTAATCCCAAGCTCGTGAAAATATCTCCTATTATGTTTTTGTATATATGAAGATT
A81: 58 | B81: 320 | C81: oPoolOne | D81: GAATAACCAACCGCATCGATGCTGTCGATTATATTAAACGCTTTGCCCTTTCTTCGACGCATTCTATCAACTGGATAATTAGTCGGTTCCGTCGTACAAACAACCGGTGTTTGTGATGTATATTCGGGACATAACTATCGCTGCTCCAGCAAAGTTTACAGGATGCAGAGATAACGCAAGTCGAATAACCCACCGCCCAAACGACATTGGTTTCTAGTCCGAGTCGGATTAGTCGACGGTCTTTGTCAATCTACCCCGGCCTTGGTTATGAATTCTTCGCCACCCCAATACGCATCAAATCCCGCATCGTCCAGTGTGAT
A82: 59 | B82: 308 | C82: oPoolOne | D82: TAGGAATAATACGTCAGCAGACGACCAACTGTTCCCACTTCAGGAGAGGTGTAGGGTGCATTTATTTATTCCCGTCGCTGGTCCAATTCCACAGTGTGATGCTCACTATGCTCATCGGCGCGGCACCGCGTCTATGCAATGATAGATATCTCTGCCTACGTCGTGTAGTGCTGAGAGTCGATAAAAATTGAGTGGGCAGACCTAATTGGTCTCCTGCGATTGTAGTACCCCTTGGGTACCTATAAACTATAAGAGAAGGTGTCTATTCCCCCAAACATATTGCAGTCAAGGGGAATAGAGCTCAGGCG
A83: 60 | B83: 318 | C83: oPoolOne | D83: CCTAAGAGTGAAAACTACTGGGACATCATGCGATGAAGTATCACACAGGATTACATTTGGGCCCCGTCCCGGAGCGCCGGCAAGGGCGGATTAACATGACAGCTAGAATCAGCATGCATCAATAAAGAGCAATGCCCGCGACGAGCACTGGATCGGCGCTGGCACCGTCGCTTCAGGACTCCTCAAGAGGATCGTGGACTACGGTTATCACGGGGCTGCGCGCCGGCTCCGAAGTAGGCCGAGTTGGTCTGTAAATCTCCAACTCACGAAGTGAGATCTTGAAGGCAAGGATTGCCCTCATCGTCACATCCCGGGTGG
A84: 61 | B84: 309 | C84: oPoolOne | D84: ATAGATCCTCTATCCCGAAAATCTAAGATTGTGATGAATCCTCTTAACCGACAGAGTGTTCACGTAGCGAAGTCGGGCCTTAATGATCGAAAGTAGCAGAAGTTCTGCCTTATCATACTAGGACAGAAGCGTCGCAAAGACACGTCTATATAGAGGTGCTCTATCCCTTTGGAAAATAACTGTGTCTGGGATTTACACGGGGGAGGTGTCCTGGGATACTCCATCGGTGGAGTTGGACTACACTACATTCCATGCGAACTTCGATATGGTCATGGAGTCGATAGCGGCTACGGTTTTTGCCGGCCCGTC
A85: 62 | B85: 312 | C85: oPoolOne | D85: CGCGGGAGTAAGGGGGAAGCTTGAAGCTCTTACAGTATGAGCTTTCTTAGAACGACGCTGCCAAGATCCCCTAAGAGTTGGGAAGAATCCTAAGTGTATTCTTCGCCACAGTAGGGTCTTGCCTAGGGAAATTCGAACATTAGTAAGCGCTTGAGAGTTCCTCTCCACAGAGTCTCGACTTTACTTCGGAGCATAAATCCTCATTGCGCTCGATATTACCAAGAAAACGCGGTCTCCGTCTTTATACACGTCCTACGTTCAGTGATCTGGCTAGGGAGGACGCGCATCCATGGTGGCGGTTGACAAGGTCTT
A86: 63 | B86: 316 | C86: oPoolOne | D86: GACCGTAGCCTACACCCGTACGCGATCAATATTAGTGTGTTCTCCCACGTTCGGATGTCTATCGGGGGTATTGAGTGTTGTCCTAGGCAAGTCAGATCGGGAATAGGTAACTGTGCCTATGACCGCTTTTGGCATTAGGCCATGGACCAACAAGTACTTAAGGATGACCGAAAATAGACTTGCTTATAAACGAAATAATATGCGTATCGGGTGCACCCCCCACCAAGGATTCAGTTTGGACGGCCTGACATTGCTTGGAACGGTTTAAATCTGGCTGTATTGAGGCTCCGGTCACCAATGAAGTATGAAAGCTAAC
A87: 64 | B87: 304 | C87: oPoolOne | D87: AGAATCGATAATACGTGGCGATATGAGTAAAAAGGCCTCGGCCTTTGGTCCTGAACCCCGGTGGATCACCGGCTGCGATCCTAGCAGAACCACTCCAATAAGGGTGACCATGTGCTCTCTCTGGATTAGGTGGCAATCTTATAGAAATATATCACTGCCAGTTCAGGTCGACAGGGTCTAGTGCCATAACGTGGAGTCTGGTTCAAAGCAAGTTGGAGACGTCGTGTAAATAAAGCACCTGCTATTGGAGGAACAGGGCTTATCCGTCAACCCGACACGTAGGCCGACACTCACTTCGTTAAAT
A88: 65 | B88: =LEN(D88) -> 307 | C88: oPoolOne | D88: TTAGGCAAGAATCTTTGTCGCCGAACTATGCGGCCGGTCTGTTTCGCTCCCAAGTGGTGACCGGGCGCCGGCCATGCTGTACGAGCCCCCTCGTGCCATCAGCTCGAGTCTAATCGATGTCGTACCACTGTTCCACAACCATCAAAGCTGAAACGTTAACTCTGAGAACAAGGTAGCGTGAACAATTATCCCAGAAACCAACCGCCAACGGGTGGGCTCGTGCGTAAACCTATCTCGATGCAAGGCTCGGATGGTCCGTGGGAAGAACTGGTCGTCCTTCTGGAGATAATGCGCCCTCACCGTACTA
A89: 66 | B89: 310 | C89: oPoolOne | D89: TATGCCGGGCTATCGTATTCCCTTACGCCTGCATGAGTAGGTCGGATTGGATGGCAAAAAATAGCCAGGTTCGGGGCCCAAGCTGTCAGTACGATATAAGCCACGCATCGACATCTAACGTTAAACTCGAAAATTTTAGTTAATAATACCCGATGTTTGAAATAAGTGCACTTTTCTACCCGACATATTCCATCGGTTTTATCTCCAAGTGCCCCATGACTTAGTCTGCATCAGACTAACCATGCAAATCCCCCATCCATTTGCTTTTCCGTGAGCCTAAATGTGAAGATGCGATCAAGCACTCTATGCC
A90: 67 | B90: 306 | C90: oPoolOne | D90: TCGCACCCCACTGCACTGTCATCGTCTCTCCGTTTACGGTGGACCCCGTATCCCGCTGTATACATGTCCTGTAACATGCACATGAATGATTTCTATATTCCATGTTATATGTGAACCTTGGAAAACAGAACTTCCTGTCTTTCCAAACACGATTTTCAGAATCGCTTGAAAATGGTCACTTAATTGACGCGAAGGAGAGAAGCAGGCGGGTAATACTGTTTTGCGGTTGTTTTGATTCCGAGGGAACCCTCAACCCCTACGCCCGAACCACTATATACCAGCTCCCCAAAAATCGATACTCTCGCT
A91: 68 | B91: 318 | C91: oPoolOne | D91: GCCCTAGGAAGAATCTCCTGCCATTAAATTCGGTTGGACGTCGCGTCGCGTTAACAGGAGGCTCACAACATGTAGGAAGCACACCGGGCGCTTAGTCACAGAGCCGGGAATCATAAGATCCCATAGCTAGGGAATCGTAGGTGTTCTCTAAACTAGAGAGTACACACTGTGTGTATCTTAAGTCCACTAAAAACGTGCGATCAGGTTGCAAAGTCACAGAGGAGAATATGTAGGCGGGTACGTCCACCTGTTGTCAGGCAGTAGTCCATGGCGCCATCAGTGGTTATCTTGAAGCGTGGTGCCTTCAAAAGAACTAAA
A92: 69 | B92: 309 | C92: oPoolOne | D92: ACGGGCGGGTGTTTCTTAACTTCCTGTCCTTTATTGACGGCTAAGAGGGGCTCCTGACTACGAAGCTACCAGGGTTCCGGGACACTGAGAGACGGGACAAGAATCCAGAGAGCAAGGTATGCTGATTCTCTCCTAGCGCTGTGCTCTCCCTTTGGCATTGCGGATACGCGGGAACTAGTGGAGAAGATGGGCATGGGCATGTCATAAAACCGGACATGTAACCGTTCTCGCCAACTTATGACGGCAGGTCTACGCATAATATCGACCAGACTAAGTGTTTACATGACCAGGAGACTGCGGTAAGTCAGT
A93: 70 | B93: 310 | C93: oPoolOne | D93: CACATTCATACATTCCGTGTGAATCTACAGCCGCCCCTATGCACAGCCCCACCGAATGAGCGGTTGCTGTGGTATCTCGACATCGGGGGGTGGACTCCACAATGGCTGCGCACACCTCAGCATTATTGTTTTCCACAGCAGTACAGGAGGCCTCTCTTTTCATGAGCCAGACACACTTCACTACAATGCCAGTTCGGTCACAAATGGAACCTCGACTAAAACCTTTTTCGTTGTCTCAAACCTATACAAACAACGATCGGTCGTAGATAACTGTACAATACTTCAACCTCCGGATCGAACATCTCAGAAT
A94: 71 | B94: 305 | C94: oPoolOne | D94: AGTCTCTTCCTCGGATCGAGTGAAAGATCTGCAGTACGGCGATTTTTCCATATCTTATTCCTTCGAATGGAGAATAGTCTGCTAATATGGTATGCTGAGAATCGACACTGCTGTGTTGCTTCCGCAGGAAAGTCCAAAGGCGACGACGTGTGTAGAGCATGCGCGGATTCACTCTTCACGAAGTGAGATGCCTCAACCAGCCGTGCGGGGAGTCTCTGGATACATTTTTTTGAATCTTTTAAAATTGTCCTCGCCCATTCTAAGGGAACGGAGTGAGGATTAGGGGCACCCCATCCGGTTATAAC
A95: 72 | B95: 315 | C95: oPoolOne | D95: TCGGATAAAGCCGCTACTAACGGAAATCTTCAGGTGTAAATCTACCCCCACGAGCAGGACACATGCCCGTTTGTGTGTGGTATGCGCTCGCCTGCAATTCCCACCTCCGCATAGCGAATCCTCGTCCGTTATGCATTCGCACCCCAAAATATTCATCATGAGTGTCATACCTCGGTTGGATTCGGTCTTTGCTGGTGTTTTTGAAAGCTCCCTAGGAGTATCTTGTTCCTTTCGTAAACAGCCTAGAAACCCGGACTTTCCGCGAAGGAGCGATCCTTATTCTCGAGTTTTCTTAAACTGGAGCGTTCCTCGTTC
A96: 73 | B96: 319 | C96: oPoolOne | D96: TTCTTGCCAACAGCCAATACTCTTTTGTCAAGTGCCCTACCTTAGCTGTTTGAAGGGGTTTTGGGTCCGCCCTCACGCGCTCCCAGTGCCGTTATGGCGCGCACATCGGCCGACTTTCTATCCGTCGCCTAGCGGATTCGACGTGCCAATTTCGCGGTTTAACCCATTGTGCATGGTCTGGCGGGTGACGCAGAGTAATAGCGTCTCGTAGTTATTAGTCATTTGCTGGCTGGCTAAACATTTCTCTGATAGCCTGCTTTTGCCCGTCTAGAAAAGGAAGCCCACAGATTATAGGAAGTACGGCGTCCGCAGAATGGGG
A97: 74 | B97: 314 | C97: oPoolOne | D97: ACTAGTAGGTAGGAGGGGTCAACCAGTTCGTTCCCTGCGCGCGAGGGCGACGTCTCCGCTGCGCATGTCGAGGTGTCAGGTCTTCAAATGTGTGCCTGCTATTCCTGAGACCTGTTTCTGTATCAATCTGAATCGACCGCCCCATTTCCACGGGAGGCATAAGAAACAGCCACAACACTGGCAACGCAGAGTACCTCGCGTCCCTGCCGGTGGGCTTAATGGGTCAAGGCCGTCAAGATCATCGTGTTCCCCGTACCAGCGTCAGGCAACTCCACGGCCATAGTCGCAGATCGCTAGGCCTAAACCATGATCGG
A98: 75 | B98: 306 | C98: oPoolOne | D98: TGACAAAGGATTCCTTACCTCATTTTGGTCAGCAATCAACATCGAGTACGCACTACATCCGGCGTCAACCCAGGTATGTTCTCGAGGCCTCTCGCGTTAGTATTAGAGCGGGGGCACAGCCCAACCTCGGAAATATTCATGCGCTAGTTGAAAAGGTGCAGGGGAATACTTGCTCCACCTAAGGCAACATATACCCTGTTTATCGGGGTCCGTGGACATCCTCGGGTATCAACAAGATTGCGATCCCAACCCACATGATTATGTATCTGAAGCATAGATGTCCACGAGTCTGGCGAGTCCGGTAAC
A99: 76 | B99: 318 | C99: oPoolOne | D99: TAGCAAAAGGACAGTCATGCTATGGATAAATATTCTCTGCGAACATCGACGCGTTAGGGGTCCAATACCTCTTTAAGGGAGAGCGGAGATAGTGCTACCGGTCCCGTGGAGGGCTTCGGATGTTTCATGAATCTCGAACTACCTCGTGAATATCATTTACCTATCCCCAGCTCCCTGCGATTTTCGATAGTCTGTTAACCGACAGCTGGTTATAGAGCTACCACGCAGGTGTGATAGTGAAGCGGCACAAACGGTCTCAGACGAGATCGGCATAGGCTTGCCGTGAAACAGGGCCTCCACGTTGAGGAGGCGGTGACG
A100: 77 | B100: 316 | C100: oPoolOne | D100: ATCATTACGGTGCCCCTACGTGGCCGTCACTAAGATGTGGTCAAGCTTACGCCGGATCCCGAGACATACTTCACCCGTCTAAAAGGACAGTATCATAACCATGGCTACCTTCGGCATCCGAACCTCACAACGCTTACTGATATGATCGCCGGACATATTTCATGAAAAAGCCACAGCGATAACAGCACCCCGCCAGACAGGAAGTGCGTATCTCAGCGGTTTACGCAGTCCCTCACTCTAAAGCGTCCACAAAGCGACGGGTCGATAAGGGACTTTTCACAGCCAAACTTTCCCGTCCGCCCTACAGCTTACGGGA
A101: 78 | B101: 307 | C101: oPoolOne | D101: CTCCATCGGACCTCGCTGTCATTCGTCAATTCATCTTGGGGGGCTTTTGGAATCTTTCTCCACTGGATTCACGGCCAGTGCCGTTGCGAACTCTGTCTACCCACGTTAGTCGACGGATTGATAATGTGGTGAGGCCATCCAATGAATGAGGGTGTAGTAAACCTTTAACCTGGTAAGTACGTACGAAGTCAACAAACTTATCCGGCGACATTCAATTCACGGTCCAAGCTACATACGCCGAGTATCGCAAGCAGTTCCCAAGCCCCTCTTCCCAATAGATTTTGTCGGTAACCAGCACGTACGTCTT
A102: 79 | B102: 306 | C102: oPoolOne | D102: AATTGCACGAGCTGTCGTTAGGCCGTACCACCCACCTCTAGTTCCCACCTCGTATATGTGACCAGAAATCGCGTCCTTCCTACCTCGCGACTGGAAATAACTTGCAGGTGAAATTGCTTTTATCTGTCTGCTATGCTGCCTAAAATAAGAAGCGCTGGCGGCTGTTCATGTCGTCACGTGATGTGCCGCCCGACGGCCCGGCTTTAAGCAAATGAGGTGAAAAAGTCCTCCATGAGATCATCCAAAGAGTTCATATTTGAAGGCCACGGAGTAGACTACATCAATAACATGACCTTTAAGTGGGAT
A103: 80 | B103: 303 | C103: oPoolOne | D103: AGGCCCAACTGTTTTCCTCATAGATGGTTCTGACCTGTTCCAGGCTCGGCATGCTATAGCACACACCTTGATACTTACATCAATTTCTCCACAGCTTACAACAGTTACGTATACCTAGAGGGTGCTAGCAGCTGCCAATGCTAACGACCTGTAGCATGACACCGGACGTATGCGTCCCCAGTGACAAGTTGAGCAGGAAATCGGTTTCATTCCCGACTAGCCGAGCCCACTTCACAGGGCTATCGGGGAGTCACGTAATTTATTGCTTAGACATATCGCATGATCACTTAACCAGGCGATGCA
A104: 81 | B104: 304 | C104: oPoolOne | D104: GCATGCTTACATAACGATTTCTGGATACCTTCAGTCTCTCGGGTCAAGAATCGCCTAGCATTCAAATCGTCACTACAGGAAGGGGTGCTTCTGCAGTCACCTGATCCGGGGTAGAAACCGTTGTCTTTGCGTAGTGTCATGTTTGGCCCCTGGACGGCGCGAAGGTCAGGTATGCTTCATGATGCCCATACTCAGGGGCAGGGTATAGCGGTCGTAGGAGAGTACTAGTCGAGCATGGCACCTGACGTGTTCTTGGTCGACCCTGTCTGGTATGCCAGACACCTGACCGTGATAGGTGCACCTC
A105: 82 | B105: 309 | C105: oPoolOne | D105: AAAGTAGTCACTGAACTCGCCAGCTCGCTCAGGACCAATACACAACTGATTGCTCCGTTACCTGATGCTGAAGGTGTGTACCATTAGCCTACGGAGACACGAATCTGACTTGCCAGGCACATGGGCTTCGCTCGGGGCGGATGGCCCACAGTGCTGAGAAACATCCTAGCCTTACTCCGGTGAATAGGAATAGGCACGTGTGTGCGTTCCCATCCTACTAAGATAACATTGATAAGTAAACCCGTTCCAGACCCCCGATGCACGAATAGCCTACATGGATCCGTCACGTACTACGCTTTTTTCGAGCTG
A106: 83 | B106: 309 | C106: oPoolOne | D106: GGGCCATGAATGTGACGCTAGTATGCTCGGTCCGAACCCTGAAAGTGATGCAAATGCATAGAATCATGGGAGAAGTGCCGGGTTCTGGACCTCCATGGAATTCTCTAGAAAAGTTATGGCGTGCTTTTGTCCGATGTCTGCGTTCGGTCTCATGTTCTACACCCGCGTTGCACACCTATCCATGGCCTCGTTGGATTACAGGGTGTCGCCTCGCTTATATTCCCTTGTCAAGGTAAGTGAGTGGCAAAAGGGGGGAATCGTTGGCGCTTTCGCTCCAAGTAGCGTAACTCTGGACTACCATCTGTAGTT
A107: 84 | B107: 314 | C107: oPoolOne | D107: AAAATCTTACTACACCGGGGCCTTAGGGAGAATCCCTGATCAGCTGAAGGGGTTCTGTACCAGGGTCGCGGCTTAAGGAGCCGACCCATGACCTGAGGCAAAGTGTTTGCGGAAACGCTAGTGGGCAGGTGACATTACGGCTTAGAGGGCAAGTAATATCGCTTGCCCGTAAAAATATCATCGAGGTAGTGGTTAATTAGAATCTCGTGCATATAAGTACTTTAAGTAGGCGACAGTTCAGCTTCGTAGCAGGCTCTTCTCCCTATTATGCGAACCTAGGATTACTTTGCCCTTCCACTGCCAAAGGCGATGAA
A108: 85 | B108: 301 | C108: oPoolOne | D108: CAGTACTGGTCGTCAACGAACTATTCATCTGAAACTACGCGTAGCAGCCACATAACTCTCCATGGGCATCTACTACACCCGGGCTTCGGAACTTTCCCGAGTCCCACGCCAGCCACCCATAGAAGCCCCGAACATATAGTAATCTTCGCCATACAGACTTCTCCTGTGAGCATACGGTCACTACTCACATGGCAAAGGGAGACGTCTCTAGTCTCACAGCGCCCTCGACACCTGGCTGAGGCTGCCTAATACTGACTCATGCTTGTCGTAGCATGTAATCAGGAGCTCCCATGTTTCTTGC
A109: 86 | B109: 301 | C109: oPoolOne | D109: TGCCGTCATTCGACTACTATAGTATGAAATAATTAACACGACCGCGAACCGCAGTTCGAGCAAAATCTTAACAATCCCCCTGACCATCAACCCAACAAACGCGTGTCCCTCTAACGTTGATGTGTGCGCTTATTCGCGGAGAACTGCTCGGACGTGCAGCTATACGATCAATAACGTTGGCGGTGTTCACTCAGTATAACGATGCTTATCTGTGGTAACCGTGGGGACCGCGTGGGGAGGGAATGTTTAACAAACAGGGGTCAATAGCGCAACCGGGACGCAAGAGCATCGCCTTTTCTCA
A110: 87 | B110: 311 | C110: oPoolOne | D110: AGGAAGAAGTTTTCTTCACCAATATGATGTGCTTGACATCTAGCTGCGCCCTTTACGCTCGGGTCAAGCAGGTTATGCTAGGCGGGTGCTCCCCGTGGAACATTCCGCAGTCCCCTCTATGGGGCCGTCGGCTGCATAATACGACCCATACGCGAACGTCGTCAAGTACCTTGTTCTTCAATTATCGTTCGGCGGCATGCTACCAAAAAATCGATCACACCCCACATTGTCCCTGTGCTGAGCGAGGGTAGACACTTCATCACTTGGAGCGGAAAACTAGCCAGAGTTATATCCTAACTGTGCTGGTACAG
A111: 88 | B111: 312 | C111: oPoolOne | D111: GAGCTTGCCCCGCAGCAGCCCAATAGGTTAGACGTTTGATTTACAAGCCGTCACGCTCATGTCGTACGCATACAAGAGTAGCTTCGTAATCGCATAGTAGGACAACTCCTCCGTGTAATTCTTGGCATGAGGTGACCCGTAACCACCAGATAGGCTTTCAGTCCAATCCTATCAACCGCTTATTCGTTAACACAAGTTCTGGGCTGTATGTAAATCCTATTTGACCTTGACTGCGTATGTGTAACGAGGGGTTCAGCGGTGGTTGTCATTAGCCGTAGTTAGAACCGATCGTTCTAGGGGATGCGTTCCCCT
A112: 89 | B112: 311 | C112: oPoolOne | D112: GCTCATCGATTTAGATCATAATAAATTGCCGTCGGTGCATACGGCAAGGTGCTAACCGACGCACTGCGTACCGCGCACTTATTTCAAATCTAATACTCACTTATGGTCCTTCCTTAGCTGAGCCAAATGCTACCTCTTTCGGTCGAAATCCGCGCGGCAATTCACAAATGTGCCATTCCCTCTACGAGCCACGAAATTGCGACATTCTTTTTTGAGGTGCGGTAACTCGCGTCGTTCCGAAGGGAACGATCCGAGTGGAGGCGTTGACAGGTGGATCGCTTAATTATTCAGCATCGCGCGCGATTGGCTGC
A113: 90 | B113: 320 | C113: oPoolOne | D113: TCGTATGAATTTATGGGCGACGGATCTACGGATTCCCAAGTTAACAGTAAATGTCGAGGGTCAATATTCGTCGCCTGAGTTCGCGCGCTACACTCCCTAGTTAACTATGCCTTAGCCCCGGGCGACCCTGTCCAACATCCTTTAAGTCACCTTACGATTGTAGATTCAAATGCATTGTGAATCCCAGTTCAACTTACCATCCGCCTGAGGCTTCGCAGCCCACAAGCATAATCACTTCCTGCAGCAGACCCCGGTTGGCTAAAAGTTAGGACAACTTTAGTGGTTACATTGCACCTAGCTGGGCTATTGGTCTTGCTAGC
A114: 91 | B114: 312 | C114: oPoolOne | D114: GATGATATCTTAGAATCGTTACAGATGCTTTTGGGGACGGGGACGTTTAACCCTATTGTTATGCAAGCCCCAACTTCGGAGTGTTTATCTGCCATCTTGCCAGGCACAATCTCGATTTCGGAGGACTAGAGCATCATTTAAGGGCCCCTTCTGATAATAAATCTTAAGATCCCGCCAATTTCTTCAACCCAGGATCTGGACAGGTGATCTTAGGTGGGGTCACGGAACAATCTACCTCCTCTAATCTGTGGAATAATATGAATGACATATAGCGATTGATTAGGATAGTAGAGCCGAGGTCTGCGCTGCATA
A115: 92 | B115: 311 | C115: oPoolOne | D115: GAGAGATATCGAGAGAATCTGATTTAGCATTTCAAGGTACAGGTAGAGTTGTCGCGGGTGACCATGGACGATCGAAGAGCCAACTTCGCAATACCGAGTGGAAGCTATTTACTATCTAACGCCTTAAAAAAATTGGCATGCCGCCAAGTGTGTTGCTAGCGAAAATTAACTGATAAAAGGCTCCTACACTTTACTTGAATCGGGAGAATACTTTAACGAGAGGTTTGTTTGCACATCTCGACTGAGGACAAAAACAGGGAACAAATACTCCTATATGATGAATAATAATTCTGCTGACACTTAAAGGACAC
A116: 93 | B116: 303 | C116: oPoolOne | D116: GCGCTAGAGGATAGCTCTGTTCTGGTCAGTTAGAGACGCGAACTACTGACGTGGAGTGGTTAACGACTTACTTCTAGGCTTGGTAGCTATCCGGACGTGATTATGCCCGCAGTTCGCAAACCCGTGCTGCACACTCAAGCCGTGTGCGCACGCCATGTTGAAACACTTCGCGGTATACGGGTTAGCTTGTCCAACTCCTTCCCCCGCTGCGCCGTTTCCGAGACTCGATGTTTAACGCGCTAGATTTCACCAAGCGCAGATATAGCGATGTATGATGCTCTTTCCGAGGGCAGAGAACCAATT
A117: 94 | B117: 311 | C117: oPoolOne | D117: ACGTGACTATCCGAGAATAGAACCACCGGAAGCCGTCCCCAGATGACCAAACGCATTCCGCATCATCAACTTGTAAGCGATCCAGCATCGTTGCTATTAGTGATTGACCTGAAACCCTTGTCCTTCCCAACTAACGAAATAGCAGAGCAGATTGTCGATCCTCCTGATAACCAAACATGTTTTACTTCCAAGATGCGGTTCGTACCTCGTCTCGTCGATTGGCGAAATCTGGCGTTTACGTAAACCAGCTTAATAAGAGGGCTTACAGATAGCTAGTCCTTCACGAAGTGTGCCCTTGAGTGTTTAAAGCA
A118: 95 | B118: 316 | C118: oPoolOne | D118: GCCACAAGACGCTTTCCTCAAGTTTAGACACGAACTTGATTTGGAGTGTTCTATTGACACAAGCGGTGTATGGCTAGTAGCCTAAGTGCGAAATGTAGGATCATGGTCATCGGGGTACCGGCTATGGGTCCACCCAGGCATACGCAGTGAGAGGGGGCTACACCGAGCGAACTGCGGGGCCGGGAAGTCTAGGCCCGCAATCGCGGATTCTCCTGACAGTCCAGAAAGTTGATATTTGGACTAACAACTCCAGCAACATAGGCCAGTTAACCCACCCAGTATTTTCATCCTGAGCCATGCATTCCCGCTGGAATGT
A119: 96 | B119: 301 | C119: oPoolOne | D119: GCCAGTCCTATGACACTGAATATTGTCAGCCTAAAATAGAACAGTTCCATATTCTTACACCTGGGCGACTTAACTGCAGATAGTAACAAGTAAGCTTTATATGACGGCTCAGACAGAATTAGGACAATAGTACGATTCGAACGACTACTTAAGCGGGTGAATTATTAACCGCTGGGGATCAACATTGAAGACCATCAAGGCCAATGCAGGTCACCGTGCACTCGTTTTACCTAACTGGGGGCCGCGTTCGCACTCCTAATAGCGGGAGTGTCCGCATCTATATCGAAAAGTGAACCAAGCT
A120: 97 | B120: 301 | C120: oPoolOne | D120: GGAGCGTCAAGTCAAAAAAAGGTAGGGTCATTTGCAATGTTAGGCGCACGTCATAAGGGCCACGATACCGATATAGGCAAGACCTTATGTCGAAAGGTGAATGGACCGACTGCTGTCCATAGCTGACTGACGGCATATCTAGCGTTGCAAAATGACGTTCAGAAAGTTAACATATGCATGGCGTCCTTAAACTAAGCTGTTCACCGTGAACACGAGGGTGGCGCAATTCTGTCTTTCTCCCCATAGAAATTCCGCTGGCTAGAAAGCTGTGAAGTCTCTGCCGGGCGATCCGGTATATGAC
A121: 98 | B121: 304 | C121: oPoolOne | D121: GGCGGTGCATTCACCCAATATGTAAGGATAGTCAATTAGGCTCACAGCACTTACGGATTCCGATTCCACGAGAACCCCCGTACTACAGTTTCGGATACGCTTAGATCCTATGTTCTAGAATTATATGGCCCCGCGATAACACTGAAGCGAGATCTTCAGCCCCAGTAGAGTGAGTTTTCTAACCCTACCTTCTAGCAATCTTGATACGTCCCATCGGTCCATGCTGTTTAAGAAATTATCGAGGGGCGTCGCAATGGCTTGCTATTGCTTGAAATCGCCACGGGTCAGAGGAGGTACTACGCCC
A122: 99 | B122: 308 | C122: oPoolOne | D122: CAAGAGGTGCTATTATGTGTGCCTATTGACCACGATAATTATGAGAGTGCGGCCCCACTAGCCTTGAAGTCCGAGAGACGGTCTATCGAGTCAAAGGAGTGCGATTCCGGGACTGATACGGGTGATGAAACATGCAATCTACACACCCCGCAAGTTCACTGCCCAATTACACCACCTGGACATTTCTATTACTGTCAAGTCCTGATAGTACTAGGGAGATAGTGACCGCGTGTTGCGGGTAACCAACTGGCCGCAAGACATCCCTAAGCCAACATAAGGTCTAGAAGCTAGTGCCTCCTAGCCTCAAA
A123: 100 | B123: 302 | C123: oPoolOne | D123: GCCATCACTGCAGACGCCCTCATTCTCAAGAACATGCCACCCGAGATGGCGAGGTCGTGCATACTAGCTTATAGCGTGGCCACAAGTCTGACAGGTCCCTAACGACCGTTCGTTTGGCTTTCATTTCTGATTGCGTCCGTTATCTGCGGTTCAGAGAGGGCATGAGGCGTACTGCCAGGGCGATGGATCTGAGGAGGCTGCACCTGATTATAACTCGTACAGGGAAGGATACTAAACTAACGGTCAAGCGGTGAATCCTTTTTATAGCTTCGAGCGAAGTGTTTTAGAGGGGATCCGGTGGA
A124: 101 | B124: 314 | C124: oPoolOne | D124: TAGCCTGACAGTGTAACCACGCGGTACTTAAATGCCAGATCGGTGCATTACTTAGACTGTGAGACGCTCCACAGGATTCTCTACATTGACTATAGCGCCACAGAGCCCTGTACCTTATCCCCCGTCGGGTCGTACTCCTTAACGCGTATGTGCAACCCCGTCCCTTGGAACCCCAATCGTCCATTCAGAACCCCTGATATCCTTGTCCCATATATTTCGGGGGGAGGAATGTATCGGGCCGATACACGGCACACAGTGCCGATTCCGCAGGATGATCCTAAACCACGACTGAGAGGTTGCATGGCCTTCCTTCT
A125: 102 | B125: 310 | C125: oPoolOne | D125: TGATACTTGTCACTCCGCATGTCGCCAGCCGTGATCCAAAATTAAGTGTCCGAGTTGGGCGTGAATATCTGCGTACTGATCCTTGTCTGTGCGATGGCACGCCCTAATCCGCGCCCTTGCTCATTAACACTCGCTCAAAACTGCCGCGTTCTAGAAGTCAAGGAACTCCAGAAAATTTGCTTCGAGACGCCGTCGATTGCTCGCCAGTCTACTTTGATCGGGTTTGCTCCTACCTCTCGTCCCAGCAGTCCTGTGACGGGGTTGATCGCTTCACGCATACCCCTTCTCCAGAAAGTGACTAATGCGATTC
A126: 103 | B126: 305 | C126: oPoolOne | D126: GAAGGCTCCCTGTGAAGGAACATACTTCAACGGAAGCCTTAACCTTTTTCCTCCCCGCTGTAAATGCAACACAACAGATGGCGACTGCAGCGGCGAAAGTCAGTTGCCTTCACGAAGCCGCACGTGCCTGTTAAGTACGCCACCTGCAGCATTCGTATGCATGCGGTCACGTAGGCAATCCAGATTGCGACACAGGAAGGAAAAAGAGGGCGCACCCTTGGATAGACCCGTAGGCGAACCCTCTCGGACCCGAGTCTGAGGTGCTGCAGAGGGGATCGATTTCCTAGTTAAAGGATCGCTCTTAC
A127: 104 | B127: 307 | C127: oPoolOne | D127: CCGCTGGTAATTGGCCCGGCTTCAGCCTTACAGCATGTGAAGAAGAGGGTATAAATCTTAACTGCCCTGACTAGAATTTTCTATGAGGTTCAGACTATTCATTCGGGATTACTTTCCGTTGTGGGACCTCCTCGTGTCTTTGTCATTAGAGAATTAAAGATCTAGTGCCATACGAAGGACTGTTGGTCAGACTGTTGCAGCCATTGGTGGAATGGTTACTGACCATTGCCAGACTTCTTTCAACCTAATAACAATGCTGATATGGTACGATAAAGGCTGGAATTAGGGAATGGTACACATAGAGACA
A128: 105 | B128: 314 | C128: oPoolOne | D128: GTGATCGCAATGACCGTGGCGTAGGCGTCGCGGTCTGGTTCGTTTATAAAAGTAAGCGGGCGGATTGATCTATATAGGGGCGGGCAGCCTTAATTTCACCCGAGTTAATTGAAATTTTTGCTGGGCATTTGAGTAGCATCCTACGGGTCTACCGGGGGGACCACGTCACGTGATTTCCAATCACGTATGACTGACTAGCAGCATCGAATACGCTATGTCCCAATGGGTTCTAACCCCATATCCATTGGTGCGGGATGGACTGTTCCCACACCTACTCTAATTCAGCGTGTGCATGCCGACCTGATCGTTAATTA
A129: 106 | B129: 301 | C129: oPoolOne | D129: CCGGCTTTCGGCGAGTGTACCGGGACAGATGGGTTCGCAGGGCACTGGTCTCTGGAAAGCCGCCAGTGCTGGAGACTCGTTACGCAGATCTCGTCAATGCTGTAAGACAATCCAAGATTCAAAAAGACAAAATTTCACGAGTGGGTGTCGATACTTGGGATGAAACAATAAGTTTGCTCCGCATGAAGCCAGAGACGGCCTAACCGCCGGGACGAAGATGGGTGGGATTCCATCACAACACAATGTCATACAGGAGATGAACCGTGGATAATAATAAAATAGCAACCCCAGGCTGATGGAT
A130: 107 | B130: 312 | C130: oPoolOne | D130: GGTACTACTCTACCTAATTTATGAGTAGACTTGAGGGTATTTTGTGCCATCCCTGCTCCTTTGTCTCGTCTACTGCCTGTACCCTAAACTCGATGCCTCGGGATGTCGCCCGTGGAAAGTGGCTTCGTAGTATCCTCGAGCAAAAATACTGGCGTGGGCCTATTTGCATCACCTATATCCACTAGAGCGCACAGAGCTTAACCTGGTGGAGAGGCTTTCTGTTAATGCCTAGACTAACATGTAACTACCGTCTGCGATCTGGTGCTGGTAGGTCTGCCTAGTGCAAGGGCGTCGTGACTAAACAGGATACCA
A131: 108 | B131: 306 | C131: oPoolOne | D131: ATAATAAACGTGTTACTGACGCTTGGACTAATCCCTGTCAGTACGAATCTAGAATAATATGACGTTTTGTAAGGGGCTGATACTGATTCAACTACTCCATTAACTTCTTCCCTGTTCCGTAATAGGCGACACCGATGCTCCTGCTCTCAGCGCGTTGGTTACTGCGAAAATGGGGCCTAGGGCTATAAATGCTAGCGCTGAGGGAGCGGATCAGGGTGTTAACAATCGAAGAATTTCCGGTGAGGGTCGATTCCACATTTGGAACCCTTCCAATTCGCTAACTGGTCGTTAGCTTCACGTGAGTTG
A132: 109 | B132: 317 | C132: oPoolOne | D132: ACAGCGAGCACCGATTTAGTCGTTTGTAGAAGCTTCTTGACAAGAGAATTACACTAACGGCCGCCATCAAAGCGAGCCCATGGATAGCGAAGTAAAGTAAGTTCCGAAACGATCCATCAATTAATGATATGTCCCCAAGTTACTTTTCTTCCCATAAAGAAGACGAAGAACCATGTAACACTGCACGGCTGTTTCGTGGGTGGATGAACTTTCTGGGGTAGGGGATGGTTGCGGATATGCATAGCTAATTCATCGAATCTAGATACACCGAAGACAAATTGAACTTTATTTTGGGCACTAACGCACCGGAACTGGCA
A133: 110 | B133: 316 | C133: oPoolOne | D133: GCTTAATGATCAATATTGAGAGATAATTGCTGGAACGGAGAATCGCAAACAAGACACGTTACGGGTTATGATCGTGAACACGAGCCATTTTAGACCACCATTTGTCTCTACCCGTGTAAACTTGGGGGAATGTGCGCTAACGGAGGTCCCGAAGGCGCGTATAGTACTAAAGCTATTAACCGCACTTTAGTGATGTTGCTAAACCCGAAGTGCCTGCGGAGACATTCGCGCCGAGTAATGAGGGATTGGTCTCAAGAGCCTCTGGAGCAGAAACTAGCACTCTGGACTATATTTTAACGTGAGATCCGGGAGACAA
A134: 111 | B134: 304 | C134: oPoolOne | D134: GCTGCAATCGCGAAATTTCCCAATAAGAGGAACTATACTGTACAGGCTTTTTTTTTGCTAGAAGCATAACTCGTCAGACTGTATACTCGTACTAAAGAGATATATGAGGAGTTCTTGCCCCAACAGGCAGCAACAAGCCATTAACGGACTCCACTAGCGGCCCTTGTGTCTGAGGAACCTGTCGACGCATTTACCTCGTCCATGAGGGTGTGATCATCTCGGCGGCACACATTAACCCAGATGCCAGAGTTTCGGGAACCACTGCGCCTGCTAATGTCTTCAGCGGCGCTCGACGCTACATTAT
A135: 112 | B135: 312 | C135: oPoolOne | D135: CCGCCTTCACCCCGTTGAGAGCATGACCTGGAAACATAGACAAAAACTTTCTTCATGTTAAGGTCTGCACGGGGTGGGATCCTTTGGCTGTGCATCAGGTTAATATAAAGAAGATTATGCATGTGGGGAAGTATAACAACTGGGAAGATTTCTGTAAGACCTAGCCCAGTCTCTCATGGCTACCGATACGTAACACGCCGGGATATCCGAGCAAACATATAACGATAAGGATATAGCCTTAGGTTGGCGATCGAAGCCATATGGTTCCACCACCCGGTATCCACCAAGGGGTAAACCTGCGCGCGCCCTTAA
A136: 113 | B136: 316 | C136: oPoolOne | D136: CTTTCATCCGTGTCTTTCTGTGAACGAGGTCCGATCCAGCTTTTAGTCCCGACCCACCCATATTGACGGGCGCTACCCGCTTAACCCTTTTCTGCGGTAATTGGCTCAAGGGGACGGTGGCAAAGGATCTTCTTGCATGACTTAGTTACGCGATGAGTAGACGCTCCACCTCTTCGGCCTTAGGGGTGCGATAGTGTAACGCGATGTATATGACAGCAAGGGTATGCAACGAGGACTCCGCCACTAAGTATCGGTTGCGCGGGTGACCGCAGAGACGCGCCCTGCATAATCCGGACAAATCGTTCCAAGAATAAGA
A137: 114 | B137: 318 | C137: oPoolOne | D137: CAAACGTTCGGAACTCGCATGTTTGTCATATGGGGGCTGGCCACCAACTCGACGATCCTTGATGAGACACGTTACTACCTGGTTCTGAAACTTCGCGTCTCCTGCCCGGACGGCCCCTCCATTTGATACCTGCATGGCTCACTTGAAATCTATACTAGGCCCACTCTTGGCCGTCGAAGACACCGGTTCAGGGATATAGACTACGGTGACTCGAATTCCGGGCCCGGGCTAGTCACTGAGCGTAAGCAAGAGCACCCCGTTCAAACAAAAGTGCTGGCACACTCGACCTAGCAGAGACTAGGCGTGGCGCATTTTGGC
A138: 115 | B138: 308 | C138: oPoolOne | D138: ACCTGAGGATGAATTTCGACCTACGATAGCCAACGGTTGATACTGTATGATTGGTGTATGCGCCGACGGGTCGCTGGACAGGTTGAAAGTTTCCCCATTTGTAAACCGAAACAGTCACATAGACATGCAGACACTGACTTCTCTCCCTGCGTGCTGGTTTAGTGTAGTGACCGGGTTTGTCTCTTTGCCGTACACGGACCACATTTTGGTGACGTCTCGTCTTGGGCCTTGGGCTCGACAGATGATAATGACGTTCGATAGAGTACCGATCGCTAGATTTCACTGAGCCGAGAGGTAAGGGACGGCGC
A139: 116 | B139: 304 | C139: oPoolOne | D139: TTCATCGGAGACCCCTGTTTTATATCTCGATAAAAGAAATATTAATGTGAAAGACTAGTACGGTAAGACGCCATGAAGTTAGGGTTCCTGCCCTGAGCGAAGCCAAATCTTATGTACAGCTATCTCGGTGATGGAGGACCTCCACGAGGCCGGTGACTGCCAATCAAGCTGGAAGATTTTGACGCTCCTGAACAGAAGCAGAACTGAAGCTTGTTGCCAACATGTAACTACCGCCTTGAAGAAATCCGCAGGTGCGTCATTCGGGCCGCCTAACGGCGGCCTAAGGACGTGAAGCGCCGCTTTG
A140: 117 | B140: 314 | C140: oPoolOne | D140: CGATGTTGGGCAAATTGGAACCAAACCCCGGATGAAAACCTCTAAAACTGCATTGTCCCATGATCACATGCGGACCCCATCTGTCTGCATCTATGTTTTCTTCCCGATCATACCCCCTTCCTGACAATGTCTTGAGTTTTTTAATAGAGGCGGGTAGAGGGTATTTTTCACACTCTTGACCTGCAAGCGTTTGAAACTGGCCACATTACCGTCTCACATATACAGCGCAGCTGCCCTTGCAACGCGCTCTTTTCGAAGGCAGACGTCCACAGTCCGCCGGTCCATCTACACGCATAAGACAAATTTTATTTCTT
A141: 118 | B141: 306 | C141: oPoolOne | D141: CATGCTACTCAGGGACGTGTTACTTTGTCAGACGGGGAGACCCCTGGATGGGACGTGTGCAATATGCTGGTTTGTAATATATCTATTATGACTCCACTGTGCACAGGGTTGGTACATAACCAAACACCAATGTTTACCCAGGGGGTGTGCTCGGAAGCGGTAGGCGCGTGGTCGCTCTAGTCGGTCATAAAACAACTCAAGCTATTGCGACTATTCCATCTATGTTGACTGACGGACACGAACTATCATCCCATCTGGCCATTTGAAAAGTCCCACAACGATCGAGGGACCAGGAAACAGATCAAT
A142: 119 | B142: 311 | C142: oPoolOne | D142: CCAATGCTGCTAAGGAGTCGTCATCATGATGCCCCCAAGTACAATGGTCCACTCAACTAACAAGGTGGAAGTCAATGCAACTAACCACCGGCCGCTTCATGATAGATAGACAGTAGTGAGCGCATCCTTCGCGGCACCTAACGGTATTTGTAGGATACACACGTTGATCGTACATGCCTCAGACCGAGTGAACAATGGACCGTTAAATGAGTAATAATGGAAGCAAGGGATGGCCTGTGTATGATTATTACGAGTATTTGTTTGGTCGCTGACCGATCAGTCTTCGACCGCGAGTCTAAGATAGAACTACG
A143: 120 | B143: 312 | C143: oPoolOne | D143: GACGTGGAAGGAATAAGCATGTACCATTCTACATTCGATACTAAGTACTTACTTCGTCAGACTCGTAATTAGGGCTGAAGGGGTCCCCATCTTCACTCACGGGGTCGAACACCGCTCAGGCCTACAGCCGATTCCACACTCGGTTCTTGTATCACGTCATGTCTCAGTTTTAAACGACGCTACTCTGATTAATTGCAATGGACCGGTGTACGAGTAGTCCCTCCATTTGGCGCGCCAGAACTTCAAGTCAGGCCCTCGTTAGGTGGGAGGACACGAGTGTTGCACTGAAGGCCGCGACACGCATACTCGCAC
A144: 121 | B144: 314 | C144: oPoolOne | D144: AAAACGTAACCCTGAGATCATTACCCTACGTCCCCTTAAGACAAAGCCGGTGTGTTAACATCCGTCGATCACGCAGTCCCAATCTCGCACGTAATGAGGAGGGAAAACTCACTACGAATGACAGTTTTGTAAGTTACACGACGCGCATCGCGGATGGAAAACTGCACCAGCTAGCTATTGGCAAGACACGACCGCGGGCCTTGAGAGCCAAGGCAAATCAATCGTCGTAACAGGCGCATCGCTGATAGTGTAAACTGCGTCTCTCCAGAATCAGTCGCGAGGAAGGCAACAGTGTTGATACAAGATCGTCCGGC
A145: 122 | B145: 310 | C145: oPoolOne | D145: CCGTTCAACTACATCCCATACGCCGGCGCTGACTCTGTAACCAGGTCCCGCTTCGGGCGGAGGTTTAGTAGCAACATCGGGCTCCCACCTTGTAGGGTTCGGTCTAGAGATTCCTAGCCTTATATTCGGTCCCCGTGAAGCGATCGTGAGCAAGGATCCATCCTTCACCACCTGGCGGTATGATCCCGCGTTCAAACCTAGTGTTAACTCAGTCCTGGACATGCCGAGGTAACTTTAGCGTGCACCAAAGGCGATAGGCTCACATTTAGTTCTGCTGTCTGCAACGGGTTAAGCACTACTGGCTTCTATT
A146: 123 | B146: 306 | C146: oPoolOne | D146: GGTCCTATGACAGCCTCGAAATGTGGCGCCCCGAGAACCTGTCAATGAGAGATCCCAGCCAAACCACGATCATCTGTGCCTCCAATGCGTGGCGGAATCTCCCTGTTTAGGGGGGCCCCAAGAGTCACAGCAATTCCATGGGTATTGTTCTATTCAGCTCCCTGAGACGGAGTCGCCAGATGGGTTTATTAGCCAGTAGGTTAATTGGTCCAAAAACGTGGCGGAGTAAGGACCCACGTGGCGTGGCCTGACCGGATGAACTTTTCCTGTATCAGTAGGCTTTTCAAGCGGACAGCCGGGTGAGGA
A147: 124 | B147: 312 | C147: oPoolOne | D147: CCGAGCTTTCTGGTCATCCCGATGCTCGTTTGTAGCTATGACACTTCCTAAGCCAAGAGTCATTCGCTCTAGCAGATTTATATCGGGGCCCGAAGGACATACCAACTTCACATGAGCTCCCGAAAAGTAGCCATTACAGCTAGCTTTCACTTGCTGCGGCGATGTAGTTTAGGACTCGCGTGTCTCCCAAGTTAACATTGAGGCTAAACAACGTGTTACGCGGGTACATTGTGATGGGGCACAAGAGTTCTTACTAGTGGGCCTGGTCATCCTCACGGGTGCGCAGAATCCTACCGCTAGATAGAGTATAGT
A148: 125 | B148: 310 | C148: oPoolOne | D148: TTGTTAAAGGCGAATGCTGAAACATTGGCTCTTCCACTCTCAGGCGCAGAGCTGCCTCGTAGCAAACACACCCAATGGCTCCAACTCTTTACCAGGTTCGTGACAAGCCTTTTGGCCTAGTCGTACGCTGGTGAGTGTGTGTGTAAGCGATATGACGATGAAGCAACCCCCGGTATACAAGTATCAGCAGGCTGGTGTTCGGATCAGGCTACCTAATTAGGAGAACGCGGTTGTGAGGAACCCTGAGAGGGTACTAGCACGCTCTAGACCTAACTTGCACGGGTGTTCTGATTCTGAAATTTAGCATAGG
A149: 126 | B149: 307 | C149: oPoolOne | D149: ACCCGTGGCTGCATCTACGCATGAGTAGGGAAATCAAAAGTGTCACCGCAGTTGGAAAGAGGTAGGGAAAACGCCTGCACTTGATCCTGTCCTGATTCCCCACTCCGTTATGCGAATAGTAGTTACTCCACTTTAACTAACTGGCCATTGTAGCGATCATTTATGTGCGGTTGATGAAAACAACCGAGGAATTCCGGGTTTTGCTGCCGCTGACTGGGTCCATGATTTCTTCCCGAACAGCATTCCTGGCGCTAGCCACTATTCAGCTTTATGACGCTGTAGACGCTTGCACCTCCGCAGATTACTC
A150: 127 | B150: 303 | C150: oPoolOne | D150: TCATAACTATATGCAGTGATTTAGCAAGGGATATTGTCGTCTACAGTTGAACTTTTCTGTCGACCTCTCTCCGGGGCATTATCCTGTGTTATCGGGAGGACGAAAAAGTAAAGCTACTGGGGAGGGCTATCAGGGCGCGATACGCATAAGGAGCTAAAATGCGTGACGTGTAGTGGGATTGAACTTTCTTCCGTGGCCCGGGTGAACTGCCCACTTTCCCAACCTGGTTTTTGGTCAATGGTGCTTGCGAAGTTCGGTATTGGGCAAGGCTGCCGCGTAGCGCCTGTTGTCTTTGTGCAAGAA
A151: 128 | B151: 301 | C151: oPoolOne | D151: GTTGGGTTGTGTTCTCCCGGGAAAAGGCGGTTACGTAGTGGTTACGTCCCAGCCTTGTATCTAACTTCACCAAAGGGTTCACTGAAGGCTTTGCTTTACACTTCCTGTTTGAAGCTCCAGCGCAATGCGATTTAGTTTTCACGCTGGAGTAGCATCAGCCGTACAGGTCGATGCCTTTGCCCGTTGACGGAGATTGGCATCCCGTACTGGGTTGGGATTACTTATTCAGTTAAGCCAACTCGCGAGGCCCTTTTACGCCAGCGACTGTTCACGGACCGCGTAACTCTTGGTTAAAGGTACA
A152: 129 | B152: =LEN(D152) -> 302 | C152: oPoolOne | D152: GAACACTATTGTGATACGCTGTTATGAGGAGGGAAAGTGCCGTAAGGGTAGCGGTGTAGAGCTATCTTTCCAGTCGAGTTCTCAATGTCTGTAGAAAAGTTGTCGGCCAACAGCCCTCTGAGTGCATGGACGCGACCTCGGCGTCATCGCACAGAAGACCGCGAAGCCCTTGGAATTTCGCGTTACATTCGGCGGGCAGTCTAATCTGTTCGACTGTTCCATCGATAATTCGGCCCGAAAGGATAAAGCATTGCCGGTACCTGATTTAACACAAGGACTATGTAACATAAGCCTCTAGATGC
A153: 130 | B153: 306 | C153: oPoolOne | D153: TTGGGCTGGAATTTACTTATACTCACATACCATCTGAGCGGGTACCACCGGCGAACCGGACTAGCTGACATGCGAGGACTTACGATCCCTAGCCATTGATCACAACCTTCGTCAGAGTAGGCAGCGTTTGATGGTTCGTCTACTTGTCTACGTCAGCTAGGTTTTGCGTCTACGTAAGTAGGGCAGATGCACGCTTTGACAAGTATTGTCGCGAAGAGGGATTAATACAACTCGCATGACGGCATCTTAGAAAGTTGGGGCGCGTTTTGCCTTGGGAAAAATCGATTGCTTGATAACCACTGTCTT
A154: 131 | B154: 306 | C154: oPoolOne | D154: AACGTCCACCGAACGCCGTGAATGACGATATACCTCCCTTCGTGTGCTTAAAGGCTTCGTCGACATCCGGATTACCAAGTAGGATGTATTCTTTACATTCCTGTTGACGTGGGCCTGATACTAAGACGATTAATTACGGCCCGATGGCAGAGACCACCGCGAAGAGTGCCTGCCTGCGGGGGTTGCTAAGTGGCAAACGGGTGAACTACCGGGACCAGCCGAACAACCTAATAAAACAATCTGCCCTAACCACGGACGGCCCCAATCTAGCGTACGCTTCAGCTCGTCATAGCTCAGGAATTGAGG
A155: 132 | B155: 306 | C155: oPoolOne | D155: ACGTAGAAGACATGACTGTCCTTTTCATCTGTATATCACGTCTCGAGAACGTATGCGCTCCCGATAAACTGTATGTCCCTGGTCAGGCAGAGCACTCATTTGACAATGTGACGATAGGTCTCGTATGTTAACGAGACCCGGCTTCCTCGTGGGGCCAATGACGCCTCGCGAAAGCACCAGCAACGCTCACTCGCATTTCTCTGGTCCAGAACAAACGTGTTGTTATTGCTGCTTGTTGCATTCGGGACTGTTATCGGTGCGGCCTCGTGCCACTCGATGCAATCTCGGGGCATCCGACCTCTCGAG
A156: 133 | B156: 307 | C156: oPoolOne | D156: ATTAAGCAGCTCTCGCAGACCGCGTAACTACCGAAAGAATCTGACTCTTCCTTCGCTGCATGACAAATCTCGGCTATCCAGACCCTAACCCTGGCCAACGGAATCATCAGACTACAGCCACAGTAATTACTCTAGTGGTTTTACGATCCGTCTCATCGGACGGCTCCCGGAATTCCTGAGTTGGTCGCGAGGGAGCAGAATTGTAAGGTCTTCACAGGTATCGAGTCGCAATCACACAACGCTAAGGCGGAACAAGCCCTTGCCCGATCGATCACTACCATCCGCGGAGTGGGACCGCCGGCAGATA
A157: 134 | B157: 311 | C157: oPoolOne | D157: AACTTAGGTCTATGGCGTCCATAGTACTGGCTTGATTTCCGCTCCAATACCAGCTGCCCTCTCGCTGGTGATGGCTCTGAGAGAGTGAGTTCATTACTCAAGACTTCTAAGTTCCTTATGTGTAACGGGCTATTATCCAGGCATGCGAAGTGTAGGTTATACAAGGGCGAATGTCTAGGCAATCCGTGACAAACCCTTACCCCTTTAACCAAGCGTCGCGGGTGTATTGATCGGGGCGCTAGTATAAGTCCGCGGCGACCAACTAGATTTGCTGCGGCGAACCCACATGCGCTAGAATGAATCGCGAGTCC
A158: 135 | B158: 308 | C158: oPoolOne | D158: CGACAAAAATCTGAGGTTGGACCTCTTGTAACATTCTGTAAGACGTTGATCACACGCCTTTGACGCGCTACATTCGCCATGGTGCCTGCCTTGCCGAAGAGATCTGAGGGGTAAACACCGTCCAGTTGTGTGACACGTAAGCCTTTCCTGACGCTGCCTCAATGCCTTGCTATAAAAAAGGCCACTCTCATTTTTCGGAACGTCTAAATCTGGCGATCGGATGTTTAGACTCCTGTACTTTCTGGACCTAAGGTACCTCTTGCTTTAGAGCTTGCACTTTCTATCGAGACGATAGACGAAATACGTCT
A159: 136 | B159: 310 | C159: oPoolOne | D159: TCTCAAGGTACCCTGTAAAAATACGTGACAATACCATTGTACAGCCGAATACCTTAAACGGGTACTGTCGAGCAAACACGGAACACAAATAATACTTACAGCTAAGTGAACTCGATGGCTGCCGGCGCGCGGCATGCATGGGCATAGCCGGAGGTTACGCGGGTGAATCATAATCGACCATCTTGGCCCAGTACGATCTTGGTTAACTCTAGACAACTGTTAATGTATCCCTTTCATTAACCATGCTCATTATTATCCGATCATCCAGGGTTCCCAAGTAATGTGCCGCTGTATCACGATTGAAGAACTC
A160: 137 | B160: 301 | C160: oPoolOne | D160: TCACCTCTCCACTAGTTGAACGCCATGGGGGGCAAGTAATCCTTAGGAGTAGAGGCAAAGGCAGTTCCCTTGAATTTATATAAGTTGCGTTCAGACAGAATAACCAGACTGAAAGCGATACGTCCAGGCAGCCCTAACCAAATTTCGAGGTAGCTCAGAAACCCTCCCTTGCTAGGACGCACAACCTCGTTTCCCAGACATCAGCACTACTCTTTGTGGGAGAAAAACCGGAAAGGGGTTGTGCGCAACTGTTAGCTCGGCGATGTTTGGCTCCGGTGATCCTTTCCGCGGGCGCCAGTCA
A161: 138 | B161: 310 | C161: oPoolOne | D161: GTATAGATTGTAACGGTCTAACCTAACGCACAGCGGGCTAAAATCGACTGGAGTGGCATGTAAGAAGGAGATGTTGCTAATCTGTAGTCGGTGACGGCGACCTCTATGAGTCAAGAGTGCTGTAAGTATCTTAACACTAATTGTCTCATGAGCATACAAGTGTCTACCCAGGTCAAGGTATACGTGACCGTTAACAAAGCACACTTAAATAGATGACTGCACCTCTGGTAAGGCCGGTACGAAAAAACAACAAGTCTCAATGCCCCAGAATGTCTGATGTTTGTGTCCCGTATTCCATGCGAAACGTTCG
A162: 139 | B162: 307 | C162: oPoolOne | D162: TCCAAACCTTGCTTTCAAGTCCGGTCGGATATCCTGGCGCAAAAATCCGATGTGCCTACGTCATTGTTTGACACAATTTCTATAAGTGCTTACGGGGGTGACTACTAGGGAAGGACAGTTGTATAAGTCGGACCAGGTTACTTCAACACTTCATAATCGCCGCCTCTCGGATACTTGATAATGAGCTCTCTGAAGGCCACTGCATTGGAGACCAGAGACGGCAGATGCTGGCGTCTCCAAATCGTGTCGCAAACTCTAATTTTGGGCTCATTTAAGTCGGAATTAGGTCATCGATTGGGTAGCGACG
A163: 140 | B163: 308 | C163: oPoolOne | D163: AAGCGCTACAAGGTGGAATTACCATTACCCGCCTGGGTCCCCGCGCGGTGCAGGCCTAAGATAGCTATGCTGCAATCTCAAAGAACTTATTCATCGGTGTGACTAAGGGGTAATCATGTGATACGCCCATTCTGGCTTGCAACGTCAAAACGTCAAGGGCTTAAGGGCTCCGGGTTGAACACGCTGGTCTCAAGCGAGAGTGAACCACGTAAGCAAACATTACGATATGGGGGGCTCTGTTCTGCTGAAACCTAGATTTTTAAATTTCTGACAGAGCATTCGTTTCCTTTAGAAGCCAGTTGGAACTA
A164: 141 | B164: 311 | C164: oPoolOne | D164: GTTGGCATTGTAGCAGCGATGTGCATATCCAATGTAACATAGAGTACGGGGCGCAATATCTAAAGGTGTCATCCAAGATCGTGTCTGAACTCGAAATTCCGATCGAATCTTAGCCCATGAACAGTTATGGTATAATGAATCAATGTATGATCGAGAGTGCTTAAAAGCCGGCCTTCCCCAAGGCGTTTACAGCCTCCCTCTGCGGCGGCGAAATCTAGGGCGTGGTGGCGGTCCCCTTGAGCTAGGTTCTTCTAATGTGTCACTTGATTCAACTTCAGTAGGTTCCTCCCGCTCGGGCACTTTTATCGAAG
A165: 142 | B165: 308 | C165: oPoolOne | D165: GTGAGCACCACATGCACAAAGACCCGAATAAAGAGGCGTGTGAGACTATGGTTGTCAAATTATCCGAATATGGAGCGGGATCGAGTAGTCTCTATCGATTGGGGCGACCAGAGCTCGTCTACCAACGAAGCTGCACCGGCGATCATATTGTAGTATCGCGTCATACACTAGGACTAAGATACAAGTTCATATGCGCGCCAATTACAAGATCTTTATCATACTCCTTCTCCGCGGAAACGTTTACTCAATGAGCTGTAGGATGGCCATTGGTGATGGGTATATCTACGGATGAGTTCGATTGAGGTGCC
A166: 143 | B166: 311 | C166: oPoolOne | D166: GGCGGTGGCCTGCGCTGGGACTGACAGTTTTTTCCAGTAAAATACTAGTCTCCCAGAGACCCTAACGCTCTATTGGTACCTACAATATTGGCTTTTACGGTCTACGATAATCATAATGGTCTACCCAGTTAAATTATGGAAGGGGCGCCCATAGTCTAAGGAAGTAGCCATGCTGTTCTTCAGACACCTTACGATGTTCCAAAGATATGGCTTTTGCCGTTACGCAAGACGAGCCGGTTGCCCATTTTGAAAAGAGAACTGGAGAGCAGGTAAGTATTCGTGTCCCGCCCAAAGAGGCGGTCACTGCCGGT
A167: 144 | B167: 302 | C167: oPoolOne | D167: TAATCGAGCAACCATGAACTGTCAAGCAGCGTGCTCTTGTCACCATCAGCCTTTTTTCTGGATTGTCATACAAGAGATGCTGTCTCGCGTACCCCATATGCGCCCGCGGAACCATGTGCAATAGTGATGAATCGTGTACGTACGGAGTGGGACTTCGTATACCTGACGGCCCTTGTCGAATCCGACAACGGTTATGGAGCAACCTACAGTGAGCAGCCATATCGCGCGAGGGCTTTTCAACCGGGTTTTCGCACTCGCATATATCTGAGTGTTTCGTGCTAGACATAAACACAATGCCACGA
A168: 145 | B168: 314 | C168: oPoolOne | D168: TGGTCTGGCCTGCCAGAGTGAGACGGACATATAGTGCATCGAAGCTCTTGTCTACAGGTACGGCTACCACCAGCCTACAGTGATGCCTTCGGGTCTTCTGGCGGGACTTTAGTCAAACATTTGGGCGTGGTCGCAGGGTCGGACAAGGGGAGGGTTTGCCCAGCAGGCTTGTTAATCCTATACGAATCGTTCAATATATCCTCGTCGTTCGATCCTGCCACAGTTAGGCTTGCATCCTGAGTCACTCAGGGGGCCTGGTGAAAGAAAACTAAAGTAATATGGCCTTGCCCTGACAGAGCAATGGCTGTCTTATT
A169: 146 | B169: 309 | C169: oPoolOne | D169: ACAATCAGGGTACCGAATGATGGGTAGCCTACACTGAAGGATTGTTTAATGTAGGTAGTTGGATCATCTACACCTCCTGTCGCTCCATCAGGGCTGATTGCTGGCCAATATTCATTCGTCCGGAAAGTCCGGGGGAGGGTGTTCTGAAGTGCCTAGTCTTAGCTCTCTCATGAATGGATGAAGGCGAGAACAGGCCCCCTTCTCCAAGCCATCGAGATATTAACAACCAATAAAGGCTTTTACGACCTGTGAGCAGGTTCGTCTAGCTCGGTGCGTCTGAGAGGAGATTGGAATGATGATGTAAACGTG
A170: 147 | B170: 303 | C170: oPoolOne | D170: TCCACGGATGTTCTAAGTTACCTGAAATGCTTTGGTGCTTTACGGGGTGGCGTATTTATCCCAATTGCACGTGGCCCTTGTTAGAGTATTGGCATAAGCTGGTCCACGTATAATTTCATAGTGCCGTTACCGTCCCTTGATGATGCCCCGACAATACGGGGAACTATCAGAATACACCAGTATGTTCCAAGGTTGCATCATGTTGAGGCCCTTAAAGCCATGTTGTCACCGCCACAATAATTTGGAGCCCGCTCCTGCTCGGCCGCATAATCTCACACCTCTATCGGGGTTGTCAGTTAACGC
A171: 148 | B171: 319 | C171: oPoolOne | D171: AGAGCTTTACGCCGACTCGACAAACAAACAGTCTTCACTCCGCAACTGTAGTTACTAGTTGGGCGACCCTCTTCCAGTTCTGTGCTCCGTAACTGATGACCGCTCATCGGGCCAAATATGGATTGAAGACGAGGGTGATGTGCGACAAGGTTGTCGAGACAGAACTCTACTCAGTCCTCCCTTTAGACCTGCCAAATTGACGGTATGTAGTCTGTTTTCCCAGGTGCCCAGACCAACCACGCTATTCGATCCAGCTCTGCAGTGAAAAAAAACGACCTTTCGGCACGAGTGGTGCTATTTTACGGCCCTCGTAGATTGG
A172: 149 | B172: 315 | C172: oPoolOne | D172: TGAGTAAATTAATAAGCCAACTGATGGTTGGCATCATCTGCCTACGGCTAGATTATGGAGAATTCAGATAGTTATTCGACTGAACAGAGGAAGACGTCAGGAGATTACGTGACTCTCAGCTCCCTTAAATCACGTGGGGTCGTCCCTTCCTGGTGGAATGCAACAGTTCGAACCATGTGGCTTCTGCATGCGAGTCAGTCCATTATCAGGTCCGATGACCTATCTGGAAAAGACAGCCTAGAGCGTACCACCGCAGTGCTAGTCAGTAGCGTGGAAGAGGGGACAGGGGGACAACCAGGCGTGTGGTGGACGGGC
A173: 150 | B173: 308 | C173: oPoolOne | D173: CTACCATCTGCCTAAACTAATCCCGGCAGGGTGGCTTTTTTGTCGTTTCTTCGCCAATTGTCAGGATTTAACTAAAAAAGTGACGGATTAGTTAAGCAATACGGTAGTTTATTCGTGGCGGCCACTCTTATGATTTGAGTTGCAAACCACGAAATTTACATTCGAGTCACCAATTTGCACACGAACATTCACCTCTGCGTACGTAAAACAATTTGCGTACAACGTGGATGGGGGCTCTCGCTGACTCTTTCGATCCATGGCCGCTCGACTCATTCTAGAGTTTCCAGCGTCAGACAGTACACACGCCC
A174: 151 | B174: 309 | C174: oPoolOne | D174: TCATGATACGGCTACCAATATCTTCGTGCGGTTTCCGTGAGGCCCTACATGAATTACAAGAGCGTCTCCCACACTAGTTCCAAAGCGGAGACCGTACTGCAGCAAGGCAAAACAAAGACAGAACAACGATCAGATGGTCCAGTTTCTCCCGTGATAGCTTTCTAGAATAAAAAATCATAACACTAACAAAGTGCCGATTCGTGGGTCTCGTATTTCTCCTGTGTAGGCGAAGGCTGTACGGAAGCATTGGGGTTGACGACGACGAGCGTGCTTCAGATCAAACGTTAGCATTGACCGGTTACAGACCGG
A175: 152 | B175: 319 | C175: oPoolOne | D175: GTGTCGCGTGCATCGGAACTTATGGGCAGGTTCCTGCTTCGTAACTATACGCGAGCGGCCCCACCTCGCACTACCCAGAAGAAAGAATATTTGACCTTCTTCTCTCCTCTCTTTACTTCCGGTGCGGGTCAGGATCATCGCTCAGTCTAGTTTTTTCGTGCTAGACTGGAGCGGCACTTCATTTAGTGCGCCGCCGAAAAGCGCGACTGGCCATTCGTGCGAACTTAACGCCTCCCTCCACCGCTTGAATTGTAGCACGCCCGGTAAGCATGGGCCGTGAGGCTGTTTTATGTGAGTGGTCCTGCCCTATACCTAAGAT
A176: 153 | B176: 302 | C176: oPoolOne | D176: GCTCCAGGGTTTTTGAGGACTAAAGAAGGCACGTGATGACGATAGTTTCTTATAGGCCGCGTCCAAATGTAAGCGAACACAGACTTGATAGCCCTGCTGCTTTTGGCGTTGCCGTGGTCCTTCCTAGAGCGCAGGCCGCTCGCACCTTACCGCTCTGTGCTATCGCGCAGTTCAAATATACGTTGGGCTCGGTAGTCGTACCTCGTAACACGCTCTGCTCATATAGCCAGCCAGCGACGCATTTCGTGTCCCGCGTCAAGATGTCACCCCCAGAAGAGAGGGATTGGATACGAATTGAATAC
A177: 154 | B177: 309 | C177: oPoolOne | D177: CAAGACAGGAAATATACGTGGGGAATCCAGTATGAATACGATGGGTGGTTAGATAGTTTAGGTAGGGAGCAGTGCTATTGAGGAGAAATCTAAACTACTCTCGGTCAATGCGGTAATTCATTCATATGGGTCTCTGGTGGCATCCGCATCTCACGTGTGGAGGTGAGCTAAATAACGCCCAAACACGAGATGGAAGTATTGCACCCGTTATTGACCTGCTCGTTTTGGTAACCAAAGTGAGATTACGTTGTACAATGTCCTCACATCGAGTGACTAGCACAGGTAGACAGCTACGGCCTTGTGGAGGTG
A178: 155 | B178: 314 | C178: oPoolOne | D178: CGGGAGTGGTTTCTAAAAGGCTTCAGGCTAGGAGAACAGGGTTTCTAAGACGGTAGCCTCATCCTCAATAGGTATTCCGTTGATCGTGTCCTGCGTCTTTGTATCGCTGTAGAGCTTCCTACGCATACACTTGACAATTACAACAGTATAATATCATAACGGTATTTTTGTCCCCGGAGTGCATCCAGCCGGAGATAACAGTCCGAGCAGTAGAGCTTTGATCTCTGTGTGTGTTGTCTCCATGAATTTGTTATCCGCGCTGGTAGTCTTAACGCCAGACGGAAACCTCACAGAGGTGCTGTAGAGTGTTGTCC
A179: 156 | B179: 314 | C179: oPoolOne | D179: GGACAAAGAAAATTATGTCGGATATCAAGTTTCAACTCTGCCTTACTATATTAGGAGAGAGCAAGCCTCATCGATGAAATGTCTTTAGGTCTCCTTAACCCATGCAGTGAACGGGCGCCGAAGGATGTCGACGCCGATGTCCGGCCAGAGGATGGGCCTCTTCTGTACGAGTTGCAAACGGTCCGCCGCCTCGATGCATAGTATATTTGTACCATGTGATGGATCAAGTACTGCTTAGTTGATTTTAGCCACAGGTGAAAACGAACCTTATGAACCATGCGCTCGAAATGTGGCGATATCTACAGGATACTCTT
A180: 157 | B180: 318 | C180: oPoolOne | D180: ACCGGAACGACGCGTCTCTGCCTCGTGGCGAAACTTGGGTCTTAGTTGGGCATTCGCTGATAGCCAATGACCAACAATGGCGGCATTTACCGGCCTTCTGTAAAACAGACGGGACACCCTTATGCTTGACTCCGAGAGATTCAATTAAGACAGCTGCGGACCCCGTGCTTCTGGCAGGGGTAAAAGGCTGTGAAGATTGTGCGTGAATCAGCATGTCAAGGGACGACTGTAAAGGAAGGATACTGGGCGATGGTGTATCAGTTTTCCGCAGTTGAAAGGCTCCTTGCGGGTGTTTCATAGCAGCTAGACTGAGATACG
A181: 158 | B181: 308 | C181: oPoolOne | D181: CGAAAAGGCACCCCGTTCGAGTTTGATGCCACTAAGCTACTTGGCATGCCATCCGGCCTCGCATCTCTATAGATTTGCTGCCGCAATTAAACGAGCGCATAGTTACGCTGCCACAATCTCAGTCGCTCCAACGACCAGAGTGGCGATGATGGTGCGTGTGCTATGAGACTGGTAAAACGCATGTGAGTCTAGCACCGATTCCATCTCTCACGTAGCCAGCACTGAAAGAGGCCAGTCGCTTCGTGCCGGCTCGTATAACTTTGTGGCCGTTACCGTCACGTTGTTAGTTAGTGTATGATACCAATGAC
A182: 159 | B182: 315 | C182: oPoolOne | D182: TCGAACGAGGTATCGCAATTCTACATCAGTCCGAGACCGAACGAGAGCATGCAGCGCCGTGTGATGCAGGCCAGACTGGCTATCACCAAGTCATCTGCAGGTTTGACTATTTTCTGCAAACTCGCTAGATTCCCCTAATCGATCCCGTCGTCTTACGGTTACCCACGTGGGCCAATTCCAAAGTTGGTTGTCCCCATCCAAACTGTGTACTCCACTATCGATATGCACGACGCGCCCGTAATTTGCCAAGGATCGGGCTAGGGTACCGTACAGCAGTTCCAAGTAGCTTGCCCTCTAGCCTCGAGGTACCGAGTT
A183: 160 | B183: 304 | C183: oPoolOne | D183: GTCCTCGAACCACAGGGTACTGTAGCAGAGAGAGGTGGCCTCACGGTCCCGTATACGTAGGATAACCACTCCACGGCGCTCCGTCTCGTTGTGTAGGCACCGGGCTAAGCCAGTTGTTAAGCCTCCCCTGTGTATAGCCGGAGCTATTAGAAAAGTTGTCAGATATTTGACATGCGGCATTACTGTGATTCATAATAAAATGCTAGCGTAAATTTAGCGTGCACTGTTCGTGAATATGTCCGGGTATCAGTCACTACCTGGGTTACGTTCCCAATCCGAGTTGATTATAATCGCAACGCCGCTG
A184: 161 | B184: 303 | C184: oPoolOne | D184: CACTTCCTACAAGTTTAGCATTAGGCCACAACCCAGGCTTCCAATTTTTAGAAAGATGGAAACGATGGCGAATTTACATTTCTTATCAGACCCGATTGAGAGCGCCGGGATGCCGGTATGCATGGCGTACGGTTTACCCGCTGTTCGGGTCGGTGTAGCGACGCACTCGTTCTAAGGGTGCCGATGGAGACTTTAGGTGGCCGACAAATGTCTGGTCCTGCATGACTATCTACCCAGATTTTGTAGGGGCTACAAAAAAGCGCTAATTAGGACTTGTCATTTCTCCATACAGTGGCACCACCG
A185: 162 | B185: 318 | C185: oPoolOne | D185: TGAGAAGTGCTGTATACGTACTGGGGGCCGCCGCTGAATTTGCGTTCTGCCCGAGACCGCGATAAGTCGTCTACTTTCGATAAAATCGGTCCCCGAGTTTCGCATGACGGCTTTATTTGCCCCCGGACGCATTGCAAAGTAATGGGTTGAGAACAACCGAGAACATGTAACGTCCGGCACCTAGGCAGGGCGGGTGCTAGTTCCACAATGAAGAAACCCGACGGTCTCATCCTCTAAGGAGTTTATACGAAACTAACTGGATTGGTTCTCCCACTTTCGGCTCGAATTATGGCCTAGATCAAAACCGATACCCCAGCT
A186: 163 | B186: 312 | C186: oPoolOne | D186: TTGATCTTTATACGTTAAGCCTGACGCTTCACTACACTACGCGCTAGGACTTCATTGCCATTATAATGAAAAATAAGGGCGCGAGGCAACCACCATCAGTTAACCGCGCGCAGAAACTAAATACATCCTATGGCAGCCGTTACTCGGTTGACGTAGCGCAATATGCAGAGAGTGCTTACGACAATACCGAAAACTGTTTCCTTACCGGACCGGTCTGCCCCACGTTTAAACATCCGGGGCTTCCCTGGATGCTTTTTATAACCCTGTGCGAATGTTAGGGCTGAAGTCTGGCAGTACCACTACCGTGAGAGC
A187: 164 | B187: 302 | C187: oPoolOne | D187: TTAGAGGCCGTGCTTTTGCAAAAAGATCGGGTTGACGGCGCCTAGCAAGGATGCGAACTGCGATGTATCGTCACTGTTGTGACGCCTGGCCCACTCTGTAGTAGGCTACTGTCGCTATAACGACCCTCTAAATCTTTGAGTCTATCATGCATTACTCTTTAACCCGGTGGGAGGTCTCAACGGGAAATCAAGGAAGCAAAAACAAGCTACTAAATACGTCAATCCCATGTAACAAGGCGCACGCTTGAGAGATTGAACTCCTTGAAGCCATCCGGCCCACTTTTAGTGGAGATTTGGCGCCT
A188: 165 | B188: 304 | C188: oPoolOne | D188: GCCTGTGACCGGTGGGTTAGAGTACCGTGCCGTTACAGCGGTATAATTCTATTTGTTGTGACACTATGAGCTATACGACTTTACCCGCGCTGGGTCGGAGACGTGATGCCCTTAGTCCCTGCTGGCTCAACGCTGTCCCTTTTATCTGCTGCTGGACTCATGAAGCGACGAGCCTCATCCACCCCCAGTTACGAACCGCGAATCGACTCGTCTACTACGAAATTTCAGCCCATTGATGCAGTATCCCAACGCCGGTGTGTTCCTCTTCTTTTGAACGCTTTCACCCGAGGCAACTACACGATGC
A189: 166 | B189: 308 | C189: oPoolOne | D189: TTAGCCGTGGATTTAGGATAGCTCTAGGACCGAGCTGTAAGGGGTGGTGTGCCTAGGCTCTCCTTGAGGTCTCAGCTCAATAACACTTTAACGAGATGCTTGGAAAACTCCCAAAAGCCTGACGTGCAGAATGTCGTTTGGTGTCAACGTTTGACAATCGGAGTAGGTCCTGATTCGCCACGCGTAGCAGTGTAGGACAGCACAGTTATCTGGACTCGGTCCTCTTATGGCGTCTCAAGGGTGACTATGGTGTGTGCAGCTGCCGTAGTCCGGTCGCCTTCGGGACCCTACGTGCTTGGACAAGCAAC
A190: 167 | B190: 302 | C190: oPoolOne | D190: TCCGAACTCTCTATGCGTGGGATTTGATAGATGGGAAGCAACCTAAACGGACAACGCGGCGGTACATAGAACAAATTGTTGCAAAACAGGTCCGGCATTGTTTTGGGAAGCATCTAGCGGGGTAGAACCACTTTACTCACTCGTACAGTGAGCAGCGAAGTGGATCGGAAAGACCGCACGCAGATTTTTCGTATAGGGCTTTCGTGTTCAAAAGGTTTCATGATTTTTAGATCCTGGACACCTAAGTCCAGGGTATTGCCTCTCGATGGTCAGGTAGATACCCAATATGCCAACAATATTAC
A191: 168 | B191: 314 | C191: oPoolOne | D191: TCATCGCATCCTCCATGTGCATGGTGTACGCCCTTCGATAGTCTAAGCGTTAATGATGAGCATGATCTCATCTGGGTGTATAGGACTCTGAGAGGCCGCCTCGCACACCCTATGTCAGGATGTAGCCTTATGGGGCGGCACAGCCGATATTCTAGGGGGCGTTTGCGCGGACATACCTCTTGAAACCAGAATCGTAACACTAGGTATAAAAAGTGGTTCCCTGGAAACTAAACAGTAGATTCAGACAATCCCTCCCATGGTAGTTCTCTTTAGTGGCCTTTGGCCAATCCTCGGACCCAAGCGCGCTCAGGCTT
A192: 169 | B192: 302 | C192: oPoolOne | D192: AGGAGATATAAGTAAACCTTGCATTAGTTCGATATTCTCATAGCTTACTACAGGCGCCTCGCGTGTTTAGAGCTGACAGCTCCGGTTAGCTAAGCGCACGGCCTGCATTAGTTACATCCAATGTTTTGCCGTAGTGGTTGAGGCGCCCTTATATATGCCTCGTTACGAATGCAGCGCTTGTTCCATCAACTCTATGAGGTCCGCCATTACTCTCTTGTTTTCTGTAGACTGTCCTGCCAACAGTAGTTGGTTGTCCTCCCAACCAGACACTCGCTCCGCGCTCGATGTTGAAGTCGTAAAAT
A193: 170 | B193: 310 | C193: oPoolOne | D193: TAAACTGGAACGTATAGGCAGGTCGTGCGCAGGTGAAAAGCATTCAGTGGCTTTAACCGCGATAACTGAGAGAGTTGATCTTCAAGCATCGCCGTGGAATCTGAATCGGATGTTTATCTTTCCTCCCGTCCACGGAGGGCAACGAAGGTATTGTAGCCGTGGCGGGCTACCACTCAAACAGCTACTGCGAGTGGGGCACGGGGTCAGGTGTAAGTTGTCCCGGCCCTTCCAAAACACTTGGCTGAGGCAATTACTAATCCGCTACACATAGAGACCACCGTATTAGGGTATGACTTATCGGTTGAGCTAT
A194: 171 | B194: 316 | C194: oPoolOne | D194: GTTAAGCTCATCTAGAGAATGGCTCGAGAATCAGTGTAATGAACAAGATGAACCGGTTTTGATTGATGTCAGCACCCCTGTTCTATTTGGGTGGGGGGGAAACAGGCGCGCTGATCGTGAATGGACTGTTGACGTAGGTCACTTAGTGAACCCCCGCAACATCCCATGGCATTCAACAAGCTGTCCCCGTGATTAGAGGCGTGTGGGGCTTAAACATGCTGACTGGATGTTCGGCCAACCTACCACGTTCGGTCTTGCCTTCTTTCACTACTCCTGCTGAGATTGTGCCCAGAGGGCAGGTGTGGAGTGGCCGGGA
A195: 172 | B195: 305 | C195: oPoolOne | D195: CTGGCGTTAGCGGGCTGGTGATGGATCCGTTGAAGACTAGGGATGTAGTCTTAGCTTGTCTACATTCGTCTTGATAATATGACGCTCGCTTTGCAACTGCCGTGGGCGAAGTTCTTCAGAGGATGCGCTAATAGGGGACCCTTCATTTGTTGATGTTATCCCCTGGCTATTTTGACTGCAGCAAGCCAAACGGGAATGCGTAGGTCAACTGCTCACAATATGGTTAAAAGGGCAAAAGGCCAGTGCCTCATGCACGTCGTTGGTAGACGGGGGGATTGTAGTTAAGGATGATTCCAGAATATCGC
A196: 173 | B196: 302 | C196: oPoolOne | D196: TGTGGAACTCCGGGTATCAGGCCATTTCTGCATCCGTTCAGCGAACAACCTTCTTTTTTGTCATGCAAGAAGGCAGAGCAAACTAGAGATCCGTTACGCGAGTTCACAGCTCTATGGGCGGAGGGGCTCAGCGGGAAAGTCTATACAGGAGGACAGTTCAGTGCCATAAGCTCGCCCGAGGGGCGCCGTAGTGGGCACAGACCTCGAGCTCTACCCTAGCCTGGTAGGGACAACATAATCTAACAGACGTCCTATCAAAAAGCAGACGATCAGGGACAGAATGCTAGTAATCCTAAGGACGG
A197: 174 | B197: 309 | C197: oPoolOne | D197: GGTACCTCTGTTTGCGATGGTGATCTTTAGGGAGGGGGACGGAACACGCACTAAACCGATGAAATCCAGATGCGTTGTTACGGTTATCCTGATCGCTACATGTGTGCATTCCCCCAATGTTCAAGTCGAACAGTCCTGTTCGTTTTCTATCCTTCTGACCGATCGATGGCGCTTCCGGTACTACTCTGATGGAGCAAGTCGAAGATTCAAACGCTTATGACGACTCCTCTAAAGGTCCTATAGGTCGTCGGTTAATCGATCGTATAACGCATCCATCTCGGCTTAACGCGCGTACAGGCCTGCGATGTG
A198: 175 | B198: 312 | C198: oPoolOne | D198: TTGTAGTGCGCCTAGCAACTACACATCGCGCTGCTCATCTGTTTGTGGTGCGCGCAGACGAGTCGGACACTAGCTAACGGCTTTCAATAAAATTAAAAAGGCGCCAGTTCCTACCACGTAATTGTTGTCGTCCTACTTGCGTTTTCCAGATGGACTTCTTGACGTATATAGTAGTATAGTGGTCGATAGATCAGACTGGTTCGGTTCCGTCCGTGTTCCCCATCTGGTCCTAACTTAGTCGTTGTTCAGTGATGTGGCTTTGGATAGAGAGTGGTTGCCTGCATATAAGTTGGAGGGATTAATGACTACAAA
A199: 176 | B199: 301 | C199: oPoolOne | D199: TTATCCCGACGAACCGCTGATTAGCGGCTCATCTGTCTTCAGTTACGTGGCTGGCTATTGTTGGGCCCCGAGGGGTTAACTGTACACGTGCAACTGTCTTATCTTTTTTTAAGATGGAAAGATCAGCCGACAGATAATTGGCGCCACTAAGTTCGGGAGAGCTACCGGATGTGGTCCTGCCATCTCTCTACTAGCCTTAGAGAAGGCACGGTCACGGTAGTCTGCGCTACCAAGCAGAGGGCTTGTACGATGTATGACCTAGTGAGGTGAGTACGACAGCACTCATACGTGAGCGGGCCGG
A200: 177 | B200: 313 | C200: oPoolOne | D200: ATTGAGCACCGGGTGACCAAGGCCATTTCGGGCAGAAGGCTCGCCTGAGGTGTTAGTCCCCCCGCGGCGACATCCCTGCAGCGCACCCGCCTCGCTTGATTCCACAGTGTTTCTCAATTCGATTTCGAGAGGGACTGTTTTCAGGGCCGCGCCCGAGTGCCTCAGAAAATGGCTCTGAGCACTCAAAGTTAGGCCAGGGTAATGAGATGATCCGGGACATACTATAAGGCTTAAATCGGTGGAGAGCCGACCAAGCTAGCGCCAAAAACTATGCCCACACTGAAAGCTAGAATAGACACATCGCCCATCCCAT
A201: 178 | B201: 313 | C201: oPoolOne | D201: AGCATGAAAACGGGGGCACGAATTCCACACATGTGATATACTCCACCGCCACTACTGTGTTTCCTTCGGACTTCAGTACCGGATGGACTCTCCAGATGCGGTTCGGCCAGGACAACCCAGACGTGTGTCTTCGTAGCCGTTTAACCAATCTACAGCGTTCTGTCTAGGTATTTCTCGTAGTCTGTAGATAAACATCTCAAGGAGGGCAGTAGAAATCCTCCTGCCATCCGACAAGTCATAACCAATTAGCGATGTGAGTTTTTCAACCAGCTGTTCACCGGGGAGGTCGAGACTTGATCCCAAGAAAGTCCTA
A202: 179 | B202: 304 | C202: oPoolOne | D202: GGAAACCGGCAAGAATATATGTAATCATATTATTTACGGGCGCCATAGCGTCTGGGAGTATTGATCCGTACTGTTACTCATATAAGTAGTTACCCGGTTGGCTCAGTAGTGATGGACATGTCCCAATTTTAGCTGGCGGTTACTTCACAGCGTACTCCTCAACGGGTTTATGCCGGGCTTGTAACGTAGACCTGACTGACACCAGTCTTTGTGGAGGTAAAGCCTCCGACGATTTCTGCTTGACGGCACACCCCCTCATGGAACGGCAGTCAAGTGACCTTTTGTGTTTATCGGGCACTAGAAG
A203: 180 | B203: 303 | C203: oPoolOne | D203: GATAAGTAGCCTAGTTCAATCCTCGCGCAGCTTTATAAGAGCACGAGCGCGGGGCGACCCCAATTAACCTTTGCACTAGTGCTGACCAAACTAGATGTGTGATCTGTACGGACGCGTGTACTTCGCGGTAGCGGTAGGAAGTAGCCTCATTTGGCCGCCTTTTACGACTTGTTTAAAGTCCGCCGGGGGTAGATTGCTAACGTGCCCGGGTTCTGGAAGCACTCCACAGCACGTGTTGAACAAAGTAAACTCTGATGTAATCCCCAAACAGACTCACCGAATGGACTTCACACCTGAGCTATC
A204: 181 | B204: 305 | C204: oPoolOne | D204: CGTCTCAACGACGTGGTTATAATACTTAATCCTAAAGGTACCCGTGTGGTGTCGAACTTCGGTAGGTTTAACGTCTAACGCGCCTTCCTACGAGAGTGCCGTGAGCGGATTGCGAATATGCACGCTGAACCCATAAGTGCAGCCCATCCTAAGTCTCAAATACAATAGCTCTGGGAGTGAATACGGCCGGCCCGGTAGAAGAACCTTACGTGAGAGACGCTTATCGAGGGGTAACGACCCCGGCACTTACCCCGGTGTTCAAGCGGATATTAAAATTGGCGCGAAGTCCCCATCGGCGATCGAAA
A205: 182 | B205: 313 | C205: oPoolOne | D205: AATTGTACTGAATGTCAATCCTTCATACAAGCTCGTGGTTCGTTGATGGTCAAGCATTATTGCACACACCTCAAGCATTTATATGCAGTCTGTCGGTCGTTGCCTCCAACGCTCAATGTAGTAGTAGTCACTGGTCTAGCTTAGAACTCGAGTATTCACTATTCTCAGCGGATCGGCTCGCCCCTGCAGGGCAAACAACCATAGTTGTGACTAGCATGCCGCGTCCCTTCCGGGCAGAAGGAGCAACCTCTTACTAAGAAGGAGCTGACGCGTTAGTTCATAGGCGCACGTCTGGCTCTAACGCAAATAGTCG
A206: 183 | B206: 302 | C206: oPoolOne | D206: ATTAAATGTGGTGTTAACGCTAGGGTAGACGCACGTCCACATTACCACCCGTCATTATGTTACGGTTTAATTGCAATTTTGGGGTTGCTCTGTGACTCCTACATTTACAGTAGGGTCGAGTATGAGGTGAACCCGATAAAGACGGCCCCAATCACAATAGCAACACTATTTCGACACGATACGATTAAGTAAGTTCGTCCCTCTCGAATTGGTAGCGTAACTCACCCCGTCGCACACCCATTGGATGCACCTACCATTCTATGCTAAGCCATGTTGCCTTAACGATAACGTTGCCAGATCGC
... 217 more rows

Sheet oPools inquiry
B2: 見積作成ページ | J2: 使い方
J3: C11 セル と C12セルに配列数と長さを入れます。
J4: もしくは、C14セルに塩基数合計を入力すると、合計金額が算出されます。
B5: oPools Price Table | H5: 合計金額
B6: Bases | C6: 1～3300 | E6: 10970 | F6: 1 | H6: =F6*E6+F7*E7+F8*E8+E9*F9 -> 451070
C7: 3301 ～ 50000 | E7: 3 | F7: =IF(C14>50000,50000-3300,IF(C14>3300,C14-3300,0)) -> 46700
C8: 50000 ～ 100000 | E8: 2 | F8: =IF(C14>100000,100000-50000,IF(C14>50000,C14-50000,0)) -> 50000
C9: 100001 ～ | E9: 1 | F9: =IF(C14>100000,C14-100000,0) -> 200000
B11: 配列数 | C11: 1000
B12: 長さ | C12: 300
B14: 塩基数 | C14: 300000

Sheet oPool upload
A1: Pool name | B1: Sequence
A2: oPoolOne | B2: TACCAGAGTCTTAATTGGAGTATCCTTGGCATACCTTGTTTAGCTCTACGGTTCAGGCCATGGTATTTTAGTGATACTGCTGATAGAATAGTACTCGTGTCAAGTACGATAAACGAGAGCTTTGGCACATACGATCGTGCACTCGTTACTTGGTAATGCTGTGATGTTAGCCAAATGCTTCATCGGTATATGATCCAGGCAAACCACCGGGGGGAGAACAGCAATCGGTTGTAACGCGCCGTTGGGAGGCTAGTGTTTCCATAAAGAGCTGAACCAGTTACCCCTCTGATTGTCGGCGAGAGGA
A3: oPoolOne | B3: CTAACACCTATTGACTAATCTCCAGAAGGTCATAGCACACTTGAGCCCTTGGCTGCTCCGGCGTGATGTGATTAAGCTCCGGCGAAATTACGAAGAAGGCGTACTGCCCATCCCAGCGGAGACCTCAAACTTGTAACTGGGCCGTCCCGGACGGACATGCAAGCAGGCGCGCCTCAAAGGACCGAAGCACAGATATTACGGACCAAAACGTAAGACACCTCATCGGCCGGAGTGGAGATACAGACGATGAAGCCACTACGAAATTAGTGTCGAACGTTCATCTTCACTTTACCTTCTACCTA
A4: oPoolOne | B4: TCACTCGGTCTACCTAAACCACTGCCAGTTATATCTCCGTAGTGGGTGCGCCACTGCGAGTGAAGACCGGATGTTCCCCCTCCCCCGCATCCCTAGAGAGGCTGATCTTAAAACCCTGCGAGCCTCACAGCATGTGAGATTTGAGTGTCCCTGGCGTCGCTGTCAAACCTGTCGCAGTGATGCCCGTAATGGATGAATCTGTTCTTAAGAGCTGGGGGTAGTCTTATCTCGCAGGGTCATGAGGCCATCTAGCTATGCTCAATAACATACTGCATCTCCAAGTTTGTTCGACCACCAAGTGCCTACCCATGGATCTA
A5: oPoolOne | B5: ACCTGTCTCGCGTCATGTATACCCAGGGTCGATGCGTCCTCTACGGCACATGGACTGTTTTGGCCAACTATCCTACGATTAAAGAGCCCTAACATAGAGGCATTGGACAGTGAATTAAGTATGCCACTTCAAAAGACTCGTAATACAGACGGTGAGATCAGTACAGGCTGGAAAAGGGCGCGTGGGCCAGGAGGTAACAGTGGTCCTGCCCGAGACACATCGATTTTACGCAGTTCGGCTGCAGAAGTAACGATCCCATAACATTCACTCTCCTAGGAGAAGATGTCGCTGCCTCTAGCGGTCACACCCGTTTATAA
A6: oPoolOne | B6: TTGGGAATCCCCCGGCCTTGTAAACGAAGGACGTACATTACAGACTTTCCTGTCTGGATATTGGGTTAGAGACACCTAAGCATGATAGGGTGAAGAGACGAGAACCTACTTCTATCGACATTGGTATACTGGCCCCGGTGGCTTCGCGACAGGCGCCAAAACGAAATTGTCGCTGTGTCTTGTCAGTGGGGCGTAGTTGTCTTTGGACCAACCGCTGTCCGGTTGGACATTGGGTGACTACGGTGAGCACGACGAGCAGTACCAGTCTACCTGCTCGGTTGAGAGAGATTTAACGGATTAAACGGCCTAATTTTTTTCA
A7: oPoolOne | B7: GAAGCAGACTGCCCCCTTAGGGGTACAGTCTTCCACCGGGAACCCAGTTGTACCCCCAAATCCTTCAAAAGTTGTGCAGGAGGGGAGGCGCAGCTACGTTATCCCCTCAGCAGGCCGCATTATTCAGTACTCAGATAGCCTCGCCCCTCCATTACTTGACGTCCCTATATATTCTCAAACCTGCTAGTATACCGTTCGTAGAGTCGGTCACGTCATCTCACCCTATCAACTCAGGTAAATCAATGATACCCGCACCCTCTAATTGCTTATCTTATTTTGGATCAATTTCACGTTTTCTATCCGTTG
A8: oPoolOne | B8: ATAGACAGCGGGTCAACGCTCTATGGCTCCCGCGTATATCTCACGGCTCAAGTTACGTATGCCAAAGCGAGTTTGAAGAAACGACGCACCTGCTATCGGGGACGCGAATTCTTTGGATCTTCATCCCGAGCAAGCATGATTATAAGTACGATTATTCATACCCTAGGTGCCTACAAAGGCAGATGACAACGAGAGTGCTTGCCGATGCAGACCCCTACAGCCGACCAAAGGTCGCTACGTACTCCGATCCCCGTTCATAAGATGGCAATTGGTCTCTTATAACACAATATAATAAAAACCCAAGTGAGATGCTCGAGT
A9: oPoolOne | B9: ATTGAGGGTCTAACCAAGGTCATACGCGGCGTCATAATATGCCAGACTATGGTTCTTTAGATTATGTAATATTTAACGGCCGGGTTCACCCCCGCTGATCGGTGCAGGTGAGAGCCGCCCTAGGCCCAACGACGAAGGAATATCCAGGTATATATGGGAATGTTTCGGCAGCGCAGCGACACCAAGGGGTCGTGCGTTGCGAGATCGCGCCAGTCCAGAAGTTCTCGTAGAGGGTTCACCACTCGACCGGGATAGCCACTGCCCAGCTCGGTACGATGGGTAGATACGCAAGACTTGTATCAACACAATCACATATT
A10: oPoolOne | B10: ACCTAAGTTCCGGCGTGTGGCTCACAACTTACAATAAAGAACAGGGCGGACCCCTCGGCAAGCGAGGTGAGCGTCCCATTTAGAGCGACGGCGGGATTAATAACAGGCTGTTAACCTACTTCTGCATGCACTTTTCCCTCAAATTTAGAACGGTCCAGAGAAGGGTGCTAGACTGCTACTAGCTCGATAATGTAGATGGTACAGGATTAGGACGATCAAGCTTGTACTTATTGAGTAGTTCTCAGGCGGCGGTGACCCTGCGATAGACTAGGGCAAAACCACTAATCCAGTTAATGTGCAGTGAC
A11: oPoolOne | B11: GGTGCACAGGTGTAACATACTCCCGGTTCTATGGCATTAATGATCCTCCACCTCAACCGTGGTGATCGACGGAAACGCGTTCCAAACATTCGGTACATCTCTAGTTTCGCCATCATTGCACAACTGAATTTAGTGCTGTATGATTGCTATCAATATCATTGATCCGCGCGTTGAAGCGGTCCGGCATTTTTTGAGATGGATCGGGCATCCAGAGTCTACTACTAGACGACAAACTATATGGTTAAGTCATAGGACGTTAGTTAGGCCACCACATAAGGTCTGCGCCTGATGCGGTTAATTGAGAGCGGAAT
A12: oPoolOne | B12: TTTACTTGGCCCGGAAACACAAGCCTTCGCTATAAAAACTGGGCTAGCCCCGTAGACAATCTAAGAAATCCCAAAACGCCCAGTGAAATATCTCACTTAGCCGCTAAACCCTGTCCTTTCCCCGGAGTAAACTGGCCTGTAGATAACATCTGGACGAAACAGTTGGGGGGAGCAAAAGCTGCCGCCTGGCCGCGCGGAACCAGTCGGAATACCCGAAGATGTAGACTATCGAGGGTTGAGCTTCATGTGTCCATGGTGATTAAGTAGTGAGCGCATTTCCCTCAGCCCCTAGGACACAGGTCGTTTCG
A13: oPoolOne | B13: GATGACCTAGTAGAACATTAGCAATGAAGCTGTCGCAACATGATGATCACGCCAGCGCACTTCAGTAAGATAGGATACCCCATATATGGCCTTGCATAAATACACGCTTTTCTAATAGAAGAGTGACGTGACCGAGAGTACGACGCCTAGTTTACAGAACAAAGCGTTGTAAGACGCCGATACGTACGAGGAACGTTCGGTCCGACACCACCAATCAGAGCGGTACAGTTTCAGAGTCCCAATTCGGGAGAAGAAGCGTGGCATCACCCGCTCCGTTTGCGAAACCACCCCGCGCATAAGCGCGAGAAA
A14: oPoolOne | B14: TCTAGTGCTGGAATTGTGACGCAAATGCATCGCTCATAGAGCTGGACAGGTTATTCTTTTTCCTAAGGAGTGACTAGTTTAGTTCTGTGCGTCGTGTAAGGGTTACCGATCTGGTACTGTCTATGCTTGTTAAAGAAGAATCACCCGTGTTTGGTATATGATCTCAGTAACGGGGGTGAGCAATTCCCCTCGATCATGGCCGGGGAAAATGCAGGGATCGAGTTTCATCACATGGCTAGCTCATAACTTGACATGTGCCATAGTGCTACATCTTGTCGCACCTAAATTCGAGGTTCTAGCATGACCTCTCCCATGG
A15: oPoolOne | B15: AATCTTACCAGTTACGGTCAGGGGGTTGCTCGTTCTCCTCTTGTACACACACAGTTTCCCGCACGTAACTACACGCCCCAGGGGCCTGCCTATCGTGAACCTGAGGTGTTACGCGCCTTCGGCAACGCCAGAATAACGTATGACCTGGGGCCATTCTGGGCTCCCGGGAGGTGTTCCCAAGAAACGTCCGGACTGGGAGAGCCGCGAGAACAGGGTCCGGGACCCACGGGCCAGGGGACGCCGCGAAAAGATGCCCCGTGACCGCGAAGATGGTCGCAAGCTACGAGGGAGGGGCTAACCAGCATCCTCTGT
A16: oPoolOne | B16: CATCCTGCGCAAGGACAGCTAAATGTTTGTAGCTGCAACCCGGTGCAACACTTAGCAAACAACCGAGACGTTCGACTCTTACAAACCTATTTACGACCTATATGCCATGCAGACTACCAACCTATGTCATGGGGGGCTCGAATGGTGGAAGTAACCCAACGAGGTGGGGGAGGCATTTTTGACCGCTACACGATGGGAACAGTAGAAGCCGGTGCCTAACGGAAGCGAATTTCCTGGGAATCAGGGCAGCTGGCTCCCGTGACCCCAATATTAAAACCTCGCTAAGTCTAACTAGGTCGAAAAT
A17: oPoolOne | B17: GGGTACTTCAGCTGAACGTACTTACTAATGATGTTGACGCCCCAAAAAGTCCCAGGTAATTAACCGAGCTCTAGTACACGTGGAGGCCGCGAACCTTGACACCTGGCCATTTCAGGCAACTACGAAATTCGGAGTCGTAGAGAGCCGTCCCACGACATAGAGCACTTCTCAAAAGCCATCGGACAGCAGGAAAAAGCGCAGCTACTGCGTAGAAATGATACGGGGCAAGTATCCCTGCGATAGCGACAGCGGGAAAATCGGCATGATGTTACTATTGGTTTCTCTGTATTCGCGTCAGTTGTCCTTCGTTTA
A18: oPoolOne | B18: CTAAACACTGTTCGACCCATTAATCGACCCCGTCGCACCCCTATTAGGAGGCGAGATCACCGGTTAGAATTTTGTAAATCAGTTGGAACGTGAGACAGTAAATCTTGGTGCACGGAAATGTTTTATACTGTAGTCCGCTGTACTGACCCGCTATGTATGGTAAGAGTCTAAGCGAAAACTTGATCGCGCCGTGATATTCGCGTGTGTCGGCTTGCAAGGCAGGTATGTAGTGTAGACGATATGGACGTGCACCCCACAATGCGCTCGTGGAGCTCAATAAGCGAACGTGATCGCATTCTCGCAGCTGGACTATAGTAT
A19: oPoolOne | B19: CTTCCGGTGGCCGATACTCGTTATTCCGTGTATCCGGACTCGAATAACTTAACGTCTACGCGGTACTCGTTCGGCTGAAGCCCTTGGACCACGATTGTCCGCTAACTCGCGCCAAAGAAGCAGATGCGATATCGTCTACTCATGGTACTGAGGGCAAGCCAGTCCCCTGGTTGACCAGAGAAGACCCAGTTCACCAACCAATGCCACCGCCTTTTTTCTCTGGCAGAGTGACACTCAGTGTAGTCTTCCCATCTTCTCTGTCGTTAGTCCCGCCCGAGTGAACGATTCTCAAGCAAAATTCATT
A20: oPoolOne | B20: GCGTGAAGCTATTTTGTACAGCGGAGACACGAGAGTAAACGACATACGGACGTATCATAAACCTTTCTGAAGGCGCCTTGATAGGATTTCGGAGAGGAGAAGGGCATCAGGTGGATGTTGGTTTTATCGGTTGTAGAAGCGTAAAGATACACGGAAAGCTTTACTATCCACCAACTCTACTTACCGCGCGCTAAAATCGGATTAGTTAGAGGTGCCAGGTGGGGCTTGACTATCTTGTTAAAAGAACGTCACGGGCGAAGTATCTGGGTTTATTCGTAGGTCGGGGAGAGATGGACAACGTAA
A21: oPoolOne | B21: CAACGTACCATCGATGACTTGTCTTCCTAAGAGACACAAGAGATTTCTCGCGCTCTCTGCTAAGGACACATGGATTGTCCTTGACACGACCTAAATGCGACTATCATCCGAATGCCTATCGAACGAGCAAGAACTACGGTTCTAGGAACGAGCCCGACCCTATCAACTGGCCAGAGCCGTAACATCACGAGTCTATGAGAGGTCTGTTTGTACCTAGGCATGTACTGTCTCAAGACCCCCCGATGGCGGGAATCAAGTCCGAGATATCTCGCTAGGACCCAGACTTCGGCACGCTCCTAAGGGAGGGTTA
A22: oPoolOne | B22: AAGAGGATAGACAATAGCCAAGGAATTCCATAGTACATGCGAAGTACATCAACCTGGTACATTTAGGAAACCCCAGGTACTTTACTTCCTTTGCTGTTAGATAGCTCAAAACACCTATAAAAGACGACCGATTTCCGATGAGAAGGCGTCTGTGCATTAACCTCGTGAGGACTTTTTACGAATTACCGATTCGGCGGTGGCGCAACACCGACTAAGCATTTATATCGGTGGCAAGTTCTGGAGGCAAACCACCGGTCGAACCCGAGATCTACGACGCAAACCCATGGAGAAGGCAGGTGCAG
A23: oPoolOne | B23: ATCTGGTATCTATGAGTCACTAGCGAGGCTATAAAATCATGTTCTTTCCAACCACCTGAAAGATGTTCTATATGCGCTCCGAGCCCGATAACTACTGCTATCAGGCTATCATGTGATACTATTAGATAATACAGCCACACGGTCGCTAGGCTAGAACTCCTAGTGGTAAACTCTCTGGCTTGGCATATTATCCGACTACTGCTGCGGGGTAAGGGGCGTGGAGCGCGTGATCTGCCAGGCACGAGATTTTGGCATAGGGGGGCTGTTTTCCGGTGCCATGAAGGCCGGATGGCCAATGTTCTATCACCC
A24: oPoolOne | B24: TTGTTGTACAATTGGCGCTCGATAATGTTCCGGACAAAAAGCGCAGCATATGGCGCGGAGAAGGTCAAAAAGGCGATACAGTGCAGAATCCCCTGTTCGTCTCCTCACATACGCCGAGAATAAAGGCACTATGTGCGGACGTCCCGATTTTTGCATGCGTTGGACGCCTATAACGGCAGCTCGGGCAGTCTGCCAGGTTTAGGGAGGCCTTTCGCTTAGGGTGCGATGTAACCAATTAATCGCAAAGTCGGTATAAAACGTTTTAGGATATTAGGGAGACCACATCGGTTCTATTTAAAGTATTG
A25: oPoolOne | B25: TCACCTTACATTAACCAGTGGGGGCGTGCAGTCTCGTCCGAGCCACGGAGAGCCGACCAAGGTCCCTTTCATGAACAGGGGGCTGCGACACCATGCCTTTGGAAGCTTAGTCTTGTACACCAATAATTAAACGGATCCTTTCTATGGGCAATCTTGACTGAGTGCAGGCCCTTGCTGACGCAATCGAGCATAAGGAGTTCTCACGCAGTGTCGACCATCCCCACTCCAACGTGAATAGGTCAAACCTACTCCCACCCGCTGGTTAGTAAGAAAATCAGGCCGCGTTGCACCTGTATACCCCGATTCGTTGACGCGTT
A26: oPoolOne | B26: ATAACCTAAATACCGGCGCGAGCCTATGAGACCACAAGCATGTCAATTCATTCTCTGCATGGCGAGCCGGGTCCTGAGCCTCAAACCAAGAGTACTATACCGAGTCCCGGCTACGTTACTACCCGTCTATACGCCCGTCTTAGGAACTATATGAGCGATAATGGGTTCGTGAAGACAGAGCTGTCTCACCAAAGCAAAACCCTCAGAATTAAAGGTATGCGTAACAAGGTGCCGTCAATTAGCTGTTTGCCGATGTTGTACAGGCATTGGAACGATCTCAGAGTGAGGACCCTCCCTTGTCATGGCGATCACCTGGCCA
A27: oPoolOne | B27: TGAATGAACGGTACTATGTCTTACCTCGAGTAGACTACCGTCAGTCGAATAAATTGTCGAAAGAACAGACGTGAGATCCCTCCCGTATCCACAATTAGACTGCAAACGCAAAGGGGGCATCATGTCGTATCCTCATTCAGGAGCTCTAGCTATAATTTTAAATTCCGTGTGGTATCTCAATAGAGTAGGACAACAGCTACGGATTGACCATCTTTTAAAACCGAAGTTGATCATCCGATAATTGATGGAGAACTGTTGCAGCGGCTTAGTTCAAATGCACTACCGTGATCTGCAAGTAGAAGAAGAAAA
A28: oPoolOne | B28: GTCCTAGCGCCACAAAGAGTTCATGTATGTTGCCAACGCAGTAGTCTCCTGACTCAATTTTTCCTCTCAGCGGGACAGAGATTGGGGCTGACTGTGTGACAATTGCGTAATCACCGCTTTGTAGTCGTTATGTTTGGCATATAAGGTTCTCCAAGATTAATGGTCTCCAGGTCGTTACCGGAAGCTAACCGATCGCAAAGGTACTGGCTGGGAAAACAGTGATCACGCACGCAGCAACAGGTTCAATAGTAAACCTGTTCCCCTAGGTAGAGGCGTAGTGCTAAGTATTGGCGAACAGGTCGCGTC
A29: oPoolOne | B29: GTTAGTATGAATATTTGACTCCTATAGCCTGACCTAATTCGATGCGCTCCATTCTTGGCTAGCCCATACTCGGATGGCAAAATCGTGGAAGTCAGGCAGACATAACGCTAATGCCTAGATTTGTATTGCACCACACACTCCAGTTGACTGAGGTTTCGCTTGACATTAGGCTATATGCCTAACGACAGCGCGCCGTAGATGTTTTCAGGACGACACGGGGATAAAAAGATCTTCTGTGGGAACATGGTACACATATTTGCTTTTACCGAGGGCTTTGTATGAGTATGAAGAATTGTGGCCTCCAAGCAA
A30: oPoolOne | B30: GGTCCTTGAGTTTCTTGGGGCACTGCGGACTATGGCATTCTGGTCTTACTAAAGTGGAGATGAAGAATGTTCACTATTCGTAGGCCTTCGATCTCTATTAGGGTGTAGCATTAGTGGATTGCACAGTACTGCTACCTCGTCACGAGGTCGCCCGCTCTGCAACGCTCCCTCGAAGGCACTCGCGGAGGAACGCTCCAAGCAAAATTTGGACCCACGCCGGGATAGCCCGAGTGTAATCGGGCGACCTATTCATTCGTTCTAAGTCGTCTTCTTAATCACCCAAACACATTTTCCTATTGGCAAAAAC
A31: oPoolOne | B31: CCCCCATGACAGCAGCACTGAGGCTGATAGCTCGGCATAATAGAGAGTGGTAGCGCCCCTGAGGGAGACAAAAGGATGGAGTGTCTAAGGTCGTCCCTAGAGCGTAGACTTCACGTACCAGCTGTCCCGGAGTCGCGTACGCCCGGACCCCAATACTTGTACTTTCTGTGAGTGTCTCCCACCTTATCAGAGCAGTGCCCCCTGAGTACATGGGTTCAACACGACTGCTCCTCAAATCCGATAAACCATGATGCCAGAGCGCATAAATCAGCTGGGAACGACGGCGCTGTCCTCCGGAACGTGGACG
A32: oPoolOne | B32: AATATGGCGTAAAGAAATGTATGGCCGGTAGAGAATTAGCTGTTATCCCTCTAGCCCAATCCAGATATTAGACGCAGAGGGCGGTCGGGTTAAGCACAAACGAACCAAGTGACAGGAACATTAAACCATGAGGTGCTATTGCTGCGAGCGTCTACTGTAAGGCAAAGTGACACCGTTTTAGGTTGTTACGTAAAGGCCGATTCAAATTCTCTAGAGTAGTGAAGCCGAACACAGGAATCATATTGCTAAACTAGTCGCCACTGTAACGTTTAGGCGCGACGCACATAATTACCGTTCCCAACCGCCGCCGG
A33: oPoolOne | B33: CTTGTGTATCTCTTGATATCGGAGGACGAAGATACGGTCTATTCGCTTGTAACCTGGAGTCAACGTTATCCGCAAAACTCTACGCGAAAACACTTAGATTGAAACCAGGCGTCGCTACCGCTTTCAGGGCTACTGGCTACACCTGGGAGCGGCGATAGAGGCAGTAAGACCAACACATTGGCGGGCCGTGGAAGTTCGTCGTTAATAAAACGTCCTCCGGAAGCGCACCGTCAATTTACGCACGACAATGAAGCCGAATAGCCACTTTCCCTCGTTTGAGGGCACCCGGAACTGGCAGATAAG
A34: oPoolOne | B34: CAACTTACTGTCGCTGCAGCCATAATTATGGGCCAGCTGGATATCGTTCACGGTCGTGTGCTACCAATACAATCAATGCCTGGCATAGAACGGTGGCAGCCGAGCCTGCGAAGTCGCAAGCTTTGGCTGCTAAATACTGATTCCCAGACAAGCGCAGTTGACGCATAGGAAGCTAGGATGGAGGCGCCGTAAGTAGACGCTTACCACTGTTATCTTACTTGCTGCTCATCGGAGCTCAGTCTCATCTTCGCACCTACTACTATTAGCCCGAGTGCGTGGATTTCATGGTTCGCCGCTTTTAT
A35: oPoolOne | B35: CTTACTGTGCCATATGACGGCCTATGGTGTCCGGACCGTTTTGCTGTATCTTGACGCATGTTATTACGGCACGTACCCGCGGAAGGATGCTCGTCACGACGCGCAGTGCGTCTGTCCACCAAGACGAATCTTATGTGGCACGTATGAATCAGCATTCTTTTTATAAACGGAGCAGGGGACATCTCAACGGTCAAATTTTGCCGAGCCTTCCGTCAAGGTAGTCGGCCGTGGCGGCTGTTCCGCTTACAGATAGCACCCGGTAGTTATATGAGGTGCCGGCCGCGATTATTGTCTGGCGCAGGGTAGTAAATG
A36: oPoolOne | B36: AAAAGAGACACGGTTACACCCACTAAGCTCGAAGTTTTCGGCTTGGCATTCGGAAGTACGCCCACCGCGCGATTTCCCGCACTTAGATGCAAGTGGGCATTTAGGAATGCCCCCATTAAGATTTCGGAGTTGGTCGTGGACGGAGTCGCAGTTCCTGGACTAATGAGCCGATAGCTGACGGATTGTTTCATAACATGATAGTCCGCGACCTATCGAAAAAGCCTGGCGGGCGGCGCCGTTTTCCAAGAACGACGCATCGCATCGTGGAGAACTCGGGCGAGGTACGCTCCCGCCGCTCCGACCGTCA
A37: oPoolOne | B37: CGGTGTTCTCCCATAGCAACCAAGGGTACGTGTCGACCCAGTTATATAGCATCCTGACTCGCGCGATCGTATCGGCGGAATCGCTTATGTTGCCGATACGGGGAAACGGCGCGAAATTTGTGTCTCGGACCTTGACCTTCGGCACAGGTCTAATAGTTTATGGACTAAGGTTAGCAAAAACCATATAGCGCAAGCAAACAGCACCCCTGTAACAAACATTCCAAGAATATAAAAAGTACATGGGGGTTATGCCTAGAACGCTGGCACTGTTACCCAAAATCGGAATCCCTCTTGCATTTAGAC
A38: oPoolOne | B38: ACAAGCACCAAAGCAAAACCATTGCACCAGGGTACCCCTCAGTGTTAGCTGTCCTAGCGCTAAACTTATTAACAATGACGCTGGGGGTTTGGGTCTTGCGAGAGCCGTACATGTGATGGCCCCACTGATACACTATCGGTCGCTAATATGATGTTAGATCCCTACCCCAGTGTATTTAAGGGCGATTCACTCGTTTGCTTTCGTCTCGGGCAACCCTCACAGGTGCCTAGGGTACAGTCTTAATATATTGGTCACCAATCGACCATACGTCTGCAGGGCTGGACCCGTACCATTCGCGCATTGGCCTCGCCAA
A39: oPoolOne | B39: AACGTCGGCTAAGACCGAAGCCTTATCCTCGTAGGCGAAAGCAGACACTATCCGGCCAGATATACTGTCAATTCTCGAAATATTGACGCAGGCTCTACGTGTCAGTCTTAACCTATCCGCGATATCCACGTTCGCCAGCCTAAAGCCCCGGTCCTTCCCGATGGCGGGCTAGCCAGGGAGTACGTACTATAGAAGAAGGGCCCGTTATCTCCAGACTCCCCTACGCTTGATAATTCGTGATTGTCTCCCTTGAAGATTAATGCAGTATGCCGGAGCACTGTAGTGCGGCATTAATTAGATAGCGAT
A40: oPoolOne | B40: GAGTTAGTAACCTAACTTGTATGAAAATAATTGGGGAGACCTGGTACGCCTGAAGTTGCCTATGTGCAACGCTCGGAATCGCTTTTTACTATGTGCTTGAATATAGTATAGCCGTTGTATGCGTGGACTGAGACGAAGTCGAGAGCACGGCTACCCGAGACCGTGTTCATCCCCTTTATGATGGCCGCAGGTGGTCCCCCATCAGGTGTGTACCACGCTGCCAGCTGGGGTCCTGCGTACTGCATCATCTGATAGCCCAAGGGCACGTCTTCCGCGATCGAGCCTCATTTTCTTCGGAACATGCG
A41: oPoolOne | B41: CAAAACACTGATCCTTACTGAGTCTTCTTCGATCGGTGTCAGTCCGTGGTCCGTCACCTAGAAAGAATTGCAAAGACAACGCGGCAGCCTTCGTCGTCTACGTCCTCGCCCGCGAGCGCATGTCCAGAATATACGAAAGCCGTCCACATCAGCATAGATAGTCTCGACATCGGCGTTATCATGTGTTCTCTAACTTGATTCGACTAAGAAATCTAAGCCAAGACCTAGCGTTACGAGCGAATTAGCTAGTCTTACGGGTGTGCACCTTCAGTGCTTCGAGTTTATGACTCCCGCGCTGAGTTCCTTAGCA
A42: oPoolOne | B42: CACTACACCAGGTTTTGCGCTAACTCCCAACTCCTTTACAGAGCCATTTGGTCCCACCACGCTGGAGAACAGTCTCTACAATGGGTGTTCATAAGAGAAAGTACAAGTAACCACCCCCACCCTTCAGTGACAGTCACATATACCTTACGAACTGAGTTAGGCTTATTATCACATATGCGCCTAAATACCGACTGGGAGTCCGATGGCTCTGTTATTGCAAAAGGCATGAGTGCCGCTGTGCGCAGTTGTCAACCAAGAGAAAGTTGCAACTGTTTTTCATGCTCACTGTGCGGTGTAGGCTGGTAAGATA
A43: oPoolOne | B43: AGGCTCCAAGCCAAGCACGGCACTAACCAGCTATCTGAGATGTCCTAACACCCGCTGAGTCTTTACATTACTGGGTTTGATATTGGAAGCAGAGAGTCCTCTCCGTATCGCTGGACTGGGTACACAGCGTATGCACGGTTAGAACTAGCTGCCTTGTGTAGGATACCTTGCTGTGATGGAAACATTATACCGTCACGAACACGGTTCAAATCGATGTACATCGAGGTGATTCTTTGCCAGGTGCACATTCCAACTGATATGGTCCAATAGATACTGTAGTGCTTAGCCGCTGTCATCTCGGGAAGA
A44: oPoolOne | B44: CCAAAGCCAAACCTAAGGAAACCGGGGTAGCACGATATGAAAGTGTGGCTGCAATCGTACAAGTTCCAAGGAGCTGCTACATCGCCGTCCCGCGCCCTTCCCAACAGACTTCGGCTTAACGGCCAGTGGCTGGATAATACGGGAATACGCAGTGAACCCAGGGTATCGCAACCTAGAAATTCCAGTGTCATCGGTGCCACTCTAGCCGCTCATTGGTGTGTAGCCCCGATCTCATCGTAAAGTGCCCCAGTTATTTGGTGCATTCATTGCACTGAATCCACAGCGAACCCTAGGATTACGAGGAGT
A45: oPoolOne | B45: GTATCGAATATTGCTTGATGGACAGTTCCGATATTCCAACTCCGTAACCCGGTGGTACTGGTAACTTGCGCGAGCCGTGCTTTTATGCAGCGTGCCGGACAACGAGCAGATCGTATTGAAAAAGTTACCTGCCTCTCAGAAGCCGCTCTATCGATACCGGAGGAATAGCTTTGCGGTGCCGCGAAACCGCGTTTGTCCCCCCTATGTGAAGAATAGTTAGTTCTCGGCTGACCTCTAGAGTACCCACTTATAGTTTTAAAACCTTAAAAATCAGAAAGGACCGGGCCTAGTCACAGAGAGGGA
A46: oPoolOne | B46: GTCAATTCAGTAGGTGTTCTGTTGTAGAATGCACTTTCAAGATTACGGGGTGTACATATATCGCCCCGGGGACTGCAGGCGGGGTAGGATCGCACATTTCTCTTTAAAACGACTAAGGGTCGAGATAAACGCTTCATACCCTGGAACGCAAGCAGAGACGTTAATGCGCTTATAAGCAACCCTTGACGCCGCGATGCTGTGATTTACCATGCATCTGTAACTATCCACGCCATTCAAACGTTCACTGTCTTGTACGCAAGTCTAAGCCCTCTGCGGTCTGAAAGATTTCGAGCGCGAAGCACCG
A47: oPoolOne | B47: ATTTTCACACAATATACACTGTGAAAGACAGTCGCACGACCGGTAAGACATTCGTTTATAGGAGGCCCATATCTGGTGATAGTTCACAGACGCTTACTTATAGGTATGAGATGTGTGCTCGGGATACCAGTTATAGGGACTGAAAAAGGTAGAACCGTGGGTTGCAAGGGACATTGAGCCGGTCGTTTTAATGCCGCGAGGACTATAAACGCTAGGATCAAGTCCATAGTGGCTGTCCAAGGTGCCAGGGGACCTACAGTGCTGTTCCACGCTTGGAGAGACTTTGGGTCTCTACAAGCCTCGGGGCTCC
A48: oPoolOne | B48: CTAATTGGAAGGGCTTTCAAAGGCTAGATAGCCCCGCTAGCAGGCTGCGGTTGACAATTGGTGAGGTAATCCGAACAGCGATGGGACATCCATCGACACGAAGGTACCGGTACCATGTCAACTTAAGGATTTCCTTAGGTTAAGGCGCGCATTTAAGATTCTAAGATCATAAGTTGGATCACTACACCTAGGGACGTGCATGTTGTCCCTTATTTAAGCCCCCCATCGAGCAATTACGAAAACTAAGTTTTCTGATAGAATCAATTCCGCGCCTTCTATAGAGTCATTCGAACACGCAAA
A49: oPoolOne | B49: CCGTATTATTCGGCAGCCGATATACCACGAGAGCTCGACCGATGGGCTTCTTGTATAATGACCTGACCCACTAAGGCGACTCATTAAATTCCGCTTAATCAAGAGCGGTATGAAGGCGCGGGCCAGTCGACGTAAGCGCACTAGGGCTTCTTCACCTAGTTTACTCGCAGTGCTACCGCCAGAAGACTTCAATACAAAAGGACGAACCATTTCATTTCCTCTGCGAGGTACATGTCCATGAATCATGATTCCGATGGCATTTGTCTAGCCGGCTCACTGCTCCCGAAACTGCCTGACGTTGGACCAGT
A50: oPoolOne | B50: TGACCCGTATGAAGCCGAGCAGAAAGTAAAAGGTCTCCAGATTATGTACGTAAGTAGTGCTGCTTCTTATCTTTCAGTAGTATCATCCACACAAGGATCAGTTAGCCGCACCCGAATGCCTTTGACCAACAATAGTCATCGGCGAAAAAATTCTTAGAATTTCCCAAATTCCCGTGTTCTCGGGGACGGGCTGACCCGTCCATCTATCATGTAAATCCACAACTAGCGGAAAGGGCTTTCCCCGGATAACAGTTCATTGCCATCCCGTCCTTGGGTGTGAAATAACTCCAACAAATATCGCGGTCCG
A51: oPoolOne | B51: GCTTAACCATATACATTGTCAGACTGCTTTACCTTCTAGAGTCTACCCGAAAGCCCTGCCCCAAGGTGGGGACCATGAGATTTCCGAGCAGTATCCCTTGAAGCGCATGGGGGGTGGCGACCAAGAGTTCAATCGAGCTCAATACTAGAGAACTTAGTAAGACATCCGCTGTTGTGGATTCTTCTCGACAGAACGCATGTACCCGCGTAGCCTAGAGCTGTTTCGAAGTTCCCACAAAGGTGGCCACAGTAGACGATAGTCCTTATCCTCTCAGCCGGTAAGCATCATATGTTTCCTCCC
A52: oPoolOne | B52: CGGTCAATTCGAGTATAAATATTATTTAACTTAGATCCACGACATCTACTACTGAAAACTACAGAGTTAGCCGCAACCCATAAATCTTACAGTTATTCCGCACTGATGCAGGCAGCCACGAATGCCTAAGTACCACTTATTGAAGCCTTCGTCCTCTCTGGGTATACCAAAGCGTAGGGGCACTGCATATGAGGCAGTGTTTTGTGCGAGTCGTTGGATAGTATTGCCTTGATCCGGTGGTGTCGCCCCAGCCGGCTGTCGTTGGGAAGACGTCGTTGCGAAAGTCGTTCTGTCGCAGGTACTAACG
A53: oPoolOne | B53: AACATAGAGAGGGGACTACCATGCAATCAGAGACGTTCCACCGGTCATGCCTACCGTATAAGCCGCCGAGTGAAGTGCTTCCAGTCCCGGGGCCGAGGTACATGCCGCGCAATATGGCTATGTTCTGGTTGTACACTTATTTTGGTACGTCGAGGATGCTTCGACGCTTTCAATATAGGGTAGTTAGCATATTTGTAAGAGTATTCTCTGGTTTCCCACTATTCCTGCCACCCCGAGGAGTGTCTGTCCGGCCATTTGTATGACTTGGAGGATCGCGAAAATGATTCCGTTTTGTTCCTATCCAGCAT
A54: oPoolOne | B54: CATTCGCAGTAAATTGAACTTAGTAATCAGCTAATACAGCAGCCAGGTCGCTCGGGCCTCGGACGCCTGCAGTGTGCAACAGGCTCGGCAGCGGCACTGCTCCAGATAGCAGAACTGCACACTAATGACCAAGAATGGTACGACCGGGTGCATAAGACACGAAGGATACTAAGGCATCGTGCGACAGCGTGGTCTCATGATCTGTCACTTTCAGGTCACTGGTGGGGTCTAGCTACTTGCCCTGATGCAGAGCGTTGGGTTAAGGCCGGATTTTAGTTCAATCCGTCAATTAATTGGCGGGTGTGGGTGG
A55: oPoolOne | B55: ATCATTTGTGTGACTCTTTCTATGAGCGCGAGTAACTATGACCTGGTGATTGTTGGCCACACAAGAGCAGAACGGCAGTATCCGCCCATATCGTCTTAGCTTTTCTTCCGATGATAGAACCGAAGAACGCAATGTGGTTTTATGACATGCCCATCACGTCTGCCGATCTGACGGACCCTGTTCGGAAGTATCGTCCAAGCAGCCGTGTTTCATTGCCCAACAACGGCTTGATGGATAATCAAAGCATCGGTACGGTAGAGTCATTGCTGAACAAACAGCCTTTAACGCTGTTATTAGACCGGCCCCAGGATAACTT
A56: oPoolOne | B56: ACGATGTTCTGCACGTTGTGGCGAGCTCTTTTGTATGGGGTTCTACAGCTTTCCCATTACGCGCTAACACCGCACCTGTACCAGGAATGGAACCTGGACTTTAGGATACCGGGCCTCGATGTGTCGACGAATTCTCTCGCTTCGCTATAAGGGGGGCATTATCAGGACCGTGGTTATGCAATCCCAAATGAATGACCCCCCTACAAGTCAAAGGAGTCTCAAAGCGACGAGACGAAAGCGACACATAGCCCTGGCCCAGGTTCGTGTTGGTATTTAGGCGCCAGTCCAGAGGGGCTACTTCATCACG
A57: oPoolOne | B57: GCGAAGAAGGTCATACGGTTACAACCCCTAATCAAACAGGAAGACAGGCAGAGCCTCCTAGCTGGAAAATGCTCGTAGCTAGAGATACATAATACCCTTCGCTTCGGGTGCCAGCCCGACAGGGCATTTGTGCACTGGCTCTGTCTAATTTGCCACAGTTACATGAAACTATCATGGATTCATTAGTCGTGGTTCTGCGGCGCACAACGACACTCTAAGAGGCCCGATTACTAACTGGAGAGCTACGTTGTGTATGCACGGTAACATTTTTCTGGGCCCCAAGGAGGCTTAGGTAAGGTGAGTGACTTTATT
A58: oPoolOne | B58: TAGACAGATAGCTTGACGGTCATGTTCGTTACGTAGACATATAGATCTGTAACGGAGGTTGTGCACTTGTACCGTCCTTTCTGTGGAGTAGTCAACGTTATCCTGGTAATAATGTATGTATTCCGTTAGATTGCCTCGTATACTACGCAACGTACCTTGAATTGATGTAACCGGATACTCGAGTTCACGGCATCTATGGCCCCGACATCATTAACCGAAGCGCGTTCTTTCACCACGGCCCGATCGCAACTAATCCCAAGCTCGTGAAAATATCTCCTATTATGTTTTTGTATATATGAAGATT
A59: oPoolOne | B59: GAATAACCAACCGCATCGATGCTGTCGATTATATTAAACGCTTTGCCCTTTCTTCGACGCATTCTATCAACTGGATAATTAGTCGGTTCCGTCGTACAAACAACCGGTGTTTGTGATGTATATTCGGGACATAACTATCGCTGCTCCAGCAAAGTTTACAGGATGCAGAGATAACGCAAGTCGAATAACCCACCGCCCAAACGACATTGGTTTCTAGTCCGAGTCGGATTAGTCGACGGTCTTTGTCAATCTACCCCGGCCTTGGTTATGAATTCTTCGCCACCCCAATACGCATCAAATCCCGCATCGTCCAGTGTGAT
A60: oPoolOne | B60: TAGGAATAATACGTCAGCAGACGACCAACTGTTCCCACTTCAGGAGAGGTGTAGGGTGCATTTATTTATTCCCGTCGCTGGTCCAATTCCACAGTGTGATGCTCACTATGCTCATCGGCGCGGCACCGCGTCTATGCAATGATAGATATCTCTGCCTACGTCGTGTAGTGCTGAGAGTCGATAAAAATTGAGTGGGCAGACCTAATTGGTCTCCTGCGATTGTAGTACCCCTTGGGTACCTATAAACTATAAGAGAAGGTGTCTATTCCCCCAAACATATTGCAGTCAAGGGGAATAGAGCTCAGGCG
A61: oPoolOne | B61: CCTAAGAGTGAAAACTACTGGGACATCATGCGATGAAGTATCACACAGGATTACATTTGGGCCCCGTCCCGGAGCGCCGGCAAGGGCGGATTAACATGACAGCTAGAATCAGCATGCATCAATAAAGAGCAATGCCCGCGACGAGCACTGGATCGGCGCTGGCACCGTCGCTTCAGGACTCCTCAAGAGGATCGTGGACTACGGTTATCACGGGGCTGCGCGCCGGCTCCGAAGTAGGCCGAGTTGGTCTGTAAATCTCCAACTCACGAAGTGAGATCTTGAAGGCAAGGATTGCCCTCATCGTCACATCCCGGGTGG
A62: oPoolOne | B62: ATAGATCCTCTATCCCGAAAATCTAAGATTGTGATGAATCCTCTTAACCGACAGAGTGTTCACGTAGCGAAGTCGGGCCTTAATGATCGAAAGTAGCAGAAGTTCTGCCTTATCATACTAGGACAGAAGCGTCGCAAAGACACGTCTATATAGAGGTGCTCTATCCCTTTGGAAAATAACTGTGTCTGGGATTTACACGGGGGAGGTGTCCTGGGATACTCCATCGGTGGAGTTGGACTACACTACATTCCATGCGAACTTCGATATGGTCATGGAGTCGATAGCGGCTACGGTTTTTGCCGGCCCGTC
A63: oPoolOne | B63: CGCGGGAGTAAGGGGGAAGCTTGAAGCTCTTACAGTATGAGCTTTCTTAGAACGACGCTGCCAAGATCCCCTAAGAGTTGGGAAGAATCCTAAGTGTATTCTTCGCCACAGTAGGGTCTTGCCTAGGGAAATTCGAACATTAGTAAGCGCTTGAGAGTTCCTCTCCACAGAGTCTCGACTTTACTTCGGAGCATAAATCCTCATTGCGCTCGATATTACCAAGAAAACGCGGTCTCCGTCTTTATACACGTCCTACGTTCAGTGATCTGGCTAGGGAGGACGCGCATCCATGGTGGCGGTTGACAAGGTCTT
A64: oPoolOne | B64: GACCGTAGCCTACACCCGTACGCGATCAATATTAGTGTGTTCTCCCACGTTCGGATGTCTATCGGGGGTATTGAGTGTTGTCCTAGGCAAGTCAGATCGGGAATAGGTAACTGTGCCTATGACCGCTTTTGGCATTAGGCCATGGACCAACAAGTACTTAAGGATGACCGAAAATAGACTTGCTTATAAACGAAATAATATGCGTATCGGGTGCACCCCCCACCAAGGATTCAGTTTGGACGGCCTGACATTGCTTGGAACGGTTTAAATCTGGCTGTATTGAGGCTCCGGTCACCAATGAAGTATGAAAGCTAAC
A65: oPoolOne | B65: AGAATCGATAATACGTGGCGATATGAGTAAAAAGGCCTCGGCCTTTGGTCCTGAACCCCGGTGGATCACCGGCTGCGATCCTAGCAGAACCACTCCAATAAGGGTGACCATGTGCTCTCTCTGGATTAGGTGGCAATCTTATAGAAATATATCACTGCCAGTTCAGGTCGACAGGGTCTAGTGCCATAACGTGGAGTCTGGTTCAAAGCAAGTTGGAGACGTCGTGTAAATAAAGCACCTGCTATTGGAGGAACAGGGCTTATCCGTCAACCCGACACGTAGGCCGACACTCACTTCGTTAAAT
A66: oPoolOne | B66: TTAGGCAAGAATCTTTGTCGCCGAACTATGCGGCCGGTCTGTTTCGCTCCCAAGTGGTGACCGGGCGCCGGCCATGCTGTACGAGCCCCCTCGTGCCATCAGCTCGAGTCTAATCGATGTCGTACCACTGTTCCACAACCATCAAAGCTGAAACGTTAACTCTGAGAACAAGGTAGCGTGAACAATTATCCCAGAAACCAACCGCCAACGGGTGGGCTCGTGCGTAAACCTATCTCGATGCAAGGCTCGGATGGTCCGTGGGAAGAACTGGTCGTCCTTCTGGAGATAATGCGCCCTCACCGTACTA
A67: oPoolOne | B67: TATGCCGGGCTATCGTATTCCCTTACGCCTGCATGAGTAGGTCGGATTGGATGGCAAAAAATAGCCAGGTTCGGGGCCCAAGCTGTCAGTACGATATAAGCCACGCATCGACATCTAACGTTAAACTCGAAAATTTTAGTTAATAATACCCGATGTTTGAAATAAGTGCACTTTTCTACCCGACATATTCCATCGGTTTTATCTCCAAGTGCCCCATGACTTAGTCTGCATCAGACTAACCATGCAAATCCCCCATCCATTTGCTTTTCCGTGAGCCTAAATGTGAAGATGCGATCAAGCACTCTATGCC
A68: oPoolOne | B68: TCGCACCCCACTGCACTGTCATCGTCTCTCCGTTTACGGTGGACCCCGTATCCCGCTGTATACATGTCCTGTAACATGCACATGAATGATTTCTATATTCCATGTTATATGTGAACCTTGGAAAACAGAACTTCCTGTCTTTCCAAACACGATTTTCAGAATCGCTTGAAAATGGTCACTTAATTGACGCGAAGGAGAGAAGCAGGCGGGTAATACTGTTTTGCGGTTGTTTTGATTCCGAGGGAACCCTCAACCCCTACGCCCGAACCACTATATACCAGCTCCCCAAAAATCGATACTCTCGCT
A69: oPoolOne | B69: GCCCTAGGAAGAATCTCCTGCCATTAAATTCGGTTGGACGTCGCGTCGCGTTAACAGGAGGCTCACAACATGTAGGAAGCACACCGGGCGCTTAGTCACAGAGCCGGGAATCATAAGATCCCATAGCTAGGGAATCGTAGGTGTTCTCTAAACTAGAGAGTACACACTGTGTGTATCTTAAGTCCACTAAAAACGTGCGATCAGGTTGCAAAGTCACAGAGGAGAATATGTAGGCGGGTACGTCCACCTGTTGTCAGGCAGTAGTCCATGGCGCCATCAGTGGTTATCTTGAAGCGTGGTGCCTTCAAAAGAACTAAA
A70: oPoolOne | B70: ACGGGCGGGTGTTTCTTAACTTCCTGTCCTTTATTGACGGCTAAGAGGGGCTCCTGACTACGAAGCTACCAGGGTTCCGGGACACTGAGAGACGGGACAAGAATCCAGAGAGCAAGGTATGCTGATTCTCTCCTAGCGCTGTGCTCTCCCTTTGGCATTGCGGATACGCGGGAACTAGTGGAGAAGATGGGCATGGGCATGTCATAAAACCGGACATGTAACCGTTCTCGCCAACTTATGACGGCAGGTCTACGCATAATATCGACCAGACTAAGTGTTTACATGACCAGGAGACTGCGGTAAGTCAGT
A71: oPoolOne | B71: CACATTCATACATTCCGTGTGAATCTACAGCCGCCCCTATGCACAGCCCCACCGAATGAGCGGTTGCTGTGGTATCTCGACATCGGGGGGTGGACTCCACAATGGCTGCGCACACCTCAGCATTATTGTTTTCCACAGCAGTACAGGAGGCCTCTCTTTTCATGAGCCAGACACACTTCACTACAATGCCAGTTCGGTCACAAATGGAACCTCGACTAAAACCTTTTTCGTTGTCTCAAACCTATACAAACAACGATCGGTCGTAGATAACTGTACAATACTTCAACCTCCGGATCGAACATCTCAGAAT
A72: oPoolOne | B72: AGTCTCTTCCTCGGATCGAGTGAAAGATCTGCAGTACGGCGATTTTTCCATATCTTATTCCTTCGAATGGAGAATAGTCTGCTAATATGGTATGCTGAGAATCGACACTGCTGTGTTGCTTCCGCAGGAAAGTCCAAAGGCGACGACGTGTGTAGAGCATGCGCGGATTCACTCTTCACGAAGTGAGATGCCTCAACCAGCCGTGCGGGGAGTCTCTGGATACATTTTTTTGAATCTTTTAAAATTGTCCTCGCCCATTCTAAGGGAACGGAGTGAGGATTAGGGGCACCCCATCCGGTTATAAC
A73: oPoolOne | B73: TCGGATAAAGCCGCTACTAACGGAAATCTTCAGGTGTAAATCTACCCCCACGAGCAGGACACATGCCCGTTTGTGTGTGGTATGCGCTCGCCTGCAATTCCCACCTCCGCATAGCGAATCCTCGTCCGTTATGCATTCGCACCCCAAAATATTCATCATGAGTGTCATACCTCGGTTGGATTCGGTCTTTGCTGGTGTTTTTGAAAGCTCCCTAGGAGTATCTTGTTCCTTTCGTAAACAGCCTAGAAACCCGGACTTTCCGCGAAGGAGCGATCCTTATTCTCGAGTTTTCTTAAACTGGAGCGTTCCTCGTTC
A74: oPoolOne | B74: TTCTTGCCAACAGCCAATACTCTTTTGTCAAGTGCCCTACCTTAGCTGTTTGAAGGGGTTTTGGGTCCGCCCTCACGCGCTCCCAGTGCCGTTATGGCGCGCACATCGGCCGACTTTCTATCCGTCGCCTAGCGGATTCGACGTGCCAATTTCGCGGTTTAACCCATTGTGCATGGTCTGGCGGGTGACGCAGAGTAATAGCGTCTCGTAGTTATTAGTCATTTGCTGGCTGGCTAAACATTTCTCTGATAGCCTGCTTTTGCCCGTCTAGAAAAGGAAGCCCACAGATTATAGGAAGTACGGCGTCCGCAGAATGGGG
A75: oPoolOne | B75: ACTAGTAGGTAGGAGGGGTCAACCAGTTCGTTCCCTGCGCGCGAGGGCGACGTCTCCGCTGCGCATGTCGAGGTGTCAGGTCTTCAAATGTGTGCCTGCTATTCCTGAGACCTGTTTCTGTATCAATCTGAATCGACCGCCCCATTTCCACGGGAGGCATAAGAAACAGCCACAACACTGGCAACGCAGAGTACCTCGCGTCCCTGCCGGTGGGCTTAATGGGTCAAGGCCGTCAAGATCATCGTGTTCCCCGTACCAGCGTCAGGCAACTCCACGGCCATAGTCGCAGATCGCTAGGCCTAAACCATGATCGG
A76: oPoolOne | B76: TGACAAAGGATTCCTTACCTCATTTTGGTCAGCAATCAACATCGAGTACGCACTACATCCGGCGTCAACCCAGGTATGTTCTCGAGGCCTCTCGCGTTAGTATTAGAGCGGGGGCACAGCCCAACCTCGGAAATATTCATGCGCTAGTTGAAAAGGTGCAGGGGAATACTTGCTCCACCTAAGGCAACATATACCCTGTTTATCGGGGTCCGTGGACATCCTCGGGTATCAACAAGATTGCGATCCCAACCCACATGATTATGTATCTGAAGCATAGATGTCCACGAGTCTGGCGAGTCCGGTAAC
A77: oPoolOne | B77: TAGCAAAAGGACAGTCATGCTATGGATAAATATTCTCTGCGAACATCGACGCGTTAGGGGTCCAATACCTCTTTAAGGGAGAGCGGAGATAGTGCTACCGGTCCCGTGGAGGGCTTCGGATGTTTCATGAATCTCGAACTACCTCGTGAATATCATTTACCTATCCCCAGCTCCCTGCGATTTTCGATAGTCTGTTAACCGACAGCTGGTTATAGAGCTACCACGCAGGTGTGATAGTGAAGCGGCACAAACGGTCTCAGACGAGATCGGCATAGGCTTGCCGTGAAACAGGGCCTCCACGTTGAGGAGGCGGTGACG
A78: oPoolOne | B78: ATCATTACGGTGCCCCTACGTGGCCGTCACTAAGATGTGGTCAAGCTTACGCCGGATCCCGAGACATACTTCACCCGTCTAAAAGGACAGTATCATAACCATGGCTACCTTCGGCATCCGAACCTCACAACGCTTACTGATATGATCGCCGGACATATTTCATGAAAAAGCCACAGCGATAACAGCACCCCGCCAGACAGGAAGTGCGTATCTCAGCGGTTTACGCAGTCCCTCACTCTAAAGCGTCCACAAAGCGACGGGTCGATAAGGGACTTTTCACAGCCAAACTTTCCCGTCCGCCCTACAGCTTACGGGA
A79: oPoolOne | B79: CTCCATCGGACCTCGCTGTCATTCGTCAATTCATCTTGGGGGGCTTTTGGAATCTTTCTCCACTGGATTCACGGCCAGTGCCGTTGCGAACTCTGTCTACCCACGTTAGTCGACGGATTGATAATGTGGTGAGGCCATCCAATGAATGAGGGTGTAGTAAACCTTTAACCTGGTAAGTACGTACGAAGTCAACAAACTTATCCGGCGACATTCAATTCACGGTCCAAGCTACATACGCCGAGTATCGCAAGCAGTTCCCAAGCCCCTCTTCCCAATAGATTTTGTCGGTAACCAGCACGTACGTCTT
A80: oPoolOne | B80: AATTGCACGAGCTGTCGTTAGGCCGTACCACCCACCTCTAGTTCCCACCTCGTATATGTGACCAGAAATCGCGTCCTTCCTACCTCGCGACTGGAAATAACTTGCAGGTGAAATTGCTTTTATCTGTCTGCTATGCTGCCTAAAATAAGAAGCGCTGGCGGCTGTTCATGTCGTCACGTGATGTGCCGCCCGACGGCCCGGCTTTAAGCAAATGAGGTGAAAAAGTCCTCCATGAGATCATCCAAAGAGTTCATATTTGAAGGCCACGGAGTAGACTACATCAATAACATGACCTTTAAGTGGGAT
A81: oPoolOne | B81: AGGCCCAACTGTTTTCCTCATAGATGGTTCTGACCTGTTCCAGGCTCGGCATGCTATAGCACACACCTTGATACTTACATCAATTTCTCCACAGCTTACAACAGTTACGTATACCTAGAGGGTGCTAGCAGCTGCCAATGCTAACGACCTGTAGCATGACACCGGACGTATGCGTCCCCAGTGACAAGTTGAGCAGGAAATCGGTTTCATTCCCGACTAGCCGAGCCCACTTCACAGGGCTATCGGGGAGTCACGTAATTTATTGCTTAGACATATCGCATGATCACTTAACCAGGCGATGCA
A82: oPoolOne | B82: GCATGCTTACATAACGATTTCTGGATACCTTCAGTCTCTCGGGTCAAGAATCGCCTAGCATTCAAATCGTCACTACAGGAAGGGGTGCTTCTGCAGTCACCTGATCCGGGGTAGAAACCGTTGTCTTTGCGTAGTGTCATGTTTGGCCCCTGGACGGCGCGAAGGTCAGGTATGCTTCATGATGCCCATACTCAGGGGCAGGGTATAGCGGTCGTAGGAGAGTACTAGTCGAGCATGGCACCTGACGTGTTCTTGGTCGACCCTGTCTGGTATGCCAGACACCTGACCGTGATAGGTGCACCTC
A83: oPoolOne | B83: AAAGTAGTCACTGAACTCGCCAGCTCGCTCAGGACCAATACACAACTGATTGCTCCGTTACCTGATGCTGAAGGTGTGTACCATTAGCCTACGGAGACACGAATCTGACTTGCCAGGCACATGGGCTTCGCTCGGGGCGGATGGCCCACAGTGCTGAGAAACATCCTAGCCTTACTCCGGTGAATAGGAATAGGCACGTGTGTGCGTTCCCATCCTACTAAGATAACATTGATAAGTAAACCCGTTCCAGACCCCCGATGCACGAATAGCCTACATGGATCCGTCACGTACTACGCTTTTTTCGAGCTG
A84: oPoolOne | B84: GGGCCATGAATGTGACGCTAGTATGCTCGGTCCGAACCCTGAAAGTGATGCAAATGCATAGAATCATGGGAGAAGTGCCGGGTTCTGGACCTCCATGGAATTCTCTAGAAAAGTTATGGCGTGCTTTTGTCCGATGTCTGCGTTCGGTCTCATGTTCTACACCCGCGTTGCACACCTATCCATGGCCTCGTTGGATTACAGGGTGTCGCCTCGCTTATATTCCCTTGTCAAGGTAAGTGAGTGGCAAAAGGGGGGAATCGTTGGCGCTTTCGCTCCAAGTAGCGTAACTCTGGACTACCATCTGTAGTT
A85: oPoolOne | B85: AAAATCTTACTACACCGGGGCCTTAGGGAGAATCCCTGATCAGCTGAAGGGGTTCTGTACCAGGGTCGCGGCTTAAGGAGCCGACCCATGACCTGAGGCAAAGTGTTTGCGGAAACGCTAGTGGGCAGGTGACATTACGGCTTAGAGGGCAAGTAATATCGCTTGCCCGTAAAAATATCATCGAGGTAGTGGTTAATTAGAATCTCGTGCATATAAGTACTTTAAGTAGGCGACAGTTCAGCTTCGTAGCAGGCTCTTCTCCCTATTATGCGAACCTAGGATTACTTTGCCCTTCCACTGCCAAAGGCGATGAA
A86: oPoolOne | B86: CAGTACTGGTCGTCAACGAACTATTCATCTGAAACTACGCGTAGCAGCCACATAACTCTCCATGGGCATCTACTACACCCGGGCTTCGGAACTTTCCCGAGTCCCACGCCAGCCACCCATAGAAGCCCCGAACATATAGTAATCTTCGCCATACAGACTTCTCCTGTGAGCATACGGTCACTACTCACATGGCAAAGGGAGACGTCTCTAGTCTCACAGCGCCCTCGACACCTGGCTGAGGCTGCCTAATACTGACTCATGCTTGTCGTAGCATGTAATCAGGAGCTCCCATGTTTCTTGC
A87: oPoolOne | B87: TGCCGTCATTCGACTACTATAGTATGAAATAATTAACACGACCGCGAACCGCAGTTCGAGCAAAATCTTAACAATCCCCCTGACCATCAACCCAACAAACGCGTGTCCCTCTAACGTTGATGTGTGCGCTTATTCGCGGAGAACTGCTCGGACGTGCAGCTATACGATCAATAACGTTGGCGGTGTTCACTCAGTATAACGATGCTTATCTGTGGTAACCGTGGGGACCGCGTGGGGAGGGAATGTTTAACAAACAGGGGTCAATAGCGCAACCGGGACGCAAGAGCATCGCCTTTTCTCA
A88: oPoolOne | B88: AGGAAGAAGTTTTCTTCACCAATATGATGTGCTTGACATCTAGCTGCGCCCTTTACGCTCGGGTCAAGCAGGTTATGCTAGGCGGGTGCTCCCCGTGGAACATTCCGCAGTCCCCTCTATGGGGCCGTCGGCTGCATAATACGACCCATACGCGAACGTCGTCAAGTACCTTGTTCTTCAATTATCGTTCGGCGGCATGCTACCAAAAAATCGATCACACCCCACATTGTCCCTGTGCTGAGCGAGGGTAGACACTTCATCACTTGGAGCGGAAAACTAGCCAGAGTTATATCCTAACTGTGCTGGTACAG
A89: oPoolOne | B89: GAGCTTGCCCCGCAGCAGCCCAATAGGTTAGACGTTTGATTTACAAGCCGTCACGCTCATGTCGTACGCATACAAGAGTAGCTTCGTAATCGCATAGTAGGACAACTCCTCCGTGTAATTCTTGGCATGAGGTGACCCGTAACCACCAGATAGGCTTTCAGTCCAATCCTATCAACCGCTTATTCGTTAACACAAGTTCTGGGCTGTATGTAAATCCTATTTGACCTTGACTGCGTATGTGTAACGAGGGGTTCAGCGGTGGTTGTCATTAGCCGTAGTTAGAACCGATCGTTCTAGGGGATGCGTTCCCCT
A90: oPoolOne | B90: GCTCATCGATTTAGATCATAATAAATTGCCGTCGGTGCATACGGCAAGGTGCTAACCGACGCACTGCGTACCGCGCACTTATTTCAAATCTAATACTCACTTATGGTCCTTCCTTAGCTGAGCCAAATGCTACCTCTTTCGGTCGAAATCCGCGCGGCAATTCACAAATGTGCCATTCCCTCTACGAGCCACGAAATTGCGACATTCTTTTTTGAGGTGCGGTAACTCGCGTCGTTCCGAAGGGAACGATCCGAGTGGAGGCGTTGACAGGTGGATCGCTTAATTATTCAGCATCGCGCGCGATTGGCTGC
A91: oPoolOne | B91: TCGTATGAATTTATGGGCGACGGATCTACGGATTCCCAAGTTAACAGTAAATGTCGAGGGTCAATATTCGTCGCCTGAGTTCGCGCGCTACACTCCCTAGTTAACTATGCCTTAGCCCCGGGCGACCCTGTCCAACATCCTTTAAGTCACCTTACGATTGTAGATTCAAATGCATTGTGAATCCCAGTTCAACTTACCATCCGCCTGAGGCTTCGCAGCCCACAAGCATAATCACTTCCTGCAGCAGACCCCGGTTGGCTAAAAGTTAGGACAACTTTAGTGGTTACATTGCACCTAGCTGGGCTATTGGTCTTGCTAGC
A92: oPoolOne | B92: GATGATATCTTAGAATCGTTACAGATGCTTTTGGGGACGGGGACGTTTAACCCTATTGTTATGCAAGCCCCAACTTCGGAGTGTTTATCTGCCATCTTGCCAGGCACAATCTCGATTTCGGAGGACTAGAGCATCATTTAAGGGCCCCTTCTGATAATAAATCTTAAGATCCCGCCAATTTCTTCAACCCAGGATCTGGACAGGTGATCTTAGGTGGGGTCACGGAACAATCTACCTCCTCTAATCTGTGGAATAATATGAATGACATATAGCGATTGATTAGGATAGTAGAGCCGAGGTCTGCGCTGCATA
A93: oPoolOne | B93: GAGAGATATCGAGAGAATCTGATTTAGCATTTCAAGGTACAGGTAGAGTTGTCGCGGGTGACCATGGACGATCGAAGAGCCAACTTCGCAATACCGAGTGGAAGCTATTTACTATCTAACGCCTTAAAAAAATTGGCATGCCGCCAAGTGTGTTGCTAGCGAAAATTAACTGATAAAAGGCTCCTACACTTTACTTGAATCGGGAGAATACTTTAACGAGAGGTTTGTTTGCACATCTCGACTGAGGACAAAAACAGGGAACAAATACTCCTATATGATGAATAATAATTCTGCTGACACTTAAAGGACAC
A94: oPoolOne | B94: GCGCTAGAGGATAGCTCTGTTCTGGTCAGTTAGAGACGCGAACTACTGACGTGGAGTGGTTAACGACTTACTTCTAGGCTTGGTAGCTATCCGGACGTGATTATGCCCGCAGTTCGCAAACCCGTGCTGCACACTCAAGCCGTGTGCGCACGCCATGTTGAAACACTTCGCGGTATACGGGTTAGCTTGTCCAACTCCTTCCCCCGCTGCGCCGTTTCCGAGACTCGATGTTTAACGCGCTAGATTTCACCAAGCGCAGATATAGCGATGTATGATGCTCTTTCCGAGGGCAGAGAACCAATT
A95: oPoolOne | B95: ACGTGACTATCCGAGAATAGAACCACCGGAAGCCGTCCCCAGATGACCAAACGCATTCCGCATCATCAACTTGTAAGCGATCCAGCATCGTTGCTATTAGTGATTGACCTGAAACCCTTGTCCTTCCCAACTAACGAAATAGCAGAGCAGATTGTCGATCCTCCTGATAACCAAACATGTTTTACTTCCAAGATGCGGTTCGTACCTCGTCTCGTCGATTGGCGAAATCTGGCGTTTACGTAAACCAGCTTAATAAGAGGGCTTACAGATAGCTAGTCCTTCACGAAGTGTGCCCTTGAGTGTTTAAAGCA
A96: oPoolOne | B96: GCCACAAGACGCTTTCCTCAAGTTTAGACACGAACTTGATTTGGAGTGTTCTATTGACACAAGCGGTGTATGGCTAGTAGCCTAAGTGCGAAATGTAGGATCATGGTCATCGGGGTACCGGCTATGGGTCCACCCAGGCATACGCAGTGAGAGGGGGCTACACCGAGCGAACTGCGGGGCCGGGAAGTCTAGGCCCGCAATCGCGGATTCTCCTGACAGTCCAGAAAGTTGATATTTGGACTAACAACTCCAGCAACATAGGCCAGTTAACCCACCCAGTATTTTCATCCTGAGCCATGCATTCCCGCTGGAATGT
A97: oPoolOne | B97: GCCAGTCCTATGACACTGAATATTGTCAGCCTAAAATAGAACAGTTCCATATTCTTACACCTGGGCGACTTAACTGCAGATAGTAACAAGTAAGCTTTATATGACGGCTCAGACAGAATTAGGACAATAGTACGATTCGAACGACTACTTAAGCGGGTGAATTATTAACCGCTGGGGATCAACATTGAAGACCATCAAGGCCAATGCAGGTCACCGTGCACTCGTTTTACCTAACTGGGGGCCGCGTTCGCACTCCTAATAGCGGGAGTGTCCGCATCTATATCGAAAAGTGAACCAAGCT
A98: oPoolOne | B98: GGAGCGTCAAGTCAAAAAAAGGTAGGGTCATTTGCAATGTTAGGCGCACGTCATAAGGGCCACGATACCGATATAGGCAAGACCTTATGTCGAAAGGTGAATGGACCGACTGCTGTCCATAGCTGACTGACGGCATATCTAGCGTTGCAAAATGACGTTCAGAAAGTTAACATATGCATGGCGTCCTTAAACTAAGCTGTTCACCGTGAACACGAGGGTGGCGCAATTCTGTCTTTCTCCCCATAGAAATTCCGCTGGCTAGAAAGCTGTGAAGTCTCTGCCGGGCGATCCGGTATATGAC
A99: oPoolOne | B99: GGCGGTGCATTCACCCAATATGTAAGGATAGTCAATTAGGCTCACAGCACTTACGGATTCCGATTCCACGAGAACCCCCGTACTACAGTTTCGGATACGCTTAGATCCTATGTTCTAGAATTATATGGCCCCGCGATAACACTGAAGCGAGATCTTCAGCCCCAGTAGAGTGAGTTTTCTAACCCTACCTTCTAGCAATCTTGATACGTCCCATCGGTCCATGCTGTTTAAGAAATTATCGAGGGGCGTCGCAATGGCTTGCTATTGCTTGAAATCGCCACGGGTCAGAGGAGGTACTACGCCC
A100: oPoolOne | B100: CAAGAGGTGCTATTATGTGTGCCTATTGACCACGATAATTATGAGAGTGCGGCCCCACTAGCCTTGAAGTCCGAGAGACGGTCTATCGAGTCAAAGGAGTGCGATTCCGGGACTGATACGGGTGATGAAACATGCAATCTACACACCCCGCAAGTTCACTGCCCAATTACACCACCTGGACATTTCTATTACTGTCAAGTCCTGATAGTACTAGGGAGATAGTGACCGCGTGTTGCGGGTAACCAACTGGCCGCAAGACATCCCTAAGCCAACATAAGGTCTAGAAGCTAGTGCCTCCTAGCCTCAAA
A101: oPoolOne | B101: GCCATCACTGCAGACGCCCTCATTCTCAAGAACATGCCACCCGAGATGGCGAGGTCGTGCATACTAGCTTATAGCGTGGCCACAAGTCTGACAGGTCCCTAACGACCGTTCGTTTGGCTTTCATTTCTGATTGCGTCCGTTATCTGCGGTTCAGAGAGGGCATGAGGCGTACTGCCAGGGCGATGGATCTGAGGAGGCTGCACCTGATTATAACTCGTACAGGGAAGGATACTAAACTAACGGTCAAGCGGTGAATCCTTTTTATAGCTTCGAGCGAAGTGTTTTAGAGGGGATCCGGTGGA
A102: oPoolOne | B102: TAGCCTGACAGTGTAACCACGCGGTACTTAAATGCCAGATCGGTGCATTACTTAGACTGTGAGACGCTCCACAGGATTCTCTACATTGACTATAGCGCCACAGAGCCCTGTACCTTATCCCCCGTCGGGTCGTACTCCTTAACGCGTATGTGCAACCCCGTCCCTTGGAACCCCAATCGTCCATTCAGAACCCCTGATATCCTTGTCCCATATATTTCGGGGGGAGGAATGTATCGGGCCGATACACGGCACACAGTGCCGATTCCGCAGGATGATCCTAAACCACGACTGAGAGGTTGCATGGCCTTCCTTCT
A103: oPoolOne | B103: TGATACTTGTCACTCCGCATGTCGCCAGCCGTGATCCAAAATTAAGTGTCCGAGTTGGGCGTGAATATCTGCGTACTGATCCTTGTCTGTGCGATGGCACGCCCTAATCCGCGCCCTTGCTCATTAACACTCGCTCAAAACTGCCGCGTTCTAGAAGTCAAGGAACTCCAGAAAATTTGCTTCGAGACGCCGTCGATTGCTCGCCAGTCTACTTTGATCGGGTTTGCTCCTACCTCTCGTCCCAGCAGTCCTGTGACGGGGTTGATCGCTTCACGCATACCCCTTCTCCAGAAAGTGACTAATGCGATTC
A104: oPoolOne | B104: GAAGGCTCCCTGTGAAGGAACATACTTCAACGGAAGCCTTAACCTTTTTCCTCCCCGCTGTAAATGCAACACAACAGATGGCGACTGCAGCGGCGAAAGTCAGTTGCCTTCACGAAGCCGCACGTGCCTGTTAAGTACGCCACCTGCAGCATTCGTATGCATGCGGTCACGTAGGCAATCCAGATTGCGACACAGGAAGGAAAAAGAGGGCGCACCCTTGGATAGACCCGTAGGCGAACCCTCTCGGACCCGAGTCTGAGGTGCTGCAGAGGGGATCGATTTCCTAGTTAAAGGATCGCTCTTAC
A105: oPoolOne | B105: CCGCTGGTAATTGGCCCGGCTTCAGCCTTACAGCATGTGAAGAAGAGGGTATAAATCTTAACTGCCCTGACTAGAATTTTCTATGAGGTTCAGACTATTCATTCGGGATTACTTTCCGTTGTGGGACCTCCTCGTGTCTTTGTCATTAGAGAATTAAAGATCTAGTGCCATACGAAGGACTGTTGGTCAGACTGTTGCAGCCATTGGTGGAATGGTTACTGACCATTGCCAGACTTCTTTCAACCTAATAACAATGCTGATATGGTACGATAAAGGCTGGAATTAGGGAATGGTACACATAGAGACA
A106: oPoolOne | B106: GTGATCGCAATGACCGTGGCGTAGGCGTCGCGGTCTGGTTCGTTTATAAAAGTAAGCGGGCGGATTGATCTATATAGGGGCGGGCAGCCTTAATTTCACCCGAGTTAATTGAAATTTTTGCTGGGCATTTGAGTAGCATCCTACGGGTCTACCGGGGGGACCACGTCACGTGATTTCCAATCACGTATGACTGACTAGCAGCATCGAATACGCTATGTCCCAATGGGTTCTAACCCCATATCCATTGGTGCGGGATGGACTGTTCCCACACCTACTCTAATTCAGCGTGTGCATGCCGACCTGATCGTTAATTA
A107: oPoolOne | B107: CCGGCTTTCGGCGAGTGTACCGGGACAGATGGGTTCGCAGGGCACTGGTCTCTGGAAAGCCGCCAGTGCTGGAGACTCGTTACGCAGATCTCGTCAATGCTGTAAGACAATCCAAGATTCAAAAAGACAAAATTTCACGAGTGGGTGTCGATACTTGGGATGAAACAATAAGTTTGCTCCGCATGAAGCCAGAGACGGCCTAACCGCCGGGACGAAGATGGGTGGGATTCCATCACAACACAATGTCATACAGGAGATGAACCGTGGATAATAATAAAATAGCAACCCCAGGCTGATGGAT
A108: oPoolOne | B108: GGTACTACTCTACCTAATTTATGAGTAGACTTGAGGGTATTTTGTGCCATCCCTGCTCCTTTGTCTCGTCTACTGCCTGTACCCTAAACTCGATGCCTCGGGATGTCGCCCGTGGAAAGTGGCTTCGTAGTATCCTCGAGCAAAAATACTGGCGTGGGCCTATTTGCATCACCTATATCCACTAGAGCGCACAGAGCTTAACCTGGTGGAGAGGCTTTCTGTTAATGCCTAGACTAACATGTAACTACCGTCTGCGATCTGGTGCTGGTAGGTCTGCCTAGTGCAAGGGCGTCGTGACTAAACAGGATACCA
A109: oPoolOne | B109: ATAATAAACGTGTTACTGACGCTTGGACTAATCCCTGTCAGTACGAATCTAGAATAATATGACGTTTTGTAAGGGGCTGATACTGATTCAACTACTCCATTAACTTCTTCCCTGTTCCGTAATAGGCGACACCGATGCTCCTGCTCTCAGCGCGTTGGTTACTGCGAAAATGGGGCCTAGGGCTATAAATGCTAGCGCTGAGGGAGCGGATCAGGGTGTTAACAATCGAAGAATTTCCGGTGAGGGTCGATTCCACATTTGGAACCCTTCCAATTCGCTAACTGGTCGTTAGCTTCACGTGAGTTG
A110: oPoolOne | B110: ACAGCGAGCACCGATTTAGTCGTTTGTAGAAGCTTCTTGACAAGAGAATTACACTAACGGCCGCCATCAAAGCGAGCCCATGGATAGCGAAGTAAAGTAAGTTCCGAAACGATCCATCAATTAATGATATGTCCCCAAGTTACTTTTCTTCCCATAAAGAAGACGAAGAACCATGTAACACTGCACGGCTGTTTCGTGGGTGGATGAACTTTCTGGGGTAGGGGATGGTTGCGGATATGCATAGCTAATTCATCGAATCTAGATACACCGAAGACAAATTGAACTTTATTTTGGGCACTAACGCACCGGAACTGGCA
A111: oPoolOne | B111: GCTTAATGATCAATATTGAGAGATAATTGCTGGAACGGAGAATCGCAAACAAGACACGTTACGGGTTATGATCGTGAACACGAGCCATTTTAGACCACCATTTGTCTCTACCCGTGTAAACTTGGGGGAATGTGCGCTAACGGAGGTCCCGAAGGCGCGTATAGTACTAAAGCTATTAACCGCACTTTAGTGATGTTGCTAAACCCGAAGTGCCTGCGGAGACATTCGCGCCGAGTAATGAGGGATTGGTCTCAAGAGCCTCTGGAGCAGAAACTAGCACTCTGGACTATATTTTAACGTGAGATCCGGGAGACAA
A112: oPoolOne | B112: GCTGCAATCGCGAAATTTCCCAATAAGAGGAACTATACTGTACAGGCTTTTTTTTTGCTAGAAGCATAACTCGTCAGACTGTATACTCGTACTAAAGAGATATATGAGGAGTTCTTGCCCCAACAGGCAGCAACAAGCCATTAACGGACTCCACTAGCGGCCCTTGTGTCTGAGGAACCTGTCGACGCATTTACCTCGTCCATGAGGGTGTGATCATCTCGGCGGCACACATTAACCCAGATGCCAGAGTTTCGGGAACCACTGCGCCTGCTAATGTCTTCAGCGGCGCTCGACGCTACATTAT
A113: oPoolOne | B113: CCGCCTTCACCCCGTTGAGAGCATGACCTGGAAACATAGACAAAAACTTTCTTCATGTTAAGGTCTGCACGGGGTGGGATCCTTTGGCTGTGCATCAGGTTAATATAAAGAAGATTATGCATGTGGGGAAGTATAACAACTGGGAAGATTTCTGTAAGACCTAGCCCAGTCTCTCATGGCTACCGATACGTAACACGCCGGGATATCCGAGCAAACATATAACGATAAGGATATAGCCTTAGGTTGGCGATCGAAGCCATATGGTTCCACCACCCGGTATCCACCAAGGGGTAAACCTGCGCGCGCCCTTAA
A114: oPoolOne | B114: CTTTCATCCGTGTCTTTCTGTGAACGAGGTCCGATCCAGCTTTTAGTCCCGACCCACCCATATTGACGGGCGCTACCCGCTTAACCCTTTTCTGCGGTAATTGGCTCAAGGGGACGGTGGCAAAGGATCTTCTTGCATGACTTAGTTACGCGATGAGTAGACGCTCCACCTCTTCGGCCTTAGGGGTGCGATAGTGTAACGCGATGTATATGACAGCAAGGGTATGCAACGAGGACTCCGCCACTAAGTATCGGTTGCGCGGGTGACCGCAGAGACGCGCCCTGCATAATCCGGACAAATCGTTCCAAGAATAAGA
A115: oPoolOne | B115: CAAACGTTCGGAACTCGCATGTTTGTCATATGGGGGCTGGCCACCAACTCGACGATCCTTGATGAGACACGTTACTACCTGGTTCTGAAACTTCGCGTCTCCTGCCCGGACGGCCCCTCCATTTGATACCTGCATGGCTCACTTGAAATCTATACTAGGCCCACTCTTGGCCGTCGAAGACACCGGTTCAGGGATATAGACTACGGTGACTCGAATTCCGGGCCCGGGCTAGTCACTGAGCGTAAGCAAGAGCACCCCGTTCAAACAAAAGTGCTGGCACACTCGACCTAGCAGAGACTAGGCGTGGCGCATTTTGGC
A116: oPoolOne | B116: ACCTGAGGATGAATTTCGACCTACGATAGCCAACGGTTGATACTGTATGATTGGTGTATGCGCCGACGGGTCGCTGGACAGGTTGAAAGTTTCCCCATTTGTAAACCGAAACAGTCACATAGACATGCAGACACTGACTTCTCTCCCTGCGTGCTGGTTTAGTGTAGTGACCGGGTTTGTCTCTTTGCCGTACACGGACCACATTTTGGTGACGTCTCGTCTTGGGCCTTGGGCTCGACAGATGATAATGACGTTCGATAGAGTACCGATCGCTAGATTTCACTGAGCCGAGAGGTAAGGGACGGCGC
A117: oPoolOne | B117: TTCATCGGAGACCCCTGTTTTATATCTCGATAAAAGAAATATTAATGTGAAAGACTAGTACGGTAAGACGCCATGAAGTTAGGGTTCCTGCCCTGAGCGAAGCCAAATCTTATGTACAGCTATCTCGGTGATGGAGGACCTCCACGAGGCCGGTGACTGCCAATCAAGCTGGAAGATTTTGACGCTCCTGAACAGAAGCAGAACTGAAGCTTGTTGCCAACATGTAACTACCGCCTTGAAGAAATCCGCAGGTGCGTCATTCGGGCCGCCTAACGGCGGCCTAAGGACGTGAAGCGCCGCTTTG
A118: oPoolOne | B118: CGATGTTGGGCAAATTGGAACCAAACCCCGGATGAAAACCTCTAAAACTGCATTGTCCCATGATCACATGCGGACCCCATCTGTCTGCATCTATGTTTTCTTCCCGATCATACCCCCTTCCTGACAATGTCTTGAGTTTTTTAATAGAGGCGGGTAGAGGGTATTTTTCACACTCTTGACCTGCAAGCGTTTGAAACTGGCCACATTACCGTCTCACATATACAGCGCAGCTGCCCTTGCAACGCGCTCTTTTCGAAGGCAGACGTCCACAGTCCGCCGGTCCATCTACACGCATAAGACAAATTTTATTTCTT
A119: oPoolOne | B119: CATGCTACTCAGGGACGTGTTACTTTGTCAGACGGGGAGACCCCTGGATGGGACGTGTGCAATATGCTGGTTTGTAATATATCTATTATGACTCCACTGTGCACAGGGTTGGTACATAACCAAACACCAATGTTTACCCAGGGGGTGTGCTCGGAAGCGGTAGGCGCGTGGTCGCTCTAGTCGGTCATAAAACAACTCAAGCTATTGCGACTATTCCATCTATGTTGACTGACGGACACGAACTATCATCCCATCTGGCCATTTGAAAAGTCCCACAACGATCGAGGGACCAGGAAACAGATCAAT
A120: oPoolOne | B120: CCAATGCTGCTAAGGAGTCGTCATCATGATGCCCCCAAGTACAATGGTCCACTCAACTAACAAGGTGGAAGTCAATGCAACTAACCACCGGCCGCTTCATGATAGATAGACAGTAGTGAGCGCATCCTTCGCGGCACCTAACGGTATTTGTAGGATACACACGTTGATCGTACATGCCTCAGACCGAGTGAACAATGGACCGTTAAATGAGTAATAATGGAAGCAAGGGATGGCCTGTGTATGATTATTACGAGTATTTGTTTGGTCGCTGACCGATCAGTCTTCGACCGCGAGTCTAAGATAGAACTACG
A121: oPoolOne | B121: GACGTGGAAGGAATAAGCATGTACCATTCTACATTCGATACTAAGTACTTACTTCGTCAGACTCGTAATTAGGGCTGAAGGGGTCCCCATCTTCACTCACGGGGTCGAACACCGCTCAGGCCTACAGCCGATTCCACACTCGGTTCTTGTATCACGTCATGTCTCAGTTTTAAACGACGCTACTCTGATTAATTGCAATGGACCGGTGTACGAGTAGTCCCTCCATTTGGCGCGCCAGAACTTCAAGTCAGGCCCTCGTTAGGTGGGAGGACACGAGTGTTGCACTGAAGGCCGCGACACGCATACTCGCAC
A122: oPoolOne | B122: AAAACGTAACCCTGAGATCATTACCCTACGTCCCCTTAAGACAAAGCCGGTGTGTTAACATCCGTCGATCACGCAGTCCCAATCTCGCACGTAATGAGGAGGGAAAACTCACTACGAATGACAGTTTTGTAAGTTACACGACGCGCATCGCGGATGGAAAACTGCACCAGCTAGCTATTGGCAAGACACGACCGCGGGCCTTGAGAGCCAAGGCAAATCAATCGTCGTAACAGGCGCATCGCTGATAGTGTAAACTGCGTCTCTCCAGAATCAGTCGCGAGGAAGGCAACAGTGTTGATACAAGATCGTCCGGC
A123: oPoolOne | B123: CCGTTCAACTACATCCCATACGCCGGCGCTGACTCTGTAACCAGGTCCCGCTTCGGGCGGAGGTTTAGTAGCAACATCGGGCTCCCACCTTGTAGGGTTCGGTCTAGAGATTCCTAGCCTTATATTCGGTCCCCGTGAAGCGATCGTGAGCAAGGATCCATCCTTCACCACCTGGCGGTATGATCCCGCGTTCAAACCTAGTGTTAACTCAGTCCTGGACATGCCGAGGTAACTTTAGCGTGCACCAAAGGCGATAGGCTCACATTTAGTTCTGCTGTCTGCAACGGGTTAAGCACTACTGGCTTCTATT
A124: oPoolOne | B124: GGTCCTATGACAGCCTCGAAATGTGGCGCCCCGAGAACCTGTCAATGAGAGATCCCAGCCAAACCACGATCATCTGTGCCTCCAATGCGTGGCGGAATCTCCCTGTTTAGGGGGGCCCCAAGAGTCACAGCAATTCCATGGGTATTGTTCTATTCAGCTCCCTGAGACGGAGTCGCCAGATGGGTTTATTAGCCAGTAGGTTAATTGGTCCAAAAACGTGGCGGAGTAAGGACCCACGTGGCGTGGCCTGACCGGATGAACTTTTCCTGTATCAGTAGGCTTTTCAAGCGGACAGCCGGGTGAGGA
A125: oPoolOne | B125: CCGAGCTTTCTGGTCATCCCGATGCTCGTTTGTAGCTATGACACTTCCTAAGCCAAGAGTCATTCGCTCTAGCAGATTTATATCGGGGCCCGAAGGACATACCAACTTCACATGAGCTCCCGAAAAGTAGCCATTACAGCTAGCTTTCACTTGCTGCGGCGATGTAGTTTAGGACTCGCGTGTCTCCCAAGTTAACATTGAGGCTAAACAACGTGTTACGCGGGTACATTGTGATGGGGCACAAGAGTTCTTACTAGTGGGCCTGGTCATCCTCACGGGTGCGCAGAATCCTACCGCTAGATAGAGTATAGT
A126: oPoolOne | B126: TTGTTAAAGGCGAATGCTGAAACATTGGCTCTTCCACTCTCAGGCGCAGAGCTGCCTCGTAGCAAACACACCCAATGGCTCCAACTCTTTACCAGGTTCGTGACAAGCCTTTTGGCCTAGTCGTACGCTGGTGAGTGTGTGTGTAAGCGATATGACGATGAAGCAACCCCCGGTATACAAGTATCAGCAGGCTGGTGTTCGGATCAGGCTACCTAATTAGGAGAACGCGGTTGTGAGGAACCCTGAGAGGGTACTAGCACGCTCTAGACCTAACTTGCACGGGTGTTCTGATTCTGAAATTTAGCATAGG
A127: oPoolOne | B127: ACCCGTGGCTGCATCTACGCATGAGTAGGGAAATCAAAAGTGTCACCGCAGTTGGAAAGAGGTAGGGAAAACGCCTGCACTTGATCCTGTCCTGATTCCCCACTCCGTTATGCGAATAGTAGTTACTCCACTTTAACTAACTGGCCATTGTAGCGATCATTTATGTGCGGTTGATGAAAACAACCGAGGAATTCCGGGTTTTGCTGCCGCTGACTGGGTCCATGATTTCTTCCCGAACAGCATTCCTGGCGCTAGCCACTATTCAGCTTTATGACGCTGTAGACGCTTGCACCTCCGCAGATTACTC
A128: oPoolOne | B128: TCATAACTATATGCAGTGATTTAGCAAGGGATATTGTCGTCTACAGTTGAACTTTTCTGTCGACCTCTCTCCGGGGCATTATCCTGTGTTATCGGGAGGACGAAAAAGTAAAGCTACTGGGGAGGGCTATCAGGGCGCGATACGCATAAGGAGCTAAAATGCGTGACGTGTAGTGGGATTGAACTTTCTTCCGTGGCCCGGGTGAACTGCCCACTTTCCCAACCTGGTTTTTGGTCAATGGTGCTTGCGAAGTTCGGTATTGGGCAAGGCTGCCGCGTAGCGCCTGTTGTCTTTGTGCAAGAA
A129: oPoolOne | B129: GTTGGGTTGTGTTCTCCCGGGAAAAGGCGGTTACGTAGTGGTTACGTCCCAGCCTTGTATCTAACTTCACCAAAGGGTTCACTGAAGGCTTTGCTTTACACTTCCTGTTTGAAGCTCCAGCGCAATGCGATTTAGTTTTCACGCTGGAGTAGCATCAGCCGTACAGGTCGATGCCTTTGCCCGTTGACGGAGATTGGCATCCCGTACTGGGTTGGGATTACTTATTCAGTTAAGCCAACTCGCGAGGCCCTTTTACGCCAGCGACTGTTCACGGACCGCGTAACTCTTGGTTAAAGGTACA
A130: oPoolOne | B130: GAACACTATTGTGATACGCTGTTATGAGGAGGGAAAGTGCCGTAAGGGTAGCGGTGTAGAGCTATCTTTCCAGTCGAGTTCTCAATGTCTGTAGAAAAGTTGTCGGCCAACAGCCCTCTGAGTGCATGGACGCGACCTCGGCGTCATCGCACAGAAGACCGCGAAGCCCTTGGAATTTCGCGTTACATTCGGCGGGCAGTCTAATCTGTTCGACTGTTCCATCGATAATTCGGCCCGAAAGGATAAAGCATTGCCGGTACCTGATTTAACACAAGGACTATGTAACATAAGCCTCTAGATGC
A131: oPoolOne | B131: TTGGGCTGGAATTTACTTATACTCACATACCATCTGAGCGGGTACCACCGGCGAACCGGACTAGCTGACATGCGAGGACTTACGATCCCTAGCCATTGATCACAACCTTCGTCAGAGTAGGCAGCGTTTGATGGTTCGTCTACTTGTCTACGTCAGCTAGGTTTTGCGTCTACGTAAGTAGGGCAGATGCACGCTTTGACAAGTATTGTCGCGAAGAGGGATTAATACAACTCGCATGACGGCATCTTAGAAAGTTGGGGCGCGTTTTGCCTTGGGAAAAATCGATTGCTTGATAACCACTGTCTT
A132: oPoolOne | B132: AACGTCCACCGAACGCCGTGAATGACGATATACCTCCCTTCGTGTGCTTAAAGGCTTCGTCGACATCCGGATTACCAAGTAGGATGTATTCTTTACATTCCTGTTGACGTGGGCCTGATACTAAGACGATTAATTACGGCCCGATGGCAGAGACCACCGCGAAGAGTGCCTGCCTGCGGGGGTTGCTAAGTGGCAAACGGGTGAACTACCGGGACCAGCCGAACAACCTAATAAAACAATCTGCCCTAACCACGGACGGCCCCAATCTAGCGTACGCTTCAGCTCGTCATAGCTCAGGAATTGAGG
A133: oPoolOne | B133: ACGTAGAAGACATGACTGTCCTTTTCATCTGTATATCACGTCTCGAGAACGTATGCGCTCCCGATAAACTGTATGTCCCTGGTCAGGCAGAGCACTCATTTGACAATGTGACGATAGGTCTCGTATGTTAACGAGACCCGGCTTCCTCGTGGGGCCAATGACGCCTCGCGAAAGCACCAGCAACGCTCACTCGCATTTCTCTGGTCCAGAACAAACGTGTTGTTATTGCTGCTTGTTGCATTCGGGACTGTTATCGGTGCGGCCTCGTGCCACTCGATGCAATCTCGGGGCATCCGACCTCTCGAG
A134: oPoolOne | B134: ATTAAGCAGCTCTCGCAGACCGCGTAACTACCGAAAGAATCTGACTCTTCCTTCGCTGCATGACAAATCTCGGCTATCCAGACCCTAACCCTGGCCAACGGAATCATCAGACTACAGCCACAGTAATTACTCTAGTGGTTTTACGATCCGTCTCATCGGACGGCTCCCGGAATTCCTGAGTTGGTCGCGAGGGAGCAGAATTGTAAGGTCTTCACAGGTATCGAGTCGCAATCACACAACGCTAAGGCGGAACAAGCCCTTGCCCGATCGATCACTACCATCCGCGGAGTGGGACCGCCGGCAGATA
A135: oPoolOne | B135: AACTTAGGTCTATGGCGTCCATAGTACTGGCTTGATTTCCGCTCCAATACCAGCTGCCCTCTCGCTGGTGATGGCTCTGAGAGAGTGAGTTCATTACTCAAGACTTCTAAGTTCCTTATGTGTAACGGGCTATTATCCAGGCATGCGAAGTGTAGGTTATACAAGGGCGAATGTCTAGGCAATCCGTGACAAACCCTTACCCCTTTAACCAAGCGTCGCGGGTGTATTGATCGGGGCGCTAGTATAAGTCCGCGGCGACCAACTAGATTTGCTGCGGCGAACCCACATGCGCTAGAATGAATCGCGAGTCC
A136: oPoolOne | B136: CGACAAAAATCTGAGGTTGGACCTCTTGTAACATTCTGTAAGACGTTGATCACACGCCTTTGACGCGCTACATTCGCCATGGTGCCTGCCTTGCCGAAGAGATCTGAGGGGTAAACACCGTCCAGTTGTGTGACACGTAAGCCTTTCCTGACGCTGCCTCAATGCCTTGCTATAAAAAAGGCCACTCTCATTTTTCGGAACGTCTAAATCTGGCGATCGGATGTTTAGACTCCTGTACTTTCTGGACCTAAGGTACCTCTTGCTTTAGAGCTTGCACTTTCTATCGAGACGATAGACGAAATACGTCT
A137: oPoolOne | B137: TCTCAAGGTACCCTGTAAAAATACGTGACAATACCATTGTACAGCCGAATACCTTAAACGGGTACTGTCGAGCAAACACGGAACACAAATAATACTTACAGCTAAGTGAACTCGATGGCTGCCGGCGCGCGGCATGCATGGGCATAGCCGGAGGTTACGCGGGTGAATCATAATCGACCATCTTGGCCCAGTACGATCTTGGTTAACTCTAGACAACTGTTAATGTATCCCTTTCATTAACCATGCTCATTATTATCCGATCATCCAGGGTTCCCAAGTAATGTGCCGCTGTATCACGATTGAAGAACTC
A138: oPoolOne | B138: TCACCTCTCCACTAGTTGAACGCCATGGGGGGCAAGTAATCCTTAGGAGTAGAGGCAAAGGCAGTTCCCTTGAATTTATATAAGTTGCGTTCAGACAGAATAACCAGACTGAAAGCGATACGTCCAGGCAGCCCTAACCAAATTTCGAGGTAGCTCAGAAACCCTCCCTTGCTAGGACGCACAACCTCGTTTCCCAGACATCAGCACTACTCTTTGTGGGAGAAAAACCGGAAAGGGGTTGTGCGCAACTGTTAGCTCGGCGATGTTTGGCTCCGGTGATCCTTTCCGCGGGCGCCAGTCA
A139: oPoolOne | B139: GTATAGATTGTAACGGTCTAACCTAACGCACAGCGGGCTAAAATCGACTGGAGTGGCATGTAAGAAGGAGATGTTGCTAATCTGTAGTCGGTGACGGCGACCTCTATGAGTCAAGAGTGCTGTAAGTATCTTAACACTAATTGTCTCATGAGCATACAAGTGTCTACCCAGGTCAAGGTATACGTGACCGTTAACAAAGCACACTTAAATAGATGACTGCACCTCTGGTAAGGCCGGTACGAAAAAACAACAAGTCTCAATGCCCCAGAATGTCTGATGTTTGTGTCCCGTATTCCATGCGAAACGTTCG
A140: oPoolOne | B140: TCCAAACCTTGCTTTCAAGTCCGGTCGGATATCCTGGCGCAAAAATCCGATGTGCCTACGTCATTGTTTGACACAATTTCTATAAGTGCTTACGGGGGTGACTACTAGGGAAGGACAGTTGTATAAGTCGGACCAGGTTACTTCAACACTTCATAATCGCCGCCTCTCGGATACTTGATAATGAGCTCTCTGAAGGCCACTGCATTGGAGACCAGAGACGGCAGATGCTGGCGTCTCCAAATCGTGTCGCAAACTCTAATTTTGGGCTCATTTAAGTCGGAATTAGGTCATCGATTGGGTAGCGACG
A141: oPoolOne | B141: AAGCGCTACAAGGTGGAATTACCATTACCCGCCTGGGTCCCCGCGCGGTGCAGGCCTAAGATAGCTATGCTGCAATCTCAAAGAACTTATTCATCGGTGTGACTAAGGGGTAATCATGTGATACGCCCATTCTGGCTTGCAACGTCAAAACGTCAAGGGCTTAAGGGCTCCGGGTTGAACACGCTGGTCTCAAGCGAGAGTGAACCACGTAAGCAAACATTACGATATGGGGGGCTCTGTTCTGCTGAAACCTAGATTTTTAAATTTCTGACAGAGCATTCGTTTCCTTTAGAAGCCAGTTGGAACTA
A142: oPoolOne | B142: GTTGGCATTGTAGCAGCGATGTGCATATCCAATGTAACATAGAGTACGGGGCGCAATATCTAAAGGTGTCATCCAAGATCGTGTCTGAACTCGAAATTCCGATCGAATCTTAGCCCATGAACAGTTATGGTATAATGAATCAATGTATGATCGAGAGTGCTTAAAAGCCGGCCTTCCCCAAGGCGTTTACAGCCTCCCTCTGCGGCGGCGAAATCTAGGGCGTGGTGGCGGTCCCCTTGAGCTAGGTTCTTCTAATGTGTCACTTGATTCAACTTCAGTAGGTTCCTCCCGCTCGGGCACTTTTATCGAAG
A143: oPoolOne | B143: GTGAGCACCACATGCACAAAGACCCGAATAAAGAGGCGTGTGAGACTATGGTTGTCAAATTATCCGAATATGGAGCGGGATCGAGTAGTCTCTATCGATTGGGGCGACCAGAGCTCGTCTACCAACGAAGCTGCACCGGCGATCATATTGTAGTATCGCGTCATACACTAGGACTAAGATACAAGTTCATATGCGCGCCAATTACAAGATCTTTATCATACTCCTTCTCCGCGGAAACGTTTACTCAATGAGCTGTAGGATGGCCATTGGTGATGGGTATATCTACGGATGAGTTCGATTGAGGTGCC
A144: oPoolOne | B144: GGCGGTGGCCTGCGCTGGGACTGACAGTTTTTTCCAGTAAAATACTAGTCTCCCAGAGACCCTAACGCTCTATTGGTACCTACAATATTGGCTTTTACGGTCTACGATAATCATAATGGTCTACCCAGTTAAATTATGGAAGGGGCGCCCATAGTCTAAGGAAGTAGCCATGCTGTTCTTCAGACACCTTACGATGTTCCAAAGATATGGCTTTTGCCGTTACGCAAGACGAGCCGGTTGCCCATTTTGAAAAGAGAACTGGAGAGCAGGTAAGTATTCGTGTCCCGCCCAAAGAGGCGGTCACTGCCGGT
A145: oPoolOne | B145: TAATCGAGCAACCATGAACTGTCAAGCAGCGTGCTCTTGTCACCATCAGCCTTTTTTCTGGATTGTCATACAAGAGATGCTGTCTCGCGTACCCCATATGCGCCCGCGGAACCATGTGCAATAGTGATGAATCGTGTACGTACGGAGTGGGACTTCGTATACCTGACGGCCCTTGTCGAATCCGACAACGGTTATGGAGCAACCTACAGTGAGCAGCCATATCGCGCGAGGGCTTTTCAACCGGGTTTTCGCACTCGCATATATCTGAGTGTTTCGTGCTAGACATAAACACAATGCCACGA
A146: oPoolOne | B146: TGGTCTGGCCTGCCAGAGTGAGACGGACATATAGTGCATCGAAGCTCTTGTCTACAGGTACGGCTACCACCAGCCTACAGTGATGCCTTCGGGTCTTCTGGCGGGACTTTAGTCAAACATTTGGGCGTGGTCGCAGGGTCGGACAAGGGGAGGGTTTGCCCAGCAGGCTTGTTAATCCTATACGAATCGTTCAATATATCCTCGTCGTTCGATCCTGCCACAGTTAGGCTTGCATCCTGAGTCACTCAGGGGGCCTGGTGAAAGAAAACTAAAGTAATATGGCCTTGCCCTGACAGAGCAATGGCTGTCTTATT
A147: oPoolOne | B147: ACAATCAGGGTACCGAATGATGGGTAGCCTACACTGAAGGATTGTTTAATGTAGGTAGTTGGATCATCTACACCTCCTGTCGCTCCATCAGGGCTGATTGCTGGCCAATATTCATTCGTCCGGAAAGTCCGGGGGAGGGTGTTCTGAAGTGCCTAGTCTTAGCTCTCTCATGAATGGATGAAGGCGAGAACAGGCCCCCTTCTCCAAGCCATCGAGATATTAACAACCAATAAAGGCTTTTACGACCTGTGAGCAGGTTCGTCTAGCTCGGTGCGTCTGAGAGGAGATTGGAATGATGATGTAAACGTG
A148: oPoolOne | B148: TCCACGGATGTTCTAAGTTACCTGAAATGCTTTGGTGCTTTACGGGGTGGCGTATTTATCCCAATTGCACGTGGCCCTTGTTAGAGTATTGGCATAAGCTGGTCCACGTATAATTTCATAGTGCCGTTACCGTCCCTTGATGATGCCCCGACAATACGGGGAACTATCAGAATACACCAGTATGTTCCAAGGTTGCATCATGTTGAGGCCCTTAAAGCCATGTTGTCACCGCCACAATAATTTGGAGCCCGCTCCTGCTCGGCCGCATAATCTCACACCTCTATCGGGGTTGTCAGTTAACGC
A149: oPoolOne | B149: AGAGCTTTACGCCGACTCGACAAACAAACAGTCTTCACTCCGCAACTGTAGTTACTAGTTGGGCGACCCTCTTCCAGTTCTGTGCTCCGTAACTGATGACCGCTCATCGGGCCAAATATGGATTGAAGACGAGGGTGATGTGCGACAAGGTTGTCGAGACAGAACTCTACTCAGTCCTCCCTTTAGACCTGCCAAATTGACGGTATGTAGTCTGTTTTCCCAGGTGCCCAGACCAACCACGCTATTCGATCCAGCTCTGCAGTGAAAAAAAACGACCTTTCGGCACGAGTGGTGCTATTTTACGGCCCTCGTAGATTGG
A150: oPoolOne | B150: TGAGTAAATTAATAAGCCAACTGATGGTTGGCATCATCTGCCTACGGCTAGATTATGGAGAATTCAGATAGTTATTCGACTGAACAGAGGAAGACGTCAGGAGATTACGTGACTCTCAGCTCCCTTAAATCACGTGGGGTCGTCCCTTCCTGGTGGAATGCAACAGTTCGAACCATGTGGCTTCTGCATGCGAGTCAGTCCATTATCAGGTCCGATGACCTATCTGGAAAAGACAGCCTAGAGCGTACCACCGCAGTGCTAGTCAGTAGCGTGGAAGAGGGGACAGGGGGACAACCAGGCGTGTGGTGGACGGGC
A151: oPoolOne | B151: CTACCATCTGCCTAAACTAATCCCGGCAGGGTGGCTTTTTTGTCGTTTCTTCGCCAATTGTCAGGATTTAACTAAAAAAGTGACGGATTAGTTAAGCAATACGGTAGTTTATTCGTGGCGGCCACTCTTATGATTTGAGTTGCAAACCACGAAATTTACATTCGAGTCACCAATTTGCACACGAACATTCACCTCTGCGTACGTAAAACAATTTGCGTACAACGTGGATGGGGGCTCTCGCTGACTCTTTCGATCCATGGCCGCTCGACTCATTCTAGAGTTTCCAGCGTCAGACAGTACACACGCCC
A152: oPoolOne | B152: TCATGATACGGCTACCAATATCTTCGTGCGGTTTCCGTGAGGCCCTACATGAATTACAAGAGCGTCTCCCACACTAGTTCCAAAGCGGAGACCGTACTGCAGCAAGGCAAAACAAAGACAGAACAACGATCAGATGGTCCAGTTTCTCCCGTGATAGCTTTCTAGAATAAAAAATCATAACACTAACAAAGTGCCGATTCGTGGGTCTCGTATTTCTCCTGTGTAGGCGAAGGCTGTACGGAAGCATTGGGGTTGACGACGACGAGCGTGCTTCAGATCAAACGTTAGCATTGACCGGTTACAGACCGG
A153: oPoolOne | B153: GTGTCGCGTGCATCGGAACTTATGGGCAGGTTCCTGCTTCGTAACTATACGCGAGCGGCCCCACCTCGCACTACCCAGAAGAAAGAATATTTGACCTTCTTCTCTCCTCTCTTTACTTCCGGTGCGGGTCAGGATCATCGCTCAGTCTAGTTTTTTCGTGCTAGACTGGAGCGGCACTTCATTTAGTGCGCCGCCGAAAAGCGCGACTGGCCATTCGTGCGAACTTAACGCCTCCCTCCACCGCTTGAATTGTAGCACGCCCGGTAAGCATGGGCCGTGAGGCTGTTTTATGTGAGTGGTCCTGCCCTATACCTAAGAT
A154: oPoolOne | B154: GCTCCAGGGTTTTTGAGGACTAAAGAAGGCACGTGATGACGATAGTTTCTTATAGGCCGCGTCCAAATGTAAGCGAACACAGACTTGATAGCCCTGCTGCTTTTGGCGTTGCCGTGGTCCTTCCTAGAGCGCAGGCCGCTCGCACCTTACCGCTCTGTGCTATCGCGCAGTTCAAATATACGTTGGGCTCGGTAGTCGTACCTCGTAACACGCTCTGCTCATATAGCCAGCCAGCGACGCATTTCGTGTCCCGCGTCAAGATGTCACCCCCAGAAGAGAGGGATTGGATACGAATTGAATAC
A155: oPoolOne | B155: CAAGACAGGAAATATACGTGGGGAATCCAGTATGAATACGATGGGTGGTTAGATAGTTTAGGTAGGGAGCAGTGCTATTGAGGAGAAATCTAAACTACTCTCGGTCAATGCGGTAATTCATTCATATGGGTCTCTGGTGGCATCCGCATCTCACGTGTGGAGGTGAGCTAAATAACGCCCAAACACGAGATGGAAGTATTGCACCCGTTATTGACCTGCTCGTTTTGGTAACCAAAGTGAGATTACGTTGTACAATGTCCTCACATCGAGTGACTAGCACAGGTAGACAGCTACGGCCTTGTGGAGGTG
A156: oPoolOne | B156: CGGGAGTGGTTTCTAAAAGGCTTCAGGCTAGGAGAACAGGGTTTCTAAGACGGTAGCCTCATCCTCAATAGGTATTCCGTTGATCGTGTCCTGCGTCTTTGTATCGCTGTAGAGCTTCCTACGCATACACTTGACAATTACAACAGTATAATATCATAACGGTATTTTTGTCCCCGGAGTGCATCCAGCCGGAGATAACAGTCCGAGCAGTAGAGCTTTGATCTCTGTGTGTGTTGTCTCCATGAATTTGTTATCCGCGCTGGTAGTCTTAACGCCAGACGGAAACCTCACAGAGGTGCTGTAGAGTGTTGTCC
A157: oPoolOne | B157: GGACAAAGAAAATTATGTCGGATATCAAGTTTCAACTCTGCCTTACTATATTAGGAGAGAGCAAGCCTCATCGATGAAATGTCTTTAGGTCTCCTTAACCCATGCAGTGAACGGGCGCCGAAGGATGTCGACGCCGATGTCCGGCCAGAGGATGGGCCTCTTCTGTACGAGTTGCAAACGGTCCGCCGCCTCGATGCATAGTATATTTGTACCATGTGATGGATCAAGTACTGCTTAGTTGATTTTAGCCACAGGTGAAAACGAACCTTATGAACCATGCGCTCGAAATGTGGCGATATCTACAGGATACTCTT
A158: oPoolOne | B158: ACCGGAACGACGCGTCTCTGCCTCGTGGCGAAACTTGGGTCTTAGTTGGGCATTCGCTGATAGCCAATGACCAACAATGGCGGCATTTACCGGCCTTCTGTAAAACAGACGGGACACCCTTATGCTTGACTCCGAGAGATTCAATTAAGACAGCTGCGGACCCCGTGCTTCTGGCAGGGGTAAAAGGCTGTGAAGATTGTGCGTGAATCAGCATGTCAAGGGACGACTGTAAAGGAAGGATACTGGGCGATGGTGTATCAGTTTTCCGCAGTTGAAAGGCTCCTTGCGGGTGTTTCATAGCAGCTAGACTGAGATACG
A159: oPoolOne | B159: CGAAAAGGCACCCCGTTCGAGTTTGATGCCACTAAGCTACTTGGCATGCCATCCGGCCTCGCATCTCTATAGATTTGCTGCCGCAATTAAACGAGCGCATAGTTACGCTGCCACAATCTCAGTCGCTCCAACGACCAGAGTGGCGATGATGGTGCGTGTGCTATGAGACTGGTAAAACGCATGTGAGTCTAGCACCGATTCCATCTCTCACGTAGCCAGCACTGAAAGAGGCCAGTCGCTTCGTGCCGGCTCGTATAACTTTGTGGCCGTTACCGTCACGTTGTTAGTTAGTGTATGATACCAATGAC
A160: oPoolOne | B160: TCGAACGAGGTATCGCAATTCTACATCAGTCCGAGACCGAACGAGAGCATGCAGCGCCGTGTGATGCAGGCCAGACTGGCTATCACCAAGTCATCTGCAGGTTTGACTATTTTCTGCAAACTCGCTAGATTCCCCTAATCGATCCCGTCGTCTTACGGTTACCCACGTGGGCCAATTCCAAAGTTGGTTGTCCCCATCCAAACTGTGTACTCCACTATCGATATGCACGACGCGCCCGTAATTTGCCAAGGATCGGGCTAGGGTACCGTACAGCAGTTCCAAGTAGCTTGCCCTCTAGCCTCGAGGTACCGAGTT
A161: oPoolOne | B161: GTCCTCGAACCACAGGGTACTGTAGCAGAGAGAGGTGGCCTCACGGTCCCGTATACGTAGGATAACCACTCCACGGCGCTCCGTCTCGTTGTGTAGGCACCGGGCTAAGCCAGTTGTTAAGCCTCCCCTGTGTATAGCCGGAGCTATTAGAAAAGTTGTCAGATATTTGACATGCGGCATTACTGTGATTCATAATAAAATGCTAGCGTAAATTTAGCGTGCACTGTTCGTGAATATGTCCGGGTATCAGTCACTACCTGGGTTACGTTCCCAATCCGAGTTGATTATAATCGCAACGCCGCTG
A162: oPoolOne | B162: CACTTCCTACAAGTTTAGCATTAGGCCACAACCCAGGCTTCCAATTTTTAGAAAGATGGAAACGATGGCGAATTTACATTTCTTATCAGACCCGATTGAGAGCGCCGGGATGCCGGTATGCATGGCGTACGGTTTACCCGCTGTTCGGGTCGGTGTAGCGACGCACTCGTTCTAAGGGTGCCGATGGAGACTTTAGGTGGCCGACAAATGTCTGGTCCTGCATGACTATCTACCCAGATTTTGTAGGGGCTACAAAAAAGCGCTAATTAGGACTTGTCATTTCTCCATACAGTGGCACCACCG
A163: oPoolOne | B163: TGAGAAGTGCTGTATACGTACTGGGGGCCGCCGCTGAATTTGCGTTCTGCCCGAGACCGCGATAAGTCGTCTACTTTCGATAAAATCGGTCCCCGAGTTTCGCATGACGGCTTTATTTGCCCCCGGACGCATTGCAAAGTAATGGGTTGAGAACAACCGAGAACATGTAACGTCCGGCACCTAGGCAGGGCGGGTGCTAGTTCCACAATGAAGAAACCCGACGGTCTCATCCTCTAAGGAGTTTATACGAAACTAACTGGATTGGTTCTCCCACTTTCGGCTCGAATTATGGCCTAGATCAAAACCGATACCCCAGCT
A164: oPoolOne | B164: TTGATCTTTATACGTTAAGCCTGACGCTTCACTACACTACGCGCTAGGACTTCATTGCCATTATAATGAAAAATAAGGGCGCGAGGCAACCACCATCAGTTAACCGCGCGCAGAAACTAAATACATCCTATGGCAGCCGTTACTCGGTTGACGTAGCGCAATATGCAGAGAGTGCTTACGACAATACCGAAAACTGTTTCCTTACCGGACCGGTCTGCCCCACGTTTAAACATCCGGGGCTTCCCTGGATGCTTTTTATAACCCTGTGCGAATGTTAGGGCTGAAGTCTGGCAGTACCACTACCGTGAGAGC
A165: oPoolOne | B165: TTAGAGGCCGTGCTTTTGCAAAAAGATCGGGTTGACGGCGCCTAGCAAGGATGCGAACTGCGATGTATCGTCACTGTTGTGACGCCTGGCCCACTCTGTAGTAGGCTACTGTCGCTATAACGACCCTCTAAATCTTTGAGTCTATCATGCATTACTCTTTAACCCGGTGGGAGGTCTCAACGGGAAATCAAGGAAGCAAAAACAAGCTACTAAATACGTCAATCCCATGTAACAAGGCGCACGCTTGAGAGATTGAACTCCTTGAAGCCATCCGGCCCACTTTTAGTGGAGATTTGGCGCCT
A166: oPoolOne | B166: GCCTGTGACCGGTGGGTTAGAGTACCGTGCCGTTACAGCGGTATAATTCTATTTGTTGTGACACTATGAGCTATACGACTTTACCCGCGCTGGGTCGGAGACGTGATGCCCTTAGTCCCTGCTGGCTCAACGCTGTCCCTTTTATCTGCTGCTGGACTCATGAAGCGACGAGCCTCATCCACCCCCAGTTACGAACCGCGAATCGACTCGTCTACTACGAAATTTCAGCCCATTGATGCAGTATCCCAACGCCGGTGTGTTCCTCTTCTTTTGAACGCTTTCACCCGAGGCAACTACACGATGC
A167: oPoolOne | B167: TTAGCCGTGGATTTAGGATAGCTCTAGGACCGAGCTGTAAGGGGTGGTGTGCCTAGGCTCTCCTTGAGGTCTCAGCTCAATAACACTTTAACGAGATGCTTGGAAAACTCCCAAAAGCCTGACGTGCAGAATGTCGTTTGGTGTCAACGTTTGACAATCGGAGTAGGTCCTGATTCGCCACGCGTAGCAGTGTAGGACAGCACAGTTATCTGGACTCGGTCCTCTTATGGCGTCTCAAGGGTGACTATGGTGTGTGCAGCTGCCGTAGTCCGGTCGCCTTCGGGACCCTACGTGCTTGGACAAGCAAC
A168: oPoolOne | B168: TCCGAACTCTCTATGCGTGGGATTTGATAGATGGGAAGCAACCTAAACGGACAACGCGGCGGTACATAGAACAAATTGTTGCAAAACAGGTCCGGCATTGTTTTGGGAAGCATCTAGCGGGGTAGAACCACTTTACTCACTCGTACAGTGAGCAGCGAAGTGGATCGGAAAGACCGCACGCAGATTTTTCGTATAGGGCTTTCGTGTTCAAAAGGTTTCATGATTTTTAGATCCTGGACACCTAAGTCCAGGGTATTGCCTCTCGATGGTCAGGTAGATACCCAATATGCCAACAATATTAC
A169: oPoolOne | B169: TCATCGCATCCTCCATGTGCATGGTGTACGCCCTTCGATAGTCTAAGCGTTAATGATGAGCATGATCTCATCTGGGTGTATAGGACTCTGAGAGGCCGCCTCGCACACCCTATGTCAGGATGTAGCCTTATGGGGCGGCACAGCCGATATTCTAGGGGGCGTTTGCGCGGACATACCTCTTGAAACCAGAATCGTAACACTAGGTATAAAAAGTGGTTCCCTGGAAACTAAACAGTAGATTCAGACAATCCCTCCCATGGTAGTTCTCTTTAGTGGCCTTTGGCCAATCCTCGGACCCAAGCGCGCTCAGGCTT
A170: oPoolOne | B170: AGGAGATATAAGTAAACCTTGCATTAGTTCGATATTCTCATAGCTTACTACAGGCGCCTCGCGTGTTTAGAGCTGACAGCTCCGGTTAGCTAAGCGCACGGCCTGCATTAGTTACATCCAATGTTTTGCCGTAGTGGTTGAGGCGCCCTTATATATGCCTCGTTACGAATGCAGCGCTTGTTCCATCAACTCTATGAGGTCCGCCATTACTCTCTTGTTTTCTGTAGACTGTCCTGCCAACAGTAGTTGGTTGTCCTCCCAACCAGACACTCGCTCCGCGCTCGATGTTGAAGTCGTAAAAT
A171: oPoolOne | B171: TAAACTGGAACGTATAGGCAGGTCGTGCGCAGGTGAAAAGCATTCAGTGGCTTTAACCGCGATAACTGAGAGAGTTGATCTTCAAGCATCGCCGTGGAATCTGAATCGGATGTTTATCTTTCCTCCCGTCCACGGAGGGCAACGAAGGTATTGTAGCCGTGGCGGGCTACCACTCAAACAGCTACTGCGAGTGGGGCACGGGGTCAGGTGTAAGTTGTCCCGGCCCTTCCAAAACACTTGGCTGAGGCAATTACTAATCCGCTACACATAGAGACCACCGTATTAGGGTATGACTTATCGGTTGAGCTAT
A172: oPoolOne | B172: GTTAAGCTCATCTAGAGAATGGCTCGAGAATCAGTGTAATGAACAAGATGAACCGGTTTTGATTGATGTCAGCACCCCTGTTCTATTTGGGTGGGGGGGAAACAGGCGCGCTGATCGTGAATGGACTGTTGACGTAGGTCACTTAGTGAACCCCCGCAACATCCCATGGCATTCAACAAGCTGTCCCCGTGATTAGAGGCGTGTGGGGCTTAAACATGCTGACTGGATGTTCGGCCAACCTACCACGTTCGGTCTTGCCTTCTTTCACTACTCCTGCTGAGATTGTGCCCAGAGGGCAGGTGTGGAGTGGCCGGGA
A173: oPoolOne | B173: CTGGCGTTAGCGGGCTGGTGATGGATCCGTTGAAGACTAGGGATGTAGTCTTAGCTTGTCTACATTCGTCTTGATAATATGACGCTCGCTTTGCAACTGCCGTGGGCGAAGTTCTTCAGAGGATGCGCTAATAGGGGACCCTTCATTTGTTGATGTTATCCCCTGGCTATTTTGACTGCAGCAAGCCAAACGGGAATGCGTAGGTCAACTGCTCACAATATGGTTAAAAGGGCAAAAGGCCAGTGCCTCATGCACGTCGTTGGTAGACGGGGGGATTGTAGTTAAGGATGATTCCAGAATATCGC
A174: oPoolOne | B174: TGTGGAACTCCGGGTATCAGGCCATTTCTGCATCCGTTCAGCGAACAACCTTCTTTTTTGTCATGCAAGAAGGCAGAGCAAACTAGAGATCCGTTACGCGAGTTCACAGCTCTATGGGCGGAGGGGCTCAGCGGGAAAGTCTATACAGGAGGACAGTTCAGTGCCATAAGCTCGCCCGAGGGGCGCCGTAGTGGGCACAGACCTCGAGCTCTACCCTAGCCTGGTAGGGACAACATAATCTAACAGACGTCCTATCAAAAAGCAGACGATCAGGGACAGAATGCTAGTAATCCTAAGGACGG
A175: oPoolOne | B175: GGTACCTCTGTTTGCGATGGTGATCTTTAGGGAGGGGGACGGAACACGCACTAAACCGATGAAATCCAGATGCGTTGTTACGGTTATCCTGATCGCTACATGTGTGCATTCCCCCAATGTTCAAGTCGAACAGTCCTGTTCGTTTTCTATCCTTCTGACCGATCGATGGCGCTTCCGGTACTACTCTGATGGAGCAAGTCGAAGATTCAAACGCTTATGACGACTCCTCTAAAGGTCCTATAGGTCGTCGGTTAATCGATCGTATAACGCATCCATCTCGGCTTAACGCGCGTACAGGCCTGCGATGTG
A176: oPoolOne | B176: TTGTAGTGCGCCTAGCAACTACACATCGCGCTGCTCATCTGTTTGTGGTGCGCGCAGACGAGTCGGACACTAGCTAACGGCTTTCAATAAAATTAAAAAGGCGCCAGTTCCTACCACGTAATTGTTGTCGTCCTACTTGCGTTTTCCAGATGGACTTCTTGACGTATATAGTAGTATAGTGGTCGATAGATCAGACTGGTTCGGTTCCGTCCGTGTTCCCCATCTGGTCCTAACTTAGTCGTTGTTCAGTGATGTGGCTTTGGATAGAGAGTGGTTGCCTGCATATAAGTTGGAGGGATTAATGACTACAAA
A177: oPoolOne | B177: TTATCCCGACGAACCGCTGATTAGCGGCTCATCTGTCTTCAGTTACGTGGCTGGCTATTGTTGGGCCCCGAGGGGTTAACTGTACACGTGCAACTGTCTTATCTTTTTTTAAGATGGAAAGATCAGCCGACAGATAATTGGCGCCACTAAGTTCGGGAGAGCTACCGGATGTGGTCCTGCCATCTCTCTACTAGCCTTAGAGAAGGCACGGTCACGGTAGTCTGCGCTACCAAGCAGAGGGCTTGTACGATGTATGACCTAGTGAGGTGAGTACGACAGCACTCATACGTGAGCGGGCCGG
A178: oPoolOne | B178: ATTGAGCACCGGGTGACCAAGGCCATTTCGGGCAGAAGGCTCGCCTGAGGTGTTAGTCCCCCCGCGGCGACATCCCTGCAGCGCACCCGCCTCGCTTGATTCCACAGTGTTTCTCAATTCGATTTCGAGAGGGACTGTTTTCAGGGCCGCGCCCGAGTGCCTCAGAAAATGGCTCTGAGCACTCAAAGTTAGGCCAGGGTAATGAGATGATCCGGGACATACTATAAGGCTTAAATCGGTGGAGAGCCGACCAAGCTAGCGCCAAAAACTATGCCCACACTGAAAGCTAGAATAGACACATCGCCCATCCCAT
A179: oPoolOne | B179: AGCATGAAAACGGGGGCACGAATTCCACACATGTGATATACTCCACCGCCACTACTGTGTTTCCTTCGGACTTCAGTACCGGATGGACTCTCCAGATGCGGTTCGGCCAGGACAACCCAGACGTGTGTCTTCGTAGCCGTTTAACCAATCTACAGCGTTCTGTCTAGGTATTTCTCGTAGTCTGTAGATAAACATCTCAAGGAGGGCAGTAGAAATCCTCCTGCCATCCGACAAGTCATAACCAATTAGCGATGTGAGTTTTTCAACCAGCTGTTCACCGGGGAGGTCGAGACTTGATCCCAAGAAAGTCCTA
A180: oPoolOne | B180: GGAAACCGGCAAGAATATATGTAATCATATTATTTACGGGCGCCATAGCGTCTGGGAGTATTGATCCGTACTGTTACTCATATAAGTAGTTACCCGGTTGGCTCAGTAGTGATGGACATGTCCCAATTTTAGCTGGCGGTTACTTCACAGCGTACTCCTCAACGGGTTTATGCCGGGCTTGTAACGTAGACCTGACTGACACCAGTCTTTGTGGAGGTAAAGCCTCCGACGATTTCTGCTTGACGGCACACCCCCTCATGGAACGGCAGTCAAGTGACCTTTTGTGTTTATCGGGCACTAGAAG
A181: oPoolOne | B181: GATAAGTAGCCTAGTTCAATCCTCGCGCAGCTTTATAAGAGCACGAGCGCGGGGCGACCCCAATTAACCTTTGCACTAGTGCTGACCAAACTAGATGTGTGATCTGTACGGACGCGTGTACTTCGCGGTAGCGGTAGGAAGTAGCCTCATTTGGCCGCCTTTTACGACTTGTTTAAAGTCCGCCGGGGGTAGATTGCTAACGTGCCCGGGTTCTGGAAGCACTCCACAGCACGTGTTGAACAAAGTAAACTCTGATGTAATCCCCAAACAGACTCACCGAATGGACTTCACACCTGAGCTATC
A182: oPoolOne | B182: CGTCTCAACGACGTGGTTATAATACTTAATCCTAAAGGTACCCGTGTGGTGTCGAACTTCGGTAGGTTTAACGTCTAACGCGCCTTCCTACGAGAGTGCCGTGAGCGGATTGCGAATATGCACGCTGAACCCATAAGTGCAGCCCATCCTAAGTCTCAAATACAATAGCTCTGGGAGTGAATACGGCCGGCCCGGTAGAAGAACCTTACGTGAGAGACGCTTATCGAGGGGTAACGACCCCGGCACTTACCCCGGTGTTCAAGCGGATATTAAAATTGGCGCGAAGTCCCCATCGGCGATCGAAA
A183: oPoolOne | B183: AATTGTACTGAATGTCAATCCTTCATACAAGCTCGTGGTTCGTTGATGGTCAAGCATTATTGCACACACCTCAAGCATTTATATGCAGTCTGTCGGTCGTTGCCTCCAACGCTCAATGTAGTAGTAGTCACTGGTCTAGCTTAGAACTCGAGTATTCACTATTCTCAGCGGATCGGCTCGCCCCTGCAGGGCAAACAACCATAGTTGTGACTAGCATGCCGCGTCCCTTCCGGGCAGAAGGAGCAACCTCTTACTAAGAAGGAGCTGACGCGTTAGTTCATAGGCGCACGTCTGGCTCTAACGCAAATAGTCG
A184: oPoolOne | B184: ATTAAATGTGGTGTTAACGCTAGGGTAGACGCACGTCCACATTACCACCCGTCATTATGTTACGGTTTAATTGCAATTTTGGGGTTGCTCTGTGACTCCTACATTTACAGTAGGGTCGAGTATGAGGTGAACCCGATAAAGACGGCCCCAATCACAATAGCAACACTATTTCGACACGATACGATTAAGTAAGTTCGTCCCTCTCGAATTGGTAGCGTAACTCACCCCGTCGCACACCCATTGGATGCACCTACCATTCTATGCTAAGCCATGTTGCCTTAACGATAACGTTGCCAGATCGC
A185: oPoolOne | B185: CGACAGTGTAATTTCATGGCCGCAATAGAGGACGAAACATACCGGGCGCGAGAGGGTTCATCCGACGCGTAGCGCGGTCGAGGGAGAGGCCAGGCCAGACCTCGCCACGGAATGGACTCAGCATCATCGGGATATCGTCAAGACAATCGTTGCAATGTAGCGCAAGGCGTATTTTTGGACCGAGAGTTGCTGCAGACAGAAACTTATAGGCTCCATAAGAGCTAGATTCTACTCTTACTCCTTATTCTGTAGCGAATGTCATTAACTGAGCCCGCGACACGGGGATCCAATTACTCAATGTG
A186: oPoolOne | B186: TGCCTTTGTACCGAGCAACGGTCGTCCATTAAACGCTTGCCGTGTAGTCTATAAACTGTAGAAAACGTTCATCGAGGCACCAAGAGTCCTACCAGCCTAGTTCTGCGAAGCGCTTTGTTGTGTACTGCATCACATGACCTCATTACCCCGGTACGGATGCGAAAGTGATCGGCCGCACTTCATCCAGTATTCGGGTGGCACTATGGAACAAAGAAACTTCAAGTAATGGGACGGATTGCGTGGTTATCTTAGTACTCACCGCTTGAGACAGGGGTCTAGTGTGCGTCGAATTAACCCCGGCATGCCTTCAACAGCTT
A187: oPoolOne | B187: AGATTAATACCTATCCGCAAGGCGACTGCCGCTACCATGGTGTCCATCCCACCGTCCCACTCCCTGTAGACTCATTAGAGACATACACAAAATAGGTGATGAAGCTTCACAAGCTAACTGAAAGCCTATGCTCGCTGTCCATTAGTTCGCCCTCAGAGAGAAGCCTGCAGAGTTGATTTAGCACGGACAAGCGGTTCAACGGATGCCGGCTCGACCTAATCGTTCTTAGGTTCCTGTTTTTCTATAGAGGTGACTGCTCAAAGATCTGCAGTCGAGCTCGGGAAATATAAGCATGCAGTCCACGTCCGACTGCGC
A188: oPoolOne | B188: GCTATGTATCTTTATCTGTCATTCGCTAATGCTTTGCGTGTCGCAAATCAAAATGAGATCGATATATCGGTAGTTGAGGCCTCGCCGACACGGTAAGCTGACAACGTGCCTGCCTCTTAGGTGGGATACGGTTAGTCGGTGGCGGAATGTTGGGCCCTTGTGATGGCGATCTCCGATTACTGAATAGGGTCGCGGACGTGATGACCGCGCGCGGCCTCAACGGCCTGTAGCCTAAAAAATCCCCACCTTCTTTTGCGGAGCTGCGCACGGTTCGATATTAACCTACGCAAGGTCGCGAACGATAGCAAGCCC
A189: oPoolOne | B189: TAGCAAGCACTATCGATGGTTTCTGGAAATAGCCGCATGACAGCGGTCGGAATGGTTCGCGTTTCAAAGGGCTAGCTGGCCGGGTGGGGTGGGTAGTGGGCCTGGACCGCTTGAGTTTTACTTCGGCATGCTTCAAGTTCCCAAAAACTCCATTGTATCCGTGGTGTCTGCTAAACGGTCGTTGGAATAGACAGGCAGAACAAATCAGTAGGTAGCTCAAGGGGCGGCCTTCTCAGACGCAGGCCCAGCTTCACACCTGATGCCTGGCACCAGTACTACATGTCATTCGCGTCTAGCCAAGACTGG
A190: oPoolOne | B190: TTACCACACGAGAGTCTCGGCTACTTCCTTCAGGTCGTGACCTTTGTTGGCGCGATGCATCCGCCCGGTCGTGATACGGGAAAAGATCTAAATGATTAGTCTTATCACCAGGCCGGCTACCTACGAGCGGCGTGCGGACAACAACCCCTTTCCCTGCTGTGTCTCCGTGGTCGTAAACCTAGGATACATATGAGACATACAACACATGTCAACAGATATAGTGCGGGAAGTCCGACTCACGGGGTGAGGCGCATTCTAGCCATCGTGGGTTACAGTACTTTTTGCGTACTGGTTCAACCCTAACTG
A191: oPoolOne | B191: TTTCGTTCCCACGGCACTGCTGCGAGCCGGATGATTGGGACTGTCTGTTAAATAGTTCCATAGCATTGAATAAAGCCGAATGTTGCAGCGCAGGATAGCTGTCTAATAACATGCCATCCGCACTAAGTCGGACTATTTACCGCCACTGTCCTTTAGTTAGTTCCTAGTTGGCACGCATTCTTGCGCTTCTAGCATAATGCCTCGGTAATCGCGTAAATAGGATGTCAACGAAAATCAGGGTGTTCATCTCCCGCAATTAAGCACGGAGTCTAAAAAAGCTTACAGTTTTCTTCCGGTTAGGCTCTTTCCGTTCTGGGCT
A192: oPoolOne | B192: GGTACGCATGGATCGTCCTTGTATTCCAGGCGATTATTCGGTAATCCACCAGTCCGTGATATTCCCCCACTGGGTTCCGGACGCGCTTTGTACTACCTACGCCCATCAAGTCCCATGGCCTAGCGGGATAGGGTAGCGACTCACCTCGGTGGTTAGTCATTAGCTAAGGGCTTCCATGGGAGTACGCCCCTTAATACGTTTGCGCCTGCAGTAAGTCATTGTTGAGCACTTGCTGATCTCCGCAGTAGAATCTATGCTGCAATTCCTACTCTCTGGGCGTTCAGCTGTTTGCCTTCTGGCTTTCTTCAGTCATTAAT
A193: oPoolOne | B193: CGTTGAGCGAATTGGACTATTGAGCAACAGGTTGGAGGCTTATATCACTATCGGCCCATGCCAAGATGATGTATGTTCGCACTGCACGCATCCTGCTGCGCTGCAATTTGGGGTCAAGTGCACCCGAAAGTACGCATAAAATTGCCTATGAGTTTTATTCCGATTAGCGCGCCTCATGGGAAACGACCACCGGGGCCCACACCCTCAAAGATTAGGAGGATAGAACTTGAAGTGCCCTTTGCAAGCATCCGGGAGCTTTTTATGGTACAGACGAAGTACTGATCTAAGCGTAAGCAAGACAAAACGC
A194: oPoolOne | B194: CAAGACACAAGGAACGACGCCACGATACCCTAGCAGGGAAGCGTAGGGGCAGAACTACTCAGGCAAAAGGGGTTCTGTTAGATTGCGGGTTAAGAACACTGCCAACGCCTCTCGCGGGCGGAGCAGGAGAGCTTCGTATCGTGGAGGTTTCCTGTGCATAACACTGCCCCTTTTGTTCACGACGTTCAGCGTATGCTGCGGTCACATGAAAGGTCAGCGACCGTCAATCTTCGTATGACCTCTCACCCGCGCATCTAGTGCCGGCCTCCTAAACGCCGGGGTAAAGGCAGACCTCTCCATAAGACAGGATAGGG
A195: oPoolOne | B195: ACGTATTATTCTGGGCCCAAAATAGTGACTCTAAAGAAAAACGGGCCGCCTTTCCCGGTGTACCACAGACTCTTATGGATCCATTGCTTACACGGGGCAGAGCTTCCCGCTCTTTCGTATAGGCACCTCGCTTGTAATTATTGAGCCCGGACGTTTACTATGAGTATGTTATAGCTACTTTCGCTTTTGCCGTAGTGAGCACGAGGCTTGGGTGATCTACGCTCGCCAACCGATTTACTTCGAAAAAATGGGCGCCAGTATATTGCGATAGCGATCACCTCCGACTCATACGAAACTCCAGGGG
A196: oPoolOne | B196: CAGGCAAAACGATTGCGGCACACCCTCTCAGCGCGTTGTTCGAGTCGACCACTCTGTTCTGCTGTAGGATAGAGACAACAGATGGATTTAGAGAGCCGGGCCTAACTTAAGGCTCCGAGTCTGTTGCGGTAAGACGGTTGTCCGTTGGACACTCAGGTGTTCGCTCGTCTGGGATCTTTTCCAGGGTTTGACAAGGGCTTAGGCTTACTAGTATATAAGCTGAAACGCGGCGCCGAGAGCGATCGGGGACACATGCTCCTGACTCACTGCCAACACGTTACCAAGTGTCCTTTGGGTCTGCTCAATTT
A197: oPoolOne | B197: CTTCGGATCCCTCGGGCAGAAGTATATTATAGCTACGGTCCTAATGGGTTGCTAACATGTTAGGCTGTTTCTCGGTGCTTTGGCCATCGTTTCCGCAACACTGCGCTTCTAGGAGGGGACAACTTATGCGCGCAGACGTTTAAGACCATTCTCTCGCAATAGAGGCGTCATCCTGTACGATGAGGACGCTTACACTTCAGACCTAGCTCGAGGCCGACAACCATGGCCGGGGGCTAAATGGTTTGAAAGCGAAATAATAATTCACCATGGGTTTAACCGGGGCATTGGGCTGAGGGGTCGTGGCGCACGTGCCA
A198: oPoolOne | B198: CTAGGAGGTGGAAGCGCACAATTGGGGCTAGGGATCACCTTAGGTGCTCCCCCCTTGGGTCAAAGTCAAGGTATTGGTCTCTATGCCGGTCTTAAATTAGAGTACATGTCGCGCCGTGTGCTTCGCCAAAGGGTTTGACGGTGAGCTGGTAACGAACGTTCATAAACATGCGACAGTTGAGTATTAAGATAAGAGCAGGCCCCATACGACTCAAGGCGTATAGCATCGCAGTCATTCGATAATTAGAGAGCATGATACAAAAATAGGTGGCCGGATGCGGTCTCAACAGACTCAATCACTGAGTACCTTTTGA
A199: oPoolOne | B199: GCTGCGGGCGTGTTGTGTGTGGGCTACTGAATTTTAGGACAAGGATAGGCAGCCGGAACTACCAATAGATGTGACGCAAGCGACAGGCTACTTTAATCAAGAGCGAAACCTCAGAAACGGGGCTAATCCAGTCGTCATTCGCTAATAGACTCCAGGCACAATGGTAGGCCGAATGACCACGCCGTCTCACGCATGGGCAAGGATCTGAGATCTTACATGGATCTGGAAATCATGGTACGGAGATTTCTGCCCGTTCTAACGAAGGACCTCTGCTTGGGCATTCTTAATGAGATTCACGCCACCACTAAGCA
A200: oPoolOne | B200: TCTAAGTCCCGGGCTGGGACAAGCGTAACGTTCGCCCTTCGATTAAACCGAGTATCAGGTATCGAGGTTCACTAGAAGTGGCGACTACTCGAACTGGTGAGTACAATCGAGACTGGCCTAAGTAGTCCTTAGTGTCCCTGAGGTTACTCAAGCTTGCCCTGCGCGCCAGGGTTGGTGGTAGGCGGCAACAGAACGGGCTTGCAACGCGAGCTCCTTAAGCGAAGTCTGCTCTAGACGAGTCGCACAGGCCTGCGCCGTTCACGCCACTGCTTCCGCCAAAGCTAACAGGCGATGAAAGAGTCGGAGTTCAATTTC
... 201 more rows
